Workbook

Sheet RESUMO MODULO TOTAL
E1: Ministério do Desenvolvimento Regional
E2: Companhia de Desenvolvimento dos Vales do São Francisco e do Parnaíba
B5: OBRA: | C5: EXECUÇÃO DE SERVIÇOS DE IMPLANTAÇÃO DE PAVIMENTAÇÃO EM BLOCO DE CONCRETO INTERTRAVADO, EM VIAS URBANAS E RURAIS INSERIDAS NA ÁREA DE ATUAÇÃO DA 3ª SUPERINTENDÊNCIA REGIONAL DA CODEVASF. | I5: BDI Serviços (%): | L5: =BDI!C14 -> 0.2339
B6: DATA: | C6: 2025-10-01 | I6: BDI Diferenciado Serviços (%): | L6: =BDI!C69 -> 0.15
B7: PRAZO DE EXECUÇÃO: | G7: R$/m² | H7: =TRUNC(L46/H23,4) -> 163.731 | I7: BDI Fornecimentos (%): | L7: =L6 -> 0.15
B8: PLANILHA DE ORÇAMENTAÇÃO | N8: 2327014.69 | O8: 0.08784565301
B9: ITEM | C9: CÓDIGO | D9: FONTE | E9: DISCRIMINAÇÃO | F9: TIPO | G9: UNID. | H9: QUANT. | I9: VR.UNIT.S/BDI | J9: PR. UNIT.C/BDI | K9: C. TOT.S/BDI | L9: P. TOT.C/BDI | M9: =L46 -> 9168936
B10: 1 | E10: SERVIÇOS PRELIMINARES | K10: =SUM(K11:K12) -> 133160.22 | L10: =SUM(L11:L12) -> 164304 | M10: =L10/$L$46 -> 0.01791963648
B11: 1.1 | C11: CPU.1 | D11: Codevasf | E11: Mobilização | F11: SERV | G11: kmxfrente | H11: =Mob!B66*Mob!H6 -> 400 | I11: =Mob!B63 -> 166.4502983 | J11: =TRUNC(_xlfn.IFS(F11="SERV",I11*(1+$L$5),F11="SERV DIF",I11*(1+$L$6),F11="FORN",I11*(1+$L$7)),2) -> 205.38 | K11: =TRUNC(H11*I11,2) -> 66580.11 | L11: =TRUNC(H11*J11,2) -> 82152 | M11: 0.008959818238 | N11: INCC | P11: TERRAPLENAGEM | Q11: =(SUMIF(N:N,"TERRAPLENAGEM",L:L)/$L$46) -> 0.02272385804 | R11: =(SUMIF(N:N,"TERRAPLENAGEM",L:L)) -> 208353.6
B12: 1.2 | C12: CPU.2 | D12: Codevasf | E12: Desmobilização | F12: SERV | G12: kmxfrente | H12: =Mob!B66*Mob!H6 -> 400 | I12: =Mob!B63 -> 166.4502983 | J12: =TRUNC(_xlfn.IFS(F12="SERV",I12*(1+$L$5),F12="SERV DIF",I12*(1+$L$6),F12="FORN",I12*(1+$L$7)),2) -> 205.38 | K12: =TRUNC(H12*I12,2) -> 66580.11 | L12: =TRUNC(H12*J12,2) -> 82152 | M12: 0.008959818238 | N12: INCC | P12: PAVIMENTAÇÃO | Q12: =SUMIF(N:N,"PAVIMENTAÇÃO",L:L)/$L$46 -> 0.7850044334 | R12: =(SUMIF(N:N,"PAVIMENTAÇÃO",L:L)) -> 7197655.41
B13: 2 | E13: INSTALAÇÃO DE CANTEIRO | K13: =SUM(K14:K15) -> 22030.16 | L13: =SUM(L14:L15) -> 27182.92 | M13: 0.002964675509 | P13: CONSULTORIA | R13: =(SUMIF(N:N,"CONSULTORIA",M:M)) -> 0
B14: 2.1 | C14: Canteiro | D14: ORSE | E14: Canteiro de Obras | F14: SERV | G14: und | H14: ='MC MODULO'!D10 -> 4 | I14: =' Canteiro'!F11 -> 1762.26 | J14: =TRUNC(_xlfn.IFS(F14="SERV",I14*(1+$L$5),F14="SERV DIF",I14*(1+$L$6),F14="FORN",I14*(1+$L$7)),2) -> 2174.45 | K14: =TRUNC(H14*I14,2) -> 7049.04 | L14: =TRUNC(H14*J14,2) -> 8697.8 | M14: 0.0009486160662 | N14: INCC | P14: DRENAGEM | Q14: =SUMIF(N:N,"DRENAGEM",L:L)/$L$46 -> 0.05728909003 | R14: =(SUMIF(N:N,"DRENAGEM",L:L)) -> 525280
B15: 2.2 | C15: 103689 | D15: SINAPI | E15: Fornecimento e instalação de placa de obra com chapa galvanizada e estrutura de madeira. af_03/2022_ps | F15: SERV | G15: m² | H15: ='MC MODULO'!H25 -> 32 | I15: =VLOOKUP(C15,'COMP Sint. Sinapi'!$A:$E,4,0) -> 468.16 | J15: =TRUNC(_xlfn.IFS(F15="SERV",I15*(1+$L$5),F15="SERV DIF",I15*(1+$L$6),F15="FORN",I15*(1+$L$7)),2) -> 577.66 | K15: 14981.12 | L15: 18485.12 | M15: 0.002016059442 | N15: INCC | P15: ADMINISTRAÇÃO LOCAL | R15: =(SUMIF(N:N,"ADMINISTRAÇÃO LOCAL",M:M)) -> 0
B16: 3 | E16: ADMINISTRAÇÃO LOCAL DA OBRA | K16: =SUM(K17:K17) -> 599649.91 | L16: =SUM(L17:L17) -> 739908.03 | M16: 0.08069726193 | P16: SINALIZAÇÃO VERTICAL | R16: =(SUMIF(N:N,"SINALIZAÇÃO VERTICAL",M:M)) -> 0
B17: 3.1 | C17: Adm Local | D17: Codevasf | E17: Administração Local da Obra | F17: SERV | G17: und | H17: 1 | I17: ='Adm Local'!J243 -> 599649.9192 | J17: =TRUNC(_xlfn.IFS(F17="SERV",I17*(1+$L$5),F17="SERV DIF",I17*(1+$L$6),F17="FORN",I17*(1+$L$7)),2) -> 739908.03 | K17: =TRUNC(H17*I17,2) -> 599649.91 | L17: =TRUNC(H17*J17,2) -> 739908.03 | M17: 0.08069726193 | N17: INCC | P17: SINALIZAÇÃO HORIZONTAL | R17: =(SUMIF(N:N,"SINALIZAÇÃO HORIZONTAL",M:M)) -> 0
B18: 4 | E18: TERRAPLANAGEM | K18: =SUM(K19:K20) -> 169041.6 | L18: =SUM(L19:L20) -> 208353.6 | M18: 0.02272385804 | P18: CAP | R18: =(SUMIF(N:N,"CAP",M:M)) -> 0
B19: 4.1 | C19: 5502114 | D19: SICRO | E19: Escavação, carga e transporte de material de 1ª categoria - DMT de 1.000 a 1.200 m - caminho de serviço em leito natural - com escavadeira e caminhão basculante de 14 m³ | F19: SERV | G19: m³ | H19: ='MC MODULO'!H37 -> 15120 | I19: =ROUND(IF(D19="CODEVASF",VLOOKUP(C19,'CPU CODEVASF'!E:I,5,FALSE),VLOOKUP(C19,'SINTÉTICO SICRO'!A:D,4,FALSE)),6) -> 8.45 | J19: =TRUNC(_xlfn.IFS(F19="SERV",I19*(1+$L$5),F19="SERV DIF",I19*(1+$L$6),F19="FORN",I19*(1+$L$7)),2) -> 10.42 | K19: =TRUNC(H19*I19,2) -> 127764 | L19: =TRUNC(H19*J19,2) -> 157550.4 | M19: 0.01718306246 | N19: TERRAPLENAGEM | P19: IMPRIMAÇÃO | R19: =(SUMIF(N:N,"IMPRIMAÇÃO",M:M)) -> 0
B20: 4.2 | C20: 4413942 | D20: SICRO | E20: Espalhamento de material em bota-fora | F20: SERV | G20: m³ | H20: ='MC MODULO'!H44 -> 15120 | I20: =ROUND(IF(D20="CODEVASF",VLOOKUP(C20,'CPU CODEVASF'!E:I,5,FALSE),VLOOKUP(C20,'SINTÉTICO SICRO'!A:D,4,FALSE)),6) -> 2.73 | J20: =TRUNC(_xlfn.IFS(F20="SERV",I20*(1+$L$5),F20="SERV DIF",I20*(1+$L$6),F20="FORN",I20*(1+$L$7)),2) -> 3.36 | K20: 41277.6 | L20: 50803.2 | M20: 0.005540795573 | N20: TERRAPLENAGEM | P20: EMULSÃO ASFÁLTICA | R20: =(SUMIF(N:N,"EMULSÃO ASFÁLTICA",M:M)) -> 0
B21: 5 | E21: PAVIMENTAÇÃO | K21: =SUM(K22:K29) -> 5670210.56 | L21: =SUM(L22:L29) -> 6705376.72 | M21: 0.7313145953 | P21: OBRAS COMPLEMENTARES | R21: =(SUMIF(N:N,"OBRAS COMPLEMENTARES",M:M)) -> 0
B22: 5.1 | C22: 36170 | D22: SINAPI | E22: bloquete/piso intertravado de concreto - modelo onda/16 faces/retangular/t ijolinho/paver/holandes/paralelepipedo, *22 cm x 11* cm, e = 8 cm, resistencia de 35 mpa (nbr 9781), cor natural | F22: FORN | G22: m² | H22: =H23*'CPU SINAPI'!E8 -> 56224 | I22: =ROUND(VLOOKUP(C22,'INSUMOS SINAPI'!$A:$E,5,0),6) -> 60 | J22: =TRUNC(_xlfn.IFS(F22="SERV",I22*(1+$L$5),F22="SERV DIF",I22*(1+$L$6),F22="FORN",I22*(1+$L$7)),2) -> 69 | K22: =TRUNC(H22*I22,2) -> 3373440 | L22: =TRUNC(H22*J22,2) -> 3879456 | M22: 0.4231086355 | N22: PAVIMENTAÇÃO | P22: MOBILIZAÇÃO | R22: =(SUMIF(N:N,"MOBILIZAÇÃO",M:M)) -> 0
B23: 5.2 | C23: 92404 ADAPTADA | D23: SINAPI | E23: execução de pavimento em piso intertravado, com bloco 16 faces de 22 x 11 cm, espessura 8 cm. af_10/2022 - exclusive fornecimento de bloquete | F23: SERV | G23: m² | H23: ='MC MODULO'!H51 -> 56000 | I23: =ROUND('CPU SINAPI'!G15,6) -> 20.42 | J23: =TRUNC(_xlfn.IFS(F23="SERV",I23*(1+$L$5),F23="SERV DIF",I23*(1+$L$6),F23="FORN",I23*(1+$L$7)),2) -> 25.19 | K23: 1143520 | L23: 1410640 | M23: 0.1538499124 | N23: PAVIMENTAÇÃO | P23: INCC | Q23: =(SUMIF(N:N,"INCC",L:L))/$L$46 -> 0.1349830504 | R23: =(SUMIF(N:N,"INCC",L:L)) -> 1237650.95
B24: 5.3 | C24: 5914640 | D24: SICRO | E24: Transporte com cavalo mecânico com semirreboque com capacidade de 30 t - rodovia pavimentada | F24: SERV | G24: tkm | H24: ='MC MODULO'!H56 -> 985600 | I24: =ROUND(IF(D24="CODEVASF",VLOOKUP(C24,'CPU CODEVASF'!E:I,5,FALSE),VLOOKUP(C24,'SINTÉTICO SICRO'!A:D,4,FALSE)),6) -> 0.58 | J24: =TRUNC(_xlfn.IFS(F24="SERV",I24*(1+$L$5),F24="SERV DIF",I24*(1+$L$6),F24="FORN",I24*(1+$L$7)),2) -> 0.71 | K24: 571648 | L24: 699776 | M24: 0.07632030587 | N24: PAVIMENTAÇÃO
B25: 5.4 | C25: 5915373 | D25: SICRO | E25: Carga, manobra e descarga de materiais diversos em caminhão carroceria com capacidade de 7 t e com guindauto de 20 t.m | F25: SERV | G25: t | H25: ='MC MODULO'!H62 -> 9856 | I25: =ROUND(IF(D25="CODEVASF",VLOOKUP(C25,'CPU CODEVASF'!E:I,5,FALSE),VLOOKUP(C25,'SINTÉTICO SICRO'!A:D,4,FALSE)),6) -> 18.66 | J25: =TRUNC(_xlfn.IFS(F25="SERV",I25*(1+$L$5),F25="SERV DIF",I25*(1+$L$6),F25="FORN",I25*(1+$L$7)),2) -> 23.02 | K25: 183912.96 | L25: 226885.12 | M25: 0.02474497804 | N25: PAVIMENTAÇÃO
B26: 5.5 | C26: 5915321 | D26: SICRO | E26: Transporte com caminhão basculante de 14 m³ - rodovia pavimentada (areia) | F26: SERV | G26: tkm | H26: ='MC MODULO'!H68 -> 168000 | I26: =ROUND(IF(D26="CODEVASF",VLOOKUP(C26,'CPU CODEVASF'!E:I,5,FALSE),VLOOKUP(C26,'SINTÉTICO SICRO'!A:D,4,FALSE)),6) -> 0.68 | J26: =TRUNC(_xlfn.IFS(F26="SERV",I26*(1+$L$5),F26="SERV DIF",I26*(1+$L$6),F26="FORN",I26*(1+$L$7)),2) -> 0.83 | K26: 114240 | L26: 139440 | M26: 0.01520787145 | N26: PAVIMENTAÇÃO
B27: 5.6 | C27: 5915321 | D27: SICRO | E27: Transporte com caminhão basculante de 14 m³ - rodovia pavimentada (pó de pedra) | F27: SERV | G27: tkm | H27: ='MC MODULO'!H73 -> 52920 | I27: =ROUND(IF(D27="CODEVASF",VLOOKUP(C27,'CPU CODEVASF'!E:I,5,FALSE),VLOOKUP(C27,'SINTÉTICO SICRO'!A:D,4,FALSE)),6) -> 0.68 | J27: =TRUNC(_xlfn.IFS(F27="SERV",I27*(1+$L$5),F27="SERV DIF",I27*(1+$L$6),F27="FORN",I27*(1+$L$7)),2) -> 0.83 | K27: 35985.6 | L27: 43923.6 | M27: 0.004790479506 | N27: PAVIMENTAÇÃO
B28: 5.7 | C28: 4011221 | D28: SICRO | E28: =VLOOKUP(C28,'SINTÉTICO SICRO'!A4:D6497,2,0) -> Base estabilizada granulometricamente com mistura de solos na pista com material de jazida - 100% Proctor modificado | F28: SERV | G28: m³ | H28: ='MC MODULO'!H78 -> 8400 | I28: =ROUND(IF(D28="CODEVASF",VLOOKUP(C28,'CPU CODEVASF'!E:I,5,FALSE),VLOOKUP(C28,'SINTÉTICO SICRO'!A:D,4,FALSE)),6) -> 17.46 | J28: =TRUNC(_xlfn.IFS(F28="SERV",I28*(1+$L$5),F28="SERV DIF",I28*(1+$L$6),F28="FORN",I28*(1+$L$7)),2) -> 21.54 | K28: 146664 | L28: 180936 | M28: 0.01973358741 | N28: PAVIMENTAÇÃO
B29: 5.8 | C29: 4011209 | D29: SICRO | E29: Regularização do subleito - 100% Proctor intermediário | F29: SERV | G29: m² | H29: ='MC MODULO'!H83 -> 56000 | I29: =ROUND(IF(D29="CODEVASF",VLOOKUP(C29,'CPU CODEVASF'!E:I,5,FALSE),VLOOKUP(C29,'SINTÉTICO SICRO'!A:D,4,FALSE)),6) -> 1.8 | J29: =TRUNC(_xlfn.IFS(F29="SERV",I29*(1+$L$5),F29="SERV DIF",I29*(1+$L$6),F29="FORN",I29*(1+$L$7)),2) -> 2.22 | K29: 100800 | L29: 124320 | M29: 0.01355882515 | N29: PAVIMENTAÇÃO
B30: 6 | E30: SINALIZAÇÃO | K30: =SUM(K31:K34) -> 87518.4 | L30: =SUM(L31:L34) -> 107985.6 | M30: 0.01177733163
B31: 6.1 | C31: 5213440 | D31: SICRO | E31: Placa de regulamentação em aço D = 0,60 m - película retrorrefletiva tipo I + SI - fornecimento e implantação | F31: SERV | G31: und | H31: ='MC MODULO'!H90 -> 24 | I31: =ROUND(IF(D31="CODEVASF",VLOOKUP(C31,'CPU CODEVASF'!E:I,5,FALSE),VLOOKUP(C31,'SINTÉTICO SICRO'!A:D,4,FALSE)),6) -> 289.57 | J31: =TRUNC(_xlfn.IFS(F31="SERV",I31*(1+$L$5),F31="SERV DIF",I31*(1+$L$6),F31="FORN",I31*(1+$L$7)),2) -> 357.3 | K31: =TRUNC(H31*I31,2) -> 6949.68 | L31: =TRUNC(H31*J31,2) -> 8575.2 | M31: 0.000935244831 | N31: INCC
B32: 6.2 | C32: 5213464 | D32: SICRO | E32: Placa de advertência em aço, lado de 0,60 m - película retrorrefletiva tipo I + SI - fornecimento e implantação | F32: SERV | G32: und | H32: ='MC MODULO'!H95 -> 24 | I32: =ROUND(IF(D32="CODEVASF",VLOOKUP(C32,'CPU CODEVASF'!E:I,5,FALSE),VLOOKUP(C32,'SINTÉTICO SICRO'!A:D,4,FALSE)),6) -> 289.61 | J32: =TRUNC(_xlfn.IFS(F32="SERV",I32*(1+$L$5),F32="SERV DIF",I32*(1+$L$6),F32="FORN",I32*(1+$L$7)),2) -> 357.34 | K32: 6950.64 | L32: 8576.16 | M32: 0.0009353495324 | N32: INCC
B33: 6.3 | C33: 5213863 | D33: SICRO | E33: Suporte metálico galvanizado para placa de advertência ou regulamentação - lado ou diâmetro de 0,60 m - fornecimento e implantação | F33: SERV | G33: und | H33: ='MC MODULO'!H101 -> 48 | I33: =ROUND(IF(D33="CODEVASF",VLOOKUP(C33,'CPU CODEVASF'!E:I,5,FALSE),VLOOKUP(C33,'SINTÉTICO SICRO'!A:D,4,FALSE)),6) -> 481.71 | J33: =TRUNC(_xlfn.IFS(F33="SERV",I33*(1+$L$5),F33="SERV DIF",I33*(1+$L$6),F33="FORN",I33*(1+$L$7)),2) -> 594.38 | K33: 23122.08 | L33: 28530.24 | M33: 0.003111619494 | N33: INCC
B34: 6.4 | C34: 5213400 | D34: SICRO | E34: Pintura de faixa com tinta acrílica - espessura de 0,4 mm | F34: SERV | G34: m² | H34: ='MC MODULO'!H106+'MC MODULO'!H111 -> 2400 | I34: =ROUND(IF(D34="CODEVASF",VLOOKUP(C34,'CPU CODEVASF'!E:I,5,FALSE),VLOOKUP(C34,'SINTÉTICO SICRO'!A:D,4,FALSE)),6) -> 21.04 | J34: =TRUNC(_xlfn.IFS(F34="SERV",I34*(1+$L$5),F34="SERV DIF",I34*(1+$L$6),F34="FORN",I34*(1+$L$7)),2) -> 25.96 | K34: 50496 | L34: 62304 | M34: 0.006795117776 | N34: INCC
B35: 7 | E35: DRENAGEM | K35: =SUM(K36:K37) -> 429849.6 | L35: =SUM(L36:L37) -> 530310.4 | M35: 0.05783772512
B36: 7.1 | C36: 2003943 | D36: SICRO | E36: Meio-fio de concreto - MFC 03 moldado no local com extrusora e concreto usinado - areia e brita comerciais | F36: SERV | G36: m | H36: ='MC MODULO'!H118 -> 16000 | I36: =ROUND(IF(D36="CODEVASF",VLOOKUP(C36,'CPU CODEVASF'!E:I,5,FALSE),VLOOKUP(C36,'SINTÉTICO SICRO'!A:D,4,FALSE)),6) -> 26.61 | J36: =TRUNC(_xlfn.IFS(F36="SERV",I36*(1+$L$5),F36="SERV DIF",I36*(1+$L$6),F36="FORN",I36*(1+$L$7)),2) -> 32.83 | K36: =TRUNC(H36*I36,2) -> 425760 | L36: =TRUNC(H36*J36,2) -> 525280 | M36: 0.05728909003 | N36: DRENAGEM
B37: 7.2 | C37: 4915724 | D37: SICRO | E37: Caiação mecanizada com fixador de cal | F37: SERV | G37: m² | H37: ='MC MODULO'!H123 -> 1920 | I37: =ROUND(IF(D37="CODEVASF",VLOOKUP(C37,'CPU CODEVASF'!E:I,5,FALSE),VLOOKUP(C37,'SINTÉTICO SICRO'!A:D,4,FALSE)),6) -> 2.13 | J37: =TRUNC(_xlfn.IFS(F37="SERV",I37*(1+$L$5),F37="SERV DIF",I37*(1+$L$6),F37="FORN",I37*(1+$L$7)),2) -> 2.62 | K37: 4089.6 | L37: 5030.4 | M37: 0.000548635087 | N37: INCC
B38: 8 | E38: SERVIÇOS COMPLEMENTARES | K38: =SUM(K39:K39) -> 14106.23 | L38: =SUM(L39:L39) -> 17400 | M38: 0.001897712014
B39: 8.1 | C39: CPU-02 | D39: Codevasf | E39: Conserto de quebra no ramal na rua sem pavimento com fornecimento de material hidráulico | F39: SERV | G39: m | H39: ='MC MODULO'!H130 -> 800 | I39: =ROUND(IF(D39="CODEVASF",VLOOKUP(C39,'CPU CODEVASF'!E:I,5,FALSE),VLOOKUP(C39,'SINTÉTICO SICRO'!A:D,4,FALSE)),6) -> 17.63279 | J39: =TRUNC(_xlfn.IFS(F39="SERV",I39*(1+$L$5),F39="SERV DIF",I39*(1+$L$6),F39="FORN",I39*(1+$L$7)),2) -> 21.75 | K39: =TRUNC(H39*I39,2) -> 14106.23 | L39: =TRUNC(H39*J39,2) -> 17400 | M39: 0.001897712014 | N39: INCC
B40: 9 | E40: PROJETO EXECUTIVO | K40: =SUM(K41:K41) -> 142800 | L40: =SUM(L41:L41) -> 175840 | M40: 0.01917779773
B41: 9.1 | C41: CPU.7 | D41: Codevasf | E41: Projeto Executivo | F41: SERV | G41: m² | H41: ='MC MODULO'!H137 -> 56000 | I41: =('Projeto Executivo'!G28) -> 2.55 | J41: =TRUNC(_xlfn.IFS(F41="SERV",I41*(1+$L$5),F41="SERV DIF",I41*(1+$L$6),F41="FORN",I41*(1+$L$7)),2) -> 3.14 | K41: =TRUNC(H41*I41,2) -> 142800 | L41: =TRUNC(H41*J41,2) -> 175840 | M41: 0.01917779773 | N41: INCC
B42: 10 | E42: MOMENTO DE TRANSPORTE | K42: =SUM(K43:K45) -> 399781.87 | L42: =SUM(L43:L45) -> 492278.69 | M42: 0.05368983817
B43: 10.1 | C43: 5914389 | D43: SICRO | E43: Transporte com caminhão basculante de 10 m³ - rodovia pavimentada | F43: SERV | G43: tkm | H43: =SUMIF('MOMENTO DE TRANSPORTE - PRINC'!A:A,'RESUMO MODULO TOTAL'!C43,'MOMENTO DE TRANSPORTE - PRINC'!K:K)+SUMIF('MOMENTO DE TRANSPORTE - AUX'!A:A,'RESUMO MODULO TOTAL'!C43,'MOMENTO DE TRANSPORTE - AUX'!K:K) -> 447068.6472 | I43: =ROUND(IF(D43="CODEVASF",VLOOKUP(C43,'CPU CODEVASF'!E:I,5,FALSE),VLOOKUP(C43,'SINTÉTICO SICRO'!A:D,4,FALSE)),6) -> 0.82 | J43: =TRUNC(_xlfn.IFS(F43="SERV",I43*(1+$L$5),F43="SERV DIF",I43*(1+$L$6),F43="FORN",I43*(1+$L$7)),2) -> 1.01 | K43: =TRUNC(H43*I43,2) -> 366596.29 | L43: =TRUNC(H43*J43,2) -> 451539.33 | M43: 0.04924664432 | N43: PAVIMENTAÇÃO
B44: 10.2 | C44: 5914479 | D44: SICRO | E44: Transporte com caminhão carroceria de 15 t - rodovia pavimentada | F44: SERV | G44: tkm | H44: =SUMIF('MOMENTO DE TRANSPORTE - PRINC'!A:A,'RESUMO MODULO TOTAL'!C44,'MOMENTO DE TRANSPORTE - PRINC'!K:K)+SUMIF('MOMENTO DE TRANSPORTE - AUX'!A:A,'RESUMO MODULO TOTAL'!C44,'MOMENTO DE TRANSPORTE - AUX'!K:K) -> 1851.0912 | I44: =ROUND(IF(D44="CODEVASF",VLOOKUP(C44,'CPU CODEVASF'!E:I,5,FALSE),VLOOKUP(C44,'SINTÉTICO SICRO'!A:D,4,FALSE)),6) -> 0.72 | J44: =TRUNC(_xlfn.IFS(F44="SERV",I44*(1+$L$5),F44="SERV DIF",I44*(1+$L$6),F44="FORN",I44*(1+$L$7)),2) -> 0.88 | K44: 1332.78 | L44: 1628.96 | M44: 0.0001776607449 | N44: PAVIMENTAÇÃO
B45: 10.3 | C45: 5914569 | D45: SICRO | E45: Transporte com caminhão betoneira - rodovia pavimentada | F45: SERV | G45: tkm | H45: =SUMIF('MOMENTO DE TRANSPORTE - PRINC'!A:A,'RESUMO MODULO TOTAL'!C45,'MOMENTO DE TRANSPORTE - PRINC'!K:K)+SUMIF('MOMENTO DE TRANSPORTE - AUX'!A:A,'RESUMO MODULO TOTAL'!C45,'MOMENTO DE TRANSPORTE - AUX'!K:K) -> 40320 | I45: =ROUND(IF(D45="CODEVASF",VLOOKUP(C45,'CPU CODEVASF'!E:I,5,FALSE),VLOOKUP(C45,'SINTÉTICO SICRO'!A:D,4,FALSE)),6) -> 0.79 | J45: =TRUNC(_xlfn.IFS(F45="SERV",I45*(1+$L$5),F45="SERV DIF",I45*(1+$L$6),F45="FORN",I45*(1+$L$7)),2) -> 0.97 | K45: 31852.8 | L45: 39110.4 | M45: 0.0042655331 | N45: PAVIMENTAÇÃO
B46: TOTAL GERAL DA OBRA COM BDI | K46: =SUM(K10,K13,K16,K18,K21,K30,K35,K38,K40,K42) -> 7668148.55 | L46: =SUM(L10,L13,L16,L18,L21,L30,L35,L38,L40,L42)-3.96 -> 9168936
B49: EXECUÇÃO DE SERVIÇOS DE IMPLANTAÇÃO DE PAVIMENTAÇÃO EM BLOCO DE CONCRETO INTERTRAVADO, EM VIAS URBANAS E RURAIS INSERIDAS NA ÁREA DE ATUAÇÃO DA 3ª SUPERINTENDÊNCIA REGIONAL DA CODEVASF.

Sheet CRONOGRAMA TOTAL
A2: ='RESUMO MODULO TOTAL'!B49 -> EXECUÇÃO DE SERVIÇOS DE IMPLANTAÇÃO DE PAVIMENTAÇÃO EM BLOCO DE CONCRETO INTERTRAVADO, EM VIAS URBANAS E RURAIS INSERIDAS NA ÁREA DE ATUAÇÃO DA 3ª SUPERINTENDÊNCIA REGIONAL DA CODEVASF.
A3: Cronograma Físico e Financeiro
A4: Item | B4: Descrição | C4: Total Por Etapa | D4: 30 DIAS | E4: 60 DIAS | F4: 90 DIAS | G4: 120 DIAS | H4: 150 DIAS | I4: 180 DIAS | J4: 210 DIAS | K4: 240 DIAS | L4: 270 DIAS | M4: 300 DIAS | N4: 330 DIAS | O4: 360 DIAS
B5: ='RESUMO MODULO TOTAL'!E10 -> SERVIÇOS PRELIMINARES | C5: =SUM(D5:O5) -> 1 | G5: 0.5 | O5: 0.5
C6: ='RESUMO MODULO TOTAL'!L10 -> 164304 | G6: =$C$6*G5 -> 82152 | O6: =$C$6*O5 -> 82152 | P6: =SUM(D6:O6) -> 164304 | Q6: =IF(P6=C6,"OK","") -> OK
B7: ='RESUMO MODULO TOTAL'!E13 -> INSTALAÇÃO DE CANTEIRO | C7: =SUM(D7:O7) -> 1 | G7: 0.1 | H7: 0.5 | I7: 0.4
C8: ='RESUMO MODULO TOTAL'!L13 -> 27182.92 | D8: =$C$8*D7 -> 0 | E8: =$C$8*E7 -> 0 | F8: 0 | G8: 2718.292 | H8: 13591.46 | I8: 10873.168 | J8: 0 | K8: 0 | L8: 0 | M8: 0 | N8: 0 | O8: 0 | P8: =SUM(D8:O8) -> 27182.92 | Q8: =IF(P8=C8,"OK","") -> OK
B9: ='RESUMO MODULO TOTAL'!E16 -> ADMINISTRAÇÃO LOCAL DA OBRA | C9: =SUM(D9:O9) -> 1.00000047 | D9: =(D6+D8+D12+D14+D16+D18+D20+D22+D24)/($O$31-$C$10) -> 0.007301435019 | E9: =(E6+E8+E12+E14+E16+E18+E20+E22+E24)/($O$31-$C$10) -> 0.007301435019 | F9: 0.01209865116 | G9: 0.02208873451 | H9: 0.01363238198 | I9: 0.1488150428 | J9: 0.1446049367 | K9: 0.1384252917 | L9: 0.1384252917 | M9: 0.1384252917 | N9: 0.1709148268 | O9: 0.05796715069
C10: ='RESUMO MODULO TOTAL'!L16 -> 739908.03 | D10: =$C$10*D9 -> 5402.390401 | E10: =$C$10*E9 -> 5402.390401 | F10: =$C$10*F9 -> 8951.889143 | G10: 16343.63204 | H10: 10086.70889 | I10: 110109.4452 | J10: 106994.3538 | K10: 102421.9849 | L10: 102421.9849 | M10: 102421.9849 | N10: 126461.2528 | O10: 42890.36027 | P10: =SUM(D10:O10) -> 739908.3776 | Q10: =IF(P10=C10,"OK","") -> 
B11: ='RESUMO MODULO TOTAL'!E18 -> TERRAPLANAGEM | C11: =SUM(D11:O11) -> 1 | G11: =1/4 -> 0.25 | H11: =1/4 -> 0.25 | I11: =1/4 -> 0.25 | J11: 0.25
C12: ='RESUMO MODULO TOTAL'!L18 -> 208353.6 | D12: =$C$14*D11 -> 0 | E12: =$C$12*E11 -> 0 | F12: 0 | G12: 52088.4 | H12: 52088.4 | I12: 52088.4 | J12: 52088.4 | K12: 0 | L12: 0 | M12: 0 | N12: 0 | O12: 0 | P12: =SUM(D12:O12) -> 208353.6 | Q12: =IF(P12=C12,"OK","") -> OK
B13: ='RESUMO MODULO TOTAL'!E21 -> PAVIMENTAÇÃO | C13: =SUM(D13:O13) -> 1 | I13: =1/6 -> 0.1666666667 | J13: =1/6 -> 0.1666666667 | K13: 0.1666666667 | L13: 0.1666666667 | M13: 0.1666666667 | N13: 0.1666666667
C14: ='RESUMO MODULO TOTAL'!L21 -> 6705376.72 | D14: =$C$14*D13 -> 0 | E14: =$C$14*E13 -> 0 | F14: 0 | G14: 0 | H14: 0 | I14: 1117562.787 | J14: 1117562.787 | K14: 1117562.787 | L14: 1117562.787 | M14: 1117562.787 | N14: 1117562.787 | O14: 0 | P14: =SUM(D14:O14) -> 6705376.72 | Q14: =IF(P14=C14,"OK","") -> OK
B15: ='RESUMO MODULO TOTAL'!E30 -> SINALIZAÇÃO | C15: =SUM(D15:O15) -> 1 | O15: 1
C16: ='RESUMO MODULO TOTAL'!L30 -> 107985.6 | D16: =$C$16*D15 -> 0 | E16: =$C$16*E15 -> 0 | F16: 0 | G16: 0 | H16: 0 | I16: 0 | J16: 0 | K16: 0 | L16: 0 | M16: 0 | N16: 0 | O16: 107985.6 | P16: =SUM(D16:O16) -> 107985.6 | Q16: =IF(P16=C16,"OK","") -> OK
B17: ='RESUMO MODULO TOTAL'!E35 -> DRENAGEM | C17: =SUM(D17:O17) -> 1 | N17: 0.5 | O17: 0.5
C18: ='RESUMO MODULO TOTAL'!L35 -> 530310.4 | D18: =$C$18*D17 -> 0 | E18: =$C$18*E17 -> 0 | F18: 0 | G18: 0 | H18: 0 | I18: 0 | J18: 0 | K18: 0 | L18: 0 | M18: 0 | N18: 265155.2 | O18: 265155.2 | P18: =SUM(D18:O18) -> 530310.4 | Q18: =IF(P18=C18,"OK","") -> OK
B19: ='RESUMO MODULO TOTAL'!E38 -> SERVIÇOS COMPLEMENTARES | C19: =SUM(D19:O19) -> 1 | N19: 0.5 | O19: 0.5
C20: ='RESUMO MODULO TOTAL'!L38 -> 17400 | D20: =$C$20*D19 -> 0 | E20: =$C$20*E19 -> 0 | F20: 0 | G20: 0 | H20: 0 | I20: 0 | J20: 0 | K20: 0 | L20: 0 | M20: 0 | N20: 8700 | O20: 8700 | P20: =SUM(D20:O20) -> 17400 | Q20: =IF(P20=C20,"OK","") -> OK
B21: ='RESUMO MODULO TOTAL'!E40 -> PROJETO EXECUTIVO | C21: =SUM(D21:O21) -> 1 | D21: 0.35 | E21: 0.35 | F21: 0.3
C22: ='RESUMO MODULO TOTAL'!L40 -> 175840 | D22: =$C$22*D21 -> 61544 | E22: =$C$22*E21 -> 61544 | F22: 52752 | G22: 0 | H22: 0 | I22: 0 | J22: 0 | K22: 0 | L22: 0 | M22: 0 | N22: 0 | O22: 0 | P22: =SUM(D22:O22) -> 175840 | Q22: =IF(P22=C22,"OK","") -> OK
B23: ='RESUMO MODULO TOTAL'!E42 -> MOMENTO DE TRANSPORTE | C23: =SUM(D23:O23) -> 1 | F23: 0.1 | G23: 0.1 | H23: 0.1 | I23: 0.15 | J23: 0.1 | K23: 0.1 | L23: 0.1 | M23: 0.1 | N23: 0.1 | O23: 0.05
C24: ='RESUMO MODULO TOTAL'!L42 -> 492278.69 | D24: =$C$24*D23 -> 0 | E24: =$C$24*E23 -> 0 | F24: 49227.869 | G24: 49227.869 | H24: 49227.869 | I24: 73841.8035 | J24: 49227.869 | K24: 49227.869 | L24: 49227.869 | M24: 49227.869 | N24: 49227.869 | O24: 24613.9345 | P24: =SUM(D24:O24) -> 492278.69 | Q24: =IF(P24=C24,"OK","") -> OK
A26: Porcentagem | D26: =SUM(D6+D8+D10+D12+D14+D16+D18+D20+D22+D24)/$O$31 -> 0.007301435019 | E26: =SUM(E6+E8+E10+E12+E14+E16+E18+E20+E22+E24)/$O$31 -> 0.007301435019 | F26: 0.01209865116 | G26: 0.02208873451 | H26: 0.01363238198 | I26: 0.1488150428 | J26: 0.1446049367 | K26: 0.1384252917 | L26: 0.1384252917 | M26: 0.1384252917 | N26: 0.1709148268 | O26: 0.05796715069
A27: Custo | D27: =$O$31*D26 -> 66946.3904 | E27: =$O$31*E26 -> 66946.3904 | F27: =$O$31*F26 -> 110931.7581 | G27: 202530.193 | H27: 124994.4379 | I27: 1364475.603 | J27: 1325873.409 | K27: 1269212.641 | L27: 1269212.641 | M27: 1269212.641 | N27: 1567107.108 | O27: 531497.0948
A28: Porcentagem Acumulado | D28: =D26 -> 0.007301435019 | E28: =D28+E26 -> 0.01460287004 | F28: =E28+F26 -> 0.0267015212 | G28: 0.0487902557 | H28: 0.06242263768 | I28: 0.2112376805 | J28: 0.3558426171 | K28: 0.4942679089 | L28: 0.6326932006 | M28: 0.7711184923 | N28: 0.9420333191 | O28: =N28+O26 -> 1.00000047
A29: Custo Acumulado | D29: =D27 -> 66946.3904 | E29: =D29+E27 -> 133892.7808 | F29: 244824.5389 | G29: 447354.732 | H29: 572349.1699 | I29: 1936824.773 | J29: 3262698.183 | K29: 4531910.823 | L29: 5801123.464 | M29: 7070336.104 | N29: 8637443.213 | O29: =O31 -> 9168936
D31: Total Geral | N31: R$ | O31: =C6+C8+C10+C12+C14+C16+C18+C20+C22+C24-3.96 -> 9168936
O34: =O29-O31 -> 0
O36: =#REF! -> 

Sheet Mob
A4: ='RESUMO MODULO TOTAL'!B49 -> EXECUÇÃO DE SERVIÇOS DE IMPLANTAÇÃO DE PAVIMENTAÇÃO EM BLOCO DE CONCRETO INTERTRAVADO, EM VIAS URBANAS E RURAIS INSERIDAS NA ÁREA DE ATUAÇÃO DA 3ª SUPERINTENDÊNCIA REGIONAL DA CODEVASF.
A5: MOBILIZAÇÃO/DESMOBILIZAÇÃO (MOB) | F5: Frentes de serviços | H5: ='MC MODULO'!G1 -> 4
F6: Distância da Capital ao Canteiro: | H6: 100 | I6: Fica a cargo de cada SR colocar a distancia adequada de acordo com o historico de mobilização
F8: Velocidade média de transporte (pavim.): | H8: 60
A10: Transporte dos equipamentos
A11: CODIGO | B11: EQUIPAMENTO | C11: VEÍCULO TRANSPORTADOR | D11: QTDE | E11: K | F11: FU | G11: CUSTO DO TRANSPORTE
G12: (R$/h) | H12: (R$)/km
A13: E9524 | B13: =VLOOKUP(A13,Equipamentos!$A:$K,2,FALSE) -> Motoniveladora - 93 kW | C13: =IFERROR(INDEX('Tabelas 2 e 3 mob'!A:K,MATCH(A13,'Tabelas 2 e 3 mob'!A:A,0),9),"ERRO") -> E9665 | D13: 1 | E13: 2 | F13: 1 | G13: =IF(C13="Veículo(s) da própria frota.",0,INDEX(Equipamentos!B:K,MATCH(C13,Equipamentos!A:A,0),9)) -> 415.4473 | H13: =((D13*E13*F13)/$H$8)*G13 -> 13.84824333
A14: E9526 | B14: =VLOOKUP(A14,Equipamentos!$A:$K,2,FALSE) -> Retroescavadeira de pneus - capacidade da caçamba da pá-carregadeira de 0,76 m³ e da retroescavadeira de 0,29 m³ - 58 kW | C14: =IFERROR(INDEX('Tabelas 2 e 3 mob'!A:K,MATCH(A14,'Tabelas 2 e 3 mob'!A:A,0),9),"ERRO") -> E9665 | D14: 1 | E14: 2 | F14: 1 | G14: =IF(C14="Veículo(s) da própria frota.",0,INDEX(Equipamentos!B:K,MATCH(C14,Equipamentos!A:A,0),9)) -> 415.4473 | H14: =((D14*E14*F14)/$H$8)*G14 -> 13.84824333
A15: E9577 | B15: =VLOOKUP(A15,Equipamentos!$A:$K,2,FALSE) -> Trator agrícola sobre pneus - 77 kW | C15: =IFERROR(INDEX('Tabelas 2 e 3 mob'!A:K,MATCH(A15,'Tabelas 2 e 3 mob'!A:A,0),9),"ERRO") -> E9665 | D15: 1 | E15: 2 | F15: 0.5 | G15: =IF(C15="Veículo(s) da própria frota.",0,INDEX(Equipamentos!B:K,MATCH(C15,Equipamentos!A:A,0),9)) -> 415.4473 | H15: 6.924121667
A16: E9518 | B16: =VLOOKUP(A16,Equipamentos!$A:$K,2,FALSE) -> Grade de 24 discos rebocável de D = 60 cm (24") | C16: =IFERROR(INDEX('Tabelas 2 e 3 mob'!A:K,MATCH(A16,'Tabelas 2 e 3 mob'!A:A,0),9),"ERRO") -> Veículo(s) da própria frota. | D16: 1 | E16: 2 | F16: 0 | G16: =IF(C16="Veículo(s) da própria frota.",0,INDEX(Equipamentos!B:K,MATCH(C16,Equipamentos!A:A,0),9)) -> 0 | H16: 0
A17: E9615 | B17: =VLOOKUP(A17,Equipamentos!$A:$K,2,FALSE) -> Usina misturadora de solos com capacidade de 300 t/h - 44 kW | C17: =IFERROR(INDEX('Tabelas 2 e 3 mob'!A:K,MATCH(A17,'Tabelas 2 e 3 mob'!A:A,0),9),"ERRO") -> E9018 | D17: 0 | E17: 2 | F17: 2 | G17: =IF(C17="Veículo(s) da própria frota.",0,INDEX(Equipamentos!B:K,MATCH(C17,Equipamentos!A:A,0),9)) -> 552.5587 | H17: 0 | I17: E9686
A18: E9530 | B18: =VLOOKUP(A18,Equipamentos!$A:$K,2,FALSE) -> Rolo compactador liso vibratório autopropelido por pneus de 11 t - 97 kW | C18: =IFERROR(INDEX('Tabelas 2 e 3 mob'!A:K,MATCH(A18,'Tabelas 2 e 3 mob'!A:A,0),9),"ERRO") -> E9666 | D18: 1 | E18: 2 | F18: 0.5 | G18: =IF(C18="Veículo(s) da própria frota.",0,INDEX(Equipamentos!B:K,MATCH(C18,Equipamentos!A:A,0),9)) -> 464.6614 | H18: 7.744356667
A19: E9558 | B19: =VLOOKUP(A19,Equipamentos!$A:$K,2,FALSE) -> Tanque de estocagem de asfalto com capacidade de 30.000 l | C19: =IFERROR(INDEX('Tabelas 2 e 3 mob'!A:K,MATCH(A19,'Tabelas 2 e 3 mob'!A:A,0),9),"ERRO") -> E9665 | D19: 0 | E19: 2 | F19: 1 | G19: =IF(C19="Veículo(s) da própria frota.",0,INDEX(Equipamentos!B:K,MATCH(C19,Equipamentos!A:A,0),9)) -> 415.4473 | H19: 0
A20: E9758 | B20: =VLOOKUP(A20,Equipamentos!$A:$K,2,FALSE) -> Vibroacabadora de asfalto sobre pneus - 97 kW | C20: =IFERROR(INDEX('Tabelas 2 e 3 mob'!A:K,MATCH(A20,'Tabelas 2 e 3 mob'!A:A,0),9),"ERRO") -> E9018 | D20: 0 | E20: 2 | F20: 0.5 | G20: =IF(C20="Veículo(s) da própria frota.",0,INDEX(Equipamentos!B:K,MATCH(C20,Equipamentos!A:A,0),9)) -> 552.5587 | H20: 0
A21: E9685 | B21: =VLOOKUP(A21,Equipamentos!$A:$K,2,FALSE) -> Rolo compactador pé de carneiro vibratório autopropelido por pneus de 11,6 t - 82 kW | C21: =IFERROR(INDEX('Tabelas 2 e 3 mob'!A:K,MATCH(A21,'Tabelas 2 e 3 mob'!A:A,0),9),"ERRO") -> E9666 | D21: 1 | E21: 2 | F21: 0.5 | G21: =IF(C21="Veículo(s) da própria frota.",0,INDEX(Equipamentos!B:K,MATCH(C21,Equipamentos!A:A,0),9)) -> 464.6614 | H21: 7.744356667
A22: E9605 | B22: =VLOOKUP(A22,Equipamentos!$A:$K,2,FALSE) -> Caminhão tanque com capacidade de 6.000 l - 136 kW | C22: =IFERROR(INDEX('Tabelas 2 e 3 mob'!A:K,MATCH(A22,'Tabelas 2 e 3 mob'!A:A,0),9),"ERRO") -> E9605 | D22: 0 | E22: 1 | F22: 1 | G22: =IF(C22="Veículo(s) da própria frota.",0,INDEX(Equipamentos!B:K,MATCH(C22,Equipamentos!A:A,0),9)) -> 276.2658 | H22: 0
A23: E9579 | B23: =VLOOKUP(A23,Equipamentos!$A:$K,2,FALSE) -> Caminhão basculante com capacidade de 10 m³ - 210 kW | C23: =IFERROR(INDEX('Tabelas 2 e 3 mob'!A:K,MATCH(A23,'Tabelas 2 e 3 mob'!A:A,0),9),"ERRO") -> E9579 | D23: 5 | E23: 1 | F23: 1 | G23: =IF(C23="Veículo(s) da própria frota.",0,INDEX(Equipamentos!B:K,MATCH(C23,Equipamentos!A:A,0),9)) -> 304.4862 | H23: 25.37385
A24: E9509 | B24: =VLOOKUP(A24,Equipamentos!$A:$K,2,FALSE) -> Caminhão tanque distribuidor de asfalto com capacidade de 6.000 l - 7 kW/136 kW | C24: =IFERROR(INDEX('Tabelas 2 e 3 mob'!A:K,MATCH(A24,'Tabelas 2 e 3 mob'!A:A,0),9),"ERRO") -> E9509 | D24: 0 | E24: 1 | F24: 1 | G24: =IF(C24="Veículo(s) da própria frota.",0,INDEX(Equipamentos!B:K,MATCH(C24,Equipamentos!A:A,0),9)) -> 330.8343 | H24: 0
A25: E9762 | B25: =VLOOKUP(A25,Equipamentos!$A:$K,2,FALSE) -> Rolo compactador de pneus autopropelido de 27 t - 85 kW | C25: =IFERROR(INDEX('Tabelas 2 e 3 mob'!A:K,MATCH(A25,'Tabelas 2 e 3 mob'!A:A,0),9),"ERRO") -> E9666 | D25: 0 | E25: 2 | F25: 0.5 | G25: =IF(C25="Veículo(s) da própria frota.",0,INDEX(Equipamentos!B:K,MATCH(C25,Equipamentos!A:A,0),9)) -> 464.6614 | H25: 0
A26: E9681 | B26: =VLOOKUP(A26,Equipamentos!$A:$K,2,FALSE) -> Rolo compactador liso tandem vibratório autopropelido de 10,4 t - 82 kW | C26: =IFERROR(INDEX('Tabelas 2 e 3 mob'!A:K,MATCH(A26,'Tabelas 2 e 3 mob'!A:A,0),9),"ERRO") -> E9666 | D26: 0 | E26: 2 | F26: 0.5 | G26: =IF(C26="Veículo(s) da própria frota.",0,INDEX(Equipamentos!B:K,MATCH(C26,Equipamentos!A:A,0),9)) -> 464.6614 | H26: 0
A27: E9545 | B27: =VLOOKUP(A27,Equipamentos!$A:$K,2,FALSE) -> Vibroacabadora de asfalto sobre esteiras - 97 kW | C27: =IFERROR(INDEX('Tabelas 2 e 3 mob'!A:K,MATCH(A27,'Tabelas 2 e 3 mob'!A:A,0),9),"ERRO") -> E9018 | D27: 0 | E27: 2 | F27: 0.5 | G27: =IF(C27="Veículo(s) da própria frota.",0,INDEX(Equipamentos!B:K,MATCH(C27,Equipamentos!A:A,0),9)) -> 552.5587 | H27: 0
A28: E9571 | B28: =VLOOKUP(A28,Equipamentos!$A:$K,2,FALSE) -> Caminhão tanque com capacidade de 10.000 l - 188 kW | C28: =IFERROR(INDEX('Tabelas 2 e 3 mob'!A:K,MATCH(A28,'Tabelas 2 e 3 mob'!A:A,0),9),"ERRO") -> E9571 | D28: 1 | E28: 1 | F28: 1 | G28: =IF(C28="Veículo(s) da própria frota.",0,INDEX(Equipamentos!B:K,MATCH(C28,Equipamentos!A:A,0),9)) -> 353.9942 | H28: 5.899903333
A29: E9514 | B29: =VLOOKUP(A29,Equipamentos!$A:$K,2,FALSE) -> Distribuidor de agregados sobre pneus autopropelido - 130 kW | C29: =IFERROR(INDEX('Tabelas 2 e 3 mob'!A:K,MATCH(A29,'Tabelas 2 e 3 mob'!A:A,0),9),"ERRO") -> E9665 | D29: 0 | E29: 2 | F29: 0.5 | G29: =IF(C29="Veículo(s) da própria frota.",0,INDEX(Equipamentos!B:K,MATCH(C29,Equipamentos!A:A,0),9)) -> 415.4473 | H29: 0
A30: E9511 | B30: =VLOOKUP(A30,Equipamentos!$A:$K,2,FALSE) -> Carregadeira de pneus com capacidade de 3,40 m³ - 195 kW | C30: =IFERROR(INDEX('Tabelas 2 e 3 mob'!A:K,MATCH(A30,'Tabelas 2 e 3 mob'!A:A,0),9),"ERRO") -> E9665 | D30: 1 | E30: 2 | F30: 1 | G30: =IF(C30="Veículo(s) da própria frota.",0,INDEX(Equipamentos!B:K,MATCH(C30,Equipamentos!A:A,0),9)) -> 415.4473 | H30: 13.84824333
A31: E9779 | B31: =VLOOKUP(A31,Equipamentos!$A:$K,2,FALSE) -> Grupo gerador - 113 kVA | C31: =IFERROR(INDEX('Tabelas 2 e 3 mob'!A:K,MATCH(A31,'Tabelas 2 e 3 mob'!A:A,0),9),"ERRO") -> Veículo(s) da própria frota. | D31: 1 | E31: 2 | F31: 0 | G31: =IF(C31="Veículo(s) da própria frota.",0,INDEX(Equipamentos!B:K,MATCH(C31,Equipamentos!A:A,0),9)) -> 0 | H31: 0
A32: E9559 | B32: =VLOOKUP(A32,Equipamentos!$A:$K,2,FALSE) -> Aquecedor de fluido térmico - 12 kW | C32: =IFERROR(INDEX('Tabelas 2 e 3 mob'!A:K,MATCH(A32,'Tabelas 2 e 3 mob'!A:A,0),9),"ERRO") -> Veículo(s) da própria frota. | D32: 1 | E32: 2 | F32: 0 | G32: =IF(C32="Veículo(s) da própria frota.",0,INDEX(Equipamentos!B:K,MATCH(C32,Equipamentos!A:A,0),9)) -> 0 | H32: 0
A33: E9584 | B33: =VLOOKUP(A33,Equipamentos!$A:$K,2,FALSE) -> Carregadeira de pneus com capacidade de 1,72 m³ - 113 kW | C33: =IFERROR(INDEX('Tabelas 2 e 3 mob'!A:K,MATCH(A33,'Tabelas 2 e 3 mob'!A:A,0),9),"ERRO") -> E9665 | D33: 0 | E33: 2 | F33: 1 | G33: =IF(C33="Veículo(s) da própria frota.",0,INDEX(Equipamentos!B:K,MATCH(C33,Equipamentos!A:A,0),9)) -> 415.4473 | H33: 0
A34: E9021 | B34: =VLOOKUP(A34,Equipamentos!$A:$K,2,FALSE) -> Grupo gerador - 456 kVA | C34: =IFERROR(INDEX('Tabelas 2 e 3 mob'!A:K,MATCH(A34,'Tabelas 2 e 3 mob'!A:A,0),9),"ERRO") -> E9508 | D34: 0 | E34: 2 | F34: 1 | G34: =IF(C34="Veículo(s) da própria frota.",0,INDEX(Equipamentos!B:K,MATCH(C34,Equipamentos!A:A,0),9)) -> 194.8498 | H34: 0
A35: E9687 | B35: =VLOOKUP(A35,Equipamentos!$A:$K,2,FALSE) -> Caminhão carroceria com capacidade de 5 t - 120 kW | C35: =IFERROR(INDEX('Tabelas 2 e 3 mob'!A:K,MATCH(A35,'Tabelas 2 e 3 mob'!A:A,0),9),"ERRO") -> E9687 | D35: 0 | E35: 1 | F35: 1 | G35: =IF(C35="Veículo(s) da própria frota.",0,INDEX(Equipamentos!B:K,MATCH(C35,Equipamentos!A:A,0),9)) -> 174.3949 | H35: 0
A36: E9667 | B36: =VLOOKUP(A36,Equipamentos!$A:$K,2,FALSE) -> Caminhão basculante com capacidade de 14 m³ - 210 kW | C36: =IFERROR(INDEX('Tabelas 2 e 3 mob'!A:K,MATCH(A36,'Tabelas 2 e 3 mob'!A:A,0),9),"ERRO") -> E9667 | D36: 1 | E36: 1 | F36: 1 | G36: =IF(C36="Veículo(s) da própria frota.",0,INDEX(Equipamentos!B:K,MATCH(C36,Equipamentos!A:A,0),9)) -> 317.7566 | H36: 5.295943333
A37: E9644 | B37: =VLOOKUP(A37,Equipamentos!$A:$K,2,FALSE) -> Caminhão demarcador de faixas com sistema de pintura a frio - 28 kW/129 kW | C37: =IFERROR(INDEX('Tabelas 2 e 3 mob'!A:K,MATCH(A37,'Tabelas 2 e 3 mob'!A:A,0),9),"ERRO") -> E9644 | D37: 1 | E37: 1 | F37: 1 | G37: =IF(C37="Veículo(s) da própria frota.",0,INDEX(Equipamentos!B:K,MATCH(C37,Equipamentos!A:A,0),9)) -> 454.4607 | H37: 7.574345
A38: E9592 | B38: =VLOOKUP(A38,Equipamentos!$A:$K,2,FALSE) -> Caminhão carroceria com capacidade de 15 t - 188 kW | C38: =IFERROR(INDEX('Tabelas 2 e 3 mob'!A:K,MATCH(A38,'Tabelas 2 e 3 mob'!A:A,0),9),"ERRO") -> E9592 | D38: 1 | E38: 1 | F38: 1 | G38: =IF(C38="Veículo(s) da própria frota.",0,INDEX(Equipamentos!B:K,MATCH(C38,Equipamentos!A:A,0),9)) -> 280.3288 | H38: 4.672146667
A39: E9540 | B39: =VLOOKUP(A39,Equipamentos!$A:$K,2,FALSE) -> Trator sobre esteiras com lâmina - 127 kW | C39: =IFERROR(INDEX('Tabelas 2 e 3 mob'!A:K,MATCH(A39,'Tabelas 2 e 3 mob'!A:A,0),9),"ERRO") -> E9018 | D39: 1 | E39: 2 | F39: 0.5 | G39: =IF(C39="Veículo(s) da própria frota.",0,INDEX(Equipamentos!B:K,MATCH(C39,Equipamentos!A:A,0),9)) -> 552.5587 | H39: 9.209311667
A40: E9515 | B40: =VLOOKUP(A40,Equipamentos!$A:$K,2,FALSE) -> Escavadeira hidráulica sobre esteiras com caçamba com capacidade de 1,56 m³ - 118 kW | C40: =IFERROR(INDEX('Tabelas 2 e 3 mob'!A:K,MATCH(A40,'Tabelas 2 e 3 mob'!A:A,0),9),"ERRO") -> E9666 | D40: 1 | E40: 2 | F40: 1 | G40: =IF(C40="Veículo(s) da própria frota.",0,INDEX(Equipamentos!B:K,MATCH(C40,Equipamentos!A:A,0),9)) -> 464.6614 | H40: 15.48871333
A41: E9506 | B41: =VLOOKUP(A41,Equipamentos!$A:$K,2,FALSE) -> Caminhão basculante com capacidade de 6 m³ - 136 kW | C41: =IFERROR(INDEX('Tabelas 2 e 3 mob'!A:K,MATCH(A41,'Tabelas 2 e 3 mob'!A:A,0),9),"ERRO") -> E9506 | D41: 0 | E41: 1 | F41: 1 | G41: =IF(C41="Veículo(s) da própria frota.",0,INDEX(Equipamentos!B:K,MATCH(C41,Equipamentos!A:A,0),9)) -> 199.8929 | H41: 0
A42: E9256 | B42: =VLOOKUP(A42,Equipamentos!$A:$K,2,FALSE) -> Equipamento para pintura com cal rebocável com dois bicos aplicadores e capacidade de 2.200 l | C42: =IFERROR(INDEX('Tabelas 2 e 3 mob'!A:K,MATCH(A42,'Tabelas 2 e 3 mob'!A:A,0),9),"ERRO") -> Veículo(s) da própria frota. | D42: 1 | E42: 2 | F42: 0 | G42: =IF(C42="Veículo(s) da própria frota.",0,INDEX(Equipamentos!B:K,MATCH(C42,Equipamentos!A:A,0),9)) -> 0 | H42: 0
A43: E9156 | B43: =VLOOKUP(A43,Equipamentos!$A:$K,2,FALSE) -> Soprador de ar costal - 2,6 kW | C43: =IFERROR(INDEX('Tabelas 2 e 3 mob'!A:K,MATCH(A43,'Tabelas 2 e 3 mob'!A:A,0),9),"ERRO") -> Veículo(s) da própria frota. | D43: 1 | E43: 2 | F43: 0 | G43: =IF(C43="Veículo(s) da própria frota.",0,INDEX(Equipamentos!B:K,MATCH(C43,Equipamentos!A:A,0),9)) -> 0 | H43: 0
A44: E9146 | B44: =VLOOKUP(A44,Equipamentos!$A:$K,2,FALSE) -> Caminhão silo com capacidade de 30 m³ - 368 kW | C44: =IFERROR(INDEX('Tabelas 2 e 3 mob'!A:K,MATCH(A44,'Tabelas 2 e 3 mob'!A:A,0),9),"ERRO") -> E9146 | D44: 0 | E44: 1 | F44: 1 | G44: =IF(C44="Veículo(s) da própria frota.",0,INDEX(Equipamentos!B:K,MATCH(C44,Equipamentos!A:A,0),9)) -> 655.638 | H44: 0
A45: E9599 | B45: =VLOOKUP(A45,Equipamentos!$A:$K,2,FALSE) -> Central de concreto com capacidade de 30 m³/h - dosadora RS | C45: =IFERROR(INDEX('Tabelas 2 e 3 mob'!A:K,MATCH(A45,'Tabelas 2 e 3 mob'!A:A,0),9),"ERRO") -> E9018 | D45: 1 | E45: 2 | F45: 1 | G45: =IF(C45="Veículo(s) da própria frota.",0,INDEX(Equipamentos!B:K,MATCH(C45,Equipamentos!A:A,0),9)) -> 552.5587 | H45: 18.41862333
A46: E9103 | B46: =VLOOKUP(A46,Equipamentos!$A:$K,2,FALSE) -> Extrusora para meio-fio de concreto - 10,44 kW | C46: =IFERROR(INDEX('Tabelas 2 e 3 mob'!A:K,MATCH(A46,'Tabelas 2 e 3 mob'!A:A,0),9),"ERRO") -> Veículo(s) da própria frota. | D46: 1 | E46: 2 | F46: 0 | G46: =IF(C46="Veículo(s) da própria frota.",0,INDEX(Equipamentos!B:K,MATCH(C46,Equipamentos!A:A,0),9)) -> 0 | H46: 0
A47: E9071 | B47: =VLOOKUP(A47,Equipamentos!$A:$K,2,FALSE) -> Transportador manual carrinho de mão com capacidade de 80 l | C47: =IFERROR(INDEX('Tabelas 2 e 3 mob'!A:K,MATCH(A47,'Tabelas 2 e 3 mob'!A:A,0),9),"ERRO") -> Veículo(s) da própria frota. | D47: 0 | E47: 2 | F47: 0 | G47: =IF(C47="Veículo(s) da própria frota.",0,INDEX(Equipamentos!B:K,MATCH(C47,Equipamentos!A:A,0),9)) -> 0 | H47: 0
A48: E9064 | B48: =VLOOKUP(A48,Equipamentos!$A:$K,2,FALSE) -> Transportador manual gerica com capacidade de 180 l | C48: =IFERROR(INDEX('Tabelas 2 e 3 mob'!A:K,MATCH(A48,'Tabelas 2 e 3 mob'!A:A,0),9),"ERRO") -> Veículo(s) da própria frota. | D48: 0 | E48: 2 | F48: 0 | G48: =IF(C48="Veículo(s) da própria frota.",0,INDEX(Equipamentos!B:K,MATCH(C48,Equipamentos!A:A,0),9)) -> 0 | H48: 0
A49: E9066 | B49: =VLOOKUP(A49,Equipamentos!$A:$K,2,FALSE) -> Grupo gerador - 14 kVA | C49: =IFERROR(INDEX('Tabelas 2 e 3 mob'!A:K,MATCH(A49,'Tabelas 2 e 3 mob'!A:A,0),9),"ERRO") -> Veículo(s) da própria frota. | D49: 0 | E49: 2 | F49: 0 | G49: =IF(C49="Veículo(s) da própria frota.",0,INDEX(Equipamentos!B:K,MATCH(C49,Equipamentos!A:A,0),9)) -> 0 | H49: 0
A50: E9535 | B50: =VLOOKUP(A50,Equipamentos!$A:$K,2,FALSE) -> Serra circular com bancada - D = 30 cm - 4 kW | C50: =IFERROR(INDEX('Tabelas 2 e 3 mob'!A:K,MATCH(A50,'Tabelas 2 e 3 mob'!A:A,0),9),"ERRO") -> Veículo(s) da própria frota. | D50: 0 | E50: 2 | F50: 0 | G50: =IF(C50="Veículo(s) da própria frota.",0,INDEX(Equipamentos!B:K,MATCH(C50,Equipamentos!A:A,0),9)) -> 0 | H50: 0
A51: E9507 | B51: =VLOOKUP(A51,Equipamentos!$A:$K,2,FALSE) -> Plotadora de recorte com computador e programa computacional | C51: =IFERROR(INDEX('Tabelas 2 e 3 mob'!A:K,MATCH(A51,'Tabelas 2 e 3 mob'!A:A,0),9),"ERRO") -> Veículo(s) da própria frota. | D51: 0 | E51: 2 | F51: 0 | G51: =IF(C51="Veículo(s) da própria frota.",0,INDEX(Equipamentos!B:K,MATCH(C51,Equipamentos!A:A,0),9)) -> 0 | H51: 0
A52: E9568 | B52: =VLOOKUP(A52,Equipamentos!$A:$K,2,FALSE) -> Furadeira de impacto de 12,5 mm - 0,80 kW | C52: =IFERROR(INDEX('Tabelas 2 e 3 mob'!A:K,MATCH(A52,'Tabelas 2 e 3 mob'!A:A,0),9),"ERRO") -> Veículo(s) da própria frota. | D52: 0 | E52: 2 | F52: 0 | G52: =IF(C52="Veículo(s) da própria frota.",0,INDEX(Equipamentos!B:K,MATCH(C52,Equipamentos!A:A,0),9)) -> 0 | H52: 0
A53: E9753 | B53: =VLOOKUP(A53,Equipamentos!$A:$K,2,FALSE) -> Grupo gerador - 23 kVA | C53: =IFERROR(INDEX('Tabelas 2 e 3 mob'!A:K,MATCH(A53,'Tabelas 2 e 3 mob'!A:A,0),9),"ERRO") -> Veículo(s) da própria frota. | D53: 0 | E53: 2 | F53: 0 | G53: =IF(C53="Veículo(s) da própria frota.",0,INDEX(Equipamentos!B:K,MATCH(C53,Equipamentos!A:A,0),9)) -> 0 | H53: 0
A54: E9623 | B54: =VLOOKUP(A54,Equipamentos!$A:$K,2,FALSE) -> Máquina de bancada guilhotina - 4,00 kW | C54: =IFERROR(INDEX('Tabelas 2 e 3 mob'!A:K,MATCH(A54,'Tabelas 2 e 3 mob'!A:A,0),9),"ERRO") -> Veículo(s) da própria frota. | D54: 0 | E54: 2 | F54: 0 | G54: =IF(C54="Veículo(s) da própria frota.",0,INDEX(Equipamentos!B:K,MATCH(C54,Equipamentos!A:A,0),9)) -> 0 | H54: 0
A55: E9622 | B55: =VLOOKUP(A55,Equipamentos!$A:$K,2,FALSE) -> Máquina de bancada universal para corte de chapa - 1,50 kW | C55: =IFERROR(INDEX('Tabelas 2 e 3 mob'!A:K,MATCH(A55,'Tabelas 2 e 3 mob'!A:A,0),9),"ERRO") -> Veículo(s) da própria frota. | D55: 0 | E55: 2 | F55: 0 | G55: =IF(C55="Veículo(s) da própria frota.",0,INDEX(Equipamentos!B:K,MATCH(C55,Equipamentos!A:A,0),9)) -> 0 | H55: 0
A56: E9678 | B56: =VLOOKUP(A56,Equipamentos!$A:$K,2,FALSE) -> Fresadora a frio - 455 kW | C56: =IFERROR(INDEX('Tabelas 2 e 3 mob'!A:K,MATCH(A56,'Tabelas 2 e 3 mob'!A:A,0),9),"ERRO") -> E9666 | D56: 0 | E56: 2 | F56: 1 | G56: =IF(C56="Veículo(s) da própria frota.",0,INDEX(Equipamentos!B:K,MATCH(C56,Equipamentos!A:A,0),9)) -> 464.6614 | H56: 0
A57: E9686 | B57: =VLOOKUP(A57,Equipamentos!$A:$K,2,FALSE) -> Caminhão guindauto com capacidade de elevação de 6,2 t e carroceria de 7 t - 136 kW | C57: =IFERROR(INDEX('Tabelas 2 e 3 mob'!A:K,MATCH(A57,'Tabelas 2 e 3 mob'!A:A,0),9),"ERRO") -> E9686 | D57: 1 | E57: 2 | F57: 1 | G57: =IF(C57="Veículo(s) da própria frota.",0,INDEX(Equipamentos!B:K,MATCH(C57,Equipamentos!A:A,0),9)) -> 316.7969 | H57: =((D57*E57*F57)/$H$8)*G57 -> 10.55989667
G58: TOTAL | H58: =SUM(H13:H57) -> 166.4502983
A61: CUSTO TOTAL MOBILIZAÇÃO E DESMOBILIZAÇÃO
A62: DESCRIÇÃO | B62: VALOR
A63: Custo Mobilização (km) | B63: =H58 -> 166.4502983
A64: BDI (%) | B64: =BDI!C14 -> 0.2339
A65: Custo Mobilização (R$/km) com BDI | B65: =TRUNC(B63+(B63*B64),2) -> 205.38
A66: Total de Frentes | B66: ='MC MODULO'!G1 -> 4
A67: Custo Mobilização (frentes x distancia) | B67: =B65*H6*B66 -> 82152

Sheet Canteiro
A4: CANTEIRO DE OBRAS PARA CONSTRUÇAO RODOVIÁRIA
A5: Descrição dos serviços | B5: Código | C5: Unidade | D5: Quantidade | E5: Preço unitário (R$) | F5: Total (R$)
A6: Escritório e seção técnica
A7: LOCAÇÃO DE CONTAINER - ALMOXARIFADO SEM BANHEIRO - 6,00 X 2,40M - REV 02_02/2022 | B7: 04654/ORSE | C7: und | D7: 1 | E7: 800 | F7: =TRUNC(D7*E7,2) -> 800
A8: Banheiro e vestiário
A9: LOCAÇÃO DE CONTAINER - BANHEIRO COM CHUVEIROS E VASOS - 4,30 X 2,30M | B9: 04656/ORSE | C9: und | D9: 1 | E9: 962.26 | F9: =TRUNC(D9*E9,2) -> 962.26
D10: TOTAL DO CANTEIRO | F10: =SUM(F7:F9) -> 1762.26
D11: DURAÇÃO (MESES) | E11: 1 | F11: =F10*E11 -> 1762.26
D12: BDI | F12: =BDI!C14 -> 0.2339
D13: TOTAL DO CANTEIRO (com BDI) | F13: =F11+(F11*F12) -> 2174.452614

Sheet Adm Local
A4: parcela fixa da administração local (mão de obra)
A5: Código | B5: Discriminação | C5: Unidade | D5: Quantidade | F5: Custo Unitário (R$) | H5: Custo Total (R$)
B6: Mão de Obra
B7: Gerência Técnica
B8: Geral
A9: P9955 | B9: Engenheiro chefe | C9: mês | D9: 0.2 | F9: =VLOOKUP(A9,'Pessoal Sicro'!$A$6:$G$118,6,0) -> 34476.9964 | H9: =F9*D9 -> 6895.39928
A10: P9840 | B10: Encarregado geral | C10: mês | D10: 0.25 | F10: =VLOOKUP(A10,'Pessoal Sicro'!$A$6:$G$118,6,0) -> 11171.6253 | H10: =F10*D10 -> 2792.906325
A11: P9897 | B11: Técnico de meio ambiente | C11: mês | D11: 0 | F11: =VLOOKUP(A11,'Pessoal Sicro'!$A$6:$G$118,6,0) -> 7622.1497 | H11: =F11*D11 -> 0
A12: P9948 | B12: Motorista | C12: mês | D12: 0 | F12: =VLOOKUP(A12,'Pessoal Sicro'!$A$6:$G$118,6,0) -> 5896.6377 | H12: =F12*D12 -> 0
A13: P9878 | B13: Secretária | C13: mês | D13: 0 | F13: =VLOOKUP(A13,'Pessoal Sicro'!$A$6:$G$118,6,0) -> 6719.5959 | H13: =F13*D13 -> 0
F14: Subtotal do Item 1.1 | H14: =SUM(H9:I13) -> 9688.305605
B15: Auxiliar
A16: P9946 | B16: Engenheiro auxiliar | C16: mês | D16: 0.25 | F16: =VLOOKUP(A16,'Pessoal Sicro'!$A$6:$G$118,6,0) -> 24878.4314 | H16: =D16*F16 -> 6219.60785
A17: P9903 | B17: Auxiliar técnico | C17: mês | D17: 0 | F17: =VLOOKUP(A17,'Pessoal Sicro'!$A$6:$G$118,6,0) -> 4763.972 | H17: =D17*F17 -> 0
F18: Subtotal do Item 1.2 | H18: =SUM(H16:I17) -> 6219.60785
B19: Gerência Administrativa
B20: Geral
A21: P9883 | B21: Chefe do setor administrativo | C21: mês | D21: 0 | F21: =VLOOKUP(A21,'Pessoal Sicro'!$A$6:$G$118,6,0) -> 7357.4391 | H21: =F21*D21 -> 0
A22: P9809 | B22: Encarregado administrativo | C22: mês | D22: 0 | F22: =VLOOKUP(A22,'Pessoal Sicro'!$A$6:$G$118,6,0) -> 7357.4401 | H22: =F22*D22 -> 0
A23: P9896 | B23: Porteiro | C23: mês | D23: 0 | F23: =VLOOKUP(A23,'Pessoal Sicro'!$A$6:$G$118,6,0) -> 4232.8134 | H23: =F23*D23 -> 0
A24: P9827 | B24: Vigia | C24: mês | D24: 0 | F24: =VLOOKUP(A24,'Pessoal Sicro'!$A$6:$G$118,6,0) -> 4843.939 | H24: =F24*D24 -> 0
A25: P9948 | B25: Motorista | C25: mês | D25: 0 | F25: =VLOOKUP(A25,'Pessoal Sicro'!$A$6:$G$118,6,0) -> 5896.6377 | H25: =F25*D25 -> 0
F26: Subtotal do Item 1.3 | H26: =SUM(H21:I25) -> 0
B27: Auxiliar
A28: P9806 | B28: Auxiliar administrativo | C28: mês | D28: 0.5 | F28: =VLOOKUP(A28,'Pessoal Sicro'!$A$6:$G$118,6,0) -> 5029.8543 | H28: =F28*D28 -> 2514.92715
A29: P9842 | B29: Faxineiro | C29: mês | D29: 0 | F29: =VLOOKUP(A29,'Pessoal Sicro'!$A$6:$G$118,6,0) -> 4241.9864 | H29: =F29*D29 -> 0
F30: Subtotal do Item 1.4 | H30: =SUM(H28:I29) -> 2514.92715
H31: Total da Mão de Obra da Parcela Fixa | I31: =H30+H26+H18+H14 -> 18422.84061
A33: parcela fixa da administração local (veículos)
A34: Código | B34: Discriminação | C34: Unidade | D34: Quantidade | E34: Utilização Produtiva | F34: Utilização Improdutiva | G34: Custo Horário Produtivo (R$) | H34: Custo Horário Improdutivo (R$) | I34: Custo Total (R$)
A35: 2 | B35: Veículos
B36: Gerência Técnica
A37: 2.1 | B37: Geral
A38: E9093 | B38: Veículo Leve 53 kw | C38: mês | D38: 1 | E38: 44 | F38: 176 | G38: =VLOOKUP(A38,Equipamentos!$A$4:$K$541,10,0) -> 36.7983 | H38: =VLOOKUP(A38,Equipamentos!$A$4:$K$541,11,0) -> 6.7814 | I38: =((E38*G38)+(F38*H38))*D38 -> 2812.6516
A39: E9560 | B39: Ônibus coletivo - 175 kw | C39: mês | D39: 0 | E39: 44 | F39: 176 | G39: =VLOOKUP(A39,Equipamentos!$A$4:$K$541,10,0) -> 346.4378 | H39: =VLOOKUP(A39,Equipamentos!$A$4:$K$541,11,0) -> 105.6945 | I39: =((E39*G39)+(F39*H39))*D39 -> 0
H40: Subtotal do Item 2 | I40: =SUM(I38:I39) -> 2812.6516
A41: 2.2 | B41: Auxiliar
A42: E9093 | B42: Veículo Leve 53 kw | C42: mês | D42: 0 | E42: 44 | F42: 176 | G42: =G38 -> 36.7983 | H42: =H38 -> 6.7814 | I42: =((E42*G42)+(F42*H42))*D42 -> 0
H43: Subtotal do Item 2 | I43: =SUM(I42) -> 0
A44: 2.3 | B44: Gerência Administrativa
A45: E9093 | B45: Veículo Leve 53 kw | C45: mês | D45: 0 | E45: 44 | F45: 176 | G45: =G38 -> 36.7983 | H45: =H38 -> 6.7814 | I45: =((E45*G45)+(F45*H45))*D45 -> 0
H46: Subtotal do Item 2 | I46: =I45 -> 0
H47: Total dos Veículos da Parcela Fixa | I47: =I46+I43+I40 -> 2812.6516
A49: Composição de custo da equipe de produção de terraplenagem
A50: Código | B50: Discriminação | C50: Unidade | D50: Quantidade | F50: Custo Unitário (R$) | H50: Custo Total (R$)
B51: Equipe de Produção de Terraplenagem
A52: 3.1 | B52: Mão de Obra
A53: ='Pessoal Sicro'!A65 -> P9892 | B53: Encarregado de produção | C53: mês | D53: 0 | F53: =VLOOKUP(A53,'Pessoal Sicro'!$A$6:$G$118,6,0) -> 36.4966 | H53: =F53*D53 -> 0
F54: Subtotal do Item 3.1 | H54: =SUM(H53:H53) -> 0
A55: Código | B55: Discriminação | C55: Unidade | D55: Quantidade | E55: Utilização Produtiva | F55: Utilização Improdutiva | G55: Custo Horário Produtivo (R$) | H55: Custo Horário Improdutivo (R$) | I55: Custo Total (R$)
A56: 3.2 | B56: Veículos
B57: Veículo Leve 53 kw | C57: mês | D57: 0 | E57: 44 | F57: 176 | G57: =G38 -> 36.7983 | H57: =H38 -> 6.7814 | I57: =((E57*G57)+(F57*H57))*D57 -> 0
H58: Subtotal do Item 3.2 | I58: =SUM(I57:I57) -> 0
H59: Total da Equipe de Produção de Terraplenagem | I59: =I58+H54 -> 0
A61: Composição de custo da equipe de produção de pavimentação
A62: Código | B62: Discriminação | C62: Unidade | D62: Quantidade | F62: Custo Unitário (R$) | H62: Custo Total (R$)
B63: Equipe de Produção de Pavimentação
A64: 3.1 | B64: Mão de Obra
A65: ='Pessoal Sicro'!A70 -> P9901 | B65: Encarregado de produção | C65: mês | D65: 1 | F65: =VLOOKUP(A65,'Pessoal Sicro'!$A$6:$G$118,6,0) -> 7997.6522 | H65: =F65*D65 -> 7997.6522
F66: Subtotal do Item 3.1 | H66: =SUM(H65:H65) -> 7997.6522
A67: Código | B67: Discriminação | C67: Unidade | D67: Quantidade | E67: Utilização Produtiva | F67: Utilização Improdutiva | G67: Custo Horário Produtivo (R$) | H67: Custo Horário Improdutivo (R$) | I67: Custo Total (R$)
A68: 3.2 | B68: Veículos
B69: Veículo Leve 53 kw | C69: mês | D69: 1 | E69: 44 | F69: 176 | G69: =G38 -> 36.7983 | H69: =H38 -> 6.7814 | I69: =((E69*G69)+(F69*H69))*D69 -> 2812.6516
H70: Subtotal do Item 3.2 | I70: =SUM(I69:I69) -> 2812.6516
H71: Total da Equipe de Produção de Pavimentação | I71: =I70+H66 -> 10810.3038
A73: Composição de custo da equipe de produção de drenagem
A74: Código | B74: Discriminação | C74: Unidade | D74: Quantidade | F74: Custo Unitário (R$) | H74: Custo Total (R$)
B75: Equipe de Produção de Pavimentação
A76: 3.1 | B76: Mão de Obra
A77: ='Pessoal Sicro'!A70 -> P9901 | B77: Encarregado de produção | C77: mês | D77: 0 | F77: =VLOOKUP(A77,'Pessoal Sicro'!$A$6:$G$118,6,0) -> 7997.6522 | H77: =F77*D77 -> 0
F78: Subtotal do Item 3.1 | H78: =SUM(H77:H77) -> 0
A79: Código | B79: Discriminação | C79: Unidade | D79: Quantidade | E79: Utilização Produtiva | F79: Utilização Improdutiva | G79: Custo Horário Produtivo (R$) | H79: Custo Horário Improdutivo (R$) | I79: Custo Total (R$)
A80: 3.2 | B80: Veículos
B81: Veículo Leve 53 kw | C81: mês | D81: 0 | E81: 44 | F81: 176 | G81: =G38 -> 36.7983 | H81: =H38 -> 6.7814 | I81: =((E81*G81)+(F81*H81))*D81 -> 0
H82: Subtotal do Item 3.2 | I82: =SUM(I81:I81) -> 0
H83: Total da Equipe de Produção de Pavimentação | I83: =I82+H78 -> 0
A85: Composição de custo da equipe de produção de sinalização
A86: Código | B86: Discriminação | C86: Unidade | D86: Quantidade | F86: Custo Unitário (R$) | H86: Custo Total (R$)
B87: Equipe de Produção de Pavimentação
A88: 3.1 | B88: Mão de Obra
A89: ='Pessoal Sicro'!A70 -> P9901 | B89: Encarregado de produção | C89: mês | D89: 0 | F89: =VLOOKUP(A89,'Pessoal Sicro'!$A$6:$G$118,6,0) -> 7997.6522 | H89: =F89*D89 -> 0
F90: Subtotal do Item 3.1 | H90: =SUM(H89:H89) -> 0
A91: Código | B91: Discriminação | C91: Unidade | D91: Quantidade | E91: Utilização Produtiva | F91: Utilização Improdutiva | G91: Custo Horário Produtivo (R$) | H91: Custo Horário Improdutivo (R$) | I91: Custo Total (R$)
A92: 3.2 | B92: Veículos
B93: Veículo Leve 53 kw | C93: mês | D93: 0 | E93: 44 | F93: 176 | G93: =G38 -> 36.7983 | H93: =H38 -> 6.7814 | I93: =((E93*G93)+(F93*H93))*D93 -> 0
H94: Subtotal do Item 3.2 | I94: =SUM(I93:I93) -> 0
H95: Total da Equipe de Produção de Pavimentação | I95: =I94+H90 -> 0
A97: Composição de custo da equipe topografia
A98: Código | B98: Discriminação | C98: Unidade | D98: Quantidade | F98: Custo Unitário (R$) | H98: Custo Total (R$)
B99: Equipe de Topografia
A100: 3.1 | B100: Mão de Obra
A101: P9949 | B101: Topográfo | C101: mês | D101: 1 | F101: =VLOOKUP(A101,'Pessoal Sicro'!$A$6:$G$118,6,0) -> 8914.4106 | H101: =F101*D101 -> 8914.4106
A102: P9950 | B102: Auxiliar de topografia | C102: mês | D102: 1 | F102: =VLOOKUP(A102,'Pessoal Sicro'!$A$6:$G$118,6,0) -> 5944.3549 | H102: =F102*D102 -> 5944.3549
F103: Subtotal do Item 3.1 | H103: =SUM(H101:I102) -> 14858.7655
A104: Código | B104: Discriminação | C104: Unidade | D104: Quantidade | E104: Utilização Produtiva | F104: Utilização Improdutiva | G104: Custo Horário Produtivo (R$) | H104: Custo Horário Improdutivo (R$) | I104: Custo Total (R$)
A105: 3.2 | B105: Veículos
B106: Veículo Leve 53 kw | C106: mês | D106: 1 | E106: 44 | F106: 176 | G106: =G38 -> 36.7983 | H106: =H38 -> 6.7814 | I106: =((E106*G106)+(F106*H106))*D106 -> 2812.6516
H107: Subtotal do Item 3.2 | I107: =SUM(I106:I106) -> 2812.6516
H108: Total da Equipe de Produção de Topografia | I108: =I107+H103 -> 17671.4171
A110: Composição de custo do setor de medicina e segurança do trabalho
A111: Código | B111: Discriminação | C111: Unidade | D111: Quantidade | F111: Custo Unitário (R$) | H111: Custo Total (R$)
A112: 4 | B112: Setor de Medicina e Segurança do Trabalho
A113: P9876 | B113: Técnico de segurança do trabalho | C113: mês | D113: 1 | F113: =VLOOKUP(A113,'Pessoal Sicro'!$A$6:$G$118,6,0) -> 7365.8624 | H113: =F113*D113 -> 7365.8624
A114: P9864 | B114: Engenheiro de segurança do trabalho | C114: mês | D114: 0 | F114: =VLOOKUP(A114,'Pessoal Sicro'!$A$6:$G$118,6,0) -> 24959.615 | H114: =F114*D114 -> 0
A115: P9851 | B115: Médico do trabalho | C115: mês | D115: 0 | F115: =VLOOKUP(A115,'Pessoal Sicro'!$A$6:$G$118,6,0) -> 18676.2344 | H115: =F115*D115 -> 0
A116: P9951 | B116: Médico de câmara hiperbárica | C116: mês | D116: 0 | F116: =VLOOKUP(A116,'Pessoal Sicro'!$A$6:$G$118,6,0) -> 21265.9102 | H116: =F116*D116 -> 0
F117: Subtotal do Item 4 | H117: =SUM(H113:I116) -> 7365.8624
A119: Parcela Variável - Composição de custo da equipe de frente de serviço
A120: Código | B120: Discriminação | C120: Unidade | D120: Quantidade | F120: Custo Unitário (R$) | H120: Custo Total (R$)
A121: 5 | B121: Equipe de Frente de Serviço | C121: equipexmês
A122: P9875 | B122: Encarregado de Turma | C122: mês | D122: 1 | F122: =VLOOKUP(A122,'Pessoal Sicro'!$A$6:$G$118,6,0) -> 5961.6777 | H122: =F122*D122 -> 5961.6777
A123: P9804 | B123: Apontador | C123: mês | D123: 0.5 | F123: =VLOOKUP(A123,'Pessoal Sicro'!$A$6:$G$118,6,0) -> 5024.237 | H123: =F123*D123 -> 2512.1185
F124: Subtotal do Item 5 | H124: =SUM(H122:I123) -> 8473.7962
A126: Parcela Variável - Composição de custo da equipe de frente de serviço (Terraplenagem) - Somente Compactação
A127: Código | B127: Discriminação | C127: Unidade | D127: Quantidade | F127: Produção Horária (und/h) | H127: Efs
A128: 5.1 | B128: Equipe de Frente de Serviço | C128: equipexmês
C129: mês | H129: =(D129)/(F129*182.49) -> 
C130: mês | H130: =(D130)/(F130*182.49) -> 
C131: mês | H131: =(D131)/(F131*182.49) -> 
F132: Total de Equipes para Terraplenagem | H132: =SUM(H131:I131) -> 
A134: Parcela Variável - Composição de custo da acompanhamento das frentes de serviço de pavimentação
A135: Código | B135: Discriminação | C135: Unidade | D135: Quantidade | F135: Produção Horária (und/h) | H135: Efs
A136: 5.2 | B136: Equipe de Frente de Serviço | C136: equipe x mês
A137: ='RESUMO MODULO TOTAL'!C23 -> 92404 ADAPTADA | B137: ='RESUMO MODULO TOTAL'!E23 -> execução de pavimento em piso intertravado, com bloco 16 faces de 22 x 11 cm, espessura 8 cm. af_10/2022 - exclusive fornecimento de bloquete | C137: ='RESUMO MODULO TOTAL'!G23 -> m² | D137: ='RESUMO MODULO TOTAL'!H23 -> 56000 | F137: =(1/'CPU SINAPI'!E9)*10 -> 46.97040864 | H137: =(D137)/(F137*182.49) -> 6.5331799 | J137: =7000/22 -> 318.1818182
A138: ='RESUMO MODULO TOTAL'!C28 -> 4011221 | B138: ='RESUMO MODULO TOTAL'!E28 -> Base estabilizada granulometricamente com mistura de solos na pista com material de jazida - 100% Proctor modificado | C138: ='RESUMO MODULO TOTAL'!G28 -> m³ | D138: ='RESUMO MODULO TOTAL'!H28 -> 8400 | F138: 120.7 | H138: 0.3813580733 | J138: =J137/8 -> 39.77272727
A139: ='RESUMO MODULO TOTAL'!C29 -> 4011209 | B139: ='RESUMO MODULO TOTAL'!E29 -> Regularização do subleito - 100% Proctor intermediário | C139: ='RESUMO MODULO TOTAL'!G29 -> m² | D139: ='RESUMO MODULO TOTAL'!H29 -> 56000 | F139: 672.8 | H139: 0.4561030464
F140: Total de Equipes para Pavimentação | H140: =SUM(H137:I139) -> 7.37064102
A142: Parcela Variável - Composição de custo da acompanhamento das frentes de serviço de drenagem
A143: Código | B143: Discriminação | C143: Unidade | D143: Quantidade | F143: Efsdu | H143: Efs
A144: 5.3 | B144: Frentes de Serviço para Drenagem | C144: equipe x mês
A145: ='RESUMO MODULO TOTAL'!C36 -> 2003943 | B145: =VLOOKUP(A145,'SINTÉTICO SICRO'!$A$4:$D$6373,2,0) -> Meio-fio de concreto - MFC 03 moldado no local com extrusora e concreto usinado - areia e brita comerciais | C145: m | D145: ='RESUMO MODULO TOTAL'!H36 -> 16000 | F145: 0.00021 | H145: =D145*F145 -> 3.36
F146: Total de Equipes para Drenagem | H146: =H145 -> 3.36
A148: Parcela Variável - Composição de custo da acompanhamento das frentes de serviço de sinalização
A149: Código | B149: Discriminação | C149: Unidade | D149: Quantidade | F149: Produção Horária (und/h) | H149: Efs
A150: 5.4 | B150: Frentes de Serviço para Sinalização | C150: equipe x mês
A151: 5213440 | B151: =VLOOKUP(A151,'SINTÉTICO SICRO'!$A$4:$D$6373,2,0) -> Placa de regulamentação em aço D = 0,60 m - película retrorrefletiva tipo I + SI - fornecimento e implantação | C151: ='RESUMO MODULO TOTAL'!G31 -> und | D151: ='RESUMO MODULO TOTAL'!H31 -> 24 | F151: 3 | H151: =0.2*((D151)/(F151*182.49)) -> 0.008767603704
A152: 5213464 | B152: =VLOOKUP(A152,'SINTÉTICO SICRO'!$A$4:$D$6373,2,0) -> Placa de advertência em aço, lado de 0,60 m - película retrorrefletiva tipo I + SI - fornecimento e implantação | C152: ='RESUMO MODULO TOTAL'!G32 -> und | D152: ='RESUMO MODULO TOTAL'!H32 -> 24 | F152: 3 | H152: =0.2*((D152)/(F152*182.49)) -> 0.008767603704
A153: 5213400 | B153: =VLOOKUP(A153,'SINTÉTICO SICRO'!$A$4:$D$6373,2,0) -> Pintura de faixa com tinta acrílica - espessura de 0,4 mm | C153: ='RESUMO MODULO TOTAL'!G34 -> m² | D153: ='RESUMO MODULO TOTAL'!H34 -> 2400 | F153: 177.07 | H153: =0.2*((D153)/(F153*182.49)) -> 0.01485447061
F154: Total de Equipes para Sinalização | H154: =SUM(H151:I153) -> 0.03238967802
A156: 3. PARCELA VARIÁVEL - EQUIPE DE CONTROLE TECNOLÓGICO
A157: LABORATÓRIO DE SOLOS
A158: Item | B158: Discriminação | F158: Unidade | G158: Quantidade | H158: Custo Unitário (R$) | I158: Custo Total (R$)
B159: Laboratório de Solos (equipe x mês)
B160: Mão de Obra
A161: P9858 | B161: Laboratorista | F161: func./mês | G161: 1 | H161: =VLOOKUP(A161,'Pessoal Sicro'!$A$6:$G$118,6,0) -> 7520.1358 | I161: =TRUNC(G161*H161,2) -> 7520.13
A162: P9833 | B162: Auxiliar de laboratório | F162: func./mês | G162: 1 | H162: =VLOOKUP(A162,'Pessoal Sicro'!$A$6:$G$118,6,0) -> 5924.9119 | I162: =TRUNC(G162*H162,2) -> 5924.91
H163: Subtotal do Item | I163: =SUM(I161:I162) -> 13445.04
A164: Item | B164: Discriminação | C164: Und | D164: Quant | E164: Utilização Produtiva | F164: Utilização Improdutiva | G164: Horário Produtivo (R$) | H164: Horário Improdutivo (R$) | I164: Total (R$)
B165: Equipe de Controle Tecnológico
B166: Veículos
A167: E9125 | B167: Van furgão a diesel - 93 kW | C167: veic./mês | D167: 1 | E167: 44 | F167: 176 | G167: =VLOOKUP(A167,Equipamentos!$A$4:$K$533,10,0) -> 86.4606 | H167: =VLOOKUP(A167,Equipamentos!$A$4:$K$533,11,0) -> 49.0389 | I167: =D167*((E167*G167)+(F167*H167)) -> 12435.1128
H168: Subtotal do Item | I168: =SUM(I167:I167) -> 12435.1128
H169: Total da Equipe do Laboratório de Solos | I169: =I163+I168 -> 25880.1528
A171: 3. PARCELA VARIÁVEL - EQUIPE DE CONTROLE TECNOLÓGICO
A172: LABORATÓRIO DE CONCRETO
A173: Item | B173: Discriminação | F173: Unidade | G173: Quantidade | H173: Custo Unitário (R$) | I173: Custo Total (R$)
B174: Laboratório de Solos (equipe x mês)
B175: Mão de Obra
A176: P9858 | B176: Laboratorista | F176: func./mês | G176: 1 | H176: =VLOOKUP(A176,'Pessoal Sicro'!$A$6:$G$118,6,0) -> 7520.1358 | I176: =TRUNC(G176*H176,2) -> 7520.13
A177: P9833 | B177: Auxiliar de laboratório | F177: func./mês | G177: 1 | H177: =VLOOKUP(A177,'Pessoal Sicro'!$A$6:$G$118,6,0) -> 5924.9119 | I177: =TRUNC(G177*H177,2) -> 5924.91
H178: Subtotal do Item | I178: =SUM(I176:I177) -> 13445.04
A179: Item | B179: Discriminação | C179: Und | D179: Quant | E179: Utilização Produtiva | F179: Utilização Improdutiva | G179: Horário Produtivo (R$) | H179: Horário Improdutivo (R$) | I179: Total (R$)
B180: Equipe de Controle Tecnológico
B181: Veículos
A182: E9125 | B182: Van furgão a diesel - 93 kW | C182: veic./mês | D182: 1 | E182: 44 | F182: 176 | G182: =VLOOKUP(A182,Equipamentos!$A$4:$K$533,10,0) -> 86.4606 | H182: =VLOOKUP(A182,Equipamentos!$A$4:$K$533,11,0) -> 49.0389 | I182: =D182*((E182*G182)+(F182*H182)) -> 12435.1128
H183: Subtotal do Item | I183: =SUM(I182:I182) -> 12435.1128
H184: Total da Equipe do Laboratório de Concreto | I184: =I178+I183 -> 25880.1528
A186: Equipes de laboratório de solos para pavimentação
A187: Item | B187: Discriminação | F187: Und | G187: Quant | H187: QE | I187: Els
A188: ='RESUMO MODULO TOTAL'!C28 -> 4011221 | B188: =VLOOKUP(A188,'SINTÉTICO SICRO'!A:D,2,0) -> Base estabilizada granulometricamente com mistura de solos na pista com material de jazida - 100% Proctor modificado | F188: =VLOOKUP(A188,'SINTÉTICO SICRO'!A:D,3,0) -> m³ | G188: ='RESUMO MODULO TOTAL'!H28 -> 8400 | H188: 21900 | I188: =G188/H188 -> 0.3835616438
H189: Total de equipes de Laboratório de Solos para Pavimentação | I189: =I188 -> 0.3835616438
A191: Equipes de laboratório de Concreto
A192: Item | B192: Discriminação | F192: Und | G192: Quant | H192: QE | I192: Ela
A193: ='RESUMO MODULO TOTAL'!C22 -> 36170 | B193: BLOQUETE/PISO INTERTRAVADO DE CONCRETO - MODELO ONDA/16 FACES/RETANGULAR/T IJOLINHO/PAVER/HOLANDES/PARALELEPIPEDO, *22 CM X 11* CM, E = 8 CM, RESISTENCIA DE 35 MPA (NBR 9781), COR NATURAL | F193: ='RESUMO MODULO TOTAL'!G22 -> m² | G193: ='RESUMO MODULO TOTAL'!H23 -> 56000 | H193: 12900 | I193: =G193/H193 -> 4.341085271
H194: Total de equipes de Laboratório de Concreto | I194: =SUM(I193:I193) -> 4.341085271
A196: manutenção do canteiro de obras e acampamentos
A197: Código | B197: Discriminação | C197: Unidade | D197: Quantidade | F197: Custo Unitário (R$) | H197: Custo Total (R$)
B198: Manutenção do Canteiro de Obras e Acampamentos
A199: 6.1 | B199: Mão de Obra
A200: P9952 | B200: Pedreiro | C200: mês | D200: 0 | F200: =VLOOKUP(A200,'Pessoal Sicro'!$A$6:$G$118,6,0) -> 5095.9624 | H200: =F200*D200 -> 0
A201: P9954 | B201: Servente | C201: mês | D201: 0 | F201: =VLOOKUP(A201,'Pessoal Sicro'!$A$6:$G$118,6,0) -> 4112.1828 | H201: =F201*D201 -> 0
A202: P9953 | B202: Eletricista | C202: mês | D202: 0 | F202: =VLOOKUP(A202,'Pessoal Sicro'!$A$6:$G$118,6,0) -> 5934.9302 | H202: =F202*D202 -> 0
F203: Subtotal do Item 6.1 | H203: =SUM(H200:I202) -> 0
A205: Código | B205: Discriminação | C205: Unidade | D205: Quantidade | F205: Custo Produtivo (R$) | H205: Custo Total (R$)
A206: 6.2 | B206: Equipamentos
B207: Caminhão guindauto de 6 toneladas | C207: h/mês | D207: 0 | H207: =F207*D207 -> 0
B208: Caminhão tanque de 8.000 litros | C208: h/mês | D208: 0 | H208: =F208*D208 -> 0
A209: E9524 | B209: Motoniveladora | C209: h/mês | D209: 0 | F209: =Equipamentos!J168 -> 68.7564 | H209: =F209*D209 -> 0
F210: Subtotal do Item 6.2 | H210: =SUM(H207:I209) -> 0
G211: Total da Manutenção do Canteiro de Obras e Acampamentos | H211: =H210+H203 -> 0
A215: Resumo das parcelas de administração local
A216: Código | B216: Discriminação | C216: Unidade | D216: Quantidade | F216: Custo Unitário (R$) | H216: Custo Total (R$)
B217: Parcela Fixa
B218: Mão de Obra | C218: mês | D218: 9 | F218: =H14+H18+H26+H30 -> 18422.84061 | H218: =F218*D218 -> 165805.5654
B219: Veículos | C219: mês | D219: 9 | F219: =I47 -> 2812.6516 | H219: =F219*D219 -> 25313.8644
F220: Subtotal do Item 1 | H220: =SUM(H218:I219) -> 191119.4298
B221: Parcela Vinculada
B222: Equipe de produção de terraplenagem | C222: mês | D222: 0 | F222: =I59 -> 0 | H222: =F222*D222 -> 0
B223: Equipe de produção de pavimentação | C223: mês | D223: 6 | F223: =I71 -> 10810.3038 | H223: 64861.8228
B224: Equipe de produção de drenagem | C224: mês | D224: 0 | F224: =I83 -> 0 | H224: 0
... 21 more rows

Sheet Projeto Executivo
A4: COMPOSIÇAO PREÇO PROJETO EXECUTIVO
A6: DISCRIMINAÇAO | F6: Pr. Unit. | G6: Pr. Total
A8: A· EOUIPE TECNICA | G8: =G9+G12 -> 18923.29771
B9: A. 1 - Pessoal de Nível Superior | C9: Unidade | D9: Quantitativo | E9: SICRO e Rel.Custos Gerais | G9: =G10+G11 -> 15798.26735
B10: Engenheiro | C10: mês | D10: 0.5 | E10: P9812 | F10: =VLOOKUP(E10,'Pessoal Sicro'!A:G,6,0) -> 27139.3294 | G10: =F10*D10 -> 13569.6647
B11: Topógrafo | C11: mês | D11: 0.25 | E11: P9949 | F11: =VLOOKUP(E11,'Pessoal Sicro'!A:G,6,0) -> 8914.4106 | G11: =F11*D11 -> 2228.60265
B12: A.2 - Pessoal de Nível Técnico e Aux. | G12: =G13+G14 -> 3125.030362
B13: Auxiliar de topógrafo | C13: mês | D13: 0.125 | E13: P9950 | F13: =VLOOKUP(E13,'Pessoal Sicro'!A:G,6,0) -> 5944.3549 | G13: =F13*D13 -> 743.0443625
B14: Auxiliar Técnico/Assistente de Engenharia | C14: mês | D14: 0.5 | E14: P9903 | F14: =VLOOKUP(E14,'Pessoal Sicro'!A:G,6,0) -> 4763.972 | G14: =F14*D14 -> 2381.986
A15: B - ENCARGOS SOCIAIS | G15: =G16 -> 0
B16: =CONCATENATE("Taxas ",'ENC. SOCIAIS'!E51,"%") -> Taxas 113,84% | C16: JÁ INCLUSAS EM "A"
A17: C - DESPESAS GERAIS | G17: =G18+G20+G19 -> 13071.30599
B18: C.1 - MATERIAIS DE CONSUMO | C18: Estimativa % como referência de equipe técnica com encargos sociais | D18: 0.03 | F18: =G8+G16 -> 18923.29771 | G18: =F18*D18 -> 567.6989314
B19: C.2 - VEÍCULOS (Veículo leve picape 4 x 4 com capacidade de 1,10 t - 147 kW) | C19: h | D19: 110 | E19: E9684 | F19: =VLOOKUP(E19,Equipamentos!A:K,10,0) -> 110.8656 | G19: =F19*D19 -> 12195.216
B20: C.3 - Estação total eletrônica com alcance máximo de 3.000 m | C20: h | D20: 38.09884009 | E20: E9553 | F20: =VLOOKUP(E20,Equipamentos!A:K,10,0) -> 8.0945 | G20: =F20*D20 -> 308.3910611
A21: D - ENSAIOS | G21: =SUM(G22:G25) -> 3805.259187
B22: Laboratorista | C22: mês | D22: =1/4 -> 0.25 | E22: P9858 | F22: =VLOOKUP(E22,'Pessoal Sicro'!A:G,6,0) -> 7520.1358 | G22: =F22*D22 -> 1880.03395
B23: Auxiliar de Laboratório | C23: mês | D23: =1/8 -> 0.125 | E23: P9833 | F23: =VLOOKUP(E23,'Pessoal Sicro'!A:G,6,0) -> 5924.9119 | G23: =F23*D23 -> 740.6139875
B24: Laboratório de solos | C24: mês | D24: =1/8 -> 0.125 | E24: B8957 | F24: =VLOOKUP(E24,'Tabelas 1 e 2'!C14:G23,5,0) -> 3597.39 | G24: =F24*D24 -> 449.67375
B25: Laboratório de asfalto | C25: mês | D25: 0.125 | E25: B8955 | F25: =VLOOKUP(E25,'Tabelas 1 e 2'!C15:G24,5,0) -> 5879.5 | G25: =F25*D25 -> 734.9375
A26: I - SOMA (A+B+C+D) | G26: =G8+G15+G17+G21 -> 35799.86289
F27: Produtividade(m2) | G27: ='MC MODULO'!C1*'MC MODULO'!C2 -> 14000
F28: Por m²: | G28: =TRUNC(G26/G27,2) -> 2.55

Sheet CPU CODEVASF
A4: ='RESUMO MODULO TOTAL'!B49 -> EXECUÇÃO DE SERVIÇOS DE IMPLANTAÇÃO DE PAVIMENTAÇÃO EM BLOCO DE CONCRETO INTERTRAVADO, EM VIAS URBANAS E RURAIS INSERIDAS NA ÁREA DE ATUAÇÃO DA 3ª SUPERINTENDÊNCIA REGIONAL DA CODEVASF.
F5: BDI %: | G5: =BDI!$C$14 -> 0.2339
E6: Encargos Sociais: | G6: Horista | H6: Mensalista
G7: ='ENC. SOCIAIS'!E51/100 -> 1.1384 | H7: ='ENC. SOCIAIS'!F51/100 -> 0.7011
A8: COMPOSIÇÕES DE CUSTO UNITARIO
A9: CPU-02 | B9: CODEVASF | D9: Correção de vazamentos no ramal na rua sem pavimento com fornecimento do material hidráulico | E9: m | F9: COEF. | G9: PRECO UNITÁRIO (R$) | H9: TOTAL (R$)
A11: SICRO | B11: SICRO | C11: P9824 | D11: =VLOOKUP(C11,'Pessoal Sicro'!$A$5:$G$1048576,2,0) -> Servente | E11: H | F11: 0.2 | G11: =VLOOKUP(C11,'Pessoal Sicro'!$A$5:$G$1048576,6,0) -> 22.2688 | H11: =F11*G11 -> 4.45376
A12: SICRO | B12: SICRO | C12: P9807 | D12: =VLOOKUP(C12,'Pessoal Sicro'!$A$5:$G$1048576,2,0) -> Bombeiro hidráulico | E12: H | F12: 0.1 | G12: =VLOOKUP(C12,'Pessoal Sicro'!$A$5:$G$1048576,6,0) -> 32.8403 | H12: 3.28403
A13: INS. SINAPI | B13: SINAPI | C13: 9867 | D13: TUBO PVC, SOLDAVEL, DN 20 MM, AGUA FRIA (NBR-5648) | E13: m | F13: 1 | G13: =IFERROR(VLOOKUP(C13,'INSUMOS SINAPI'!$A:$E,5,FALSE),VLOOKUP(C13,'COMP Sint. Sinapi'!A:E,4,FALSE)) -> 3.69 | H13: 3.69
A14: INS. SINAPI | B14: SINAPI | C14: 45245 | D14: Arco de serra | E14: un | F14: 0.1 | G14: =IFERROR(VLOOKUP(C14,'INSUMOS SINAPI'!$A:$E,5,FALSE),VLOOKUP(C14,'COMP Sint. Sinapi'!A:E,4,FALSE)) -> 35.65 | H14: 3.565
A15: INS. SINAPI | B15: SINAPI | C15: 3859 | D15: LUVA SOLDAVEL COM ROSCA, PVC, 20 MM X 1/2", PARA AGUA FRIA PREDIAL | E15: un | F15: 2 | G15: =IFERROR(VLOOKUP(C15,'INSUMOS SINAPI'!$A:$E,5,FALSE),VLOOKUP(C15,'COMP Sint. Sinapi'!A:E,4,FALSE)) -> 1.32 | H15: 2.64
E16: Sub total: | H16: =SUM(H11:H15) -> 17.63279
F17: BDI | G17: =BDI!$C$14 -> 0.2339 | H17: =H16*G17 -> 4.124309581
G18: Total Serviços: | H18: =TRUNC(H16+H17,2) -> 21.75
E19: =A9 -> CPU-02 | F19: PREÇO UNITÁRIO TOTAL: | H19: =TRUNC(H18,2) -> 21.75 | I19: =H16 -> 17.63279

Sheet CPU SINAPI
A1: SINAPI - SISTEMA NACIONAL DE PESQUISA DE CUSTOS E ÍNDICES DA CONSTRUÇÃO CIVIL
A2: PCI.818.01 - COMPOSIÇÕES ATIVAS ANALÍTICAS COM CUSTO | C2: ABRANGENCIA: NACIONAL DATA DE PREÇO : 08/2025 DATA REFERENCIA TECNICA: 12/2024
A3: * Composições constantes nos Relatórios publicados de Composições Analíticas para as 27 Unidades da Federação
A4: MACROCLASSE.CLASSE.GRUPO | B4: CÓDIGOS | C4: DESCRIÇÃO | D4: UNIDADE | E4: COEFICIENTE | F4: PREÇO UNITÁRIO | G4: PREÇO TOTAL
A5: 03.PAVI.INTE.004/001 | B5: 92404 ADAPTADA | C5: EXECUÇÃO DE PAVIMENTO EM PISO INTERTRAVADO, COM BLOCO 16 FACES DE 22 X 11 CM, ESPESSURA 8 CM. AF_10/2022 - EXCLUSIVE FORNECIMENTO DE BLOQUETE | D5: M2 | F5: Pavimento Intertravado | G5: =G17 -> 25.19
A6: INSUMO | B6: 370 | C6: AREIA MEDIA - POSTO JAZIDA/FORNECEDOR (RETIRADO NA JAZIDA, SEM TRANSPORTE) | D6: M3 | E6: 0.0568 | F6: =VLOOKUP($B6,'INSUMOS SINAPI'!$A:$E,5,0) -> 137.5 | G6: =TRUNC(E6*F6,2) -> 7.81
A7: INSUMO | B7: 4741 | C7: PO DE PEDRA (POSTO PEDREIRA/FORNECEDOR, SEM FRETE) | D7: M3 | E7: 0.0098 | F7: =VLOOKUP($B7,'INSUMOS SINAPI'!$A:$E,5,0) -> 102.34 | G7: =TRUNC(E7*F7,2) -> 1
A8: INSUMO | B8: 36170 | C8: BLOQUETE/PISO INTERTRAVADO DE CONCRETO - MODELO ONDA/16 FACES/RETANGULAR/T IJOLINHO/PAVER/HOLANDES/PARALELEPIPEDO, *22 CM X 11* CM, E = 8 CM, RESISTENCIA DE 35 MPA (NBR 9781), COR NATURAL | D8: M2 | E8: 1.004 | F8: 0 | G8: =TRUNC(E8*F8,2) -> 0
A9: COMPOSICAO | B9: 88260 | C9: CALCETEIRO COM ENCARGOS COMPLEMENTARES | D9: H | E9: 0.2129 | F9: =VLOOKUP($B9,'COMP Sint. Sinapi'!$A:$E,4,0) -> 29.63 | G9: 6.3
A10: COMPOSICAO | B10: 88316 | C10: SERVENTE COM ENCARGOS COMPLEMENTARES | D10: H | E10: 0.2129 | F10: =VLOOKUP($B10,'COMP Sint. Sinapi'!$A:$E,4,0) -> 24.08 | G10: 5.12
A11: COMPOSICAO | B11: 91277 | C11: PLACA VIBRATÓRIA REVERSÍVEL COM MOTOR 4 TEMPOS A GASOLINA, FORÇA CENTRÍFUG A DE 25 KN (2500 KGF), POTÊNCIA 5,5 CV - CHP DIURNO. AF_08/2015 | D11: CHP | E11: 0.0055 | F11: =VLOOKUP($B11,'COMP Sint. Sinapi'!$A:$E,4,0) -> 10.7 | G11: 0.05
A12: COMPOSICAO | B12: 91278 | C12: =VLOOKUP($B12,'COMP Sint. Sinapi'!$A:$E,2,0) -> PLACA VIBRATÓRIA REVERSÍVEL COM MOTOR 4 TEMPOS A GASOLINA, FORÇA CENTRÍFUGA DE 25 KN (2500 KGF), POTÊNCIA 5,5 CV - CHI DIURNO. AF_08/2015 | D12: CHP | E12: 0.101 | F12: =VLOOKUP($B12,'COMP Sint. Sinapi'!$A:$E,4,0) -> 0.78 | G12: 0.07
A13: COMPOSICAO | B13: 91283 | C13: =VLOOKUP($B13,'COMP Sint. Sinapi'!$A:$E,2,0) -> CORTADORA DE PISO COM MOTOR 4 TEMPOS A GASOLINA, POTÊNCIA DE 13 HP, COM DISCO DE CORTE DIAMANTADO SEGMENTADO PARA CONCRETO, DIÂMETRO DE 350 MM, FURO DE 1" (14 X 1") - CHP DIURNO. AF_08/2015 | D13: CHI | E13: 0.0038 | F13: =VLOOKUP($B13,'COMP Sint. Sinapi'!$A:$E,4,0) -> 10.14 | G13: 0.03
A14: COMPOSICAO | B14: 91285 | C14: =VLOOKUP($B14,'COMP Sint. Sinapi'!$A:$E,2,0) -> CORTADORA DE PISO COM MOTOR 4 TEMPOS A GASOLINA, POTÊNCIA DE 13 HP, COM DISCO DE CORTE DIAMANTADO SEGMENTADO PARA CONCRETO, DIÂMETRO DE 350 MM, FURO DE 1" (14 X 1") - CHI DIURNO. AF_08/2015 | D14: CHI | E14: 0.1027 | F14: =VLOOKUP($B14,'COMP Sint. Sinapi'!$A:$E,4,0) -> 0.46 | G14: 0.04
D15: Sub total: | G15: =SUM(G6:G14) -> 20.42
F16: BDI | G16: =BDI!C14 -> 0.2339
D17: Total Serviços: | G17: =TRUNC(G15*(1+G16),2) -> 25.19

Sheet BDI
A2: DETALHAMENTO DO BDI - SEM DESONERAÇÃO
A3: ='RESUMO MODULO TOTAL'!B49 -> EXECUÇÃO DE SERVIÇOS DE IMPLANTAÇÃO DE PAVIMENTAÇÃO EM BLOCO DE CONCRETO INTERTRAVADO, EM VIAS URBANAS E RURAIS INSERIDAS NA ÁREA DE ATUAÇÃO DA 3ª SUPERINTENDÊNCIA REGIONAL DA CODEVASF.
A4: DESCRIÇÃO DOS SERVIÇOS | B4: PREÇO DE VENDA (%) | C4: CUSTO DIRETO (%)
A5: ADMINISTRAÇÃO CENTRAL | C5: 0.06
A6: DESPESAS FINANCEIRAS | B6: 0.0102
A7: SEGUROS E GARANTIAS CONTRATUAIS | B7: 0.0025
A8: RISCOS | B8: 0.005
A9: LUCRO OPERACIONAL | C9: 0.07
A10: PIS | B10: 0.0065
A11: COFINS | B11: 0.03
A12: ISSQN | B12: 0.03
A13: Contribuição Previdenciaria | B13: 0
B14: BDI | C14: =ROUND((1+(C5+C9))/(1-(B6+B7+B8+B10+B11+B12+B13))-1,4) -> 0.2339
A15: Observação: O percentual de ISSQN aqui utilizado consiste apenas em um referencial médio.
A16: O valor real do ISSQN a ser adotado deve ser aquele proveniente das alíquotas dos municípios situados na área de influência das obras.
A56: DETALHAMENTO DO BDI DIFERENCIADO - SEM DESONERAÇÃO
A59: DESCRIÇÃO DOS SERVIÇOS | B59: PREÇO DE VENDA (%) | C59: CUSTO DIRETO (%)
A60: ADMINISTRAÇÃO CENTRAL | C60: 0.0377
A61: DESPESA FINANCEIRAS | B61: 0.0102
A62: SEGUROS E GARANTIAS CONTRATUAIS | B62: 0.0025
A63: RISCOS | B63: 0.005
A64: LUCRO OPERACIONAL | C64: 0.05
A65: PIS | B65: 0.0065
A66: COFINS | B66: 0.03
A67: ISSQN | B67: 0
A68: Contribuição Previdenciaria | B68: 0
B69: BDI | C69: =ROUND((1+(C60+C64))/(1-(B61+B62+B63+B65+B66+B67+B68))-1,4) -> 0.15
A70: Fonte da composição, valores de referência e fórmula do BDI: Instrução Normativa N° 62/DNIT SEDE
A72: DETALHAMENTO DO BDI DIFERENCIADO - SEM DESONERAÇÃO
A73: ='[206]RESUMO MODULO TOTAL'!B18 -> 0
A75: DESCRIÇÃO DOS SERVIÇOS | B75: PREÇO DE VENDA (%) | C75: CUSTO DIRETO (%)
A76: ADMINISTRAÇÃO CENTRAL | C76: 0.0377
A77: DESPESA FINANCEIRAS | B77: 0.0102
A78: SEGUROS E GARANTIAS CONTRATUAIS | B78: 0.0025
A79: RISCOS | B79: 0.005
A80: LUCRO OPERACIONAL | C80: 0.05
A81: PIS | B81: 0.0065
A82: COFINS | B82: 0.03
A83: ISSQN | B83: 0
A84: Contribuição Previdenciaria | B84: 0
B85: BDI | C85: =ROUND((1+(C76+C80))/(1-(B77+B78+B79+B81+B82+B83+B84))-1,4) -> 0.15
A86: Fonte da composição, valores de referência e fórmula do BDI: Instrução Normativa N° 62/DNIT SEDE

Sheet ENC. SOCIAIS
A6: NOME DA CONCORRENTE:
A7: EDITAL:
A8: FOLHA:
A9: ='RESUMO MODULO TOTAL'!B49 -> EXECUÇÃO DE SERVIÇOS DE IMPLANTAÇÃO DE PAVIMENTAÇÃO EM BLOCO DE CONCRETO INTERTRAVADO, EM VIAS URBANAS E RURAIS INSERIDAS NA ÁREA DE ATUAÇÃO DA 3ª SUPERINTENDÊNCIA REGIONAL DA CODEVASF.
A11: DETALHAMENTO DOS ENCARGOS SOCIAIS (%)
A12: VIGÊNCIA A PARTIR DE 01/2025 | C12: COM DESONERAÇÃO | E12: SEM DESONERAÇÃO
C14: HORISTA | D14: MENSALISTA | E14: HORISTA | F14: MENSALISTA
A16: GRUPO A
A17: A1 | B17: INSS | C17: 0 | D17: 0 | E17: 20 | F17: 20
A18: A2 | B18: SESI | C18: 1.5 | D18: 1.5 | E18: 1.5 | F18: 1.5
A19: A3 | B19: SENAI | C19: 1 | D19: 1 | E19: 1 | F19: 1
A20: A4 | B20: INCRA | C20: 0.2 | D20: 0.2 | E20: 0.2 | F20: 0.2 | I20: m²
A21: A5 | B21: SEBRAE | C21: 0.6 | D21: 0.6 | E21: 0.6 | F21: 0.6
A22: A6 | B22: Salário Educação | C22: 2.5 | D22: 2.5 | E22: 2.5 | F22: 2.5
A23: A7 | B23: Seguro Contra Acidentes de Trabalho | C23: 3 | D23: 3 | E23: 3 | F23: 3
A24: A8 | B24: FGTS | C24: 8 | D24: 8 | E24: 8 | F24: 8
A25: A9 | B25: SECONCI | C25: 1 | D25: 1 | E25: 0
A26: A | B26: Total | C26: =SUM(C17:C25) -> 17.8 | D26: =SUM(D17:D25) -> 17.8 | E26: =SUM(E17:E25) -> 36.8 | F26: =SUM(F17:F25) -> 36.8
A27: GRUPO B
A28: B1 | B28: Repouso Semanal Remunerado | C28: 17.88 | D28: - | E28: 18.01 | F28: -
A29: B2 | B29: Feriados | C29: 3.94 | D29: - | E29: 4.32 | F29: -
A30: B3 | B30: Auxílio-enfermidade | C30: 0.91 | D30: 0.69 | E30: 0.86 | F30: 0.65
A31: B4 | B31: 13° salário | C31: 10.98 | D31: 8.33 | E31: 10.97 | F31: 8.33
A32: B5 | B32: Licença-paternidade | C32: 0.07 | D32: 0.06 | E32: 0.07 | F32: 0.05
A33: B6 | B33: Faltas Justificadas | C33: 0.73 | D33: 0.56 | E33: 0.73 | F33: 0.56
A34: B7 | B34: Dias de chuva | C34: 1.45 | D34: - | E34: 1.96 | F34: -
A35: B8 | B35: Auxílio Acidente de Trabalho | C35: 0.11 | D35: 0.09 | E35: 0.1 | F35: 0.07
A36: B9 | B36: Férias Gozadas | C36: 11.35 | D36: 8.62 | E36: 9.95 | F36: 7.56
A37: B10 | B37: Salário Maternidade | C37: 0.03 | D37: 0.03 | E37: 0.03 | F37: 0.03
A38: B | B38: Total | C38: =SUM(C28:C37) -> 47.45 | D38: =SUM(D28:D37) -> 18.38 | E38: =SUM(E28:E37) -> 47 | F38: =SUM(F28:F37) -> 17.25
A39: GRUPO C
A40: C1 | B40: Aviso Prévio Indenizado | C40: 6.76 | D40: 5.14 | E40: 4.77 | F40: 3.63
A41: C2 | B41: Aviso Prévio Trabalhado | C41: 0.16 | D41: 0.12 | E41: 0.11 | F41: 0.09
A42: C3 | B42: Férias Indenizadas | C42: 2.28 | D42: 1.73 | E42: 3.98 | F42: 3.03
A43: C4 | B43: Depósito Rescisão Sem Justa Causa | C43: 3.81 | D43: 2.89 | E43: 3.06 | F43: 2.33
A44: C5 | B44: Indenização Adicional | C44: 0.57 | D44: 0.43 | E44: 0.4 | F44: 0.31
A45: C | B45: Total | C45: =SUM(C40:C44) -> 13.58 | D45: =SUM(D40:D44) -> 10.31 | E45: =SUM(E40:E44) -> 12.32 | F45: =SUM(F40:F44) -> 9.39
A46: GRUPO D
A47: D1 | B47: Reincidência de A sobre B | C47: 8.45 | D47: 3.27 | E47: 17.3 | F47: 6.35
A48: D2 | B48: Reincidência de Grupo A sobre Aviso Prévio Trabalhado e Reincidência do FGTS sobre Aviso Prévio Indenizado | C48: 0.57 | D48: 0.43 | E48: 0.42 | F48: 0.32
A49: D | B49: Total | C49: =SUM(C47:C48) -> 9.02 | D49: =SUM(D47:D48) -> 3.7 | E49: =SUM(E47:E48) -> 17.72 | F49: =SUM(F47:F48) -> 6.67
A51: T O T A L (%) | C51: =C26+C38+C45+C49 -> 87.85 | D51: =D26+D38+D45+D49 -> 50.19 | E51: =E26+E38+E45+E49 -> 113.84 | F51: =F26+F38+F45+F49 -> 70.11
H55: Fonte: Sinapi Cálculos e Parâmetros 7ª Edição - Atualizada em Junho de 2025

Sheet MOMENTO DE TRANSPORTE - PRINC
B5: ='RESUMO MODULO TOTAL'!B49 -> EXECUÇÃO DE SERVIÇOS DE IMPLANTAÇÃO DE PAVIMENTAÇÃO EM BLOCO DE CONCRETO INTERTRAVADO, EM VIAS URBANAS E RURAIS INSERIDAS NA ÁREA DE ATUAÇÃO DA 3ª SUPERINTENDÊNCIA REGIONAL DA CODEVASF.
B6: DATA BASE: | C6: Pernambuco - Julho/2025
C8: RESUMO DO TRANSPORTE PRINCIPAL
B9: CODIGO | C9: DESCRIÇÃO | D9: TKM
B10: 5914389 | C10: =VLOOKUP(B10,'SINTÉTICO SICRO'!$A:$D,2,0) -> Transporte com caminhão basculante de 10 m³ - rodovia pavimentada | D10: =ROUND(SUMIF('MOMENTO DE TRANSPORTE - PRINC'!A:A,B10,'MOMENTO DE TRANSPORTE - PRINC'!K:K),2) -> 433232.1
B11: 5914569 | C11: =VLOOKUP(B11,'SINTÉTICO SICRO'!$A:$D,2,0) -> Transporte com caminhão betoneira - rodovia pavimentada | D11: =ROUND(SUMIF('MOMENTO DE TRANSPORTE - PRINC'!A:A,B11,'MOMENTO DE TRANSPORTE - PRINC'!K:K),2) -> 40320
B13: TIPO (P, RP ou LN) | C13: DMT ESTIMADA (DISTRIBUIÇÃO DO ITEM NA PISTA
B14: P | C14: 25
B16: SISTEMA DE CUSTOS REFERENCIAIS DE OBRAS - SICRO
B17: Custo Unitário de Referência | I17: Quantitativo | K17: un
B18: 4011221 | C18: =VLOOKUP(B18,'SINTÉTICO SICRO'!A:D,2,0) -> Base estabilizada granulometricamente com mistura de solos na pista com material de jazida - 100% Proctor modificado | I18: =SUMIF('RESUMO MODULO TOTAL'!C:C,'MOMENTO DE TRANSPORTE - PRINC'!B18,'RESUMO MODULO TOTAL'!H:H) -> 8400
B19: D - ATIVIDADES AUXILIARES | D19: Quantidade | E19: Unidade
B20: 4016096 | C20: Escavação e carga de material de jazida com escavadeira hidráulica de 1,56 m³ | D20: 1.10027 | E20: m³
B22: F - MOMENTO DE TRANSPORTE | D22: Quantidade | E22: Unidade | F22: CÓDIGO TRANSPORTE
F23: LN | G23: RP | H23: P | I23: TIPO (P, RP ou LN) | J23: DMT ESTIMADA (km) | K23: QUANTITATIVO TOTAL DE TRANSPORTE (tkm)
A24: =IF(I24="P",H24,IF(I24="RP",G24,IF(I24="LN",F24,""))) -> 5914389 | B24: 4016096 | C24: Escavação e carga de material de jazida com escavadeira hidráulica de 1,56 m³ - Caminhão basculante 10 m³ | D24: 2.06301 | E24: tkm | F24: 5914359 | G24: 5914374 | H24: 5914389 | I24: P | J24: =$C$14 -> 25 | K24: =IF(ISBLANK(J24),"",J24*D24)*I18 -> 433232.1
B26: Obs.
B29: SISTEMA DE CUSTOS REFERENCIAIS DE OBRAS - SICRO
B30: Custo Unitário de Referência | D30: =$C$6 -> Pernambuco - Julho/2025 | I30: Quantitativo | K30: m
B31: 2003943 | C31: =VLOOKUP(B31,'SINTÉTICO SICRO'!A:D,2,0) -> Meio-fio de concreto - MFC 03 moldado no local com extrusora e concreto usinado - areia e brita comerciais | I31: =SUMIF('RESUMO MODULO TOTAL'!C:C,'MOMENTO DE TRANSPORTE - PRINC'!B31,'RESUMO MODULO TOTAL'!H:H) -> 16000
B32: D - ATIVIDADES AUXILIARES | D32: Quantidade | E32: Unidade
B33: 1107928 | C33: =VLOOKUP(B33,'SINTÉTICO SICRO'!A:D,2,0) -> Concreto fck = 20 MPa - confecção em central dosadora de 30 m³/h - areia e brita comerciais | D33: 0.042 | E33: m³ | L33: 2003842
B34: 4805750 | C34: Escavação manual em material de 1ª categoria na profundidade de até 1 m | D34: 0.03 | E34: m³
B36: F - MOMENTO DE TRANSPORTE | D36: Quantidade | E36: Unidade | F36: CÓDIGO TRANSPORTE
F37: LN | G37: RP | H37: P | I37: TIPO (P, RP ou LN) | J37: DMT ESTIMADA (km) | K37: QUANTITATIVO TOTAL DE TRANSPORTE (tkm)
A38: =IF(I38="P",H38,IF(I38="RP",G38,IF(I38="LN",F38,""))) -> 5914569 | B38: 1107928 | C38: Concreto fck = 20 MPa - confecção em central dosadora de 30 m³/h - areia e brita comerciais - Caminhão betoneira 8 m³ | D38: 0.1008 | E38: tkm | F38: 5914539 | G38: 5914554 | H38: 5914569 | I38: =$B$14 -> P | J38: =C14 -> 25 | K38: =IF(ISBLANK(J38),"",J38*D38)*I31 -> 40320

Sheet MOMENTO DE TRANSPORTE - AUX
B5: ='RESUMO MODULO TOTAL'!B49 -> EXECUÇÃO DE SERVIÇOS DE IMPLANTAÇÃO DE PAVIMENTAÇÃO EM BLOCO DE CONCRETO INTERTRAVADO, EM VIAS URBANAS E RURAIS INSERIDAS NA ÁREA DE ATUAÇÃO DA 3ª SUPERINTENDÊNCIA REGIONAL DA CODEVASF.
B6: DATA BASE: | C6: ='Material Sicro'!B2 -> Pernambuco - Julho/2025
C8: RESUMO DO TRANSPORTE AUXILIAR
B9: CODIGO | C9: DESCRIÇÃO | D9: TKM
B10: 5914389 | C10: =VLOOKUP(B10,'SINTÉTICO SICRO'!$A:$D,2,0) -> Transporte com caminhão basculante de 10 m³ - rodovia pavimentada | D10: =ROUND(SUMIF($A:$A,B10,$K:$K),2) -> 13836.55
B11: 5914479 | C11: =VLOOKUP(B11,'SINTÉTICO SICRO'!$A:$D,2,0) -> Transporte com caminhão carroceria de 15 t - rodovia pavimentada | D11: =ROUND(SUMIF($A:$A,B11,$K:$K),2) -> 1851.09
B13: TIPO (P, RP ou LN) | C13: DMT ATÉ 50 KM NÃO DEVE SER PAGA | D13: SOMENTE DEVE SER ADICIONADO A DISTÂNCIA EXCEDENTE A 50 KM
B14: P | D14: 10
B17: SISTEMA DE CUSTOS REFERENCIAIS DE OBRAS - SICRO | I17: Quantitivo
B18: Custo Unitário de Referência | E18: =$C$6 -> Pernambuco - Julho/2025 | I18: (Coeficiente na composição principal) x (quantidade da principal no orçamento) | K18: m³
B19: 1107928 | C19: =VLOOKUP(B19,'SINTÉTICO SICRO'!$A$4:$D$1048576,2,0) -> Concreto fck = 20 MPa - confecção em central dosadora de 30 m³/h - areia e brita comerciais | I19: =('MOMENTO DE TRANSPORTE - PRINC'!$D$33*VLOOKUP(C28,'RESUMO MODULO TOTAL'!$C$10:$L$45,6,0)) -> 672
B20: F - MOMENTO DE TRANSPORTE | D20: Quantidade | E20: Unidade | F20: DMT
F21: LN | G21: RP | H21: P | I21: TIPO (P, RP ou LN) | J21: DMT ESTIMADA (km) | K21: QUANTITATIVO TOTAL DE TRANSPORTE DE MATERIAL (tkm)
A22: =IF(I22="P",H22,IF(I22="RP",G22,IF(I22="LN",F22,""))) -> 5914479 | B22: M0030 | C22: Aditivo plastificante e retardador de pega para concreto e argamassa - Caminhão carroceria 15 t | D22: 0.00082 | E22: tkm | F22: 5914449 | G22: 5914464 | H22: 5914479 | I22: =$B$14 -> P | J22: =D14 -> 10 | K22: =IF(ISBLANK(J22),"",J22*(D22*$I$19)) -> 5.5104
A23: =IF(I23="P",H23,IF(I23="RP",G23,IF(I23="LN",F23,""))) -> 5914389 | B23: M0082 | C23: Areia média lavada - Caminhão basculante 10 m³ | D23: 0.95639 | E23: tkm | F23: 5914359 | G23: 5914374 | H23: 5914389 | I23: =$B$14 -> P | J23: =J22 -> 10 | K23: =IF(ISBLANK(J23),"",J23*(D23*$I$19)) -> 6426.9408
A24: 5914389 | B24: M0191 | C24: Brita 1 - Caminhão basculante 10 m³ | D24: 0.55131 | E24: tkm | F24: 5914359 | G24: 5914374 | H24: 5914389 | I24: P | J24: =J23 -> 10 | K24: =IF(ISBLANK(J24),"",J24*(D24*$I$19)) -> 3704.8032
A25: 5914389 | B25: M0192 | C25: Brita 2 - Caminhão basculante 10 m³ | D25: 0.55131 | E25: tkm | F25: 5914359 | G25: 5914374 | H25: 5914389 | I25: P | J25: =J24 -> 10 | K25: =IF(ISBLANK(J25),"",J25*(D25*$I$19)) -> 3704.8032
A26: 5914479 | B26: M0424 | C26: Cimento Portland CP II - 32 - saco - Caminhão carroceria 15 t | D26: 0.27464 | E26: tkm | F26: 5914449 | G26: 5914464 | H26: 5914479 | I26: P | J26: =J25 -> 10 | K26: =IF(ISBLANK(J26),"",J26*(D26*$I$19)) -> 1845.5808
B28: PRINCIPAL: | C28: 2003943
A30: =IF(I30="P",H30,IF(I30="RP",G30,IF(I30="LN",F30,""))) -> 

Sheet MEDICAO EM TKM
A5: PLANILHA DE MEDIÇAO DE TKM
A6: 5502114 | B6: =VLOOKUP(A6,'SINTÉTICO SICRO'!A:D,2,0) -> Escavação, carga e transporte de material de 1ª categoria - DMT de 1.000 a 1.200 m - caminho de serviço em leito natural - com escavadeira e caminhão basculante de 14 m³
A7: MOMENTO DE TRANSPORTE | D7: Quantidade (tkm) | E7: -
E8: -
A11: 4413942 | B11: =VLOOKUP(A11,'SINTÉTICO SICRO'!A:D,2,0) -> Espalhamento de material em bota-fora
A12: MOMENTO DE TRANSPORTE | D12: Quantidade (tkm) | E12: -
E13: -
A15: 4011219 | B15: =VLOOKUP(A15,'SINTÉTICO SICRO'!A:D,2,0) -> Base de solo estabilizado granulometricamente sem mistura com material de jazida - 100% Proctor modificado
A16: MOMENTO DE TRANSPORTE | C16: Quantidade (tkm) | D16: Área Executada (m2) | E16: =('MC MODULO'!C1*'MC MODULO'!C2)*'MC MODULO'!G1 -> 56000
D17: espessura (m) | E17: 0.15 | F17: =(E16*E17)/'RESUMO MODULO TOTAL'!H28 -> 1
A18: 5914389 | B18: =VLOOKUP(A18,'SINTÉTICO SICRO'!A:D,2,0) -> Transporte com caminhão basculante de 10 m³ - rodovia pavimentada | C18: =ROUND(SUMIF('MOMENTO DE TRANSPORTE - PRINC'!A:A,'MEDICAO EM TKM'!A18,'MOMENTO DE TRANSPORTE - PRINC'!K:K),2) -> 433232.1 | D18: =C18*$F$17 -> 433232.1
A20: 4011209 | B20: =VLOOKUP(A20,'SINTÉTICO SICRO'!A:D,2,0) -> Regularização do subleito - 100% Proctor intermediário
A21: MOMENTO DE TRANSPORTE | D21: Quantidade (tkm)
A25: 5213440 | B25: Placa de regulamentação em aço D = 0,60 m - película retrorrefletiva tipo I + SI - fornecimento e implantação
A26: MOMENTO DE TRANSPORTE | D26: Quantidade (tkm)
A30: 5213464 | B30: =VLOOKUP(A30,'SINTÉTICO SICRO'!A:D,2,0) -> Placa de advertência em aço, lado de 0,60 m - película retrorrefletiva tipo I + SI - fornecimento e implantação
A31: MOMENTO DE TRANSPORTE | D31: Quantidade (tkm)
A35: 5213863 | B35: =VLOOKUP(A35,'SINTÉTICO SICRO'!A:D,2,0) -> Suporte metálico galvanizado para placa de advertência ou regulamentação - lado ou diâmetro de 0,60 m - fornecimento e implantação
A36: MOMENTO DE TRANSPORTE | D36: Quantidade (tkm)
A40: 5213400 | B40: =VLOOKUP(A40,'SINTÉTICO SICRO'!A:D,2,0) -> Pintura de faixa com tinta acrílica - espessura de 0,4 mm
A41: MOMENTO DE TRANSPORTE | D41: Quantidade (tkm)
A45: 2003943 | B45: =VLOOKUP(A45,'SINTÉTICO SICRO'!A:D,2,0) -> Meio-fio de concreto - MFC 03 moldado no local com extrusora e concreto usinado - areia e brita comerciais
A46: MOMENTO DE TRANSPORTE | D46: Quantidade (tkm) | E46: Extensao executada (m)
E47: 16000 | F47: =E47/('MC MODULO'!C1*'MC MODULO'!G1*2) -> 1
A48: 5914569 | B48: =VLOOKUP(A48,'SINTÉTICO SICRO'!A:D,2,0) -> Transporte com caminhão betoneira - rodovia pavimentada | D48: =SUMIF('MOMENTO DE TRANSPORTE - PRINC'!A:A,'MEDICAO EM TKM'!A48,'MOMENTO DE TRANSPORTE - PRINC'!K:K) -> 40320 | E48: =D48*$F$47 -> 40320
A49: 5914479 | B49: =VLOOKUP(A49,'SINTÉTICO SICRO'!A:D,2,0) -> Transporte com caminhão carroceria de 15 t - rodovia pavimentada | D49: =SUMIF('MOMENTO DE TRANSPORTE - AUX'!A:A,'MEDICAO EM TKM'!A49,'MOMENTO DE TRANSPORTE - AUX'!K:K) -> 1851.0912 | E49: =D49*$F$47 -> 1851.0912
A50: 5914389 | B50: =VLOOKUP(A50,'SINTÉTICO SICRO'!A:D,2,0) -> Transporte com caminhão basculante de 10 m³ - rodovia pavimentada | D50: =SUMIF('MOMENTO DE TRANSPORTE - AUX'!A:A,'MEDICAO EM TKM'!A50,'MOMENTO DE TRANSPORTE - AUX'!K:K) -> 13836.5472 | E50: =D50*$F$47 -> 13836.5472
A52: 4915724 | B52: =VLOOKUP(A52,'SINTÉTICO SICRO'!A:D,2,0) -> Caiação mecanizada com fixador de cal
A53: MOMENTO DE TRANSPORTE | D53: Quantidade (tkm)

Sheet MC MODULO
A1: Extensão | B1: = | C1: 2000 | D1: m | F1: QUANTIDADE DE MODULOS | G1: 4
A2: Largura | B2: = | C2: 7 | D2: m
A4: Extensão | B4: = | C4: 2 | D4: km
B6: MOBUILIZAÇÃO
A7: 1 | B7: Implantação da obra
B9: Módulos(un) | D9: Módulos(un)
B10: =G1 -> 4 | C10: = | D10: =B10 -> 4
A12: 2 | B12: Administração da obra
B14: Módulos(un) | D14: Módulos(un)
B15: =G1 -> 4 | C15: = | D15: =B15 -> 4
A17: 3 | B17: Canteiro de Obras e Almoxarifado
B19: Módulos(un) | D19: Módulos(un)
B20: =G1 -> 4 | C20: = | D20: =B20 -> 4
A22: 4 | B22: Placa de Obra em Chapa de Aço Galvanizado
B24: Módulos(un) | C24: Comprimento(m) | D24: Largura (m) | H24: Total de Area de placa (m²)
B25: =G1 -> 4 | C25: 2 | D25: 4 | H25: =C25*D25*B25 -> 32
B27: TERRAPLENAGEM
A29: 5 | B29: serviços topográficos para pavimentação, inclusive notas de serviços, acompanhamento e greide
B31: Extensão (m) | D31: Largura (m) | H31: area (m2)
B32: =C1*$G$1 -> 8000 | C32: x | D32: =$C$2 -> 7 | G32: = | H32: =B32*D32 -> 56000
A34: 6 | B34: Escavação, carga e transporte de material de 1ª categoria - DMT de 1.000 a 1.200 m - caminho de serviço em leito natural - com escavadeira e caminhão basculante de 14 m³
B36: Extensão (m) | D36: Largura (m) | F36: Espessura (m) | H36: Volume (m3)
B37: =C1*$G$1 -> 8000 | C37: x | D37: =$C$2 -> 7 | E37: x | F37: =0.15+0.08+0.04 -> 0.27 | G37: = | H37: =B37*D37*F37 -> 15120
A41: 7 | B41: Espalhamento de material em bota-fora
B43: Extensão (m) | D43: Largura (m) | F43: Espessura (m) | H43: Volume (m3)
B44: =C1*$G$1 -> 8000 | C44: x | D44: =$C$2 -> 7 | E44: x | F44: 0.27 | G44: = | H44: =B44*D44*F44 -> 15120
B46: PAVIMENTAÇÃO
A48: 8 | B48: Execução de Pavimento em Piso Intertravado
B50: Extensão (m) | C50: Largura (m) | H50: area (m2)
B51: =$C$1*G1 -> 8000 | C51: =$C$2 -> 7 | G51: = | H51: =C51*B51 -> 56000
A53: 8 | B53: Transporte com cavalo mecânico com semirreboque com capacidade de 30 t - rodovia pavimentada
B55: Dimensoes (m³) | C55: Densidade bloco Intertravado (t/m³) | D55: Peso total (t) | E55: Distancia (km) | H55: TKM
B56: =H51*0.08 -> 4480 | C56: 2.2 | D56: =C56*B56 -> 9856 | E56: 100 | G56: = | H56: =D56*E56 -> 985600
A59: 8 | B59: Carga, manobra e descarga de materiais diversos em caminhão carroceria com capacidade de 7 t e com guindauto de 20 t.m
B61: Dimensoes (m³) | C61: Densidade bloco Intertravado (t/m³) | D61: Peso total (t) | H61: TKM
B62: =H51*0.08 -> 4480 | C62: 2.2 | D62: =C62*B62 -> 9856 | G62: = | H62: =D62 -> 9856
A65: 8 | B65: TRANSPORTE COM CAMINHÃO BASCULANTE DE 10 M³, EM VIA URBANA PAVIMENTADA , DMT ATÉ 30 KM (UNIDADE: TXKM). AF_07/2020 (areia)
B67: Area | C67: Densidade areia (t/m³) | D67: Peso total (t) | E67: Distancia (km) | H67: TKM
B68: =H51 -> 56000 | C68: 1.5 | D68: =B68*C68*0.04 -> 3360 | E68: 50 | G68: = | H68: =D68*E68 -> 168000
A70: 8 | B70: TRANSPORTE COM CAMINHÃO BASCULANTE DE 10 M³, EM VIA URBANA PAVIMENTADA , DMT ATÉ 30 KM (UNIDADE: TXKM). AF_07/2020 (PO DE PEDRA)
D71: 0.009
B72: Area | C72: Densidade pó de pedra (t/m³) | D72: Quantidade total de pó de pedra (m³) | E72: Peso total (t) | F72: Distancia (km) | H72: TKM
B73: =H51 -> 56000 | C73: 1.5 | D73: =B73*D71 -> 504 | E73: =D73*C73 -> 756 | F73: 70 | G73: = | H73: =E73*F73 -> 52920
A75: 9 | B75: Base ou sub-base de solo estabilizado com material de jazida
B77: Extensão (m) | D77: Largura (m) | F77: Espessura (m) | H77: Volume (m3)
B78: =C1*$G$1 -> 8000 | C78: x | D78: =$C$2 -> 7 | E78: x | F78: 0.15 | G78: = | H78: =B78*D78*F78 -> 8400
A80: 10 | B80: Regularização do subleito
B82: Extensão (m) | D82: Largura (m) | H82: area (m2)
B83: =C1*$G$1 -> 8000 | C83: x | D83: =$C$2 -> 7 | G83: = | H83: =B83*D83 -> 56000
B85: SINALIZAÇÃO
A87: 11 | B87: Fornecimento e implantação de placa de regulamentação em aço D = 0,60 m - película retrorrefletiva tipo I + SI
B89: Extensão (km) | D89: Quant. (un) | H89: Quant. (un)
B90: =$C$4*$G$1 -> 8 | C90: x | D90: 3 | G90: = | H90: =B90*D90 -> 24
A92: 11 | B92: Fornecimento e implantação de placa de advertencia
B94: Extensão (km) | D94: Quant. (un) | H94: Quant. (un)
B95: =$C$4*$G$1 -> 8 | C95: x | D95: 3 | G95: = | H95: =B95*D95 -> 24
A98: 12 | B98: Fornecimento e implantação de suporte metálico galvanizado para placa de regulamentação - D = 0,60 m
B100: Extensão (km) | D100: Quant. (un) | H100: Quant. (un)
B101: =$C$4*$G$1 -> 8 | C101: x | D101: 0.5 | G101: = | H101: =H95+H90 -> 48
A103: 13 | B103: Pintura de faixa com tinta acrílica - espessura de 0,4 mm (bordos)
B105: Extensão (m) | D105: Largura (m) | H105: Quant. (m²)
B106: =C1*G1 -> 8000 | C106: x | D106: 0.1 | G106: = | H106: =B106*D106*2 -> 1600
B108: Pintura de faixa com tinta acrílica - espessura de 0,4 mm (faixa central)
H110: Quant. (m²)
H111: =B106*D106 -> 800
B114: DRENAGEM
A115: 14 | B115: Meio-fio de concreto - MFC 03 moldado no local com extrusora e concreto usinado - areia e brita comerciais
B117: Extensão (m) | D117: Quant. (un) | H117: Extensão(m)
B118: =$C$1*$G$1 -> 8000 | C118: x | D118: 2 | G118: = | H118: =B118*D118 -> 16000
A120: 19 | B120: Caiação mecanizada com fixador de cal
B122: Extensão (m) | D122: Perimetro (m) | H122: Area (m²)
B123: =$C$1*$G$1 -> 8000 | C123: x | D123: =0.24 -> 0.24 | G123: = | H123: =B123*D123 -> 1920
B126: SERVIÇOS COMPLEMENTARES
A127: 15
B129: Extensão (m) | D129: Largura (m) | G129: 0.1 | H129: extensão (m)
B130: =$C$1*G1 -> 8000 | C130: x | D130: 1 | E130: x | G130: = | H130: =G129*B130 -> 800
B133: PROJETO EXECUTIVO
A134: 16 | B134: Projeto Executivo
B136: Extensão (m) | D136: Largura (m) | F136: Quant. (un) | H136: Área (m²)
B137: =$C$1*G1 -> 8000 | C137: x | D137: =C2 -> 7 | E137: x | F137: 1 | G137: = | H137: =B137*D137 -> 56000
B139: CONTROLE TECNOLOGICO - OBRA
A140: 17 | B140: Projeto Executivo
B142: Extensão (m) | D142: Largura (m) | F142: Quant. (un) | H142: meses
G143: = | H143: =0.5*G1 -> 2

Sheet Curva ABC
B1: CURVA ABC
B2: Item | C2: Descrição | D2: Total R$ | E2: % individual | F2: % acumul. | G2: Classe | I2: Onde: | J2: A <= | K2: 0.75
A3: 5.1 | B3: =VLOOKUP(A3,'RESUMO MODULO TOTAL'!B16:L53,1,0) -> 5.1 | C3: =VLOOKUP(B3,'RESUMO MODULO TOTAL'!B16:L53,4,0) -> bloquete/piso intertravado de concreto - modelo onda/16 faces/retangular/t ijolinho/paver/holandes/paralelepipedo, *22 cm x 11* cm, e = 8 cm, resistencia de 35 mpa (nbr 9781), cor natural | D3: =VLOOKUP(B3,'RESUMO MODULO TOTAL'!B16:L53,11,0) -> 3879456 | E3: =D3/$D$29 -> 0.4231086355 | F3: =E3 -> 0.4231086355 | G3: =IF(F3<=$K$2,"A",IF(AND(F3<=$L$3,F3>$J$3),"B",IF(F3>$K$4,"C"))) -> A | J3: 0.75 | K3: < B <= | L3: 0.95
A4: 5.2 | B4: =VLOOKUP(A4,'RESUMO MODULO TOTAL'!B17:L54,1,0) -> 5.2 | C4: =VLOOKUP(B4,'RESUMO MODULO TOTAL'!B17:L54,4,0) -> execução de pavimento em piso intertravado, com bloco 16 faces de 22 x 11 cm, espessura 8 cm. af_10/2022 - exclusive fornecimento de bloquete | D4: =VLOOKUP(B4,'RESUMO MODULO TOTAL'!B17:L54,11,0) -> 1410640 | E4: 0.1538499124 | F4: =F3+E4 -> 0.5769585479 | G4: =IF(F4<=$K$2,"A",IF(AND(F4<=$L$3,F4>$J$3),"B",IF(F4>$K$4,"C"))) -> A | J4: C > | K4: 0.95
A5: 3.1 | B5: =VLOOKUP(A5,'RESUMO MODULO TOTAL'!B13:L50,1,0) -> 3.1 | C5: =VLOOKUP(B5,'RESUMO MODULO TOTAL'!B13:L50,4,0) -> Administração Local da Obra | D5: =VLOOKUP(B5,'RESUMO MODULO TOTAL'!B13:L50,11,0) -> 739908.03 | E5: 0.08069726193 | F5: 0.6576558098 | G5: A
A6: 5.3 | B6: =VLOOKUP(A6,'RESUMO MODULO TOTAL'!B18:L55,1,0) -> 5.3 | C6: =VLOOKUP(B6,'RESUMO MODULO TOTAL'!B18:L55,4,0) -> Transporte com cavalo mecânico com semirreboque com capacidade de 30 t - rodovia pavimentada | D6: =VLOOKUP(B6,'RESUMO MODULO TOTAL'!B18:L55,11,0) -> 699776 | E6: 0.07632030587 | F6: 0.7339761157 | G6: A
A7: 7.1 | B7: =VLOOKUP(A7,'RESUMO MODULO TOTAL'!B28:L65,1,0) -> 7.1 | C7: =VLOOKUP(B7,'RESUMO MODULO TOTAL'!B28:L65,4,0) -> Meio-fio de concreto - MFC 03 moldado no local com extrusora e concreto usinado - areia e brita comerciais | D7: =VLOOKUP(B7,'RESUMO MODULO TOTAL'!B28:L65,11,0) -> 525280 | E7: 0.05728909003 | F7: 0.7912652057 | G7: B
A8: 10.1 | B8: =VLOOKUP(A8,'RESUMO MODULO TOTAL'!B32:L69,1,0) -> 10.1 | C8: =VLOOKUP(B8,'RESUMO MODULO TOTAL'!B32:L69,4,0) -> Transporte com caminhão basculante de 10 m³ - rodovia pavimentada | D8: =VLOOKUP(B8,'RESUMO MODULO TOTAL'!B32:L69,11,0) -> 451539.33 | E8: 0.04924664432 | F8: 0.84051185 | G8: B
A9: 5.4 | B9: =VLOOKUP(A9,'RESUMO MODULO TOTAL'!B19:L56,1,0) -> 5.4 | C9: =VLOOKUP(B9,'RESUMO MODULO TOTAL'!B19:L56,4,0) -> Carga, manobra e descarga de materiais diversos em caminhão carroceria com capacidade de 7 t e com guindauto de 20 t.m | D9: =VLOOKUP(B9,'RESUMO MODULO TOTAL'!B19:L56,11,0) -> 226885.12 | E9: 0.02474497804 | F9: 0.8652568281 | G9: B
A10: 5.7 | B10: =VLOOKUP(A10,'RESUMO MODULO TOTAL'!B22:L59,1,0) -> 5.7 | C10: =VLOOKUP(B10,'RESUMO MODULO TOTAL'!B22:L59,4,0) -> Base estabilizada granulometricamente com mistura de solos na pista com material de jazida - 100% Proctor modificado | D10: =VLOOKUP(B10,'RESUMO MODULO TOTAL'!B22:L59,11,0) -> 180936 | E10: 0.01973358741 | F10: 0.8849904155 | G10: B
A11: 9.1 | B11: =VLOOKUP(A11,'RESUMO MODULO TOTAL'!B31:L68,1,0) -> 9.1 | C11: =VLOOKUP(B11,'RESUMO MODULO TOTAL'!B31:L68,4,0) -> Projeto Executivo | D11: =VLOOKUP(B11,'RESUMO MODULO TOTAL'!B31:L68,11,0) -> 175840 | E11: 0.01917779773 | F11: 0.9041682132 | G11: B
A12: 4.1 | B12: =VLOOKUP(A12,'RESUMO MODULO TOTAL'!B14:L51,1,0) -> 4.1 | C12: =VLOOKUP(B12,'RESUMO MODULO TOTAL'!B14:L51,4,0) -> Escavação, carga e transporte de material de 1ª categoria - DMT de 1.000 a 1.200 m - caminho de serviço em leito natural - com escavadeira e caminhão basculante de 14 m³ | D12: =VLOOKUP(B12,'RESUMO MODULO TOTAL'!B14:L51,11,0) -> 157550.4 | E12: 0.01718306246 | F12: 0.9213512757 | G12: B
A13: 5.5 | B13: =VLOOKUP(A13,'RESUMO MODULO TOTAL'!B20:L57,1,0) -> 5.5 | C13: =VLOOKUP(B13,'RESUMO MODULO TOTAL'!B20:L57,4,0) -> Transporte com caminhão basculante de 14 m³ - rodovia pavimentada (areia) | D13: =VLOOKUP(B13,'RESUMO MODULO TOTAL'!B20:L57,11,0) -> 139440 | E13: 0.01520787145 | F13: 0.9365591471 | G13: B
A14: 5.8 | B14: =VLOOKUP(A14,'RESUMO MODULO TOTAL'!B23:L60,1,0) -> 5.8 | C14: =VLOOKUP(B14,'RESUMO MODULO TOTAL'!B23:L60,4,0) -> Regularização do subleito - 100% Proctor intermediário | D14: =VLOOKUP(B14,'RESUMO MODULO TOTAL'!B23:L60,11,0) -> 124320 | E14: 0.01355882515 | F14: 0.9501179722 | G14: C
A15: 2.1 | B15: =VLOOKUP(A15,'RESUMO MODULO TOTAL'!B11:L48,1,0) -> 2.1 | C15: =VLOOKUP(B15,'RESUMO MODULO TOTAL'!B11:L48,4,0) -> Canteiro de Obras | D15: =VLOOKUP(B15,'RESUMO MODULO TOTAL'!B11:L48,11,0) -> 8697.8 | E15: 0.0009486160662 | F15: 0.9510665883 | G15: C
A16: 1.1 | B16: =VLOOKUP(A16,'RESUMO MODULO TOTAL'!B9:L46,1,0) -> 1.1 | C16: =VLOOKUP(B16,'RESUMO MODULO TOTAL'!B9:L46,4,0) -> Mobilização | D16: =VLOOKUP(B16,'RESUMO MODULO TOTAL'!B9:L46,11,0) -> 82152 | E16: 0.008959818238 | F16: =F15+E16 -> 0.9600264066 | G16: C
A17: 1.2 | B17: =VLOOKUP(A17,'RESUMO MODULO TOTAL'!B10:L47,1,0) -> 1.2 | C17: =VLOOKUP(B17,'RESUMO MODULO TOTAL'!B10:L47,4,0) -> Desmobilização | D17: =VLOOKUP(B17,'RESUMO MODULO TOTAL'!B10:L47,11,0) -> 82152 | E17: 0.008959818238 | F17: 0.9689862248 | G17: C
A18: 6.4 | B18: =VLOOKUP(A18,'RESUMO MODULO TOTAL'!B27:L64,1,0) -> 6.4 | C18: =VLOOKUP(B18,'RESUMO MODULO TOTAL'!B27:L64,4,0) -> Pintura de faixa com tinta acrílica - espessura de 0,4 mm | D18: =VLOOKUP(B18,'RESUMO MODULO TOTAL'!B27:L64,11,0) -> 62304 | E18: 0.006795117776 | F18: 0.9757813426 | G18: C
A19: 4.2 | B19: =VLOOKUP(A19,'RESUMO MODULO TOTAL'!B15:L52,1,0) -> 4.2 | C19: =VLOOKUP(B19,'RESUMO MODULO TOTAL'!B15:L52,4,0) -> Espalhamento de material em bota-fora | D19: =VLOOKUP(B19,'RESUMO MODULO TOTAL'!B15:L52,11,0) -> 50803.2 | E19: 0.005540795573 | F19: 0.9813221381 | G19: C
A20: 5.6 | B20: =VLOOKUP(A20,'RESUMO MODULO TOTAL'!B21:L58,1,0) -> 5.6 | C20: =VLOOKUP(B20,'RESUMO MODULO TOTAL'!B21:L58,4,0) -> Transporte com caminhão basculante de 14 m³ - rodovia pavimentada (pó de pedra) | D20: =VLOOKUP(B20,'RESUMO MODULO TOTAL'!B21:L58,11,0) -> 43923.6 | E20: 0.004790479506 | F20: 0.9861126176 | G20: C
A21: 10.3 | B21: =VLOOKUP(A21,'RESUMO MODULO TOTAL'!B34:L71,1,0) -> 10.3 | C21: =VLOOKUP(B21,'RESUMO MODULO TOTAL'!B34:L71,4,0) -> Transporte com caminhão betoneira - rodovia pavimentada | D21: =VLOOKUP(B21,'RESUMO MODULO TOTAL'!B34:L71,11,0) -> 39110.4 | E21: 0.0042655331 | F21: 0.9903781507 | G21: C
A22: 6.3 | B22: =VLOOKUP(A22,'RESUMO MODULO TOTAL'!B26:L63,1,0) -> 6.3 | C22: =VLOOKUP(B22,'RESUMO MODULO TOTAL'!B26:L63,4,0) -> Suporte metálico galvanizado para placa de advertência ou regulamentação - lado ou diâmetro de 0,60 m - fornecimento e implantação | D22: =VLOOKUP(B22,'RESUMO MODULO TOTAL'!B26:L63,11,0) -> 28530.24 | E22: 0.003111619494 | F22: 0.9934897702 | G22: C
A23: 2.2 | B23: =VLOOKUP(A23,'RESUMO MODULO TOTAL'!B12:L49,1,0) -> 2.2 | C23: =VLOOKUP(B23,'RESUMO MODULO TOTAL'!B12:L49,4,0) -> Fornecimento e instalação de placa de obra com chapa galvanizada e estrutura de madeira. af_03/2022_ps | D23: =VLOOKUP(B23,'RESUMO MODULO TOTAL'!B12:L49,11,0) -> 18485.12 | E23: 0.002016059442 | F23: 0.9955058297 | G23: C
A24: 8.1 | B24: =VLOOKUP(A24,'RESUMO MODULO TOTAL'!B30:L67,1,0) -> 8.1 | C24: =VLOOKUP(B24,'RESUMO MODULO TOTAL'!B30:L67,4,0) -> Conserto de quebra no ramal na rua sem pavimento com fornecimento de material hidráulico | D24: =VLOOKUP(B24,'RESUMO MODULO TOTAL'!B30:L67,11,0) -> 17400 | E24: 0.001897712014 | F24: 0.9974035417 | G24: C
A25: 6.2 | B25: =VLOOKUP(A25,'RESUMO MODULO TOTAL'!B25:L62,1,0) -> 6.2 | C25: =VLOOKUP(B25,'RESUMO MODULO TOTAL'!B25:L62,4,0) -> Placa de advertência em aço, lado de 0,60 m - película retrorrefletiva tipo I + SI - fornecimento e implantação | D25: =VLOOKUP(B25,'RESUMO MODULO TOTAL'!B25:L62,11,0) -> 8576.16 | E25: 0.0009353495324 | F25: 0.9983388912 | G25: C
A26: 6.1 | B26: =VLOOKUP(A26,'RESUMO MODULO TOTAL'!B24:L61,1,0) -> 6.1 | C26: =VLOOKUP(B26,'RESUMO MODULO TOTAL'!B24:L61,4,0) -> Placa de regulamentação em aço D = 0,60 m - película retrorrefletiva tipo I + SI - fornecimento e implantação | D26: =VLOOKUP(B26,'RESUMO MODULO TOTAL'!B24:L61,11,0) -> 8575.2 | E26: 0.000935244831 | F26: 0.9992741361 | G26: C
A27: 7.2 | B27: =VLOOKUP(A27,'RESUMO MODULO TOTAL'!B29:L66,1,0) -> 7.2 | C27: =VLOOKUP(B27,'RESUMO MODULO TOTAL'!B29:L66,4,0) -> Caiação mecanizada com fixador de cal | D27: =VLOOKUP(B27,'RESUMO MODULO TOTAL'!B29:L66,11,0) -> 5030.4 | E27: 0.000548635087 | F27: 0.9998227711 | G27: C
A28: 10.2 | B28: =VLOOKUP(A28,'RESUMO MODULO TOTAL'!B33:L70,1,0) -> 10.2 | C28: =VLOOKUP(B28,'RESUMO MODULO TOTAL'!B33:L70,4,0) -> Transporte com caminhão carroceria de 15 t - rodovia pavimentada | D28: =VLOOKUP(B28,'RESUMO MODULO TOTAL'!B33:L70,11,0) -> 1628.96 | E28: 0.0001776607449 | F28: 1.000000432 | G28: C
C29: Total | D29: =TRUNC(SUM(D3:D28),2)-3.96 -> 9168936

Sheet Material Sicro
A1: CGCIT | B1: SISTEMA DE CUSTOS REFERENCIAIS DE OBRAS - SICRO | D1: DNIT
B2: Pernambuco - Julho/2025
A3: Código | B3: Descrição | C3: Unidade | D3: Preço Unitário (R$)
A4: M0003 | B4: Aço CA 25 | C4: kg | D4: 7.0218
A5: M0004 | B5: Aço CA 50 | C5: kg | D5: 6.9663
A6: M0005 | B6: Brita 0 | C6: m³ | D6: 138.9705
A7: M0006 | B7: Fibra de poliamida para concreto | C7: kg | D7: 27.9744
A8: M0007 | B8: Fibra de aço para concreto | C8: kg | D8: 17.3067
A9: M0008 | B9: Detergente líquido neutro | C9: l | D9: 4.1862
A10: M0009 | B10: Aço CP 175 RB | C10: kg | D10: 9.8287
A11: M0010 | B11: Aditivo superplastificante para concreto e argamassa | C11: kg | D11: 17.1507
A12: M0011 | B12: Aditivo modificador de viscosidade para concreto e argamassa | C12: kg | D12: 9.7254
A13: M0012 | B13: Silicato de alumínio | C13: kg | D13: 2.3302
A14: M0013 | B14: Grampo de ancoragem em aço CA 50 - D = 12,5 mm | C14: kg | D14: 7.086
A15: M0014 | B15: Aço CA 60 | C15: kg | D15: 8.3701
A16: M0015 | B16: Espoleta elétrica Nº 8 - D = 6,0 mm | C16: un | D16: 19.296
A17: M0016 | B17: Grampo sargento em ferro fundido tipo C com abertura útil de 105 mm (4") | C17: un | D17: 42.8876
A18: M0017 | B18: Saco de aniagem ou de ráfia de 50 kg - C = 95 cm e L = 65 cm | C18: un | D18: 2.6656
A19: M0018 | B19: Grampo pesado em aço-carbono para cabo de aço - D = 13 mm (1/2") | C19: un | D19: 20.1058
A20: M0019 | B20: Esticador em aço tipo olhal x olhal para cabo de aço - D = 13 mm | C20: un | D20: 142.3697
A21: M0020 | B21: Grampo de ancoragem em aço CA 50 - D = 6,3 mm | C21: kg | D21: 7.519
A22: M0021 | B22: Herbicida glifosato para áreas contínuas | C22: l | D22: 31.2534
A23: M0025 | B23: Adesivo plástico para tubos de PVC | C23: kg | D23: 48.3125
A24: M0026 | B24: Aditivo aglutinante para argamassa | C24: l | D24: 7.8411
A25: M0028 | B25: Areia média | C25: m³ | D25: 117.6511
A26: M0029 | B26: Sílica ativa para concreto e argamassa (microssílica) | C26: kg | D26: 2.2472
A27: M0030 | B27: Aditivo plastificante e retardador de pega para concreto e argamassa | C27: kg | D27: 7.2341
A28: M0032 | B28: Adesivo de contato para laminado elastoplástico | C28: kg | D28: 46.2214
A29: M0035 | B29: Diluente tipo aguarrás para tintas e vernizes | C29: l | D29: 15.2
A30: M0039 | B30: Gasolina comum | C30: l | D30: 5.3011
A31: M0041 | B31: Contêiner com 2 banheiros - L = 2,44 m e C = 6,09 m (1 TEU) | C31: un | D31: 103786.1238
A32: M0042 | B32: Contêiner com janela - L = 2,44 m e C = 6,09 m (1 TEU) | C32: un | D32: 44107.0266
A33: M0043 | B33: Óleo diesel | C33: l | D33: 5.2156
A34: M0044 | B34: Abrasivo de vidro com granulometria de 210 a 420 micra | C34: kg | D34: 10.9152
A35: M0045 | B35: Barreira plástica monobloco para canalização de trânsito - C = 100 cm, L = 50 cm e H = 55 cm | C35: un | D35: 446.2251
A36: M0046 | B36: Barreira plástica para canalização de trânsito - C = 60 cm, L = 45 cm e H = 60 cm | C36: un | D36: 313.2111
A37: M0047 | B37: Cone de sinalização em polietileno - H = 75 cm e base quadrada de 40 x 40 cm | C37: un | D37: 95.6171
A38: M0048 | B38: Balizador cônico refletivo em polietileno semiflexível - H = 114 cm e base octogonal de D = 40 cm | C38: un | D38: 156.4481
A39: M0049 | B39: Delimitador de tráfego flexível com chumbador e duas faixas refletivas - H = 77 cm e D = 21 cm | C39: un | D39: 168.7576
A40: M0050 | B40: Aditivo natural tipo goma xantana para hidrossemeadura | C40: kg | D40: 78.9656
A41: M0051 | B41: Cilindro canalizador de tráfego em polietileno - H = 117 cm e base quadrada de 60 x 60 cm | C41: un | D41: 188.6198
A42: M0052 | B42: Fita adesiva de PVC - L = 50 mm e C = 50 m | C42: m | D42: 0.1157
A43: M0053 | B43: Tela plástica em polipropileno na cor laranja para tapume - L = 1,2 m | C43: m | D43: 1.7977
A44: M0054 | B44: Fita zebrada de cor laranja e branca - L = 7 a 8 cm | C44: m | D44: 0.0745
A45: M0055 | B45: Barreira plástica articulável modular - C = 240 cm e H = 100 cm | C45: un | D45: 1329.9706
A46: M0056 | B46: Ferramenta de corte para removedora de faixa de sinalização (Smith Cutter) | C46: un | D46: 7565.0238
A47: M0057 | B47: Contêiner com janela - L = 4,88 m e C = 6,09 m (1 TEU duplo) | C47: un | D47: 151404.2477
A48: M0058 | B48: Contêiner com janela e 2 banheiros - L = 4,88 m e C = 6,09 m (1 TEU duplo) | C48: un | D48: 156419.2477
A49: M0059 | B49: Contêiner com revestimento térmico, janela e banheiro - L = 2,44 m e C = 6,09 m (1 TEU) | C49: un | D49: 64066.7266
A50: M0060 | B50: Contêiner com janela - L = 2,44 m e C = 4,58 m (3/4 TEU) | C50: un | D50: 65170.6238
A51: M0065 | B51: Contêiner com janela e banheiro - L = 2,44 m e 4,58 m (3/4 TEU) | C51: un | D51: 83224.6238
A52: M0066 | B52: Contêiner com revestimento térmico, janela e banheiro - L = 2,44 m e C = 12,90 m (2 TEU) | C52: un | D52: 142878.7477
A53: M0067 | B53: Tubo PEAD PE 100 PN 10 com flanges - D = 160 mm | C53: m | D53: 148.1198
A54: M0068 | B54: Caibro de pinho - L = 7,5 cm e E = 10,0 cm | C54: m | D54: 27.3336
A55: M0069 | B55: Arame farpado em aço galvanizado - D = 1,60 mm | C55: m | D55: 0.7669
A56: M0071 | B56: Contêiner com 3 janelas para guarita - L = 2,44 m e C = 3,05 m (1/2 TEU) | C56: un | D56: 51647.6588
A57: M0072 | B57: Arame liso em aço galvanizado - D = 2,10 mm (14 BWG) | C57: kg | D57: 16.3464
A58: M0073 | B58: Muda de árvore com altura de 0,30 a 0,80 m | C58: un | D58: 20.0228
A59: M0074 | B59: Muda de arbusto com altura até 0,50 m | C59: un | D59: 21.8355
A60: M0075 | B60: Arame liso recozido em aço-carbono - D = 1,24 mm (18 BWG) | C60: kg | D60: 14.3172
A61: M0076 | B61: Disco de corte abrasivo para policorte - D = 300 mm | C61: un | D61: 21.1704
A62: M0080 | B62: Areia fina | C62: m³ | D62: 127.6477
A63: M0081 | B63: Areia grossa | C63: m³ | D63: 110.6602
A64: M0082 | B64: Areia média lavada | C64: m³ | D64: 122.8441
A65: M0083 | B65: Argamassa pré-dosada para grauteamento | C65: kg | D65: 1.8404
A66: M0084 | B66: Argamassa pré-dosada autoadensável para grauteamento | C66: kg | D66: 2.0044
A67: M0085 | B67: Ancoragem ativa para 4 cordoalhas - D = 12,7 mm | C67: un | D67: 382.2734
A68: M0086 | B68: Ancoragem ativa para 6 cordoalhas - D = 12,7 mm | C68: un | D68: 494.5313
A69: M0087 | B69: Ancoragem ativa para 7 cordoalhas - D = 12,7 mm | C69: un | D69: 571.2709
A70: M0088 | B70: Ancoragem ativa para 8 cordoalhas - D = 12,7 mm | C70: un | D70: 740.3702
A71: M0089 | B71: Ancoragem ativa para 9 cordoalhas - D = 12,7 mm | C71: un | D71: 753.9774
A72: M0091 | B72: Ancoragem ativa para 10 cordoalhas - D = 12,7 mm | C72: un | D72: 837.7345
A73: M0092 | B73: Ancoragem ativa para 12 cordoalhas - D = 12,7 mm | C73: un | D73: 1007.781
A74: M0093 | B74: Ancoragem ativa para 15 cordoalhas - D = 12,7 mm | C74: un | D74: 1469.2127
A75: M0094 | B75: Ancoragem ativa para 19 cordoalhas - D = 12,7 mm | C75: un | D75: 1867.6567
A76: M0098 | B76: Bambu com diâmetro médio de 10 cm | C76: m | D76: 25.6278
A77: M0099 | B77: Equipamentos para a fábrica de dormentes de concreto protendido | C77: ISF | D77: 584.689
A78: M0100 | B78: Ancoragem ativa para 22 cordoalhas - D = 12,7 mm | C78: un | D78: 2418.5497
A79: M0101 | B79: Ancoragem ativa para 27 cordoalhas - D = 12,7 mm | C79: un | D79: 2957.1492
A80: M0102 | B80: Ancoragem ativa para 31 cordoalhas - D = 12,7 mm | C80: un | D80: 3006.4768
A81: M0103 | B81: Aditivo acelerador de pega para concreto e argamassa projetados | C81: kg | D81: 8.0328
A82: M0104 | B82: Asfalto diluído de petróleo - CM-30 | C82: t | D82: -
A83: M0105 | B83: Ancoragem ativa para 4 cordoalhas - D = 15,2 mm | C83: un | D83: 540.4051
A84: M0106 | B84: Ancoragem ativa para 6 cordoalhas - D = 15,2 mm | C84: un | D84: 631.1048
A85: M0107 | B85: Geocomposto para drenagem | C85: m² | D85: 49.1336
A86: M0108 | B86: Ancoragem ativa para 7 cordoalhas - D = 15,2 mm | C86: un | D86: 713.3385
A87: M0109 | B87: Geodreno vertical - L = 10 cm e E = 5 mm | C87: m | D87: 5.18
A88: M0110 | B88: Ancoragem ativa para 10 cordoalhas - D = 15,2 mm | C88: un | D88: 1146.8485
A89: M0111 | B89: Ancoragem ativa para 9 cordoalhas - D = 15,2 mm | C89: un | D89: 1022.2959
A90: M0112 | B90: Disco diamantado segmentado para corte de pavimento - D = 1.000 mm | C90: un | D90: 5881.0094
A91: M0113 | B91: Ancoragem ativa para 12 cordoalhas - D = 15,2 mm | C91: un | D91: 1346.3449
A92: M0114 | B92: Disco diamantado segmentado para corte de pavimento - D = 1.500 mm | C92: un | D92: 26165.5192
A93: M0115 | B93: Biomanta vegetal de fibras de coco entrelaçadas com fios de polipropileno biodegradáveis - densidade 0,4 kg/m² | C93: m² | D93: 6.5
A94: M0116 | B94: Mangote flangeado de borracha reforçada com lonas sintéticas - C = 1,80 m e D = 0,30 m | C94: un | D94: 10553.2994
A95: M0117 | B95: Mangote flangeado de borracha reforçada com lonas sintéticas - C = 1,80 m e D = 0,40 m | C95: un | D95: 18254.3499
A96: M0118 | B96: Mangote flangeado de borracha reforçada com lonas sintéticas - C = 1,80 m e D = 0,45 m | C96: un | D96: 25385.7412
A97: M0119 | B97: Mangote flangeado de borracha reforçada com lonas sintéticas - C = 1,80 m e D = 0,50 m | C97: un | D97: 30032.4914
A98: M0120 | B98: Tubo PEAD PE 100 PN 8 com flanges - D = 250 mm | C98: m | D98: 327.2932
A99: M0121 | B99: Tubo PEAD PE 100 PN 8 com flanges - D = 400 mm | C99: m | D99: 2101.6061
A100: M0122 | B100: Tubo PEAD PE 100 PN 8 com flanges - D = 450 mm | C100: m | D100: 2639.6739
A101: M0123 | B101: Tubo PEAD PE 100 PN 8 com flanges - D = 500 mm | C101: m | D101: 2955.7661
A102: M0124 | B102: Flutuador bipartido em polietileno com núcleo de espuma em poliuretano para tubos - D = 0,30 m | C102: un | D102: 4822.9262
A103: M0125 | B103: Flutuador bipartido em polietileno com núcleo de espuma em poliuretano para tubos - D = 0,40 m | C103: un | D103: 6670.5245
A104: M0126 | B104: Flutuador bipartido em polietileno com núcleo de espuma em poliuretano para tubos - D = 0,45 m | C104: un | D104: 7674.1143
A105: M0127 | B105: Flutuador bipartido em polietileno com núcleo de espuma em poliuretano para tubos - D = 0,50 m | C105: un | D105: 8277.834
A106: M0128 | B106: Biomanta vegetal de fibras de palha entrelaçadas com fios de polipropileno biodegradáveis - densidade 0,6 kg/m² | C106: m² | D106: 5.9
A107: M0129 | B107: Retentor de sedimento em fibras vegetais - D = 20 cm | C107: m | D107: 66.6705
A108: M0130 | B108: Ancoragem ativa para 15 cordoalhas - D = 15,2 mm | C108: un | D108: 1788.2297
A109: M0131 | B109: Tubo PEAD corrugado com paredes estruturadas para drenagem - D = 400 mm | C109: m | D109: 246.9697
A110: M0132 | B110: Tubo PEAD corrugado com paredes estruturadas para drenagem - D = 450 mm | C110: m | D110: 310.5792
A111: M0133 | B111: Tubo PEAD corrugado com paredes estruturadas para drenagem - D = 500 mm | C111: m | D111: 406.7149
A112: M0134 | B112: Tubo PEAD corrugado com paredes estruturadas para drenagem - D = 600 mm | C112: m | D112: 592.7835
A113: M0135 | B113: Tubo PEAD corrugado com paredes estruturadas para drenagem - D = 750 mm | C113: m | D113: 839.045
A114: M0136 | B114: Tubo PEAD corrugado com paredes estruturadas para drenagem - D = 800 mm | C114: m | D114: 884.3345
A115: M0137 | B115: Tubo PEAD corrugado com paredes estruturadas para drenagem - D = 900 mm | C115: m | D115: 1160.796
A116: M0138 | B116: Ancoragem ativa para 19 cordoalhas - D = 15,2 mm | C116: un | D116: 2335.7087
A117: M0139 | B117: Tubo PEAD corrugado com paredes estruturadas para drenagem - D = 1.000 mm | C117: m | D117: 1552.417
A118: M0140 | B118: Bentonita | C118: kg | D118: 3.2111
A119: M0141 | B119: Tubo PEAD corrugado com paredes estruturadas para drenagem - D = 1.050 mm | C119: m | D119: 1612.1399
A120: M0142 | B120: Tubo PEAD corrugado com paredes estruturadas para drenagem - D = 1.200 mm | C120: m | D120: 2179.5576
A121: M0143 | B121: Tubo PEAD corrugado com paredes estruturadas para drenagem - D = 1.500 mm | C121: m | D121: 2711.9096
A122: M0145 | B122: Ancoragem ativa para 22 cordoalhas - D = 15,2 mm | C122: un | D122: 3012.1104
A123: M0146 | B123: Ancoragem ativa para 27 cordoalhas - D = 15,2 mm | C123: un | D123: 3953.0562
A124: M0148 | B124: Ancoragem ativa para lajes para 1 cordoalha - D = 12,7 mm | C124: un | D124: 81.7611
A125: M0151 | B125: Ancoragem ativa para lajes para 2 cordoalhas - D = 12,7 mm | C125: un | D125: 159.3589
A126: M0152 | B126: Ancoragem ativa para lajes para 3 cordoalhas - D = 12,7 mm | C126: un | D126: 219.2488
A127: M0153 | B127: Ancoragem ativa para lajes para 4 cordoalhas - D = 12,7 mm | C127: un | D127: 301.9176
A128: M0156 | B128: Bloco de concreto - L = 19 cm, A = 19 cm e C = 39 cm | C128: un | D128: 6.6081
A129: M0158 | B129: Tela metálica galvanizada dobrada em L - C = 2,0 m, L = 0,4 m e H = 0,4 m | C129: un | D129: 465.7366
A130: M0160 | B130: Extintor de incêndio tipo espuma mecânica - V = 10 l | C130: un | D130: 631.7972
A131: M0161 | B131: Barra de fibra de vidro (vergalhão) - D = 25,0 mm | C131: m | D131: 58.5713
A132: M0162 | B132: Corrente de elo soldado em aço galvanizado com acabamento polido - D = 3,18 mm (1/8") | C132: m | D132: 7.353
A133: M0163 | B133: Gonzo com aba em aço galvanizado - D = 12,7 mm (1/2") | C133: un | D133: 2.4267
A134: M0164 | B134: Tubo em aço galvanizado - E = 1,50 mm e seção de 20 x 20 mm | C134: m | D134: 11.9452
A135: M0166 | B135: Tubo em aço galvanizado - E = 2,25 mm e D = 20 mm (3/4") | C135: m | D135: 27.8456
A136: M0167 | B136: Tela de poliamida industrial - E = 0,40 mm e malha de 1,6 mm | C136: m² | D136: 14.1311
A137: M0168 | B137: Abraçadeira de poliamida - E = 3,6 mm e C = 200 mm | C137: un | D137: 0.2053
A138: M0169 | B138: Roda em aço e pneu com câmara de ar 83/203 mm (3,25"/8") para carrinho de mão | C138: un | D138: 75.155
A139: M0173 | B139: Ancoragem ativa para lajes para 1 cordoalha - D = 15,2 mm | C139: un | D139: 95.6948
A140: M0178 | B140: Ancoragem ativa para lajes para 2 cordoalhas - D = 15,2 mm | C140: un | D140: 207.6148
A141: M0181 | B141: Ancoragem ativa para lajes para 3 cordoalhas - D = 15,2 mm | C141: un | D141: 261.6726
A142: M0184 | B142: Ancoragem ativa para lajes para 4 cordoalhas - D = 15,2 mm | C142: un | D142: 363.1832
A143: M0191 | B143: Brita 1 | C143: m³ | D143: 115.255
A144: M0192 | B144: Brita 2 | C144: m³ | D144: 112.505
A145: M0193 | B145: Brita 3 | C145: m³ | D145: 108.5883
A146: M0194 | B146: Escória de aciaria | C146: m³ | D146: 15.4862
A147: M0198 | B147: Parafuso de cabeça chata em aço - D = 4,5 mm e bucha plástica - D = 8 mm (S8) | C147: un | D147: 0.3443
A148: M0199 | B148: Coroa de botões cruzados linha R32 - D = 43 mm (1 11/16’’) | C148: un | D148: 339.7546
A149: M0201 | B149: Coroa de botões esféricos linha T38 - D = 89 mm (3 1/2") | C149: un | D149: 869.3567
A150: M0202 | B150: Coroa de botões esféricos linha T45 - D = 76 mm (3") | C150: un | D150: 780.5097
A151: M0204 | B151: Instalações físicas para a central de pré-moldagem de dormentes de concreto protendido | C151: CMCC | D151: 1774.08
A152: M0217 | B152: Enxofre | C152: kg | D152: 3.9425
A153: M0220 | B153: Adubo à base de nitrogênio, fósforo e potássio (NPK) | C153: kg | D153: 3.6114
A154: M0222 | B154: Filer calcário | C154: kg | D154: 0.2001
A155: M0223 | B155: Sementes para hidrossemeadura | C155: kg | D155: 29.6197
A156: M0224 | B156: Guia-chapéu pré-moldada - C = 120 cm | C156: un | D156: 58.616
A157: M0225 | B157: Adubo orgânico composto | C157: kg | D157: 0.3207
A158: M0229 | B158: Gabião tipo colchão em liga de zinco e alumínio revestido com polímero de malha hexagonal - E = 0,17 m | C158: m² | D158: 171.0979
A159: M0230 | B159: Gabião tipo caixa em liga de zinco e alumínio de malha hexagonal - C = 2,00 m, L = 1,00 m e H = 0,50 m | C159: un | D159: 539.6845
A160: M0231 | B160: Gabião tipo caixa em liga de zinco e alumínio de malha hexagonal - C = 2,00 m, L = 1,00 m e H = 1,00 m | C160: un | D160: 815.4347
A161: M0232 | B161: Gabião tipo caixa em liga de zinco e alumínio revestido com polímero de malha hexagonal - C = 2,00 m, L = 1,00 m e H = 0,50 m | C161: un | D161: 663.0891
A162: M0233 | B162: Gabião tipo caixa em liga de zinco e alumínio revestido com polímero de malha hexagonal - C = 2,00 m, L = 1,00 m e H = 1,00 m | C162: un | D162: 964.912
A163: M0234 | B163: Gabião tipo saco em liga de zinco e alumínio revestido com polímero de malha hexagonal - D = 0,65 m | C163: m³ | D163: 492.1921
A164: M0235 | B164: Gabião tipo colchão em liga de zinco e alumínio revestido com polímero de malha hexagonal - E = 0,23 m | C164: m² | D164: 179.0143
A165: M0236 | B165: Gabião tipo colchão em liga de zinco e alumínio revestido com polímero de malha hexagonal - E = 0,30 m | C165: m² | D165: 205.3566
A166: M0237 | B166: Energia elétrica | C166: kWh | D166: 1.0446
A167: M0253 | B167: Cabo de cobre flexível antichama isolado em PVC - tensão de 450/750 V e seção de 16 mm² | C167: m | D167: 14.3458
A168: M0254 | B168: Mistura gasosa de argônio e dióxido de carbono para solda MIG/MAG | C168: m³ | D168: 54.1035
A169: M0256 | B169: Tinta à base de etil silicato de zinco bicomponente para fundo preparador de pintura | C169: l | D169: 251.4556
A170: M0257 | B170: Diluente para tinta à base de etil silicato de zinco | C170: l | D170: 37.1064
A171: M0260 | B171: Cabo de cobre PP flexível isolado em PVC - tensão de 300/500 V e seção de 3 x 1,5 mm² | C171: m | D171: 4.9668
A172: M0264 | B172: Bomba de combustível industrial eletrônica simples | C172: un | D172: 30952.3064
A173: M0265 | B173: Tanque de combustível aéreo horizontal com escada para visita - capacidade de 5.000 l | C173: un | D173: 19209.1212
A174: M0266 | B174: Cabo de cobre flexível antichama isolado em PVC - tensão de 0,6/1,0 kV e seção de 240 mm² | C174: m | D174: 189.3581
A175: M0267 | B175: Módulo de torre de elevador de cremalheira | C175: un | D175: 3640.2784
A176: M0268 | B176: Módulo de ancoragem de torre de elevador de cremalheira | C176: un | D176: 2837.1767
A177: M0269 | B177: Cabo de cobre flexível antichama isolado em PVC - tensão de 0,6/1,0 kV e seção de 50 mm² | C177: m | D177: 39.5499
A178: M0284 | B178: Caibro de pinho - L = 7,5 cm e E = 7,5 cm | C178: m | D178: 18.8091
A179: M0285 | B179: Pontalete para escoramento - D = 15 cm | C179: m | D179: 6.6114
A180: M0286 | B180: Tábua - E = 2,5 cm e L = 30 cm | C180: m | D180: 22.6656
A181: M0289 | B181: Tábua - E = 2,5 cm e L = 15 cm | C181: m | D181: 10.8
A182: M0290 | B182: Tábua - E = 2,5 cm e L = 10 cm | C182: m | D182: 6.0843
A183: M0291 | B183: Estrutura modular com 2 banheiros - L = 2,44 m e C = 6,06 m (1 TEU) | C183: un | D183: 79230.8632
A184: M0292 | B184: Estrutura modular com janela - L = 2,44 m e C = 6,06 m (1 TEU) | C184: un | D184: 64213.9825
A185: M0293 | B185: Estrutura modular com janela - L = 4,88 m e C = 6,06 m (1 TEU duplo) | C185: un | D185: 130200.6986
A186: M0294 | B186: Estrutura modular com janela e 2 banheiros - L = 4,88 m e C = 6,06 m (1 TEU duplo) | C186: un | D186: 130749.7316
A187: M0295 | B187: Estrutura modular com revestimento térmico, janela e banheiro - L = 2,44 m e C = 6,06 m (1 TEU) | C187: un | D187: 72423.5375
A188: M0296 | B188: Estrutura modular com revestimento térmico, janela e banheiro - L = 2,44 m e C = 12,19 m (2 TEU) | C188: un | D188: 137940.4171
A189: M0297 | B189: Estrutura modular com 3 janelas para guarita - L = 2,44 m e C = 3,05 m (1/2 TEU) | C189: un | D189: 40166.0962
A190: M0301 | B190: Pontalete para escoramento - D = 10 cm | C190: m | D190: 3.156
A191: M0310 | B191: Peça de madeira - L = 7,5 cm e E = 2,5 cm | C191: m | D191: 6.945
A192: M0311 | B192: Filtro de aspiração de ar externo com capacidade 3,58 l/s para compressor de ar respirável | C192: un | D192: 333.7824
A193: M0312 | B193: Filtro de purificação de ar comprimido com capacidade de 35 MPa para compressor de ar respirável | C193: un | D193: 317.0357
A194: M0344 | B194: Cal hidratada - a granel | C194: kg | D194: 0.5338
A195: M0345 | B195: Cal hidratada - saco | C195: kg | D195: 0.8388
A196: M0346 | B196: Disco de aço para bomba de projeção via seca | C196: un | D196: 371.5495
A197: M0347 | B197: Disco de aço para bomba de projeção via úmida | C197: un | D197: 1559.324
A198: M0348 | B198: Disco de borracha para bomba de projeção via seca | C198: un | D198: 301.1197
A199: M0349 | B199: Disco de borracha para bomba de projeção via úmida | C199: un | D199: 701.9897
A200: M0350 | B200: Bico para bomba de projeção | C200: un | D200: 296.0468
... 1476 more rows

Sheet Pessoal Sicro
A1: CGCIT | B1: SISTEMA DE CUSTOS REFERENCIAIS DE OBRAS - SICRO | G1: DNIT
A3: Pernambuco - Julho/2025
A4: Sem desoneração
A5: Código | B5: Descrição | C5: Unidade | F5: Custo (R$) | G5: Periculosidade/ Insalubridade
A6: P9801 | B6: Ajudante | C6: h | F6: 22.5939
A7: P9802 | B7: Ajudante especializado | C7: h | F7: 26.3512
A8: P9803 | B8: Almoxarife | C8: mês | F8: 6425.9324
A9: P9804 | B9: Apontador | C9: mês | F9: 5024.237
A10: P9805 | B10: Armador | C10: h | F10: 32.2882
A11: P9806 | B11: Auxiliar administrativo | C11: mês | F11: 5029.8543
A12: P9807 | B12: Bombeiro hidráulico | C12: h | F12: 32.8403
A13: P9808 | B13: Carpinteiro | C13: h | F13: 28.1125
A14: P9809 | B14: Encarregado administrativo | C14: mês | F14: 7357.4401
A15: P9810 | B15: Eletricista | C15: h | F15: 32.1861
A16: P9811 | B16: Encarregado especializado | C16: mês | F16: 7997.6522
A17: P9812 | B17: Engenheiro | C17: mês | F17: 27139.3294
A18: P9814 | B18: Operacional | C18: mês | F18: 4267.0177
A19: P9815 | B19: Jardineiro | C19: h | F19: 28.8165
A20: P9819 | B20: Engenheiro supervisor | C20: mês | F20: 27139.3294
A21: P9821 | B21: Pedreiro | C21: h | F21: 27.6053
A22: P9822 | B22: Pintor | C22: h | F22: 32.2693
A23: P9823 | B23: Serralheiro | C23: h | F23: 28.7054
A24: P9824 | B24: Servente | C24: h | F24: 22.2688
A25: P9825 | B25: Soldador | C25: h | F25: 35.7307
A26: P9826 | B26: Chefe setor de finanças | C26: mês | F26: 25007.1946
A27: P9827 | B27: Vigia | C27: mês | F27: 4843.939
A28: P9830 | B28: Montador | C28: h | F28: 32.8847
A29: P9833 | B29: Auxiliar de laboratório | C29: mês | F29: 5924.9119
A30: P9837 | B30: Oceanógrafo | C30: mês | F30: 13314.3975
A31: P9840 | B31: Encarregado geral | C31: mês | F31: 11171.6253
A32: P9842 | B32: Faxineiro | C32: mês | F32: 4241.9864
A33: P9843 | B33: Operador de equipamento leve | C33: h | F33: 27.1814
A34: P9845 | B34: Operador de equipamento pesado | C34: h | F34: 33.7363
A35: P9846 | B35: Operador de equipamento especial | C35: h | F35: 39.7783
A36: P9847 | B36: Perfurador de tubulão | C36: h | F36: 22.5657
A37: P9848 | B37: Desenhista | C37: mês | F37: 7691.502
A38: P9849 | B38: Condutor maquinista fluvial | C38: mês | F38: 5820.8436
A39: P9850 | B39: Copeiro | C39: mês | F39: 4364.8228
A40: P9851 | B40: Médico do trabalho | C40: mês | F40: 18676.2344
A41: P9852 | B41: Blaster | C41: h | F41: 41.829
A42: P9853 | B42: Pré-marcador | C42: h | F42: 22.4517
A43: P9854 | B43: Recepcionista | C43: mês | F43: 4199.6543
A44: P9855 | B44: Marinheiro de máquinas | C44: mês | F44: 5466.9425
A45: P9856 | B45: Marinheiro de convés | C45: h | F45: 29.463
A46: P9857 | B46: Marinheiro de convés - mensalista | C46: mês | F46: 5419.4888
A47: P9858 | B47: Laboratorista | C47: mês | F47: 7520.1358
A48: P9859 | B48: Trabalhador de via | C48: h | F48: 21.9024
A49: P9861 | B49: Selecionador de material pétreo | C49: h | F49: 22.4968
A50: P9864 | B50: Engenheiro de segurança do trabalho | C50: mês | F50: 24959.615
A51: P9866 | B51: Motorista de caminhão | C51: h | F51: 33.6313
A52: P9867 | B52: Técnico especializado - mensalista | C52: mês | F52: 7247.2227
A53: P9869 | B53: Encarregado de obras de artes especiais | C53: mês | F53: 7997.6522
A54: P9870 | B54: Motorista de veículo leve | C54: h | F54: 31.9581
A55: P9871 | B55: Motorista de veículo especial | C55: h | F55: 34.7309
A56: P9875 | B56: Encarregado de turma | C56: mês | F56: 5961.6777
A57: P9876 | B57: Técnico de segurança do trabalho | C57: mês | F57: 7365.8624
A58: P9878 | B58: Secretária | C58: mês | F58: 6719.5959
A59: P9880 | B59: Piloto fluvial | C59: mês | F59: 7686.6716
A60: P9882 | B60: Técnico especializado | C60: h | F60: 39.221
A61: P9883 | B61: Chefe do setor administrativo | C61: mês | F61: 7357.4391
A62: P9884 | B62: Encarregado de terraplenagem | C62: mês | F62: 7997.6522
A63: P9885 | B63: Frentista de túnel | C63: h | F63: 27.615
A64: P9889 | B64: Técnico da qualidade | C64: mês | F64: 7662.9925
A65: P9892 | B65: Auxiliar de blaster | C65: h | F65: 36.4966
A66: P9893 | B66: Encarregado de pavimentação | C66: mês | F66: 7997.6522
A67: P9896 | B67: Porteiro | C67: mês | F67: 4232.8134
A68: P9897 | B68: Técnico de meio ambiente | C68: mês | F68: 7622.1497
A69: P9900 | B69: Comprador | C69: mês | F69: 7408.4336
A70: P9901 | B70: Encarregado de superestrutura ferroviária | C70: mês | F70: 7997.6522
A71: P9903 | B71: Auxiliar técnico | C71: mês | F71: 4763.972
A72: P9907 | B72: Comandante de longo curso | C72: mês | F72: 20335.0586
A73: P9908 | B73: Imediato | C73: mês | F73: 16623.3997
A74: P9909 | B74: Oficial de náutica | C74: mês | F74: 6857.484
A75: P9910 | B75: Oficial de máquinas | C75: mês | F75: 6653.343
A76: P9913 | B76: Draguista | C76: mês | F76: 6435.4692
A77: P9915 | B77: Maquinista | C77: h | F77: 34.4161
A78: P9916 | B78: Encarregado de conservação rodoviária | C78: mês | F78: 7997.6522
A79: P9920 | B79: Mestre fluvial | C79: mês | F79: 8372.6355
A80: P9921 | B80: Mergulhador raso autônomo de emergência | C80: h | F80: 40.5389
A81: P9922 | B81: Mergulhador raso dependente de emergência | C81: h | F81: 42.3701
A82: P9924 | B82: Mergulhador raso dependente | C82: h | F82: 58.1127
A83: P9925 | B83: Mergulhador raso autônomo | C83: h | F83: 54.1204
A84: P9926 | B84: Mergulhador raso auxiliar de superfície | C84: h | F84: 37.5205
A85: P9927 | B85: Frentista de túnel com periculosidade | C85: h | F85: 33.7341
A86: P9930 | B86: Eletricista com periculosidade | C86: h | F86: 39.6537
A87: P9931 | B87: Operador de equipamento de mergulho | C87: h | F87: 57.7437
A88: P9932 | B88: Operador de equipamento pesado com periculosidade | C88: h | F88: 41.8265
A89: P9933 | B89: Supervisor de mergulho raso | C89: mês | F89: 10647.4163
A90: P9934 | B90: Motorista de veículo especial com periculosidade | C90: h | F90: 43.1436
A91: P9938 | B91: Operador de equipamento leve com periculosidade | C91: h | F91: 33.3008
A92: P9939 | B92: Operador de equipamento leve com insalubridade | C92: h | F92: 35.0837
A93: P9942 | B93: Marinheiro de convés com periculosidade | C93: h | F93: 36.3415
A94: P9944 | B94: Operador de equipamento especial com periculosidade | C94: h | F94: 50.2244
A95: P9946 | B95: Engenheiro auxiliar | C95: mês | F95: 24878.4314
A96: P9947 | B96: Técnico florestal | C96: mês | F96: 7622.1497
A97: P9948 | B97: Motorista de veículo leve - mensalista | C97: mês | F97: 5896.6377
A98: P9949 | B98: Topógrafo | C98: mês | F98: 8914.4106
A99: P9950 | B99: Auxiliar de topografia | C99: mês | F99: 5944.3549
A100: P9951 | B100: Médico de câmara hiperbárica | C100: mês | F100: 21265.9102
A101: P9952 | B101: Pedreiro - mensalista | C101: mês | F101: 5095.9624
A102: P9953 | B102: Eletricista - mensalista | C102: mês | F102: 5934.9302
A103: P9954 | B103: Servente - mensalista | C103: mês | F103: 4112.1828
A104: P9955 | B104: Engenheiro chefe | C104: mês | F104: 34476.9964
A105: P9956 | B105: Motorista de caminhão com periculosidade | C105: h | F105: 41.7141
A106: P9957 | B106: Motorista de ônibus | C106: h | F106: 34.869
A107: P9958 | B107: Motorista de ônibus - mensalista | C107: mês | F107: 6572.976
A108: P9959 | B108: Motorista de veículo especial com periculosidade - mensalista | C108: mês | F108: 7966.051
A109: P9972 | B109: Técnico de batimetria | C109: mês | F109: 6693.6238

Sheet Equipamentos
A1: CGCIT | B1: SISTEMA DE CUSTOS REFERENCIAIS DE OBRAS - SICRO | K1: DNIT
B2: Pernambuco - Julho/2025
A3: Código | B3: Descrição | C3: Valor de Aquisição (R$) | D3: Depreciação (R$/h) | E3: Oportunidade de Capital (R$/h) | F3: Seguros e Impostos (R$/h) | G3: Manutenção (R$/h) | H3: Operação (R$/h) | I3: Mão de Obra de Operação (R$/h) | J3: Custo Produtivo (R$/h) | K3: Custo Improdutivo (R$/h)
A4: E9001 | B4: Conjunto vibratório para tubos de concreto com encaixe PB e 3 jogos de fôrmas - D = 0,60 m - 2,20 kW | C4: 72292.2639 | D4: 9.639 | E4: 1.4868 | F4: 0 | G4: 7.2292 | H4: 0 | I4: 0 | J4: 18.355 | K4: 11.1258
A5: E9002 | B5: Conjunto vibratório para tubos de concreto com encaixe PB e 3 jogos de fôrmas - D = 0,80 m - 2,20 kW | C5: 94743.4663 | D5: 12.6325 | E5: 1.9486 | F5: 0 | G5: 9.4743 | H5: 0 | I5: 0 | J5: 24.0554 | K5: 14.5811
A6: E9003 | B6: Conjunto vibratório para tubos de concreto com encaixe PB e 3 jogos de fôrmas - D = 1,00 m - 2,20 kW | C6: 99070.1088 | D6: 13.2093 | E6: 2.0375 | F6: 0 | G6: 9.907 | H6: 0 | I6: 0 | J6: 25.1538 | K6: 15.2468
A7: E9004 | B7: Conjunto vibratório para tubos de concreto com encaixe PB e 3 jogos de fôrmas - D = 1,20 m - 2,20 kW | C7: 124856.2431 | D7: 16.6475 | E7: 2.5679 | F7: 0 | G7: 12.4856 | H7: 0 | I7: 0 | J7: 31.701 | K7: 19.2154
A8: E9005 | B8: Conjunto vibratório para tubos de concreto com encaixe PB e 3 jogos de fôrmas - D = 1,50 m - 2,20 kW | C8: 147784.9646 | D8: 19.7047 | E8: 3.0394 | F8: 0 | G8: 14.7785 | H8: 0 | I8: 0 | J8: 37.5226 | K8: 22.7441
A9: E9006 | B9: Equipamento para sondagem manual | C9: 5045.5145 | D9: 0.8577 | E9: 0.109 | F9: 0 | G9: 0.5046 | H9: 0 | I9: 0 | J9: 1.4713 | K9: 0.9667
A10: E9007 | B10: Bomba de pistão triplex com capacidade de 7,80 m³/h (130 l/min) - 8,20 kW | C10: 166728.0274 | D10: 16.6728 | E10: 3.2147 | F10: 0 | G10: 14.5887 | H10: 8.1259 | I10: 0 | J10: 42.6021 | K10: 19.8875
A11: E9008 | B11: Transportador manual de tubos de concreto com capacidade de 1 t | C11: 1706.1317 | D11: 1.5355 | E11: 0.079 | F11: 0 | G11: 0.8531 | H11: 0 | I11: 0 | J11: 2.4676 | K11: 1.6145
A12: E9009 | B12: Embarcação rebocadora - 268 kW | C12: 665719.431 | D12: 7.6204 | E12: 3.8267 | F12: 0 | G12: 16.9343 | H12: 265.5784 | I12: 137.197 | J12: 431.1568 | K12: 148.6441
A13: E9010 | B13: Balança plataforma digital à bateria, com mesa de 75 x 75 cm e capacidade de 500 kg | C13: 4920.5612 | D13: 0.7381 | E13: 0.1012 | F13: 0 | G13: 0.41 | H13: 0 | I13: 0 | J13: 1.2493 | K13: 0.8393
A14: E9011 | B14: Carro manual modelo plataforma de 200 x 80 cm com capacidade de 800 kg | C14: 1869.1022 | D14: 0.3364 | E14: 0.0404 | F14: 0 | G14: 0.1869 | H14: 0 | I14: 0 | J14: 0.5637 | K14: 0.3768
A15: E9014 | B15: Deflectômetro de impacto (FWD) instalado em picape com reboque e faixa de carga de 7 a 120 kN - 147 kW | C15: 2296757.399 | D15: 183.7406 | E15: 42.513 | F15: 0 | G15: 114.8379 | H15: 0 | I15: 34.7309 | J15: 375.8224 | K15: 260.9845
A16: E9015 | B16: Elevador de obra com capacidade de 1.000 kg - 9 kW | C16: 68159.6855 | D16: 5.4528 | E16: 1.2616 | F16: 0 | G16: 4.7712 | H16: 0 | I16: 27.1814 | J16: 38.667 | K16: 33.8958
A17: E9016 | B17: Usina misturadora móvel de reciclagem a frio com sistema de espuma de asfalto - 129,40 kW | C17: 10340808.09 | D17: 1447.7131 | E17: 223.3098 | F17: 0 | G17: 1861.3455 | H17: 94.4858 | I17: 39.7783 | J17: 3666.6325 | K17: 1710.8012
A18: E9017 | B18: Escavadeira hidráulica sobre esteira com capacidade de 0,4 m³ - 64 kW | C18: 721028.8849 | D18: 59.3788 | E18: 13.7388 | F18: 0 | G18: 59.3788 | H18: 43.3938 | I18: 33.7363 | J18: 209.6265 | K18: 106.8539
A19: E9020 | B19: Recicladora a frio - 455 kW | C19: 5769173.109 | D19: 807.6842 | E19: 124.5853 | F19: 0 | G19: 1153.8346 | H19: 474.6196 | I19: 39.7783 | J19: 2600.502 | K19: 972.0478
A20: E9021 | B20: Grupo gerador - 456 kVA | C20: 352339.6079 | D20: 24.6638 | E20: 6.5218 | F20: 0 | G20: 17.617 | H20: 361.7019 | I20: 0 | J20: 410.5045 | K20: 31.1856
A21: E9022 | B21: Pórtico metálico rolante com capacidade de 25 t - 30 kW | C21: 754357.024 | D21: 37.7179 | E21: 12.9288 | F21: 0 | G21: 29.3361 | H21: 0 | I21: 27.1814 | J21: 107.1642 | K21: 77.8281
A22: E9023 | B22: Guindaste móvel sobre esteiras com dragline com capacidade de 1,9 a 2,3 m³ - 270 kW | C22: 4030221.859 | D22: 156.7309 | E22: 69.0735 | F22: 0 | G22: 223.9012 | H22: 70.4106 | I22: 39.7783 | J22: 559.8945 | K22: 265.5827
A23: E9024 | B23: Misturador de nata cimento - 1,50 kW | C23: 9652.1533 | D23: 1.5443 | E23: 0.2084 | F23: 0 | G23: 1.3513 | H23: 0 | I23: 27.1814 | J23: 30.2854 | K23: 28.9341
A24: E9025 | B24: Conjunto bomba e macaco hidráulico para protensão com capacidade de 7.000 kN - 15 kW | C24: 106149.0796 | D24: 6.0657 | E24: 1.8713 | F24: 0 | G24: 6.0657 | H24: 0 | I24: 39.7783 | J24: 53.781 | K24: 47.7153
A25: E9026 | B25: Bomba para injeção de nata de cimento com capacidade de 2 MPa - 2,20 kW | C25: 34295.5476 | D25: 3.4296 | E25: 0.6613 | F25: 0 | G25: 3.0009 | H25: 0 | I25: 0 | J25: 7.0918 | K25: 4.0909
A26: E9028 | B26: Bomba de alta pressão para hidrojateamento com capacidade de 18 MPa - 5,20 kW | C26: 5624.7273 | D26: 1.1249 | E26: 0.1301 | F26: 0 | G26: 1.2656 | H26: 9.648 | I26: 27.1814 | J26: 39.35 | K26: 28.4364
A27: E9029 | B27: Conjunto bomba e macaco hidráulico para protensão com capacidade de 8.000 kN - 20 kW | C27: 134980.5378 | D27: 7.7132 | E27: 2.3795 | F27: 0 | G27: 7.7132 | H27: 0 | I27: 39.7783 | J27: 57.5842 | K27: 49.871
A28: E9030 | B28: Bomba de protensão com leitura digital para tensionamento de estais - 3 kW | C28: 14563.07 | D28: 0.8322 | E28: 0.2567 | F28: 0 | G28: 0.8322 | H28: 0 | I28: 0 | J28: 1.9211 | K28: 1.0889
A29: E9031 | B29: Elevador de cremalheira com cabine simples, com capacidade de 1.500 kg e altura de até 100 m - 15 kW | C29: 338734.602 | D29: 27.0988 | E29: 6.27 | F29: 0 | G29: 23.7114 | H29: 0 | I29: 27.1814 | J29: 84.2616 | K29: 60.5502
A30: E9032 | B30: Equipamento para regulagem final de estais com até 37 cordoalhas - D = 15,7 mm - 20 kW | C30: 78503.2166 | D30: 4.4859 | E30: 1.3839 | F30: 0 | G30: 4.4859 | H30: 0 | I30: 39.7783 | J30: 50.134 | K30: 45.6481
A31: E9033 | B31: Equipamento para regulagem final de estais de 38 a 55 cordoalhas - D = 15,7 mm - 30 kW | C31: 112130.0047 | D31: 6.4074 | E31: 1.9767 | F31: 0 | G31: 6.4074 | H31: 0 | I31: 39.7783 | J31: 54.5698 | K31: 48.1624
A32: E9034 | B32: Equipamento para regulagem final de estais de 56 a 73 cordoalhas - D = 15,7 mm - 40 kW | C32: 168143.1086 | D32: 9.6082 | E32: 2.9641 | F32: 0 | G32: 9.6082 | H32: 0 | I32: 39.7783 | J32: 61.9588 | K32: 52.3506
A33: E9035 | B33: Equipamento para regulagem final de estais de 74 a 91 cordoalhas - D = 15,7 mm - 50 kW | C33: 224157.1129 | D33: 12.809 | E33: 3.9516 | F33: 0 | G33: 12.809 | H33: 0 | I33: 39.7783 | J33: 69.3479 | K33: 56.5389
A34: E9036 | B34: Grua fixa para alturas de 60 a 102 m, com alcance de 60 m com capacidade de 1.500 kg na ponta da lança - 37 kW | C34: 3897066.83 | D34: 151.5526 | E34: 66.7914 | F34: 0 | G34: 173.203 | H34: 0 | I34: 39.7783 | J34: 431.3253 | K34: 258.1223
A35: E9038 | B35: Macaco hidráulico monocordoalha para tensionamento de estais - 3 kW | C35: 18311.0381 | D35: 1.0463 | E35: 0.3228 | F35: 0 | G35: 1.0463 | H35: 0 | I35: 39.7783 | J35: 42.1937 | K35: 41.1474
A36: E9039 | B36: Máquina de solda por termofusão para tubos PEAD com gerador de 4 kW | C36: 115631.8371 | D36: 15.4176 | E36: 2.3782 | F36: 0 | G36: 15.4176 | H36: 3.9639 | I36: 39.7783 | J36: 76.9556 | K36: 57.5741
A37: E9040 | B37: Serra mármore - 1,45 kW | C37: 483.7447 | D37: 0.0435 | E37: 0.009 | F37: 0 | G37: 0.0242 | H37: 0 | I37: 0 | J37: 0.0767 | K37: 0.0525
A38: E9042 | B38: Trator sobre esteiras com lâmina - 97 kW | C38: 1330983.759 | D38: 116.4611 | E38: 25.663 | F38: 0 | G38: 166.373 | H38: 70.8278 | I38: 33.7363 | J38: 413.0612 | K38: 175.8604
A39: E9043 | B39: Embarcação de alumínio com comprimento de 6 m e motor de popa - 18,60 kW | C39: 35068.0478 | D39: 0.4014 | E39: 0.2016 | F39: 0 | G39: 0.446 | H39: 39.4402 | I39: 42.121 | J39: 82.6102 | K39: 42.724
A40: E9044 | B40: Central de concreto com capacidade de 150 m³/h - dosadora e misturadora | C40: 1928501.657 | D40: 192.8502 | E40: 37.1839 | F40: 0 | G40: 168.7439 | H40: 0 | I40: 39.7783 | J40: 438.5563 | K40: 269.8124
A41: E9045 | B41: Conjunto bomba e macaco hidráulico para elevação com capacidade de 496 kN | C41: 68442.8202 | D41: 5.4754 | E41: 1.2669 | F41: 0 | G41: 5.4754 | H41: 6.1069 | I41: 39.7783 | J41: 58.1029 | K41: 46.5206
A42: E9046 | B42: Conjunto bomba e macaco hidráulico para elevação com capacidade de 929 kN | C42: 86539.7863 | D42: 6.9232 | E42: 1.6019 | F42: 0 | G42: 6.9232 | H42: 6.1069 | I42: 39.7783 | J42: 61.3335 | K42: 48.3034
A43: E9047 | B43: Conjunto bomba e macaco hidráulico para elevação com capacidade de 1.390 kN | C43: 119333.9369 | D43: 9.5467 | E43: 2.2089 | F43: 0 | G43: 9.5467 | H43: 6.1069 | I43: 39.7783 | J43: 67.1875 | K43: 51.5339
A44: E9048 | B44: Conjunto bomba e macaco hidráulico para elevação com capacidade de 1.859 kN | C44: 138146.3895 | D44: 11.0517 | E44: 2.5571 | F44: 0 | G44: 11.0517 | H44: 6.1069 | I44: 39.7783 | J44: 70.5457 | K44: 53.3871
A45: E9049 | B45: Bomba de alta pressão para hidrojateamento com capacidade de 250 MPa - 72 kW | C45: 725352.3116 | D45: 145.0705 | E45: 16.7828 | F45: 0 | G45: 163.2043 | H45: 56.3285 | I45: 27.1814 | J45: 408.5675 | K45: 189.0347
A46: E9050 | B46: Guindaste móvel sobre pneus com 2 eixos com capacidade de 18 t - 97 kW | C46: 3241928.947 | D46: 162.0964 | E46: 57.1506 | F46: 0 | G46: 208.4097 | H46: 25.2957 | I46: 34.7309 | J46: 487.6833 | K46: 253.9779
A47: E9051 | B47: Máquina levantadora e posicionadora de via - 7,40 kW | C47: 1054414.593 | D47: 84.3532 | E47: 19.5172 | F47: 0 | G47: 73.809 | H47: 10.9839 | I47: 27.1814 | J47: 215.8447 | K47: 131.0518
A48: E9052 | B48: Empilhadeira a diesel com capacidade de 10 t - 82 kW | C48: 779982.4188 | D48: 62.3986 | E48: 14.4375 | F48: 0 | G48: 54.5988 | H48: 64.1519 | I48: 27.1814 | J48: 222.7682 | K48: 104.0175
A49: E9053 | B49: Perfuratriz hidráulica montada em flutuante - 32 kW | C49: 609761.8772 | D49: 16.3329 | E49: 5.2626 | F49: 0 | G49: 14.5181 | H49: 16.6899 | I49: 33.3008 | J49: 86.1043 | K49: 54.8963
A50: E9054 | B50: Equipamento sobre forma-trilho para execução e acabamento de pavimento de concreto - 13,40 kW | C50: 1816887.719 | D50: 242.2517 | E50: 37.3673 | F50: 0 | G50: 151.4073 | H50: 19.8897 | I50: 27.1814 | J50: 478.0974 | K50: 306.8004
A51: E9055 | B51: Guincho pneumático com capacidade de 2,5 t | C51: 538767.2391 | D51: 53.8767 | E51: 10.1573 | F51: 0 | G51: 29.9315 | H51: 0 | I51: 0 | J51: 93.9655 | K51: 64.034
A52: E9056 | B52: Plataforma autoelevatória de 12 x 24 m com capacidade de 150 t | C52: 844691.9133 | D52: 9.6691 | E52: 4.8555 | F52: 0 | G52: 21.4869 | H52: 0 | I52: 114.512 | J52: 150.5235 | K52: 129.0366
A53: E9057 | B53: Batelão sem propulsão com capacidade de 66 m³ | C53: 225883.4102 | D53: 9.6807 | E53: 3.8161 | F53: 0 | G53: 16.1345 | H53: 0 | I53: 29.463 | J53: 59.0943 | K53: 42.9598
A54: E9058 | B54: Plataforma flutuante de 12 x 24 x 1,8 m com capacidade de 150 t | C54: 675578.8504 | D54: 7.7333 | E54: 3.8834 | F54: 0 | G54: 12.8888 | H54: 0 | I54: 29.463 | J54: 53.9685 | K54: 41.0797
A55: E9059 | B55: Plataforma autoelevatória de 12 x 24 m montada na obra com capacidade de 150 t | C55: 844691.9133 | D55: 9.6691 | E55: 4.8555 | F55: 0 | G55: 21.4869 | H55: 0 | I55: 114.512 | J55: 150.5235 | K55: 129.0366
A56: E9060 | B56: Perfuratriz pneumática rotopercussiva montada em flutuante com pressão de 0,70 MPa e capacidade de 2.500 gpm | C56: 41029.5447 | D56: 1.099 | E56: 0.3541 | F56: 0 | G56: 0.9769 | H56: 0 | I56: 66.6016 | J56: 69.0316 | K56: 68.0547
A57: E9061 | B57: Lixadeira elétrica manual angular - 2 kW | C57: 1397.0118 | D57: 0.1863 | E57: 0.0287 | F57: 0 | G57: 0.1164 | H57: 0 | I57: 0 | J57: 0.3314 | K57: 0.215
A58: E9062 | B58: Soprador de ar quente manual - 1,60 kW | C58: 5695.198 | D58: 0.7594 | E58: 0.1171 | F58: 0 | G58: 0.4746 | H58: 0 | I58: 0 | J58: 1.3511 | K58: 0.8765
A59: E9063 | B59: Equipamento de estabilização dinâmica da via - 300 kW | C59: 30076652.47 | D59: 1203.0661 | E59: 510.3256 | F59: 0 | G59: 1203.0661 | H59: 187.7616 | I59: 39.7783 | J59: 3143.9977 | K59: 1753.17
A60: E9064 | B60: Transportador manual gerica com capacidade de 180 l | C60: 1085.9362 | D60: 1.0859 | E60: 0.0503 | F60: 0 | G60: 0.543 | H60: 0 | I60: 0 | J60: 1.6792 | K60: 1.1362
A61: E9065 | B61: Carro controle ferroviário - 186 kW | C61: 32870946.95 | D61: 1314.8379 | E61: 557.7378 | F61: 0 | G61: 1150.4831 | H61: 116.4122 | I61: 39.7783 | J61: 3179.2493 | K61: 1912.354
A62: E9066 | B62: Grupo gerador - 14 kVA | C62: 65596.2 | D62: 4.5917 | E62: 1.2142 | F62: 0 | G62: 3.2798 | H62: 10.9006 | I62: 0 | J62: 19.9863 | K62: 5.8059
A63: E9067 | B63: Veículo ferroviário para capina química com capacidade de 12.000 l - 115 kW | C63: 1700337.158 | D63: 68.0135 | E63: 28.8505 | F63: 0 | G63: 42.5084 | H63: 71.9753 | I63: 27.1814 | J63: 238.5291 | K63: 124.0454
A64: E9068 | B64: Perfuratriz hidráulica rotopercussiva para CCPH - 123 kW | C64: 5681101.456 | D64: 454.4881 | E64: 105.1572 | F64: 0 | G64: 454.4881 | H64: 96.2278 | I64: 33.7363 | J64: 1144.0975 | K64: 593.3816
A65: E9069 | B65: Vibrador de imersão para concreto - 4,10 kW | C65: 4342.7893 | D65: 0.8686 | E65: 0.1005 | F65: 0 | G65: 0.5428 | H65: 7.6071 | I65: 0 | J65: 9.119 | K65: 0.9691
A66: E9070 | B66: Ponte rolante com capacidade de 5 t e vão de até 15 m - 10 kW | C66: 414325.008 | D66: 18.4144 | E66: 7.1011 | F66: 0 | G66: 11.509 | H66: 0 | I66: 27.1814 | J66: 64.2059 | K66: 52.6969
A67: E9071 | B67: Transportador manual carrinho de mão com capacidade de 80 l | C67: 464.3376 | D67: 0.4643 | E67: 0.0215 | F67: 0 | G67: 0.2322 | H67: 0 | I67: 0 | J67: 0.718 | K67: 0.4858
A68: E9072 | B68: Martelo hidráulico vibratório com unidade hidráulica - 486 kW | C68: 3419884.592 | D68: 455.9846 | E68: 70.3356 | F68: 0 | G68: 398.9865 | H68: 380.2172 | I68: 39.7783 | J68: 1345.3022 | K68: 566.0985
A69: E9073 | B69: Bomba de concreto rebocável com capacidade de 30 m³/h - 74 kW | C69: 504147.9121 | D69: 50.4148 | E69: 9.7206 | F69: 0 | G69: 50.4148 | H69: 73.3313 | I69: 27.1814 | J69: 211.0629 | K69: 87.3168
A70: E9074 | B70: Tanque de estocagem de asfalto com agitadores de 60.000 l | C70: 882612.0702 | D70: 117.6816 | E70: 18.1524 | F70: 0 | G70: 73.551 | H70: 0 | I70: 0 | J70: 209.385 | K70: 135.834
A71: E9075 | B71: Trado cavadeira de 12" | C71: 156.4158 | D71: 0.0782 | E71: 0.0048 | F71: 0 | G71: 0.0391 | H71: 0 | I71: 0 | J71: 0.1221 | K71: 0.083
A72: E9076 | B72: Equipamento para pintura eletrostática com cabine dupla de 7,00 kW e estufa de 80.000 kCal | C72: 164068.7583 | D72: 10.5473 | E72: 2.8923 | F72: 0 | G72: 5.8596 | H72: 0 | I72: 27.1814 | J72: 46.4806 | K72: 40.621
A73: E9077 | B73: Perfuratriz de circulação reversa tipo Wirth ou similar com unidade hidráulica (Power Pack) - 273 kW | C73: 4851185.183 | D73: 388.0948 | E73: 89.7954 | F73: 0 | G73: 388.0948 | H73: 142.3859 | I73: 33.7363 | J73: 1042.1072 | K73: 511.6265
A74: E9078 | B74: Treliça lançadeira com capacidade de carga de 100 a 120 t e vão máximo de 45 m - 110 kW | C74: 3545138.162 | D74: 157.5617 | E74: 60.7597 | F74: 0 | G74: 98.4761 | H74: 0 | I74: 39.7783 | J74: 356.5758 | K74: 258.0997
A75: E9079 | B75: Bomba submersível com capacidade de 360 m³/h - 23 kW | C75: 179404.3061 | D75: 17.9404 | E75: 3.4591 | F75: 0 | G75: 15.6979 | H75: 0 | I75: 0 | J75: 37.0974 | K75: 21.3995
A76: E9080 | B76: Carrelone com capacidade máxima de 70 t | C76: 1830025.391 | D76: 82.3511 | E76: 31.051 | F76: 0 | G76: 45.7506 | H76: 0 | I76: 27.1814 | J76: 186.3341 | K76: 140.5835
A77: E9081 | B77: Fischietti simples com capacidade de 70 t | C77: 106831.0541 | D77: 4.8074 | E77: 1.8127 | F77: 0 | G77: 2.6708 | H77: 0 | I77: 0 | J77: 9.2909 | K77: 6.6201
A78: E9083 | B78: Vagão fechado FLT com capacidade de 99 t | C78: 868455.3013 | D78: 13.7505 | E78: 13.8425 | F78: 0 | G78: 7.2371 | H78: 0 | I78: 0 | J78: 34.8301 | K78: 27.593
A79: E9084 | B79: Vagão tanque convencional TCT com capacidade de 97 t e 103.000 l | C79: 1264142.036 | D79: 20.0156 | E79: 20.1494 | F79: 0 | G79: 10.5345 | H79: 0 | I79: 0 | J79: 50.6995 | K79: 40.165
A80: E9085 | B80: Vagão gôndola GDE com capacidade de 93,5 t / 29 m³ | C80: 637209.8068 | D80: 10.0892 | E80: 10.1566 | F80: 0 | G80: 5.3101 | H80: 0 | I80: 0 | J80: 25.5559 | K80: 20.2458
A81: E9086 | B81: Bomba de concreto rebocável com capacidade de 41 m³/h - 74 kW | C81: 524232.0047 | D81: 52.4232 | E81: 10.1078 | F81: 0 | G81: 52.4232 | H81: 73.3313 | I81: 27.1814 | J81: 215.4669 | K81: 89.7124
A82: E9089 | B82: Roçadeira costal - 1,40 kW | C82: 3281.0824 | D82: 0.4922 | E82: 0.0675 | F82: 0 | G82: 0.3828 | H82: 8.1637 | I82: 0 | J82: 9.1062 | K82: 0.5597
A83: E9093 | B83: Veículo leve - 53 kW (sem motorista) | C83: 78844.9557 | D83: 4.7307 | E83: 1.4594 | F83: 0.5913 | G83: 4.7307 | H83: 25.2862 | I83: 0 | J83: 36.7983 | K83: 6.7814
A84: E9094 | B84: Guindaste móvel sobre pneus com 6 eixos com capacidade máxima de 350 t - 450 kW | C84: 21326006.34 | D84: 746.4102 | E84: 361.849 | F84: 146.6163 | G84: 959.6703 | H84: 117.351 | I84: 34.7309 | J84: 2366.6277 | K84: 1289.6064
A85: E9095 | B85: Guindaste móvel sobre pneus com 8 eixos com capacidade máxima de 500 t - 500 kW | C85: 36304768.91 | D85: 1270.6669 | E85: 616.0012 | F85: 249.5953 | G85: 1633.7146 | H85: 130.39 | I85: 34.7309 | J85: 3935.0989 | K85: 2170.9943
A86: E9096 | B86: Minicarregadeira de pneus - 45,50 kW | C86: 406854.4283 | D86: 35.5998 | E86: 7.8447 | F86: 0 | G86: 35.5998 | H86: 59.3275 | I86: 33.7363 | J86: 172.1081 | K86: 77.1808
A87: E9101 | B87: Removedora de faixas de sinalização viária - 9,69 kW | C87: 50827.0744 | D87: 4.0662 | E87: 0.9408 | F87: 0 | G87: 3.5579 | H87: 17.9787 | I87: 0 | J87: 26.5436 | K87: 5.007
A88: E9102 | B88: Extrusora para sarjeta de concreto - 10,44 kW | C88: 82824.3395 | D88: 6.6259 | E88: 1.5331 | F88: 0 | G88: 5.7977 | H88: 8.1676 | I88: 27.1814 | J88: 49.3057 | K88: 35.3404
A89: E9103 | B89: Extrusora para meio-fio de concreto - 10,44 kW | C89: 68037.4735 | D89: 5.443 | E89: 1.2594 | F89: 0 | G89: 4.7626 | H89: 8.1676 | I89: 27.1814 | J89: 46.814 | K89: 33.8838
A90: E9105 | B90: Embarcação empurradora multipropósito - 2 x 186 kW | C90: 5421155.127 | D90: 62.0553 | E90: 31.1623 | F90: 0 | G90: 137.9008 | H90: 368.6386 | I90: 137.197 | J90: 736.954 | K90: 230.4146
A91: E9106 | B91: Balsa de convés com capacidade de 200 t | C91: 1933973.303 | D91: 22.138 | E91: 11.117 | F91: 0 | G91: 36.8966 | H91: 0 | I91: 29.463 | J91: 99.6146 | K91: 62.718
A92: E9107 | B92: Compactador manual com soquete vibratório - 2,24 kW | C92: 11596.2545 | D92: 2.3193 | E92: 0.2683 | F92: 0 | G92: 2.3193 | H92: 4.1561 | I92: 0 | J92: 9.063 | K92: 2.5876
A93: E9108 | B93: Soldadora de trilho por caldeamento na via - 400 kW | C93: 10000000 | D93: 160 | E93: 160.42 | F93: 0 | G93: 200 | H93: 250.3488 | I93: 79.5566 | J93: 850.3254 | K93: 399.9766
A94: E9110 | B94: Escavadeira hidráulica sobre esteiras para rocha com caçamba com capacidade de 1,56 m³ - 118 kW | C94: 1195046.166 | D94: 119.5046 | E94: 23.7003 | F94: 0 | G94: 119.5046 | H94: 116.9338 | I94: 33.7363 | J94: 413.3796 | K94: 176.9412
A95: E9111 | B95: Jateador abrasivo úmido com capacidade de 350 kg de abrasivo | C95: 341382.3874 | D95: 61.4488 | E95: 7.3722 | F95: 0 | G95: 61.4488 | H95: 0 | I95: 27.1814 | J95: 157.4512 | K95: 96.0024
A96: E9112 | B96: Sinalizador direcional móvel com sistema fotovoltaico de energia e montado em chassi sobre pneus | C96: 22784.0226 | D96: 2.5632 | E96: 0.4393 | F96: 0 | G96: 1.424 | H96: 0 | I96: 0 | J96: 4.4265 | K96: 3.0025
A97: E9113 | B97: Painel de Mensagem Variável - PMV móvel, com sistema fotovoltaico de energia e montado em chassi sobre pneus | C97: 171398.4079 | D97: 19.2823 | E97: 3.3048 | F97: 0 | G97: 10.7124 | H97: 0 | I97: 0 | J97: 33.2995 | K97: 22.5871
A98: E9116 | B98: Semáforo móvel com 3 lentes e bateria - D = 200 mm | C98: 8105.0195 | D98: 0.9118 | E98: 0.1563 | F98: 0 | G98: 0.5066 | H98: 0 | I98: 0 | J98: 1.5747 | K98: 1.0681
A99: E9117 | B99: Carregadeira de pneus para rocha com capacidade de 2,50 m³ - 105 kW | C99: 1001201.371 | D99: 80.0047 | E99: 18.9695 | F99: 0 | G99: 80.0047 | H99: 104.0512 | I99: 33.7363 | J99: 316.7664 | K99: 132.7105
A100: E9118 | B100: Cortadora de pavimento com disco diamantado de 450 a 1.500 mm - 55,40 kW | C100: 488598.925 | D100: 65.1465 | E100: 10.0489 | F100: 0 | G100: 65.1465 | H100: 43.3416 | I100: 27.1814 | J100: 210.8649 | K100: 102.3768
A101: E9119 | B101: Minicarregadeira sobre pneus com valetadeira - 55,40 kW | C101: 777950.421 | D101: 68.0707 | E101: 14.9999 | F101: 0 | G101: 68.0707 | H101: 72.2361 | I101: 33.7363 | J101: 257.1137 | K101: 116.8069
A102: E9120 | B102: Equipamento de cravação sobre esteira para geodreno com haste para profundidade de até 20 m - 258 kW | C102: 2598391.425 | D102: 151.5728 | E102: 46.7602 | F102: 0 | G102: 151.5728 | H102: 174.9312 | I102: 27.1814 | J102: 552.0184 | K102: 225.5144
A103: E9122 | B103: Perfuratriz tipo Bottom Feed para coluna de brita - 194 kW | C103: 7325932.834 | D103: 586.0746 | E103: 135.603 | F103: 0 | G103: 586.0746 | H103: 101.1826 | I103: 33.7363 | J103: 1442.6711 | K103: 755.4139
A104: E9125 | B104: Veículo tipo van furgão com capacidade de 1,38 t - 100 kW | C104: 226873.1079 | D104: 11.3437 | E104: 4.0828 | F104: 1.6543 | G104: 11.3437 | H104: 26.078 | I104: 31.9581 | J104: 86.4606 | K104: 49.0389
A105: E9126 | B105: Draga backhoe com capacidade de 7 m³ - 1.000 kW | C105: 193174186.1 | D105: 5174.3086 | E105: 1667.2197 | F105: 0 | G105: 11498.4635 | H105: 990.964 | I105: 64.7277 | J105: 19395.6835 | K105: 6906.256
A106: E9127 | B106: Escavadeira hidráulica com martelo hidráulico de 520 kg - 75 kW | C106: 900965.409 | D106: 102.9675 | E106: 17.8681 | F106: 0 | G106: 128.7093 | H106: 50.8521 | I106: 33.7363 | J106: 334.1333 | K106: 154.5719
A107: E9134 | B107: Miniônibus com capacidade para 30 passageiros - 111 kW | C107: 677186.7876 | D107: 29.0223 | E107: 11.9378 | F107: 4.837 | G107: 43.5334 | H107: 109.997 | I107: 34.869 | J107: 234.1965 | K107: 80.6661
A108: E9141 | B108: Rebarbador hidráulico com bomba manual com capacidade de força de 9.000 kgf | C108: 96002.3517 | D108: 7.6802 | E108: 1.777 | F108: 0 | G108: 4.8001 | H108: 0 | I108: 0 | J108: 14.2573 | K108: 9.4572
A109: E9144 | B109: Pórtico metálico rolante com talha com capacidade de 5 t - 10 kW | C109: 302477.5996 | D109: 13.4434 | E109: 5.1841 | F109: 0 | G109: 8.4022 | H109: 0 | I109: 27.1814 | J109: 54.2111 | K109: 45.8089
A110: E9148 | B110: Macaco de protensão de fios com bomba - 3,72 kW | C110: 100935.1447 | D110: 5.7677 | E110: 1.7793 | F110: 0 | G110: 5.7677 | H110: 0 | I110: 39.7783 | J110: 53.093 | K110: 47.3253
A111: E9149 | B111: Máquina de aplicação e extração de grampo elástico tipo Pandrol - 6,70 kW | C111: 273522.0061 | D111: 21.8818 | E111: 5.0629 | F111: 0 | G111: 21.8818 | H111: 9.9449 | I111: 0 | J111: 58.7714 | K111: 26.9447
A112: E9151 | B112: Britador de mandíbulas móvel sobre esteiras, sem peneira, com capacidade de 140 m³/h - 170 kW | C112: 2975543.736 | D112: 158.6957 | E112: 52.0175 | F112: 0 | G112: 158.6957 | H112: 159.5974 | I112: 39.7783 | J112: 568.7846 | K112: 250.4915
A113: E9152 | B113: Ferramenta de fixação à pólvora de ação direta | C113: 1166.89 | D113: 0.0992 | E113: 0.0216 | F113: 0 | G113: 0.0934 | H113: 0 | I113: 0 | J113: 0.2142 | K113: 0.1208
A114: E9153 | B114: Ferramenta de fixação à pólvora e sistema à pistão | C114: 1073.3721 | D114: 0.0912 | E114: 0.0199 | F114: 0 | G114: 0.0859 | H114: 0 | I114: 0 | J114: 0.197 | K114: 0.1111
A115: E9154 | B115: Equipamento para selagem com material asfáltico rebocável com capacidade de 370 l - 35 kW | C115: 470811.9768 | D115: 84.7462 | E115: 10.1672 | F115: 0 | G115: 28.2487 | H115: 27.3819 | I115: 27.1814 | J115: 177.7254 | K115: 122.0948
A116: E9155 | B116: Caldeira de asfalto rebocável com capacidade de 600 l - 5,20 kW | C116: 151638.2701 | D116: 22.7457 | E116: 3.1187 | F116: 0 | G116: 7.5819 | H116: 3.797 | I116: 0 | J116: 37.2433 | K116: 25.8644
A117: E9156 | B117: Soprador de ar costal - 2,6 kW | C117: 2624.496 | D117: 0.4199 | E117: 0.0567 | F117: 0 | G117: 0.3674 | H117: 4.824 | I117: 0 | J117: 5.668 | K117: 0.4766
A118: E9157 | B118: Locomotiva diesel-elétrica CC - bitola métrica - 2.237 kW | C118: 8823659.491 | D118: 141.1786 | E118: 141.5491 | F118: 0 | G118: 176.4732 | H118: 1400.0757 | I118: 34.4161 | J118: 1893.6927 | K118: 317.1438
A119: E9158 | B119: Locomotiva diesel-elétrica CC - bitola larga - 2.237 kW | C119: 9213768.928 | D119: 147.4203 | E119: 147.8073 | F119: 0 | G119: 184.2754 | H119: 1400.0757 | I119: 34.4161 | J119: 1913.9948 | K119: 329.6437
A120: E9159 | B120: Vagão plataforma PNE com capacidade de 82 t - bitola métrica | C120: 756429.7062 | D120: 11.9768 | E120: 12.0569 | F120: 0 | G120: 6.3036 | H120: 0 | I120: 0 | J120: 30.3373 | K120: 24.0337
A121: E9160 | B121: Vagão plataforma PNT com capacidade de 98 t - bitola larga | C121: 986647.4429 | D121: 15.6219 | E121: 15.7263 | F121: 0 | G121: 8.2221 | H121: 0 | I121: 0 | J121: 39.5703 | K121: 31.3482
A122: E9161 | B122: Vagão fechado com porta para carga e descarga de paletes FLD com capacidade de 64 t - bitola métrica | C122: 750263.1597 | D122: 11.8792 | E122: 11.9586 | F122: 0 | G122: 6.2522 | H122: 0 | I122: 0 | J122: 30.09 | K122: 23.8378
A123: E9162 | B123: Vagão fechado com porta para carga e descarga de paletes FLT com capacidade de 99 t - bitola larga | C123: 868455.3013 | D123: 13.7505 | E123: 13.8425 | F123: 0 | G123: 7.2371 | H123: 0 | I123: 0 | J123: 34.8301 | K123: 27.593
A124: E9163 | B124: Vagão hopper aberto com descarga automática HNE com capacidade de 45 m³ - bitola métrica | C124: 904426.8226 | D124: 14.3201 | E124: 14.4158 | F124: 0 | G124: 7.5369 | H124: 0 | I124: 0 | J124: 36.2728 | K124: 28.7359
A125: E9164 | B125: Vagão hopper aberto com descarga automática HNT com capacidade de 63 m³ - bitola larga | C125: 1162201.389 | D125: 18.4015 | E125: 18.5245 | F125: 0 | G125: 9.685 | H125: 0 | I125: 0 | J125: 46.611 | K125: 36.926
A126: E9167 | B126: Equipamento para carga e descarga de TLS de até 250 m - 90 kW | C126: 2825361.151 | D126: 45.2058 | E126: 45.3244 | F126: 0 | G126: 56.5072 | H126: 56.3285 | I126: 39.7783 | J126: 243.1442 | K126: 130.3085
A127: E9168 | B127: Carregadeira de pneus com implemento de garfo - 195 kW | C127: 1497930.857 | D127: 131.0689 | E127: 28.882 | F127: 0 | G127: 131.0689 | H127: 81.3634 | I127: 33.7363 | J127: 406.1195 | K127: 193.6872
A128: E9200 | B128: Carregadeira de pneus para rocha com capacidade de 2,50 m³ - 105 kW com periculosidade | C128: 1001201.371 | D128: 80.0047 | E128: 18.9695 | F128: 0 | G128: 80.0047 | H128: 104.0512 | I128: 41.8265 | J128: 324.8566 | K128: 140.8007
A129: E9203 | B129: Escavadeira hidráulica com martelo hidráulico de 1.700 kg - 103 kW com periculosidade | C129: 2063817.421 | D129: 235.8648 | E129: 40.9299 | F129: 0 | G129: 294.8311 | H129: 69.8369 | I129: 41.8265 | J129: 683.2892 | K129: 318.6212
A130: E9204 | B130: Perfuratriz sobre esteiras - 145 kW com periculosidade | C130: 2036010.904 | D130: 162.8809 | E130: 37.6866 | F130: 0 | G130: 162.8809 | H130: 113.4393 | I130: 41.8265 | J130: 518.7142 | K130: 242.394
A131: E9205 | B131: Equipamento de corte a plasma CNC - 12.000 x 5.500 mm - 19,5 kW | C131: 1050164.147 | D131: 84.0131 | E131: 19.4385 | F131: 0 | G131: 63.0098 | H131: 0 | I131: 0 | J131: 166.4614 | K131: 103.4516
A132: E9206 | B132: Equipamento de solda MIG automática com acessórios - 14,6 kVA | C132: 89121.3188 | D132: 11.8828 | E132: 1.8329 | F132: 0 | G132: 11.8828 | H132: 0 | I132: 0 | J132: 25.5985 | K132: 13.7157
A133: E9207 | B133: Máquina de solda elétrica retificadora 425 A - 18,70 kW | C133: 8121.9677 | D133: 1.0829 | E133: 0.167 | F133: 0 | G133: 1.0829 | H133: 0 | I133: 0 | J133: 2.3328 | K133: 1.2499
A134: E9209 | B134: Martelete perfurador/rompedor a ar comprimido de 25 kg para rocha, com insalubridade, com capacidade de 2.040 gpm | C134: 25120.8742 | D134: 3.3494 | E134: 0.5167 | F134: 0 | G134: 3.3494 | H134: 0 | I134: 35.0837 | J134: 42.2992 | K134: 38.9498
A135: E9213 | B135: Jumbo eletro-hidráulico com 3 braços - 155 kW/237 kW com periculosidade | C135: 14124513.78 | D135: 807.1151 | E135: 248.995 | F135: 0 | G135: 1008.8938 | H135: 169.7678 | I135: 50.2244 | J135: 2284.9961 | K135: 1106.3345
A136: E9231 | B136: Maçarico lança-chamas a gás liquefeito de petróleo (GLP) | C136: 84.7211 | D136: 0.0113 | E136: 0.0017 | F136: 0 | G136: 0.0113 | H136: 0 | I136: 0 | J136: 0.0243 | K136: 0.013
A137: E9239 | B137: Miniônibus com capacidade para 30 passageiros - 111 kW (sem motorista) | C137: 677186.7876 | D137: 29.0223 | E137: 11.9378 | F137: 4.837 | G137: 43.5334 | H137: 109.997 | I137: 0 | J137: 199.3275 | K137: 45.7971
A138: E9240 | B138: Ônibus com capacidade para 80 passageiros - 175 kW (sem motorista) | C138: 1047271.531 | D138: 44.8831 | E138: 18.4619 | F138: 7.4805 | G138: 67.3246 | H138: 173.4187 | I138: 0 | J138: 311.5688 | K138: 70.8255
A139: E9242 | B139: Estação transmissora de superfície para televisionamento | C139: 15637.4222 | D139: 1.0053 | E139: 0.2757 | F139: 0 | G139: 0.5585 | H139: 0 | I139: 0 | J139: 1.8395 | K139: 1.281
A140: E9243 | B140: Câmara hiperbárica com filtro, serpentina e reservatório de ar para mergulho raso - D = 1,80 m e H = 2,22 m | C140: 630543.496 | D140: 11.0345 | E140: 10.2124 | F140: 0 | G140: 15.7636 | H140: 0 | I140: 57.7437 | J140: 94.7542 | K140: 78.9906
A141: E9244 | B141: Estação transmissora de superfície para comunicação sem fio | C141: 39861.4385 | D141: 2.5625 | E141: 0.7027 | F141: 0 | G141: 1.4236 | H141: 0 | I141: 0 | J141: 4.6888 | K141: 3.2652
A142: E9245 | B142: Estação transmissora de superfície para comunicação com fio | C142: 6680.9669 | D142: 0.4295 | E142: 0.1178 | F142: 0 | G142: 0.2386 | H142: 0 | I142: 0 | J142: 0.7859 | K142: 0.5473
A143: E9246 | B143: Painel de controle de ar com manômetros e pneufatômetros | C143: 12820.8993 | D143: 0.8242 | E143: 0.226 | F143: 0 | G143: 0.4579 | H143: 0 | I143: 0 | J143: 1.5081 | K143: 1.0502
A144: E9247 | B144: Sistema de Sino aberto (sinete) para mergulho até 50 m - 33,50 kW | C144: 397855.5084 | D144: 35.3649 | E144: 7.5007 | F144: 0 | G144: 35.3649 | H144: 0 | I144: 57.7437 | J144: 135.9742 | K144: 100.6093
A145: E9248 | B145: Sistema de ar comprimido para mergulho até 30 m com pressão de trabalho de 1,4 MPa - 7,46 kW | C145: 53788.487 | D145: 4.3031 | E145: 0.9956 | F145: 0 | G145: 4.3031 | H145: 6.6144 | I145: 0 | J145: 16.2162 | K145: 5.2987
A146: E9249 | B146: Sistema de ar comprimido para mergulho até 50 m com pressão de trabalho de 1,7 MPa - 16,18 kW | C146: 81337.6374 | D146: 6.507 | E146: 1.5056 | F146: 0 | G146: 6.507 | H146: 14.346 | I146: 0 | J146: 28.8656 | K146: 8.0126
A147: E9251 | B147: Fonte de plasma para corte manual - 65A - 15 kW | C147: 32637.2159 | D147: 4.3516 | E147: 0.6712 | F147: 0 | G147: 4.3516 | H147: 0 | I147: 0 | J147: 9.3744 | K147: 5.0228
A148: E9252 | B148: Serra de esquadria com braço telescópico - D = 250 mm (10") - 1,80 kW | C148: 3970.6353 | D148: 0.3574 | E148: 0.0735 | F148: 0 | G148: 0.1985 | H148: 0 | I148: 0 | J148: 0.6294 | K148: 0.4309
A149: E9253 | B149: Rebordeadeira diâmetro máximo 3,00 m - 4,85 kW | C149: 70645.1423 | D149: 2.8258 | E149: 1.1987 | F149: 0 | G149: 2.4726 | H149: 0 | I149: 0 | J149: 6.4971 | K149: 4.0245
A150: E9254 | B150: Dobradeira viradeira manual comprimento máximo de dobra de até 2.000 mm | C150: 18935.355 | D150: 0.7574 | E150: 0.3213 | F150: 0 | G150: 0.6627 | H150: 0 | I150: 0 | J150: 1.7414 | K150: 1.0787
A151: E9255 | B151: Fonte de plasma para corte manual - 45A - 10 kW | C151: 21604.2159 | D151: 2.8806 | E151: 0.4443 | F151: 0 | G151: 2.8806 | H151: 0 | I151: 0 | J151: 6.2055 | K151: 3.3249
A152: E9256 | B152: Equipamento para pintura com cal rebocável com dois bicos aplicadores e capacidade de 2.200 l | C152: 62911.6393 | D152: 6.2912 | E152: 1.213 | F152: 0 | G152: 6.2912 | H152: 0 | I152: 27.1814 | J152: 40.9768 | K152: 34.6856
A153: E9259 | B153: Ventilador centrífugo média pressão com capacidade de 38 m³/min - 2,21 kW | C153: 17061.3371 | D153: 1.5355 | E153: 0.3158 | F153: 0 | G153: 1.0237 | H153: 0 | I153: 0 | J153: 2.875 | K153: 1.8513
A154: E9260 | B154: Detector de gases com bomba elétrica para espaço confinado | C154: 4543 | D154: 0.3634 | E154: 0.0841 | F154: 0 | G154: 0.2272 | H154: 0 | I154: 0 | J154: 0.6747 | K154: 0.4475
A155: E9261 | B155: Equipamento de pintura com pistola airless - 0,90 kW | C155: 2290.6185 | D155: 0.4123 | E155: 0.0495 | F155: 0 | G155: 0.2291 | H155: 0 | I155: 0 | J155: 0.6909 | K155: 0.4618
A156: E9262 | B156: Escova rotativa com cerdas de aço para tratamento de superfície - 0,91 kW | C156: 20886.6219 | D156: 2.7849 | E156: 0.4296 | F156: 0 | G156: 1.7406 | H156: 0 | I156: 27.1814 | J156: 32.1365 | K156: 30.3959
A157: E9263 | B157: Tripé com guincho para espaço confinado | C157: 10081.9153 | D157: 0.8962 | E157: 0.1901 | F157: 0 | G157: 0.6721 | H157: 0 | I157: 0 | J157: 1.7584 | K157: 1.0863
A158: E9264 | B158: Respirador purificador de ar motorizado | C158: 8816.5598 | D158: 0.7053 | E158: 0.1632 | F158: 0 | G158: 0.4408 | H158: 0 | I158: 0 | J158: 1.3093 | K158: 0.8685
A159: E9265 | B159: Respirador de adução de ar tipo linha de ar comprimido para jateamento | C159: 17997.5491 | D159: 1.4398 | E159: 0.3331 | F159: 0 | G159: 0.8999 | H159: 0 | I159: 0 | J159: 2.6728 | K159: 1.7729
A160: E9267 | B160: Exaustor centrífugo alta pressão com capacidade de 35 m³/min - 1,47 kW | C160: 6287.0093 | D160: 0.5658 | E160: 0.1164 | F160: 0 | G160: 0.3772 | H160: 0 | I160: 0 | J160: 1.0594 | K160: 0.6822
A161: E9501 | B161: Ventilador axial para ventilação forçada com velocidade de saída de 32,8 m/s - D = 1.000 mm - 30 kW | C161: 458439.245 | D161: 41.2595 | E161: 8.4857 | F161: 0 | G161: 27.5064 | H161: 0 | I161: 0 | J161: 77.2516 | K161: 49.7452
A162: E9502 | B162: Bate-estaca de gravidade para 6 t - 119 kW | C162: 978437.812 | D162: 130.4584 | E162: 20.1232 | F162: 0 | G162: 97.8438 | H162: 80.6853 | I162: 33.7363 | J162: 362.847 | K162: 184.3179
A163: E9503 | B163: Guilhotina hidráulica 16 x 6.100 mm - 30 kW | C163: 1329799.368 | D163: 53.192 | E163: 22.5634 | F163: 0 | G163: 46.543 | H163: 0 | I163: 27.1814 | J163: 149.4798 | K163: 102.9368
A164: E9505 | B164: Prensa dobradeira capacidade 320 t - comprimento até 3.100 mm - 30 kW | C164: 930050.5743 | D164: 37.202 | E164: 15.7806 | F164: 0 | G164: 32.5518 | H164: 0 | I164: 27.1814 | J164: 112.7158 | K164: 80.164
A165: E9507 | B165: Plotadora de recorte com computador e programa computacional | C165: 95276.5716 | D165: 14.2915 | E165: 1.9595 | F165: 0 | G165: 9.5277 | H165: 0 | I165: 0 | J165: 25.7787 | K165: 16.251
A166: E9510 | B166: Ventilador centrífugo baixa pressão com capacidade de 58 m³/min - 3,68 kW | C166: 14573.4042 | D166: 1.3116 | E166: 0.2698 | F166: 0 | G166: 0.8744 | H166: 0 | I166: 0 | J166: 2.4558 | K166: 1.5814
A167: E9511 | B167: Carregadeira de pneus com capacidade de 3,40 m³ - 195 kW | C167: 2159428.379 | D167: 188.95 | E167: 41.6365 | F167: 0 | G167: 188.95 | H167: 81.3634 | I167: 33.7363 | J167: 534.6362 | K167: 264.3228
A168: E9512 | B168: Veículo leve - 53 kW | C168: 78844.9557 | D168: 4.7307 | E168: 1.4594 | F168: 0.5913 | G168: 4.7307 | H168: 25.2862 | I168: 31.9581 | J168: 68.7564 | K168: 38.7395
A169: E9513 | B169: Compressor de ar portátil de 160,46 l/s (340 PCM) - 81 kW | C169: 338984.6579 | D169: 27.1188 | E169: 6.2746 | F169: 0 | G169: 27.1188 | H169: 71.8188 | I169: 0 | J169: 132.331 | K169: 33.3934
A170: E9514 | B170: Distribuidor de agregados sobre pneus autopropelido - 130 kW | C170: 982606.4238 | D170: 98.2606 | E170: 18.9459 | F170: 0 | G170: 85.9781 | H170: 128.8253 | I170: 33.7363 | J170: 365.7462 | K170: 150.9428
A171: E9515 | B171: Escavadeira hidráulica sobre esteiras com caçamba com capacidade de 1,56 m³ - 118 kW | C171: 1195046.166 | D171: 104.5665 | E171: 23.042 | F171: 0 | G171: 104.5665 | H171: 80.0073 | I171: 33.7363 | J171: 345.9186 | K171: 161.3448
A172: E9516 | B172: Perfuratriz hidráulica sobre esteiras - 283 kW | C172: 8084730.515 | D172: 646.7784 | E172: 149.6484 | F172: 0 | G172: 646.7784 | H172: 147.6015 | I172: 33.7363 | J172: 1624.543 | K172: 830.1631
A173: E9518 | B173: Grade de 24 discos rebocável de D = 60 cm (24") | C173: 43038.3852 | D173: 2.7668 | E173: 0.7587 | F173: 0 | G173: 1.5371 | H173: 0 | I173: 0 | J173: 5.0626 | K173: 3.5255
A174: E9519 | B174: Betoneira com motor a gasolina com capacidade de 600 l - 10 kW | C174: 39881.0347 | D174: 6.381 | E174: 0.8612 | F174: 0 | G174: 4.7857 | H174: 18.5539 | I174: 27.1814 | J174: 57.7632 | K174: 34.4236
A175: E9521 | B175: Grupo gerador - 3,2 kVA | C175: 3557.3889 | D175: 0.3113 | E175: 0.0686 | F175: 0 | G175: 0.2223 | H175: 4.4105 | I175: 0 | J175: 5.0127 | K175: 0.3799
A176: E9522 | B176: Caldeira de asfalto rebocável com capacidade de 1.500 l - 6,5 kW | C176: 212076.8552 | D176: 31.8115 | E176: 4.3617 | F176: 0 | G176: 10.6038 | H176: 4.7462 | I176: 0 | J176: 51.5232 | K176: 36.1732
A177: E9523 | B177: Motoscraper - 304 kW | C177: 6193038.79 | D177: 330.2954 | E177: 108.2646 | F177: 0 | G177: 371.5823 | H177: 253.6868 | I177: 33.7363 | J177: 1097.5654 | K177: 472.2963
A178: E9524 | B178: Motoniveladora - 93 kW | C178: 1302301.805 | D178: 91.1611 | E178: 24.1056 | F178: 0 | G178: 117.2072 | H178: 72.7576 | I178: 33.7363 | J178: 338.9678 | K178: 149.003
A179: E9525 | B179: Ponte rolante com capacidade de 15 t e vão de até 15 m - 20 kW | C179: 3646202.178 | D179: 162.0534 | E179: 62.4919 | F179: 0 | G179: 101.2834 | H179: 0 | I179: 54.3628 | J179: 380.1915 | K179: 278.9081
A180: E9526 | B180: Retroescavadeira de pneus - capacidade da caçamba da pá-carregadeira de 0,76 m³ e da retroescavadeira de 0,29 m³ - 58 kW | C180: 484374.0439 | D180: 35.6907 | E180: 9.0444 | F180: 0 | G180: 35.6907 | H180: 39.3256 | I180: 33.7363 | J180: 153.4877 | K180: 78.4714
A181: E9527 | B181: Martelete perfurador/rompedor a ar comprimido de 25 kg para rocha com capacidade de 2.040 gpm | C181: 25120.8742 | D181: 3.3494 | E181: 0.5167 | F181: 0 | G181: 3.3494 | H181: 0 | I181: 27.1814 | J181: 34.3969 | K181: 31.0475
A182: E9528 | B182: Empilhadeira a diesel com capacidade de 4 t - 60 kW | C182: 568635.6752 | D182: 45.4909 | E182: 10.5254 | F182: 0 | G182: 39.8045 | H182: 46.9404 | I182: 27.1814 | J182: 169.9426 | K182: 83.1977
A183: E9529 | B183: Jateador para estruturas metálicas com transportador a roletes - 22 kW | C183: 5080210.811 | D183: 812.8337 | E183: 109.7072 | F183: 0 | G183: 609.6253 | H183: 0 | I183: 27.1814 | J183: 1559.3476 | K183: 949.7223
A184: E9530 | B184: Rolo compactador liso vibratório autopropelido por pneus de 11 t - 97 kW | C184: 960592.91 | D184: 76.8474 | E184: 17.7806 | F184: 0 | G184: 76.8474 | H184: 80.9461 | I184: 33.7363 | J184: 286.1578 | K184: 128.3643
A185: E9532 | B185: Equipamento de solda MIG com acessórios - 14,6 kVA | C185: 85529.3907 | D185: 11.4039 | E185: 1.7591 | F185: 0 | G185: 11.4039 | H185: 0 | I185: 0 | J185: 24.5669 | K185: 13.163
A186: E9535 | B186: Serra circular com bancada - D = 30 cm - 4 kW | C186: 7427.1125 | D186: 0.6684 | E186: 0.1375 | F186: 0 | G186: 0.3714 | H186: 0 | I186: 27.1814 | J186: 28.3587 | K186: 27.9873
A187: E9536 | B187: Embarcação de transporte de pessoal e apoio logístico - 30 kW | C187: 154141.8926 | D187: 1.7644 | E187: 0.8861 | F187: 0 | G187: 1.9605 | H187: 63.6132 | I187: 42.121 | J187: 110.3452 | K187: 44.7715
A188: E9538 | B188: Conjunto vibratório para meio tubo de concreto com encaixe PB e 3 jogos de fôrmas - D = 0,30 m - 2,20 kW | C188: 15908.0569 | D188: 2.1211 | E188: 0.3272 | F188: 0 | G188: 1.5908 | H188: 0 | I188: 0 | J188: 4.0391 | K188: 2.4483
A189: E9539 | B189: Equipamento de batimetria monofeixe | C189: 108482.4113 | D189: 4.9661 | E189: 1.8436 | F189: 0 | G189: 2.759 | H189: 0 | I189: 36.6794 | J189: 46.2481 | K189: 43.4891
A190: E9540 | B190: Trator sobre esteiras com lâmina - 127 kW | C190: 1728617.091 | D190: 121.0032 | E190: 31.9967 | F190: 0 | G190: 172.8617 | H190: 92.7334 | I190: 33.7363 | J190: 452.3313 | K190: 186.7362
A191: E9541 | B191: Trator sobre esteiras com lâmina - 259 kW | C191: 4840647.257 | D191: 294.6481 | E191: 87.6525 | F191: 0 | G191: 420.9258 | H191: 189.1177 | I191: 33.7363 | J191: 1026.0804 | K191: 416.0369
A192: E9543 | B192: Compressor de ar respirável com capacidade de até 35 MPa e 3,58 l/s - 5,52 kW | C192: 76046.3418 | D192: 6.0837 | E192: 1.4076 | F192: 0 | G192: 6.0837 | H192: 0 | I192: 0 | J192: 13.575 | K192: 7.4913
A193: E9544 | B193: Vassoura mecânica rebocável com largura de 2,44 m | C193: 85318.2936 | D193: 9.5983 | E193: 1.645 | F193: 0 | G193: 6.3989 | H193: 0 | I193: 0 | J193: 17.6422 | K193: 11.2433
A194: E9545 | B194: Vibroacabadora de asfalto sobre esteiras - 97 kW | C194: 1629377.07 | D194: 142.5705 | E194: 31.4164 | F194: 0 | G194: 183.3049 | H194: 96.1235 | I194: 39.7783 | J194: 493.1936 | K194: 213.7652
A195: E9547 | B195: Máquina de solda elétrica transformadora 250 A - 9,20 kW | C195: 1165.8169 | D195: 0.1554 | E195: 0.024 | F195: 0 | G195: 0.1554 | H195: 0 | I195: 0 | J195: 0.3348 | K195: 0.1794
A196: E9548 | B196: Bomba centrífuga com capacidade de 7,1 a 22 m³/h - 1,50 kW | C196: 2617.6196 | D196: 0.2618 | E196: 0.0505 | F196: 0 | G196: 0.229 | H196: 0 | I196: 0 | J196: 0.5413 | K196: 0.3123
A197: E9551 | B197: Obturador mecânico simples com extensão de 12 m | C197: 4891.4344 | D197: 0.4402 | E197: 0.0905 | F197: 0 | G197: 0.2446 | H197: 0 | I197: 0 | J197: 0.7753 | K197: 0.5307
A198: E9552 | B198: Nível ótico com capacidade de aumento de 32x | C198: 15452.6547 | D198: 1.2362 | E198: 0.286 | F198: 0 | G198: 0.7726 | H198: 0 | I198: 0 | J198: 2.2948 | K198: 1.5222
A199: E9553 | B199: Estação total eletrônica com alcance máximo de 3.000 m | C199: 51066.8281 | D199: 4.596 | E199: 0.9452 | F199: 0 | G199: 2.5533 | H199: 0 | I199: 0 | J199: 8.0945 | K199: 5.5412
A200: E9556 | B200: Compactador manual de placa vibratória - 3,00 kW | C200: 10935.074 | D200: 2.187 | E200: 0.253 | F200: 0 | G200: 2.187 | H200: 5.5662 | I200: 0 | J200: 10.1932 | K200: 2.44
... 344 more rows

Sheet SINTÉTICO SICRO
A1: CGCIT | B1: SISTEMA DE CUSTOS REFERENCIAIS DE OBRAS - SICRO | D1: DNIT
B2: Pernambuco - Julho/2025
A3: Código | B3: Descrição do Serviço | C3: Unidade | D3: Custo Unitário (R$)
A4: 307731 | B4: Aparelho de apoio de neoprene fretado para estruturas moldadas no local - fornecimento e instalação | C4: dm³ | D4: 150.22
A5: 307732 | B5: Aparelho de apoio de neoprene fretado para estruturas pré-moldadas - fornecimento e instalação | C5: dm³ | D5: 125.02
A6: 308308 | B6: Aparelho de apoio metálico elastomérico fixo com capacidade de 1.500 kN - fornecimento e instalação | C6: un | D6: 5238.99
A7: 308313 | B7: Aparelho de apoio metálico elastomérico fixo com capacidade de 10.000 kN - fornecimento e instalação | C7: un | D7: 32292.12
A8: 308309 | B8: Aparelho de apoio metálico elastomérico fixo com capacidade de 2.500 kN - fornecimento e instalação | C8: un | D8: 8680.92
A9: 308310 | B9: Aparelho de apoio metálico elastomérico fixo com capacidade de 4.000 kN - fornecimento e instalação | C9: un | D9: 11604.68
A10: 308311 | B10: Aparelho de apoio metálico elastomérico fixo com capacidade de 5.500 kN - fornecimento e instalação | C10: un | D10: 16458.98
A11: 308312 | B11: Aparelho de apoio metálico elastomérico fixo com capacidade de 7.500 kN - fornecimento e instalação | C11: un | D11: 22984.37
A12: 308307 | B12: Aparelho de apoio metálico elastomérico fixo com capacidade de 700 kN - fornecimento e instalação | C12: un | D12: 3126.21
A13: 308322 | B13: Aparelho de apoio metálico elastomérico multidirecional com capacidade de 1.500 kN - fornecimento e instalação | C13: un | D13: 4944.71
A14: 308327 | B14: Aparelho de apoio metálico elastomérico multidirecional com capacidade de 10.000 kN - fornecimento e instalação | C14: un | D14: 29801.23
A15: 308323 | B15: Aparelho de apoio metálico elastomérico multidirecional com capacidade de 2.500 kN - fornecimento e instalação | C15: un | D15: 7773.47
A16: 308324 | B16: Aparelho de apoio metálico elastomérico multidirecional com capacidade de 4.000 kN - fornecimento e instalação | C16: un | D16: 11365.46
A17: 308325 | B17: Aparelho de apoio metálico elastomérico multidirecional com capacidade de 5.500 kN - fornecimento e instalação | C17: un | D17: 16015.4
A18: 308326 | B18: Aparelho de apoio metálico elastomérico multidirecional com capacidade de 7.500 kN - fornecimento e instalação | C18: un | D18: 22162.34
A19: 308321 | B19: Aparelho de apoio metálico elastomérico multidirecional com capacidade de 700 kN - fornecimento e instalação | C19: un | D19: 4832.26
A20: 308315 | B20: Aparelho de apoio metálico elastomérico unidirecional com capacidade de 1.500 kN - fornecimento e instalação | C20: un | D20: 6449.33
A21: 308320 | B21: Aparelho de apoio metálico elastomérico unidirecional com capacidade de 10.000 kN - fornecimento e instalação | C21: un | D21: 47192.68
A22: 308316 | B22: Aparelho de apoio metálico elastomérico unidirecional com capacidade de 2.500 kN - fornecimento e instalação | C22: un | D22: 9279.76
A23: 308317 | B23: Aparelho de apoio metálico elastomérico unidirecional com capacidade de 4.000 kN - fornecimento e instalação | C23: un | D23: 18376.15
A24: 308318 | B24: Aparelho de apoio metálico elastomérico unidirecional com capacidade de 5.500 kN - fornecimento e instalação | C24: un | D24: 24237.05
A25: 308319 | B25: Aparelho de apoio metálico elastomérico unidirecional com capacidade de 7.500 kN - fornecimento e instalação | C25: un | D25: 25788.37
A26: 308314 | B26: Aparelho de apoio metálico elastomérico unidirecional com capacidade de 700 kN - fornecimento e instalação | C26: un | D26: 4869.4
A27: 308250 | B27: Aparelho de apoio metálico esférico fixo com capacidade de 1.000 kN - fornecimento e instalação | C27: un | D27: 7703.9
A28: 308251 | B28: Aparelho de apoio metálico esférico fixo com capacidade de 1.500 kN - fornecimento e instalação | C28: un | D28: 12023.51
A29: 308268 | B29: Aparelho de apoio metálico esférico fixo com capacidade de 10.000 kN - fornecimento e instalação | C29: un | D29: 78486.54
A30: 308252 | B30: Aparelho de apoio metálico esférico fixo com capacidade de 2.000 kN - fornecimento e instalação | C30: un | D30: 13875.19
A31: 308253 | B31: Aparelho de apoio metálico esférico fixo com capacidade de 2.500 kN - fornecimento e instalação | C31: un | D31: 16769.33
A32: 308254 | B32: Aparelho de apoio metálico esférico fixo com capacidade de 3.000 kN - fornecimento e instalação | C32: un | D32: 20010.86
A33: 308255 | B33: Aparelho de apoio metálico esférico fixo com capacidade de 3.500 kN - fornecimento e instalação | C33: un | D33: 23120
A34: 308256 | B34: Aparelho de apoio metálico esférico fixo com capacidade de 4.000 kN - fornecimento e instalação | C34: un | D34: 31252.99
A35: 308257 | B35: Aparelho de apoio metálico esférico fixo com capacidade de 4.500 kN - fornecimento e instalação | C35: un | D35: 33411.18
A36: 308258 | B36: Aparelho de apoio metálico esférico fixo com capacidade de 5.000 kN - fornecimento e instalação | C36: un | D36: 37239.62
A37: 308259 | B37: Aparelho de apoio metálico esférico fixo com capacidade de 5.500 kN - fornecimento e instalação | C37: un | D37: 39670.67
A38: 308260 | B38: Aparelho de apoio metálico esférico fixo com capacidade de 6.000 kN - fornecimento e instalação | C38: un | D38: 44651.35
A39: 308261 | B39: Aparelho de apoio metálico esférico fixo com capacidade de 6.500 kN - fornecimento e instalação | C39: un | D39: 48213.86
A40: 308262 | B40: Aparelho de apoio metálico esférico fixo com capacidade de 7.000 kN - fornecimento e instalação | C40: un | D40: 57146.33
A41: 308263 | B41: Aparelho de apoio metálico esférico fixo com capacidade de 7.500 kN - fornecimento e instalação | C41: un | D41: 56698.44
A42: 308264 | B42: Aparelho de apoio metálico esférico fixo com capacidade de 8.000 kN - fornecimento e instalação | C42: un | D42: 58168.19
A43: 308265 | B43: Aparelho de apoio metálico esférico fixo com capacidade de 8.500 kN - fornecimento e instalação | C43: un | D43: 59913.98
A44: 308266 | B44: Aparelho de apoio metálico esférico fixo com capacidade de 9.000 kN - fornecimento e instalação | C44: un | D44: 70450.38
A45: 308267 | B45: Aparelho de apoio metálico esférico fixo com capacidade de 9.500 kN - fornecimento e instalação | C45: un | D45: 74738.31
A46: 308288 | B46: Aparelho de apoio metálico esférico multidirecional com capacidade de 1.000 kN - fornecimento e instalação | C46: un | D46: 8628.35
A47: 308289 | B47: Aparelho de apoio metálico esférico multidirecional com capacidade de 1.500 kN - fornecimento e instalação | C47: un | D47: 11961.27
A48: 308306 | B48: Aparelho de apoio metálico esférico multidirecional com capacidade de 10.000 kN - fornecimento e instalação | C48: un | D48: 74694.15
A49: 308290 | B49: Aparelho de apoio metálico esférico multidirecional com capacidade de 2.000 kN - fornecimento e instalação | C49: un | D49: 15676.61
A50: 308291 | B50: Aparelho de apoio metálico esférico multidirecional com capacidade de 2.500 kN - fornecimento e instalação | C50: un | D50: 18749.71
A51: 308292 | B51: Aparelho de apoio metálico esférico multidirecional com capacidade de 3.000 kN - fornecimento e instalação | C51: un | D51: 21650.59
A52: 308293 | B52: Aparelho de apoio metálico esférico multidirecional com capacidade de 3.500 kN - fornecimento e instalação | C52: un | D52: 24480.88
A53: 308294 | B53: Aparelho de apoio metálico esférico multidirecional com capacidade de 4.000 kN - fornecimento e instalação | C53: un | D53: 27753.82
A54: 308295 | B54: Aparelho de apoio metálico esférico multidirecional com capacidade de 4.500 kN - fornecimento e instalação | C54: un | D54: 32030.01
A55: 308296 | B55: Aparelho de apoio metálico esférico multidirecional com capacidade de 5.000 kN - fornecimento e instalação | C55: un | D55: 35664.2
A56: 308297 | B56: Aparelho de apoio metálico esférico multidirecional com capacidade de 5.500 kN - fornecimento e instalação | C56: un | D56: 38609.06
A57: 308298 | B57: Aparelho de apoio metálico esférico multidirecional com capacidade de 6.000 kN - fornecimento e instalação | C57: un | D57: 43704.83
A58: 308299 | B58: Aparelho de apoio metálico esférico multidirecional com capacidade de 6.500 kN - fornecimento e instalação | C58: un | D58: 47202.61
A59: 308300 | B59: Aparelho de apoio metálico esférico multidirecional com capacidade de 7.000 kN - fornecimento e instalação | C59: un | D59: 50790
A60: 308301 | B60: Aparelho de apoio metálico esférico multidirecional com capacidade de 7.500 kN - fornecimento e instalação | C60: un | D60: 54776.66
A61: 308302 | B61: Aparelho de apoio metálico esférico multidirecional com capacidade de 8.000 kN - fornecimento e instalação | C61: un | D61: 58266.48
A62: 308303 | B62: Aparelho de apoio metálico esférico multidirecional com capacidade de 8.500 kN - fornecimento e instalação | C62: un | D62: 63462.29
A63: 308304 | B63: Aparelho de apoio metálico esférico multidirecional com capacidade de 9.000 kN - fornecimento e instalação | C63: un | D63: 67075.89
A64: 308305 | B64: Aparelho de apoio metálico esférico multidirecional com capacidade de 9.500 kN - fornecimento e instalação | C64: un | D64: 71148.37
A65: 308269 | B65: Aparelho de apoio metálico esférico unidirecional com capacidade de 1.000 kN - fornecimento e instalação | C65: un | D65: 11549.94
A66: 308270 | B66: Aparelho de apoio metálico esférico unidirecional com capacidade de 1.500 kN - fornecimento e instalação | C66: un | D66: 15562.67
A67: 308287 | B67: Aparelho de apoio metálico esférico unidirecional com capacidade de 10.000 kN - fornecimento e instalação | C67: un | D67: 85424.57
A68: 308271 | B68: Aparelho de apoio metálico esférico unidirecional com capacidade de 2.000 kN - fornecimento e instalação | C68: un | D68: 18955.99
A69: 308272 | B69: Aparelho de apoio metálico esférico unidirecional com capacidade de 2.500 kN - fornecimento e instalação | C69: un | D69: 22500.08
A70: 308273 | B70: Aparelho de apoio metálico esférico unidirecional com capacidade de 3.000 kN - fornecimento e instalação | C70: un | D70: 25729.21
A71: 308274 | B71: Aparelho de apoio metálico esférico unidirecional com capacidade de 3.500 kN - fornecimento e instalação | C71: un | D71: 29825.66
A72: 308275 | B72: Aparelho de apoio metálico esférico unidirecional com capacidade de 4.000 kN - fornecimento e instalação | C72: un | D72: 33397.87
A73: 308276 | B73: Aparelho de apoio metálico esférico unidirecional com capacidade de 4.500 kN - fornecimento e instalação | C73: un | D73: 38294.58
A74: 308277 | B74: Aparelho de apoio metálico esférico unidirecional com capacidade de 5.000 kN - fornecimento e instalação | C74: un | D74: 43691.96
A75: 308278 | B75: Aparelho de apoio metálico esférico unidirecional com capacidade de 5.500 kN - fornecimento e instalação | C75: un | D75: 45836.48
A76: 308279 | B76: Aparelho de apoio metálico esférico unidirecional com capacidade de 6.000 kN - fornecimento e instalação | C76: un | D76: 51209.58
A77: 308280 | B77: Aparelho de apoio metálico esférico unidirecional com capacidade de 6.500 kN - fornecimento e instalação | C77: un | D77: 54889.56
A78: 308281 | B78: Aparelho de apoio metálico esférico unidirecional com capacidade de 7.000 kN - fornecimento e instalação | C78: un | D78: 58961.95
A79: 308282 | B79: Aparelho de apoio metálico esférico unidirecional com capacidade de 7.500 kN - fornecimento e instalação | C79: un | D79: 63279.58
A80: 308283 | B80: Aparelho de apoio metálico esférico unidirecional com capacidade de 8.000 kN - fornecimento e instalação | C80: un | D80: 67252.49
A81: 308284 | B81: Aparelho de apoio metálico esférico unidirecional com capacidade de 8.500 kN - fornecimento e instalação | C81: un | D81: 72452.97
A82: 308285 | B82: Aparelho de apoio metálico esférico unidirecional com capacidade de 9.000 kN - fornecimento e instalação | C82: un | D82: 76706.09
A83: 308286 | B83: Aparelho de apoio metálico esférico unidirecional com capacidade de 9.500 kN - fornecimento e instalação | C83: un | D83: 81116.56
A84: 307733 | B84: Junta de dilatação em elastômero e perfil VV - L = 20 mm e H = 40 mm - fornecimento e instalação | C84: m | D84: 277.88
A85: 307734 | B85: Junta de dilatação em elastômero e perfil VV - L = 25 mm e H = 50 mm - fornecimento e instalação | C85: m | D85: 320.27
A86: 307735 | B86: Junta de dilatação em elastômero e perfil VV - L = 35 mm e H = 60 mm - fornecimento e instalação | C86: m | D86: 420.01
A87: 307736 | B87: Junta de dilatação em elastômero e perfil VV - L = 40 mm e H = 70 mm - fornecimento e instalação | C87: m | D87: 560.07
A88: 307737 | B88: Junta de dilatação em elastômero e perfil VV - L = 50 mm e H = 80 mm - fornecimento e instalação | C88: m | D88: 590.32
A89: 307730 | B89: Junta de dilatação em perfil extrudado de borracha vulcanizada | C89: m | D89: 0
A90: 307084 | B90: Lábios poliméricos em junta de pavimento de concreto - L = 20 mm e H = 30 mm - confecção e assentamento | C90: m | D90: 32.79
A91: 407818 | B91: Armação em aço CA-25 - fornecimento, preparo e colocação | C91: kg | D91: 12.37
A92: 407819 | B92: Armação em aço CA-50 - fornecimento, preparo e colocação | C92: kg | D92: 12.85
A93: 407820 | B93: Armação em aço CA-60 - fornecimento, preparo e colocação | C93: kg | D93: 13.85
A94: 407740 | B94: Chumbador tipo espera em aço CA-25 para fixação de estrutura metálica em concreto - fornecimento e instalação | C94: kg | D94: 15.66
A95: 408037 | B95: Luva de emenda com rosca cônica para aço CA-50 - D = 12,5 mm - fornecimento e instalação | C95: un | D95: 20.41
A96: 408038 | B96: Luva de emenda com rosca cônica para aço CA-50 - D = 16 mm - fornecimento e instalação | C96: un | D96: 30.48
A97: 408039 | B97: Luva de emenda com rosca cônica para aço CA-50 - D = 20 mm - fornecimento e instalação | C97: un | D97: 43.67
A98: 408041 | B98: Luva de emenda com rosca cônica para aço CA-50 - D = 25 mm - fornecimento e instalação | C98: un | D98: 55.23
A99: 408042 | B99: Luva de emenda com rosca cônica para aço CA-50 - D = 32 mm - fornecimento e instalação | C99: un | D99: 83.25
A100: 408031 | B100: Luva de emenda prensada para aço CA-50 - D = 12,5 mm - fornecimento e instalação | C100: un | D100: 22.89
A101: 408032 | B101: Luva de emenda prensada para aço CA-50 - D = 16 mm - fornecimento e instalação | C101: un | D101: 31.16
A102: 408033 | B102: Luva de emenda prensada para aço CA-50 - D = 20 mm - fornecimento e instalação | C102: un | D102: 43.28
A103: 408035 | B103: Luva de emenda prensada para aço CA-50 - D = 25 mm - fornecimento e instalação | C103: un | D103: 71.36
A104: 408036 | B104: Luva de emenda prensada para aço CA-50 - D = 32 mm - fornecimento e instalação | C104: un | D104: 158.11
A105: 408067 | B105: Tela de aço eletrossoldada - fornecimento, preparo e colocação | C105: kg | D105: 11.42
A106: 407743 | B106: Treliça nervurada três barras longitudinais interligadas por duas diagonais sinusoidal - fornecimento e instalação | C106: kg | D106: 11.64
A107: 607137 | B107: Arco metálico galvanizado tipo MP 152S - arco alto - vão = 10,08 m e altura = 6,12 m - aterro rodoviário mínimo = 0,90 m e máximo = 5,00 m - areia e brita comerciais | C107: m | D107: 55490.64
A108: 606785 | B108: Arco metálico galvanizado tipo MP 152S - arco alto - vão = 10,08 m e altura = 6,12 m - aterro rodoviário mínimo = 0,90 m e máximo = 5,00 m - areia extraída e brita produzida | C108: m | D108: 54974.55
A109: 607139 | B109: Arco metálico galvanizado tipo MP 152S - arco alto - vão = 10,31 m e altura = 6,17 m - aterro rodoviário mínimo = 0,90 m e máximo = 4,90 m - areia e brita comerciais | C109: m | D109: 56252.73
A110: 606787 | B110: Arco metálico galvanizado tipo MP 152S - arco alto - vão = 10,31 m e altura = 6,17 m - aterro rodoviário mínimo = 0,90 m e máximo = 4,90 m - areia extraída e brita produzida | C110: m | D110: 55400.75
A111: 607140 | B111: Arco metálico galvanizado tipo MP 152S - arco alto - vão = 10,36 m e altura = 5,38 m - aterro rodoviário mínimo = 1,20 m e máximo = 3,60 m - areia e brita comerciais | C111: m | D111: 51279.06
A112: 606788 | B112: Arco metálico galvanizado tipo MP 152S - arco alto - vão = 10,36 m e altura = 5,38 m - aterro rodoviário mínimo = 1,20 m e máximo = 3,60 m - areia extraída e brita produzida | C112: m | D112: 51156.35
A113: 607141 | B113: Arco metálico galvanizado tipo MP 152S - arco alto - vão = 10,54 m e altura = 6,05 m - aterro rodoviário mínimo = 1,20 m e máximo = 4,20 m - areia e brita comerciais | C113: m | D113: 57308.74
A114: 606789 | B114: Arco metálico galvanizado tipo MP 152S - arco alto - vão = 10,54 m e altura = 6,05 m - aterro rodoviário mínimo = 1,20 m e máximo = 4,20 m - areia extraída e brita produzida | C114: m | D114: 56772.38
A115: 607144 | B115: Arco metálico galvanizado tipo MP 152S - arco alto - vão = 10,57 m e altura = 5,41 m - aterro rodoviário mínimo = 1,20 m e máximo = 4,10 m - areia e brita comerciais | C115: m | D115: 66287.87
A116: 606792 | B116: Arco metálico galvanizado tipo MP 152S - arco alto - vão = 10,57 m e altura = 5,41 m - aterro rodoviário mínimo = 1,20 m e máximo = 4,10 m - areia extraída e brita produzida | C116: m | D116: 65797.96
A117: 607142 | B117: Arco metálico galvanizado tipo MP 152S - arco alto - vão = 10,74 m e altura = 6,48 m - aterro rodoviário mínimo = 1,20 m e máximo = 4,70 m - areia e brita comerciais | C117: m | D117: 60157.36
A118: 606790 | B118: Arco metálico galvanizado tipo MP 152S - arco alto - vão = 10,74 m e altura = 6,48 m - aterro rodoviário mínimo = 1,20 m e máximo = 4,70 m - areia extraída e brita produzida | C118: m | D118: 59580.45
A119: 607145 | B119: Arco metálico galvanizado tipo MP 152S - arco alto - vão = 10,77 m e altura = 6,10 m - aterro rodoviário mínimo = 1,20 m e máximo = 4,70 m - areia e brita comerciais | C119: m | D119: 73343.37
A120: 606793 | B120: Arco metálico galvanizado tipo MP 152S - arco alto - vão = 10,77 m e altura = 6,10 m - aterro rodoviário mínimo = 1,20 m e máximo = 4,70 m - areia extraída e brita produzida | C120: m | D120: 72795.46
A121: 607146 | B121: Arco metálico galvanizado tipo MP 152S - arco alto - vão = 10,97 m e altura = 6,53 m - aterro rodoviário mínimo = 1,20 m e máximo = 4,70 m - areia e brita comerciais | C121: m | D121: 76519.73
A122: 606794 | B122: Arco metálico galvanizado tipo MP 152S - arco alto - vão = 10,97 m e altura = 6,53 m - aterro rodoviário mínimo = 1,20 m e máximo = 4,70 m - areia extraída e brita produzida | C122: m | D122: 75925.04
A123: 607143 | B123: Arco metálico galvanizado tipo MP 152S - arco alto - vão = 11,35 m e altura = 7,12 m - aterro rodoviário mínimo = 1,20 m e máximo = 4,70 m - areia e brita comerciais | C123: m | D123: 64999.4
A124: 606791 | B124: Arco metálico galvanizado tipo MP 152S - arco alto - vão = 11,35 m e altura = 7,12 m - aterro rodoviário mínimo = 1,20 m e máximo = 4,70 m - areia extraída e brita produzida | C124: m | D124: 64335.21
A125: 607147 | B125: Arco metálico galvanizado tipo MP 152S - arco alto - vão = 11,58 m e altura = 7,16 m - aterro rodoviário mínimo = 1,20 m e máximo = 6,40 m - areia e brita comerciais | C125: m | D125: 82579.92
A126: 606795 | B126: Arco metálico galvanizado tipo MP 152S - arco alto - vão = 11,58 m e altura = 7,16 m - aterro rodoviário mínimo = 1,20 m e máximo = 6,40 m - areia extraída e brita produzida | C126: m | D126: 81894.66
A127: 607112 | B127: Arco metálico galvanizado tipo MP 152S - arco alto - vão = 6,12 m e altura = 2,77 m - aterro rodoviário mínimo = 0,75 m e máximo = 5,40 m - areia e brita comerciais | C127: m | D127: 26968
A128: 606760 | B128: Arco metálico galvanizado tipo MP 152S - arco alto - vão = 6,12 m e altura = 2,77 m - aterro rodoviário mínimo = 0,75 m e máximo = 5,40 m - areia extraída e brita produzida | C128: m | D128: 26788.37
A129: 607113 | B129: Arco metálico galvanizado tipo MP 152S - arco alto - vão = 6,30 m e altura = 3,68 m - aterro rodoviário mínimo = 0,75 m e máximo = 7,50 m - areia e brita comerciais | C129: m | D129: 31793.01
A130: 606761 | B130: Arco metálico galvanizado tipo MP 152S - arco alto - vão = 6,30 m e altura = 3,68 m - aterro rodoviário mínimo = 0,75 m e máximo = 7,50 m - areia extraída e brita produzida | C130: m | D130: 31586.53
A131: 606762 | B131: Arco metálico galvanizado tipo MP 152S - arco alto - vão = 6,55 m e altura = 3,56 m - aterro rodoviário mínimo = 0,75 m e máximo = 4,9 m - areia extraída e brita produzida | C131: m | D131: 31859.82
A132: 607114 | B132: Arco metálico galvanizado tipo MP 152S - arco alto - vão = 6,55 m e altura = 3,56 m - aterro rodoviário mínimo = 0,75 m e máximo = 4,90 m - areia e brita comerciais | C132: m | D132: 32070.2
A133: 607116 | B133: Arco metálico galvanizado tipo MP 152S - arco alto - vão = 6,78 m e altura = 3,61 m - aterro rodoviário mínimo = 0,75 m e máximo = 4,80 m - areia e brita comerciais | C133: m | D133: 33227.21
A134: 606764 | B134: Arco metálico galvanizado tipo MP 152S - arco alto - vão = 6,78 m e altura = 3,61 m - aterro rodoviário mínimo = 0,75 m e máximo = 4,80 m - areia extraída e brita produzida | C134: m | D134: 33007.96
A135: 607115 | B135: Arco metálico galvanizado tipo MP 152S - arco alto - vão = 6,96 m e altura = 4,42 m - aterro rodoviário mínimo = 0,75 m e máximo = 8,10 m - areia e brita comerciais | C135: m | D135: 37742.43
A136: 606763 | B136: Arco metálico galvanizado tipo MP 152S - arco alto - vão = 6,96 m e altura = 4,42 m - aterro rodoviário mínimo = 0,75 m e máximo = 8,10 m - areia extraída e brita produzida | C136: m | D136: 37478.67
A137: 607117 | B137: Arco metálico galvanizado tipo MP 152S - arco alto - vão = 6,99 m e altura = 4,27 m - aterro rodoviário mínimo = 0,75 m e máximo = 5,70 m - areia e brita comerciais | C137: m | D137: 37748.63
A138: 606765 | B138: Arco metálico galvanizado tipo MP 152S - arco alto - vão = 6,99 m e altura = 4,27 m - aterro rodoviário mínimo = 0,75 m e máximo = 5,70 m - areia extraída e brita produzida | C138: m | D138: 37492.11
A139: 607118 | B139: Arco metálico galvanizado tipo MP 152S - arco alto - vão = 7,01 m e altura = 3,63 m - aterro rodoviário mínimo = 0,75 m e máximo = 4,60 m - areia e brita comerciais | C139: m | D139: 33811.74
A140: 606766 | B140: Arco metálico galvanizado tipo MP 152S - arco alto - vão = 7,01 m e altura = 3,63 m - aterro rodoviário mínimo = 0,75 m e máximo = 4,60 m - areia extraída e brita produzida | C140: m | D140: 33585.4
A141: 607120 | B141: Arco metálico galvanizado tipo MP 152S - arco alto - vão = 7,24 m e altura = 3,68 m - aterro rodoviário mínimo = 0,90 m e máximo = 4,4 m - areia e brita comerciais | C141: m | D141: 34437.51
A142: 606768 | B142: Arco metálico galvanizado tipo MP 152S - arco alto - vão = 7,24 m e altura = 3,68 m - aterro rodoviário mínimo = 0,90 m e máximo = 4,40 m - areia extraída e brita produzida | C142: m | D142: 34199.16
A143: 607119 | B143: Arco metálico galvanizado tipo MP 152S - arco alto - vão = 7,42 m e altura = 4,52 m - aterro rodoviário mínimo = 0,90 m e máximo = 6,40 m - areia e brita comerciais | C143: m | D143: 39619.11
A144: 606767 | B144: Arco metálico galvanizado tipo MP 152S - arco alto - vão = 7,42 m e altura = 4,52 m - aterro rodoviário mínimo = 0,90 m e máximo = 6,40 m - areia extraída e brita produzida | C144: m | D144: 39328.44
A145: 607121 | B145: Arco metálico galvanizado tipo MP 152S - arco alto - vão = 7,47 m e altura = 4,19 m - aterro rodoviário mínimo = 0,90 m e máximo = 4,30 m - areia e brita comerciais | C145: m | D145: 37292.36
A146: 606769 | B146: Arco metálico galvanizado tipo MP 152S - arco alto - vão = 7,47 m e altura = 4,19 m - aterro rodoviário mínimo = 0,90 m e máximo = 4,30 m - areia extraída e brita produzida | C146: m | D146: 37020.62
A147: 607123 | B147: Arco metálico galvanizado tipo MP 152S - arco alto - vão = 7,67 m e altura = 3,99 m - aterro rodoviário mínimo = 0,90 m e máximo = 4,10 m - areia e brita comerciais | C147: m | D147: 36804.13
A148: 606771 | B148: Arco metálico galvanizado tipo MP 152S - arco alto - vão = 7,67 m e altura = 3,99 m - aterro rodoviário mínimo = 0,90 m e máximo = 4,10 m - areia extraída e brita produzida | C148: m | D148: 36533.41
A149: 607122 | B149: Arco metálico galvanizado tipo MP 152S - arco alto - vão = 7,85 m e altura = 4,60 m - aterro rodoviário mínimo = 0,90 m e máximo = 6,00 m - areia e brita comerciais | C149: m | D149: 40863.48
A150: 606770 | B150: Arco metálico galvanizado tipo MP 152S - arco alto - vão = 7,85 m e altura = 4,60 m - aterro rodoviário mínimo = 0,90 m e máximo = 6,00 m - areia extraída e brita produzida | C150: m | D150: 40551.25
A151: 607125 | B151: Arco metálico galvanizado tipo MP 152S - arco alto - vão = 7,90 m e altura = 4,04 m - aterro rodoviário mínimo = 0,90 m e máximo = 4,00 m - areia e brita comerciais | C151: m | D151: 38073.63
A152: 606773 | B152: Arco metálico galvanizado tipo MP 152S - arco alto - vão = 7,90 m e altura = 4,04 m - aterro rodoviário mínimo = 0,90 m e máximo = 4,00 m - areia extraída e brita produzida | C152: m | D152: 37788.78
A153: 607124 | B153: Arco metálico galvanizado tipo MP 152S - arco alto - vão = 8,08 m e altura = 4,65 m - aterro rodoviário mínimo = 0,90 m e máximo = 5,80 m - areia e brita comerciais | C153: m | D153: 41482.38
A154: 606772 | B154: Arco metálico galvanizado tipo MP 152S - arco alto - vão = 8,08 m e altura = 4,65 m - aterro rodoviário mínimo = 0,90 m e máximo = 5,80 m - areia extraída e brita produzida | C154: m | D154: 41160.16
A155: 607126 | B155: Arco metálico galvanizado tipo MP 152S - arco alto - vão = 8,31 m e altura = 4,70 m - aterro rodoviário mínimo = 0,90 m e máximo = 5,60 m - areia e brita comerciais | C155: m | D155: 42648.06
A156: 606774 | B156: Arco metálico galvanizado tipo MP 152S - arco alto - vão = 8,31 m e altura = 4,70 m - aterro rodoviário mínimo = 0,90 m e máximo = 5,60 m - areia extraída e brita produzida | C156: m | D156: 42310.32
A157: 607127 | B157: Arco metálico galvanizado tipo MP 152S - arco alto - vão = 8,36 m e altura = 4,11 m - aterro rodoviário mínimo = 0,90 m e máximo = 3,70 m - areia e brita comerciais | C157: m | D157: 39252
A158: 606775 | B158: Arco metálico galvanizado tipo MP 152S - arco alto - vão = 8,36 m e altura = 4,11 m - aterro rodoviário mínimo = 0,90 m e máximo = 3,70 m - areia extraída e brita produzida | C158: m | D158: 38950.03
A159: 607129 | B159: Arco metálico galvanizado tipo MP 152S - arco alto - vão = 8,59 m e altura = 4,39 m - aterro rodoviário mínimo = 0,90 m e máximo = 3,60 m - areia e brita comerciais | C159: m | D159: 41087.15
A160: 606777 | B160: Arco metálico galvanizado tipo MP 152S - arco alto - vão = 8,59 m e altura = 4,39 m - aterro rodoviário mínimo = 0,90 m e máximo = 3,60 m - areia extraída e brita produzida | C160: m | D160: 40756.45
A161: 607128 | B161: Arco metálico galvanizado tipo MP 152S - arco alto - vão = 8,97 m e altura = 5,00 m - aterro rodoviário mínimo = 0,90 m e máximo = 5,80 m - areia e brita comerciais | C161: m | D161: 45220.72
A162: 606776 | B162: Arco metálico galvanizado tipo MP 152S - arco alto - vão = 8,97 m e altura = 5,00 m - aterro rodoviário mínimo = 0,90 m e máximo = 5,80 m - areia extraída e brita produzida | C162: m | D162: 44834.33
A163: 607130 | B163: Arco metálico galvanizado tipo MP 152S - arco alto - vão = 9,17 m e altura = 5,49 m - aterro rodoviário mínimo = 0,90 m e máximo = 5,60 m - areia e brita comerciais | C163: m | D163: 48207.54
A164: 606778 | B164: Arco metálico galvanizado tipo MP 152S - arco alto - vão = 9,17 m e altura = 5,49 m - aterro rodoviário mínimo = 0,90 m e máximo = 5,60 m - areia extraída e brita produzida | C164: m | D164: 47782.83
A165: 607131 | B165: Arco metálico galvanizado tipo MP 152S - arco alto - vão = 9,22 m e altura = 4,70 m - aterro rodoviário mínimo = 0,90 m e máximo = 4,10 m - areia e brita comerciais | C165: m | D165: 45246.31
A166: 606779 | B166: Arco metálico galvanizado tipo MP 152S - arco alto - vão = 9,22 m e altura = 4,70 m - aterro rodoviário mínimo = 0,90 m e máximo = 4,10 m - areia extraída e brita produzida | C166: m | D166: 44870.58
A167: 607133 | B167: Arco metálico galvanizado tipo MP 152S - arco alto - vão = 9,45 m e altura = 4,75 m - aterro rodoviário mínimo = 0,90 m e máximo = 4,00 m - areia e brita comerciais | C167: m | D167: 45940.21
A168: 606781 | B168: Arco metálico galvanizado tipo MP 152S - arco alto - vão = 9,45 m e altura = 4,75 m - aterro rodoviário mínimo = 0,90 m e máximo = 4,00 m - areia extraída e brita produzida | C168: m | D168: 45553.18
A169: 607132 | B169: Arco metálico galvanizado tipo MP 152S - arco alto - vão = 9,63 m e altura = 5,59 m - aterro rodoviário mínimo = 0,90 m e máximo = 5,30 m - areia e brita comerciais | C169: m | D169: 50098.92
A170: 606780 | B170: Arco metálico galvanizado tipo MP 152S - arco alto - vão = 9,63 m e altura = 5,59 m - aterro rodoviário mínimo = 0,90 m e máximo = 5,30 m - areia extraída e brita produzida | C170: m | D170: 49644.44
A171: 607134 | B171: Arco metálico galvanizado tipo MP 152S - arco alto - vão = 9,65 m e altura = 5,41 m - aterro rodoviário mínimo = 0,90 m e máximo = 4,70 m - areia e brita comerciais | C171: m | D171: 49616.5
A172: 606782 | B172: Arco metálico galvanizado tipo MP 152S - arco alto - vão = 9,65 m e altura = 5,41 m - aterro rodoviário mínimo = 0,90 m e máximo = 4,70 m - areia extraída e brita produzida | C172: m | D172: 49172.41
A173: 607136 | B173: Arco metálico galvanizado tipo MP 152S - arco alto - vão = 9,68 m e altura = 5,23 m - aterro rodoviário mínimo = 0,90 m e máximo = 3,90 m - areia e brita comerciais | C173: m | D173: 48945.24
A174: 606784 | B174: Arco metálico galvanizado tipo MP 152S - arco alto - vão = 9,68 m e altura = 5,23 m - aterro rodoviário mínimo = 0,90 m e máximo = 3,90 m - areia extraída e brita produzida | C174: m | D174: 48515.33
A175: 607135 | B175: Arco metálico galvanizado tipo MP 152S - arco alto - vão = 9,86 m e altura = 6,07 m - aterro rodoviário mínimo = 0,90 m e máximo = 5,20 m - areia e brita comerciais | C175: m | D175: 54678.54
A176: 606783 | B176: Arco metálico galvanizado tipo MP 152S - arco alto - vão = 9,86 m e altura = 6,07 m - aterro rodoviário mínimo = 0,90 m e máximo = 5,20 m - areia extraída e brita produzida | C176: m | D176: 54180.16
A177: 607138 | B177: Arco metálico galvanizado tipo MP 152S - arco alto - vão = 9,91 m e altura = 5,28 m - aterro rodoviário mínimo = 0,90 m e máximo = 3,80 m - areia e brita comerciais | C177: m | D177: 49813.17
A178: 606786 | B178: Arco metálico galvanizado tipo MP 152S - arco alto - vão = 9,91 m e altura = 5,28 m - aterro rodoviário mínimo = 0,90 m e máximo = 3,80 m - areia extraída e brita produzida | C178: m | D178: 49355.19
A179: 606842 | B179: Arco metálico galvanizado tipo MP 152S - ovoide - vão = 7,21 m e altura = 7,82 m - aterro rodoviário mínimo = 0,75 m e máximo = 6,70 m - areia e brita comerciais | C179: m | D179: 61436.24
A180: 606832 | B180: Arco metálico galvanizado tipo MP 152S - ovoide - vão = 7,21 m e altura = 7,82 m - aterro rodoviário mínimo = 0,75 m e máximo = 6,70 m - areia extraída e brita produzida | C180: m | D180: 61200.79
A181: 606843 | B181: Arco metálico galvanizado tipo MP 152S - ovoide - vão = 7,31 m e altura = 7,87 m - aterro rodoviário mínimo = 0,90 m e máximo = 6,80 m - areia e brita comerciais | C181: m | D181: 63848.54
A182: 606833 | B182: Arco metálico galvanizado tipo MP 152S - ovoide - vão = 7,31 m e altura = 7,87 m - aterro rodoviário mínimo = 0,90 m e máximo = 6,80 m - areia extraída e brita produzida | C182: m | D182: 63600.22
A183: 606845 | B183: Arco metálico galvanizado tipo MP 152S - ovoide - vão = 7,57 m e altura = 8,44 m - aterro rodoviário mínimo = 0,90 m e máximo = 5,60 m - areia e brita comerciais | C183: m | D183: 66203.77
A184: 606835 | B184: Arco metálico galvanizado tipo MP 152S - ovoide - vão = 7,57 m e altura = 8,44 m - aterro rodoviário mínimo = 0,90 m e máximo = 5,60 m - areia extraída e brita produzida | C184: m | D184: 65957.05
A185: 606844 | B185: Arco metálico galvanizado tipo MP 152S - ovoide - vão = 7,77 m e altura = 7,90 m - aterro rodoviário mínimo = 0,90 m e máximo = 6,80 m - areia e brita comerciais | C185: m | D185: 64824.19
A186: 606834 | B186: Arco metálico galvanizado tipo MP 152S - ovoide - vão = 7,77 m e altura = 7,90 m - aterro rodoviário mínimo = 0,90 m e máximo = 6,80 m - areia extraída e brita produzida | C186: m | D186: 64570.06
A187: 606847 | B187: Arco metálico galvanizado tipo MP 152S - ovoide - vão = 8,13 m e altura = 8,01 m - aterro rodoviário mínimo = 0,90 m e máximo = 3,50 m - areia e brita comerciais | C187: m | D187: 69218.57
A188: 606837 | B188: Arco metálico galvanizado tipo MP 152S - ovoide - vão = 8,13 m e altura = 8,01 m - aterro rodoviário mínimo = 0,90 m e máximo = 3,50 m - areia extraída e brita produzida | C188: m | D188: 68939.41
A189: 606846 | B189: Arco metálico galvanizado tipo MP 152S - ovoide - vão = 8,36 m e altura = 8,23 m - aterro rodoviário mínimo = 0,90 m e máximo = 4,30 m - areia e brita comerciais | C189: m | D189: 70945.69
A190: 606836 | B190: Arco metálico galvanizado tipo MP 152S - ovoide - vão = 8,36 m e altura = 8,23 m - aterro rodoviário mínimo = 0,90 m e máximo = 4,30 m - areia extraída e brita produzida | C190: m | D190: 70663.81
A191: 606848 | B191: Arco metálico galvanizado tipo MP 152S - ovoide - vão = 8,56 m e altura = 8,48 m - aterro rodoviário mínimo = 0,90 m e máximo = 5,30 m - areia e brita comerciais | C191: m | D191: 71893.06
A192: 606838 | B192: Arco metálico galvanizado tipo MP 152S - ovoide - vão = 8,56 m e altura = 8,48 m - aterro rodoviário mínimo = 0,90 m e máximo = 5,30 m - areia extraída e brita produzida | C192: m | D192: 71599.34
A193: 606849 | B193: Arco metálico galvanizado tipo MP 152S - ovoide - vão = 8,71 m e altura = 9,32 m - aterro rodoviário mínimo = 0,90 m e máximo = 6,00 m - areia e brita comerciais | C193: m | D193: 75649.15
A194: 606839 | B194: Arco metálico galvanizado tipo MP 152S - ovoide - vão = 8,71 m e altura = 9,32 m - aterro rodoviário mínimo = 0,90 m e máximo = 6,00 m - areia extraída e brita produzida | C194: m | D194: 75363.75
A195: 606850 | B195: Arco metálico galvanizado tipo MP 152S - ovoide - vão = 9,15 m e altura = 9,04 m - aterro rodoviário mínimo = 0,90 m e máximo = 4,70 m - areia e brita comerciais | C195: m | D195: 76283.28
A196: 606840 | B196: Arco metálico galvanizado tipo MP 152S - ovoide - vão = 9,15 m e altura = 9,04 m - aterro rodoviário mínimo = 0,90 m e máximo = 4,70 m - areia extraída e brita produzida | C196: m | D196: 75969.77
A197: 606851 | B197: Arco metálico galvanizado tipo MP 152S - ovoide - vão = 9,15 m e altura = 9,50 m - aterro rodoviário mínimo = 0,90 m e máximo = 5,70 m - areia e brita comerciais | C197: m | D197: 78519.37
A198: 606841 | B198: Arco metálico galvanizado tipo MP 152S - ovoide - vão = 9,15 m e altura = 9,50 m - aterro rodoviário mínimo = 0,90 m e máximo = 5,70 m - areia extraída e brita produzida | C198: m | D198: 78220.48
A199: 605604 | B199: Argamassa de solo-cimento com 10% de cimento e material de jazida - preparo e injeção em tunnel liner | C199: m³ | D199: 312.77
A200: 605695 | B200: Bueiro metálico com chapas múltiplas MP 100 com revestimento em epóxi - D = 0,60 m - brita comercial | C200: m | D200: 1455.07
... 6297 more rows

Sheet INSUMOS SINAPI
A1: SINAPI - Sistema Nacional de Pesquisa de Custos e Índices da Construção Civil
A2: RELATÓRIO DE PREÇOS DE INSUMOS - ENCARGOS SOCIAIS COM DESONERAÇÃO
A3: Mês de Referência: | B3: 08/2025 | E3: Encargos sociais sobre a mão de obra:
A4: Data de emissão: | B4: 10/09/2025 | E4: (COM DESONERAÇÃO) | F4: PE
E5: Localidade | F5: RECIFE
A6: Origem de preço: | B6: C = COLETADO | C6: CR = COEFICIENTE DE REPRESENTATIVIDADE | E6: Horista | F6: 0.9123
A7: Preço em branco para determinado estado significa que não houve coleta mínima de preços no mês de referência | E7: Mensalista | F7: 0.5209
A9: Acessar Fichas de Especificação Técnico dos Insumos | E9: Preços Medianos (R$):
A10: Código do Insumo | B10: Descrição do Insumo | C10: Unidade | D10: Origem de Preço | E10: DF
A11: 45333 | B11: ABERTURA PARA ENCAIXE DE CUBA OU LAVATORIO EM BANCADA DE MARMORE/ GRANITO OU OUTRO TIPO DE PEDRA NATURAL | C11: UN | D11: CR | E11: 186.58
A12: 11270 | B12: ABRACADEIRA DE LATAO PARA FIXACAO DE CABO PARA-RAIO, DIMENSOES 32 X 24 X 24 MM | C12: UN | D12: CR | E12: 4.05
A13: 412 | B13: ABRACADEIRA DE NYLON PARA AMARRACAO DE CABOS, COMPRIMENTO DE *230* X *7,6* MM | C13: UN | D13: CR | E13: 1.18
A14: 414 | B14: ABRACADEIRA DE NYLON PARA AMARRACAO DE CABOS, COMPRIMENTO DE 100 X 2,5 MM | C14: UN | D14: CR | E14: 0.07
A15: 410 | B15: ABRACADEIRA DE NYLON PARA AMARRACAO DE CABOS, COMPRIMENTO DE 150 X *3,6* MM | C15: UN | D15: CR | E15: 0.18
A16: 411 | B16: ABRACADEIRA DE NYLON PARA AMARRACAO DE CABOS, COMPRIMENTO DE 200 X *4,6* MM | C16: UN | D16: C | E16: 0.23
A17: 408 | B17: ABRACADEIRA DE NYLON PARA AMARRACAO DE CABOS, COMPRIMENTO DE 390 X *4,6* MM | C17: UN | D17: CR | E17: 1.14
A18: 39131 | B18: ABRACADEIRA EM ACO PARA AMARRACAO DE ELETRODUTOS, TIPO D, COM 1 1/2" E CUNHA DE FIXACAO | C18: UN | D18: CR | E18: 4.93
A19: 394 | B19: ABRACADEIRA EM ACO PARA AMARRACAO DE ELETRODUTOS, TIPO D, COM 1 1/2" E PARAFUSO DE FIXACAO | C19: UN | D19: CR | E19: 4.99
A20: 39130 | B20: ABRACADEIRA EM ACO PARA AMARRACAO DE ELETRODUTOS, TIPO D, COM 1 1/4" E CUNHA DE FIXACAO | C20: UN | D20: CR | E20: 4.5
A21: 395 | B21: ABRACADEIRA EM ACO PARA AMARRACAO DE ELETRODUTOS, TIPO D, COM 1 1/4" E PARAFUSO DE FIXACAO | C21: UN | D21: CR | E21: 4.81
A22: 39129 | B22: ABRACADEIRA EM ACO PARA AMARRACAO DE ELETRODUTOS, TIPO D, COM 1" E CUNHA DE FIXACAO | C22: UN | D22: CR | E22: 2.77
A23: 393 | B23: ABRACADEIRA EM ACO PARA AMARRACAO DE ELETRODUTOS, TIPO D, COM 1" E PARAFUSO DE FIXACAO | C23: UN | D23: C | E23: 2.9
A24: 39127 | B24: ABRACADEIRA EM ACO PARA AMARRACAO DE ELETRODUTOS, TIPO D, COM 1/2" E CUNHA DE FIXACAO | C24: UN | D24: CR | E24: 2.37
A25: 392 | B25: ABRACADEIRA EM ACO PARA AMARRACAO DE ELETRODUTOS, TIPO D, COM 1/2" E PARAFUSO DE FIXACAO | C25: UN | D25: CR | E25: 2.43
A26: 39133 | B26: ABRACADEIRA EM ACO PARA AMARRACAO DE ELETRODUTOS, TIPO D, COM 2 1/2" E CUNHA DE FIXACAO | C26: UN | D26: CR | E26: 6.47
A27: 397 | B27: ABRACADEIRA EM ACO PARA AMARRACAO DE ELETRODUTOS, TIPO D, COM 2 1/2" E PARAFUSO DE FIXACAO | C27: UN | D27: CR | E27: 7.15
A28: 39132 | B28: ABRACADEIRA EM ACO PARA AMARRACAO DE ELETRODUTOS, TIPO D, COM 2" E CUNHA DE FIXACAO | C28: UN | D28: CR | E28: 5.18
A29: 396 | B29: ABRACADEIRA EM ACO PARA AMARRACAO DE ELETRODUTOS, TIPO D, COM 2" E PARAFUSO DE FIXACAO | C29: UN | D29: CR | E29: 5.55
A30: 39135 | B30: ABRACADEIRA EM ACO PARA AMARRACAO DE ELETRODUTOS, TIPO D, COM 3 1/2" E CUNHA DE FIXACAO | C30: UN | D30: CR | E30: 10.36
A31: 39134 | B31: ABRACADEIRA EM ACO PARA AMARRACAO DE ELETRODUTOS, TIPO D, COM 3" E CUNHA DE FIXACAO | C31: UN | D31: CR | E31: 8.63
A32: 398 | B32: ABRACADEIRA EM ACO PARA AMARRACAO DE ELETRODUTOS, TIPO D, COM 3" E PARAFUSO DE FIXACAO | C32: UN | D32: CR | E32: 7.95
A33: 39128 | B33: ABRACADEIRA EM ACO PARA AMARRACAO DE ELETRODUTOS, TIPO D, COM 3/4" E CUNHA DE FIXACAO | C33: UN | D33: CR | E33: 2.59
A34: 400 | B34: ABRACADEIRA EM ACO PARA AMARRACAO DE ELETRODUTOS, TIPO D, COM 3/4" E PARAFUSO DE FIXACAO | C34: UN | D34: CR | E34: 2.52
A35: 39125 | B35: ABRACADEIRA EM ACO PARA AMARRACAO DE ELETRODUTOS, TIPO D, COM 3/8" E PARAFUSO DE FIXACAO | C35: UN | D35: CR | E35: 2.59
A36: 39126 | B36: ABRACADEIRA EM ACO PARA AMARRACAO DE ELETRODUTOS, TIPO D, COM 4" E CUNHA DE FIXACAO | C36: UN | D36: CR | E36: 11.66
A37: 399 | B37: ABRACADEIRA EM ACO PARA AMARRACAO DE ELETRODUTOS, TIPO D, COM 4" E PARAFUSO DE FIXACAO | C37: UN | D37: CR | E37: 10.27
A38: 39158 | B38: ABRACADEIRA EM ACO PARA AMARRACAO DE ELETRODUTOS, TIPO ECONOMICA (GOTA), COM 8" | C38: UN | D38: CR | E38: 27.58
A39: 39141 | B39: ABRACADEIRA EM ACO PARA AMARRACAO DE ELETRODUTOS, TIPO U SIMPLES, COM 1 1/2" | C39: UN | D39: CR | E39: 2
A40: 39140 | B40: ABRACADEIRA EM ACO PARA AMARRACAO DE ELETRODUTOS, TIPO U SIMPLES, COM 1 1/4" | C40: UN | D40: CR | E40: 1.82
A41: 39139 | B41: ABRACADEIRA EM ACO PARA AMARRACAO DE ELETRODUTOS, TIPO U SIMPLES, COM 1" | C41: UN | D41: CR | E41: 1.51
A42: 39137 | B42: ABRACADEIRA EM ACO PARA AMARRACAO DE ELETRODUTOS, TIPO U SIMPLES, COM 1/2" | C42: UN | D42: CR | E42: 1.04
A43: 39143 | B43: ABRACADEIRA EM ACO PARA AMARRACAO DE ELETRODUTOS, TIPO U SIMPLES, COM 2 1/2" | C43: UN | D43: CR | E43: 4.13
A44: 39142 | B44: ABRACADEIRA EM ACO PARA AMARRACAO DE ELETRODUTOS, TIPO U SIMPLES, COM 2" | C44: UN | D44: CR | E44: 2.96
A45: 39144 | B45: ABRACADEIRA EM ACO PARA AMARRACAO DE ELETRODUTOS, TIPO U SIMPLES, COM 3" | C45: UN | D45: CR | E45: 4.81
A46: 39138 | B46: ABRACADEIRA EM ACO PARA AMARRACAO DE ELETRODUTOS, TIPO U SIMPLES, COM 3/4" | C46: UN | D46: CR | E46: 1.11
A47: 39136 | B47: ABRACADEIRA EM ACO PARA AMARRACAO DE ELETRODUTOS, TIPO U SIMPLES, COM 3/8" | C47: UN | D47: CR | E47: 0.74
A48: 39145 | B48: ABRACADEIRA EM ACO PARA AMARRACAO DE ELETRODUTOS, TIPO U SIMPLES, COM 4" | C48: UN | D48: CR | E48: 7.92
A49: 12615 | B49: ABRACADEIRA PVC, PARA CALHA PLUVIAL, DIAMETRO ENTRE *80 E 100* MM, PARA DRENAGEM PLUVIAL PREDIAL | C49: UN | D49: CR | E49: 10.07
A50: 11927 | B50: ABRACADEIRA, GALVANIZADA/ZINCADA, ROSCA SEM FIM, PARAFUSO INOX, LARGURA FITA *12,6 A *14 MM, D = 2" A 2 1/2" | C50: UN | D50: CR | E50: 12.1
A51: 11928 | B51: ABRACADEIRA, GALVANIZADA/ZINCADA, ROSCA SEM FIM, PARAFUSO INOX, LARGURA FITA *12,6 A *14 MM, D = 3" A 3 3/4" | C51: UN | D51: CR | E51: 13.87
A52: 11929 | B52: ABRACADEIRA, GALVANIZADA/ZINCADA, ROSCA SEM FIM, PARAFUSO INOX, LARGURA FITA *12,6 A *14 MM, D = 4" A 4 3/4" | C52: UN | D52: CR | E52: 21.45
A53: 36801 | B53: ACABAMENTO DE METAL CROMADO PARA REGISTRO PEQUENO, DE PAREDE, 1/2" OU 3/4" | C53: UN | D53: CR | E53: 40.82
A54: 36246 | B54: ACABAMENTO SIMPLES/CONVENCIONAL PARA FORRO PVC, TIPO "U" OU "C", COR BRANCA, COMPRIMENTO 6 M | C54: M | D54: CR | E54: 4.08
A55: 37600 | B55: ACESSORIO DE LIGACAO NAO ELETRICO PARA CARGAS EXPLOSIVAS, TUBO DE 6 M | C55: UN | D55: CR
A56: 37599 | B56: ACESSORIO INICIADOR NAO ELETRICO, TUBO DE 6 M, TEMPO DE RETARDO DE *160* MS | C56: UN | D56: CR
A57: 1 | B57: ACETILENO - RECARGA DE GAS PARA CILINDRO (NAO INCLUI TROCA/MANUTENCAO DO CILINDRO) | C57: KG | D57: C
A58: 3 | B58: ACIDO CLORIDRICO / ACIDO MURIATICO, DILUICAO 10% A 12% PARA USO EM LIMPEZA | C58: L | D58: CR | E58: 26.48
A59: 43054 | B59: ACO CA-25, 10,0 MM, OU 12,5 MM, OU 16,0 MM, OU 20,0 MM, OU 25,0 MM, VERGALHAO | C59: KG | D59: CR | E59: 8.13
A60: 42402 | B60: ACO CA-25, 16,0 MM, BARRA DE TRANSFERENCIA | C60: KG | D60: CR | E60: 7.77
A61: 42403 | B61: ACO CA-25, 20,0 MM, BARRA DE TRANSFERENCIA | C61: KG | D61: CR | E61: 9.97
A62: 42404 | B62: ACO CA-25, 25,0 MM, BARRA DE TRANSFERENCIA | C62: KG | D62: CR | E62: 9.92
A63: 42405 | B63: ACO CA-25, 32,0 MM, BARRA DE TRANSFERENCIA | C63: KG | D63: CR | E63: 10.56
A64: 34341 | B64: ACO CA-25, 32,0 MM, VERGALHAO | C64: KG | D64: CR | E64: 9.17
A65: 43053 | B65: ACO CA-25, 6,3 MM OU 8,0 MM, VERGALHAO | C65: KG | D65: CR | E65: 7.27
A66: 43058 | B66: ACO CA-50, 10,0 MM, OU 12,5 MM, OU 16,0 MM, OU 20,0 MM, DOBRADO E CORTADO | C66: KG | D66: CR | E66: 7.53
A67: 34 | B67: ACO CA-50, 10,0 MM, VERGALHAO | C67: KG | D67: CR | E67: 7.57
A68: 43055 | B68: ACO CA-50, 12,5 MM OU 16,0 MM, VERGALHAO | C68: KG | D68: C | E68: 6.56
A69: 43056 | B69: ACO CA-50, 20,0 MM OU 25,0 MM, VERGALHAO | C69: KG | D69: CR | E69: 7.56
A70: 43057 | B70: ACO CA-50, 32,0 MM, VERGALHAO | C70: KG | D70: CR | E70: 8.31
A71: 34449 | B71: ACO CA-50, 6,3 MM, DOBRADO E CORTADO | C71: KG | D71: CR | E71: 8.88
A72: 32 | B72: ACO CA-50, 6,3 MM, VERGALHAO | C72: KG | D72: CR | E72: 7.99
A73: 33 | B73: ACO CA-50, 8,0 MM, VERGALHAO | C73: KG | D73: CR | E73: 8.03
A74: 43061 | B74: ACO CA-60, 4,2 MM OU 5,0 MM, DOBRADO E CORTADO | C74: KG | D74: CR | E74: 7.51
A75: 43059 | B75: ACO CA-60, 4,2 MM, OU 5,0 MM, OU 6,0 MM, OU 7,0 MM, VERGALHAO | C75: KG | D75: CR | E75: 7.16
A76: 43062 | B76: ACO CA-60, 6,0 MM OU 7,0 MM, DOBRADO E CORTADO | C76: KG | D76: CR | E76: 7.94
A77: 43060 | B77: ACO CA-60, 8,0 MM OU 9,5 MM, VERGALHAO | C77: KG | D77: CR | E77: 6.24
A78: 40410 | B78: ACOPLAMENTO RIGIDO EM FERRO FUNDIDO PARA SISTEMA DE TUBULACAO RANHURADA, DN 50 MM (2") | C78: UN | D78: C
A79: 40411 | B79: ACOPLAMENTO RIGIDO EM FERRO FUNDIDO PARA SISTEMA DE TUBULACAO RANHURADA, DN 65 MM (2 1/2") | C79: UN | D79: CR
A80: 40412 | B80: ACOPLAMENTO RIGIDO EM FERRO FUNDIDO PARA SISTEMA DE TUBULACAO RANHURADA, DN 80 MM (3") | C80: UN | D80: CR
A81: 44254 | B81: ADAPTADOR CPVC, ROSCAVEL, COM FLANGES E ANEL DE VEDACAO, 15 MM, CAIXA D'AGUA PARA AGUA QUENTE | C81: UN | D81: CR | E81: 32.55
A82: 44255 | B82: ADAPTADOR CPVC, ROSCAVEL, COM FLANGES E ANEL DE VEDACAO, 22 MM, CAIXA D'AGUA PARA AGUA QUENTE | C82: UN | D82: CR | E82: 36.08
A83: 44256 | B83: ADAPTADOR CPVC, ROSCAVEL, COM FLANGES E ANEL DE VEDACAO, 28 MM, CAIXA D'AGUA PARA AGUA QUENTE | C83: UN | D83: CR | E83: 40.75
A84: 44257 | B84: ADAPTADOR CPVC, ROSCAVEL, COM FLANGES E ANEL DE VEDACAO, 35 MM, CAIXA D'AGUA PARA AGUA QUENTE | C84: UN | D84: CR | E84: 64.47
A85: 44258 | B85: ADAPTADOR CPVC, ROSCAVEL, COM FLANGES E ANEL DE VEDACAO, 42 MM, CAIXA D'AGUA PARA AGUA QUENTE | C85: UN | D85: CR | E85: 73.68
A86: 44259 | B86: ADAPTADOR CPVC, ROSCAVEL, COM FLANGES E ANEL DE VEDACAO, 54 MM, CAIXA D'AGUA PARA AGUA QUENTE | C86: UN | D86: CR | E86: 101.13
A87: 37997 | B87: ADAPTADOR CPVC, SOLDAVEL, 15 MM, PARA AGUA QUENTE | C87: UN | D87: CR | E87: 19.4
A88: 37998 | B88: ADAPTADOR CPVC, SOLDAVEL, 22 MM, PARA AGUA QUENTE | C88: UN | D88: CR | E88: 25.96
A89: 55 | B89: ADAPTADOR DE COMPRESSAO EM POLIPROPILENO (PP), PARA TUBO EM PEAD, 20 MM X 1/2", PARA LIGACAO PREDIAL DE AGUA (NTS 179) | C89: UN | D89: C
A90: 61 | B90: ADAPTADOR DE COMPRESSAO EM POLIPROPILENO (PP), PARA TUBO EM PEAD, 20 MM X 3/4", PARA LIGACAO PREDIAL DE AGUA (NTS 179) | C90: UN | D90: CR
A91: 62 | B91: ADAPTADOR DE COMPRESSAO EM POLIPROPILENO (PP), PARA TUBO EM PEAD, 32 MM X 1", PARA LIGACAO PREDIAL DE AGUA (NTS 179) | C91: UN | D91: CR
A92: 10899 | B92: ADAPTADOR EM LATAO, ENGATE RAPIDO 2 1/2" X ROSCA INTERNA 5 FIOS 2 1/2", PARA INSTALACAO PREDIAL DE COMBATE A INCENDIO | C92: UN | D92: CR | E92: 100.76
A93: 10900 | B93: ADAPTADOR EM LATAO, ENGATE RAPIDO1 1/2" X ROSCA INTERNA 5 FIOS 2 1/2", PARA INSTALACAO PREDIAL DE COMBATE A INCENDIO | C93: UN | D93: CR | E93: 78.85
A94: 47 | B94: ADAPTADOR PVC PBA, BOLSA/ROSCA, JE, DN 100 / DE 110 MM | C94: UN | D94: CR
A95: 48 | B95: ADAPTADOR PVC PBA, BOLSA/ROSCA, JE, DN 50 / DE 60 MM | C95: UN | D95: CR
A96: 46 | B96: ADAPTADOR PVC PBA, BOLSA/ROSCA, JE, DN 75 / DE 85 MM | C96: UN | D96: CR
A97: 52 | B97: ADAPTADOR PVC PBA, PONTA/ROSCA, JE, DN 50 / DE 60 MM | C97: UN | D97: CR
A98: 43 | B98: ADAPTADOR PVC PBA, PONTA/ROSCA, JE, DN 75 / DE 85 MM | C98: UN | D98: CR
A99: 103 | B99: ADAPTADOR PVC SOLDAVEL CURTO COM BOLSA E ROSCA, 110 MM X 4", PARA AGUA FRIA | C99: UN | D99: CR | E99: 43.33
A100: 107 | B100: ADAPTADOR PVC SOLDAVEL CURTO COM BOLSA E ROSCA, 20 MM X 1/2", PARA AGUA FRIA | C100: UN | D100: CR | E100: 0.81
A101: 65 | B101: ADAPTADOR PVC SOLDAVEL CURTO COM BOLSA E ROSCA, 25 MM X 3/4", PARA AGUA FRIA | C101: UN | D101: CR | E101: 0.89
A102: 108 | B102: ADAPTADOR PVC SOLDAVEL CURTO COM BOLSA E ROSCA, 32 MM X 1", PARA AGUA FRIA | C102: UN | D102: CR | E102: 1.79
A103: 110 | B103: ADAPTADOR PVC SOLDAVEL CURTO COM BOLSA E ROSCA, 40 MM X 1 1/2", PARA AGUA FRIA | C103: UN | D103: CR | E103: 6.23
A104: 109 | B104: ADAPTADOR PVC SOLDAVEL CURTO COM BOLSA E ROSCA, 40 MM X 1 1/4", PARA AGUA FRIA | C104: UN | D104: CR | E104: 3.71
A105: 111 | B105: ADAPTADOR PVC SOLDAVEL CURTO COM BOLSA E ROSCA, 50 MM X 1 1/4", PARA AGUA FRIA | C105: UN | D105: CR | E105: 8.43
A106: 112 | B106: ADAPTADOR PVC SOLDAVEL CURTO COM BOLSA E ROSCA, 50 MM X1 1/2", PARA AGUA FRIA | C106: UN | D106: CR | E106: 4.47
A107: 113 | B107: ADAPTADOR PVC SOLDAVEL CURTO COM BOLSA E ROSCA, 60 MM X 2", PARA AGUA FRIA | C107: UN | D107: CR | E107: 11.19
A108: 104 | B108: ADAPTADOR PVC SOLDAVEL CURTO COM BOLSA E ROSCA, 75 MM X 2 1/2", PARA AGUA FRIA | C108: UN | D108: CR | E108: 19.47
A109: 102 | B109: ADAPTADOR PVC SOLDAVEL CURTO COM BOLSA E ROSCA, 85 MM X 3", PARA AGUA FRIA | C109: UN | D109: CR | E109: 26.85
A110: 95 | B110: ADAPTADOR PVC SOLDAVEL, COM FLANGE E ANEL DE VEDACAO, 20 MM X 1/2", PARA CAIXA D'AGUA | C110: UN | D110: CR | E110: 11.34
A111: 96 | B111: ADAPTADOR PVC SOLDAVEL, COM FLANGE E ANEL DE VEDACAO, 25 MM X 3/4", PARA CAIXA D'AGUA | C111: UN | D111: CR | E111: 12.34
A112: 97 | B112: ADAPTADOR PVC SOLDAVEL, COM FLANGE E ANEL DE VEDACAO, 32 MM X 1", PARA CAIXA D'AGUA | C112: UN | D112: CR | E112: 18.57
A113: 98 | B113: ADAPTADOR PVC SOLDAVEL, COM FLANGE E ANEL DE VEDACAO, 40 MM X 1 1/4", PARA CAIXA D'AGUA | C113: UN | D113: CR | E113: 27.79
A114: 99 | B114: ADAPTADOR PVC SOLDAVEL, COM FLANGE E ANEL DE VEDACAO, 50 MM X 1 1/2", PARA CAIXA D'AGUA | C114: UN | D114: CR | E114: 26.27
A115: 60 | B115: ADAPTADOR PVC, COM REGISTRO, PARA PEAD, 20 MM X 3/4", PARA LIGACAO PREDIAL DE AGUA | C115: UN | D115: CR
A116: 72 | B116: ADAPTADOR PVC, ROSCAVEL, COM FLANGES E ANEL DE VEDACAO, 1 1/2", PARA CAIXA D'AGUA | C116: UN | D116: CR | E116: 50.38
A117: 71 | B117: ADAPTADOR PVC, ROSCAVEL, COM FLANGES E ANEL DE VEDACAO, 1", PARA CAIXA D'AGUA | C117: UN | D117: CR | E117: 31.11
A118: 67 | B118: ADAPTADOR PVC, ROSCAVEL, COM FLANGES E ANEL DE VEDACAO, 1/2", PARA CAIXA D'AGUA | C118: UN | D118: CR | E118: 16.29
A119: 73 | B119: ADAPTADOR PVC, ROSCAVEL, COM FLANGES E ANEL DE VEDACAO, 3/4", PARA CAIXA D'AGUA | C119: UN | D119: CR | E119: 15.59
A120: 100 | B120: ADAPTADOR PVC, SOLDAVEL, COM FLANGES E ANEL DE VEDACAO, 60 MM X 2", PARA CAIXA D'AGUA | C120: UN | D120: CR | E120: 45.89
A121: 75 | B121: ADAPTADOR PVC, SOLDAVEL, COM FLANGES LIVRES, 110 MM X 4", PARA CAIXA D'AGUA | C121: UN | D121: CR | E121: 267.57
A122: 83 | B122: ADAPTADOR PVC, SOLDAVEL, COM FLANGES LIVRES, 75 MM X 2 1/2", PARA CAIXA D'AGUA | C122: UN | D122: CR | E122: 213.91
A123: 74 | B123: ADAPTADOR PVC, SOLDAVEL, COM FLANGES LIVRES, 85 MM X 3", PARA CAIXA D'AGUA | C123: UN | D123: CR | E123: 305.84
A124: 106 | B124: ADAPTADOR PVC, SOLDAVEL, LONGO, COM FLANGE LIVRE, 110 MM X 4", PARA CAIXA D'AGUA | C124: UN | D124: CR | E124: 386.75
A125: 88 | B125: ADAPTADOR PVC, SOLDAVEL, LONGO, COM FLANGE LIVRE, 32 MM X 1", PARA CAIXA D'AGUA | C125: UN | D125: CR | E125: 10.87
A126: 82 | B126: ADAPTADOR PVC, SOLDAVEL, LONGO, COM FLANGE LIVRE, 75 MM X 2 1/2", PARA CAIXA D'AGUA | C126: UN | D126: CR | E126: 203.52
A127: 105 | B127: ADAPTADOR PVC, SOLDAVEL, LONGO, COM FLANGE LIVRE, 85 MM X 3", PARA CAIXA D'AGUA | C127: UN | D127: CR | E127: 288.39
A128: 39719 | B128: ADESIVO / COLA DE CONTATO LIQUIDO, A BASE DE RESINAS, PARA COLAGEM DE ESPUMA PARA ISOLAMENTO TERMICO FLEXIVEL | C128: L | D128: CR | E128: 170.13
A129: 3410 | B129: ADESIVO / COLA PARA EPS (ISOPOR) E OUTROS MATERIAIS | C129: KG | D129: CR | E129: 38.27
A130: 4791 | B130: ADESIVO ACRILICO DE BASE AQUOSA / COLA DE CONTATO | C130: KG | D130: CR | E130: 56.18
A131: 157 | B131: ADESIVO ESTRUTURAL A BASE DE RESINA EPOXI PARA INJECAO EM TRINCAS, BICOMPONENTE, BAIXA VISCOSIDADE | C131: KG | D131: CR | E131: 161.53
A132: 156 | B132: ADESIVO ESTRUTURAL A BASE DE RESINA EPOXI, BICOMPONENTE, FLUIDO | C132: KG | D132: CR | E132: 57.51
A133: 131 | B133: ADESIVO ESTRUTURAL A BASE DE RESINA EPOXI, BICOMPONENTE, PASTOSO (TIXOTROPICO) | C133: KG | D133: CR | E133: 49.18
A134: 21114 | B134: ADESIVO PARA TUBOS CPVC, *75* G | C134: UN | D134: CR | E134: 33.53
A135: 119 | B135: ADESIVO PLASTICO PARA PVC, BISNAGA COM 75 GR | C135: UN | D135: C | E135: 8.5
A136: 122 | B136: ADESIVO PLASTICO PARA PVC, FRASCO COM *850* GR | C136: UN | D136: CR | E136: 65.4
A137: 20080 | B137: ADESIVO PLASTICO PARA PVC, FRASCO COM 175 GR | C137: UN | D137: CR | E137: 21.34
A138: 124 | B138: ADITIVO ACELERADOR DE PEGA E ENDURECIMENTO PARA ARGAMASSAS E CONCRETOS, LIQUIDO E ISENTO DE CLORETOS | C138: L | D138: CR | E138: 18.97
A139: 7334 | B139: ADITIVO ADESIVO LIQUIDO PARA ARGAMASSAS DE REVESTIMENTOS CIMENTICIOS | C139: L | D139: CR | E139: 17.08
A140: 45146 | B140: ADITIVO IMPERMEABILIZANTE CRISTALIZANTE PARA CONCRETO | C140: KG | D140: CR | E140: 36.37
A141: 123 | B141: ADITIVO IMPERMEABILIZANTE DE PEGA NORMAL PARA ARGAMASSAS E CONCRETOS SEM ARMACAO, LIQUIDO E ISENTO DE CLORETOS | C141: L | D141: C | E141: 7.76
A142: 127 | B142: ADITIVO IMPERMEABILIZANTE DE PEGA ULTRARRAPIDA, LIQUIDO E ISENTO DE CLORETOS | C142: L | D142: CR | E142: 18.52
A143: 133 | B143: ADITIVO LIQUIDO INCORPORADOR DE AR PARA CONCRETO E ARGAMASSA, LIQUIDO E ISENTO DE CLORETOS | C143: L | D143: CR | E143: 7.69
A144: 43617 | B144: ADITIVO PLASTIFICANTE E ESTABILIZADOR PARA ARGAMASSAS DE ASSENTAMENTO E REBOCO, LIQUIDO E ISENTO DE CLORETOS | C144: L | D144: CR | E144: 8.59
A145: 132 | B145: ADITIVO PLASTIFICANTE RETARDADOR DE PEGA E REDUTOR DE AGUA PARA CONCRETO, LIQUIDO E ISENTO DE CLORETOS | C145: L | D145: CR | E145: 7.97
A146: 43618 | B146: ADITIVO SUPERPLASTIFICANTE DE PEGA NORMAL PARA CONCRETO, LIQUIDO E ISENTO DE CLORETOS | C146: KG | D146: CR | E146: 20.08
A147: 37476 | B147: ADUELA/ GALERIA PRE-MOLDADA DE CONCRETO ARMADO, SECAO QUADRADA INTERNA DE 1,50 X 1,50 M (L X A), MISULA DE 20 X 20 CM, C = 1,00 M, ESPESSURA MIN = 15 CM, TB-45 E FCK DO CONCRETO = 30 MPA | C147: UN | D147: CR | E147: 3128.06
A148: 37478 | B148: ADUELA/ GALERIA PRE-MOLDADA DE CONCRETO ARMADO, SECAO RETANGULAR INTERNA DE 2,00 X 2,00 M (L X A), MISULA DE 20 X 20 CM, C = 1,00 M, ESPESSURA MIN = 15 CM, TB-45 E FCK DO CONCRETO = 30 MPA | C148: UN | D148: CR | E148: 3917.98
A149: 37477 | B149: ADUELA/ GALERIA PRE-MOLDADA DE CONCRETO ARMADO, SECAO RETANGULAR INTERNA DE 2,50 X 2,50 M (L X A), MISULA DE 20 X 20 CM, C = 1,00 M, ESPESSURA MIN = 15 CM, TB-45 E FCK DO CONCRETO = 30 MPA | C149: UN | D149: CR | E149: 5308.23
A150: 37479 | B150: ADUELA/ GALERIA PRE-MOLDADA DE CONCRETO ARMADO, SECAO RETANGULAR INTERNA DE 3,00 X 3,00 M (L X A), MISULA DE 20 X 20 CM, C = 1.00 M, ESPESSURA MIN = 20 CM, TB-45 E FCK DO CONCRETO = 30 MPA | C150: UN | D150: CR | E150: 6295.63
A151: 4319 | B151: AFASTADOR PARA TELHA DE FIBROCIMENTO CANALETE 90 OU KALHETAO | C151: UN | D151: CR | E151: 1.17
A152: 42409 | B152: AGENTE DE CURA, PROTETOR DA EVAPORACAO DA AGUA DE HIDRATACAO DO CONCRETO | C152: KG | D152: CR | E152: 12.64
A153: 40553 | B153: AGREGADO RECICLADO, TIPO RACHAO RECICLADO CINZA, CLASSE A | C153: M3 | D153: C
A154: 6114 | B154: AJUDANTE DE ARMADOR (HORISTA) | C154: H | D154: CR | E154: 16.02
A155: 40912 | B155: AJUDANTE DE ARMADOR (MENSALISTA) | C155: MES | D155: CR | E155: 2805.34
A156: 247 | B156: AJUDANTE DE ELETRICISTA (HORISTA) | C156: H | D156: CR | E156: 16.02
A157: 40919 | B157: AJUDANTE DE ELETRICISTA (MENSALISTA) | C157: MES | D157: CR | E157: 2805.34
A158: 44499 | B158: AJUDANTE DE ESTRUTURAS METALICAS (HORISTA) | C158: H | D158: CR | E158: 16.02
A159: 40984 | B159: AJUDANTE DE ESTRUTURAS METALICAS (MENSALISTA) | C159: MES | D159: CR | E159: 2805.34
A160: 248 | B160: AJUDANTE DE OPERACAO EM GERAL (HORISTA) | C160: H | D160: CR | E160: 16.15
A161: 41086 | B161: AJUDANTE DE OPERACAO EM GERAL (MENSALISTA) | C161: MES | D161: CR | E161: 2830.19
A162: 34466 | B162: AJUDANTE DE PINTOR (HORISTA) | C162: H | D162: CR | E162: 16.02
A163: 41083 | B163: AJUDANTE DE PINTOR (MENSALISTA) | C163: MES | D163: CR | E163: 2805.34
A164: 252 | B164: AJUDANTE DE SERRALHEIRO (HORISTA) | C164: H | D164: CR | E164: 16.02
A165: 40909 | B165: AJUDANTE DE SERRALHEIRO (MENSALISTA) | C165: MES | D165: CR | E165: 2805.34
A166: 242 | B166: AJUDANTE ESPECIALIZADO (HORISTA) | C166: H | D166: CR | E166: 16.15
A167: 41085 | B167: AJUDANTE ESPECIALIZADO (MENSALISTA) | C167: MES | D167: CR | E167: 2830.19
A168: 427 | B168: ALCA PREFORMADA DE CONTRA POSTE, EM ACO GALVANIZADO, PARA CABO 3/16", COMPRIMENTO *860* MM | C168: UN | D168: CR
A169: 417 | B169: ALCA PREFORMADA DE DISTRIBUICAO, EM ACO GALVANIZADO, PARA CABO DE ALUMINIO DIAMETRO 16 A 25 MM | C169: UN | D169: CR
A170: 11273 | B170: ALCA PREFORMADA DE DISTRIBUICAO, EM ACO GALVANIZADO, PARA CONDUTORES DE ALUMINIO AWG 1/0 (CAA 6/1 OU CA 7 FIOS) | C170: UN | D170: CR
A171: 11272 | B171: ALCA PREFORMADA DE DISTRIBUICAO, EM ACO GALVANIZADO, PARA CONDUTORES DE ALUMINIO AWG 2 (CAA 6/1 OU CA 7 FIOS) | C171: UN | D171: CR
A172: 11275 | B172: ALCA PREFORMADA DE SERVICO, EM ACO GALVANIZADO, PARA CONDUTORES DE ALUMINIO AWG 4 (CAA 6/1) | C172: UN | D172: CR
A173: 11274 | B173: ALCA PREFORMADA DE SERVICO, EM ACO GALVANIZADO, PARA CONDUTORES DE ALUMINIO AWG 6 (CAA 6/1) | C173: UN | D173: CR
A174: 45208 | B174: ALICATE AMPERIMETRO, TENSAO AC/DC, CAPACIDADE MAXIMA 1000 A | C174: UN | D174: CR
A175: 45250 | B175: ALICATE BICO LONGO (MEIA CANA) 6", COM ISOLAMENTO ATE 1000 V | C175: UN | D175: CR | E175: 32.42
A176: 38470 | B176: ALICATE DE CORTE DIAGONAL 6" COM ISOLAMENTO | C176: UN | D176: CR | E176: 33.19
A177: 38547 | B177: ALICATE DE CRIMPAR RJ11, RJ12 E RJ45, COM CATRACA | C177: UN | D177: CR | E177: 220.35
A178: 38467 | B178: ALICATE DE PRESSAO 11" PARA SOLDA, TIPO C | C178: UN | D178: CR | E178: 131.72
A179: 38468 | B179: ALICATE DE PRESSAO 11" PARA SOLDA, TIPO U | C179: UN | D179: CR | E179: 164.43
A180: 38469 | B180: ALICATE DE PRESSAO PARA SOLDA DE CHAPA 18" | C180: UN | D180: CR | E180: 210.4
A181: 45197 | B181: ALICATE DESENCAPADOR AUTOMATICO 8" | C181: UN | D181: CR | E181: 167.8
A182: 38471 | B182: ALICATE PARA ANEIS DE PISTAO, CAPACIDADE *50* A 100 MM | C182: UN | D182: CR | E182: 225.02
A183: 45206 | B183: ALICATE PROFISSIONAL 8", UNIVERSAL, COM ISOLAMENTO ATE 1000 V | C183: UN | D183: CR | E183: 44.46
A184: 37370 | B184: ALIMENTACAO - HORISTA (COLETADO CAIXA - ENCARGOS COMPLEMENTARES) | C184: H | D184: C | E184: 2.79
A185: 40862 | B185: ALIMENTACAO - MENSALISTA (COLETADO CAIXA - ENCARGOS COMPLEMENTARES) | C185: MES | D185: C | E185: 526.86
A186: 10658 | B186: ALISADORA DE CONCRETO COM MOTOR A GASOLINA DE 5,5 HP, PESO COM MOTOR DE 78 KG, 4 PAS | C186: UN | D186: C
A187: 253 | B187: ALMOXARIFE (HORISTA) | C187: H | D187: C | E187: 20.07
A188: 40809 | B188: ALMOXARIFE (MENSALISTA) | C188: MES | D188: CR | E188: 3513.27
A189: 42428 | B189: ALONGADOR COM TRES ALTURAS, EM TUBO DE ACO CARBONO, PINTURA NO PROCESSO ELETROSTATICO - EQUIPAMENTO DE GINASTICA PARA ACADEMIA AO AR LIVRE / ACADEMIA DA TERCEIRA IDADE - ATI | C189: UN | D189: C
A190: 301 | B190: ANEL BORRACHA PARA TUBO ESGOTO PREDIAL, DN 100 MM (NBR 5688) | C190: UN | D190: C | E190: 4
A191: 296 | B191: ANEL BORRACHA PARA TUBO ESGOTO PREDIAL, DN 50 MM (NBR 5688) | C191: UN | D191: CR | E191: 2.26
A192: 297 | B192: ANEL BORRACHA PARA TUBO ESGOTO PREDIAL, DN 75 MM (NBR 5688) | C192: UN | D192: CR | E192: 3.32
A193: 299 | B193: ANEL BORRACHA, DN 100 MM, PARA TUBO SERIE REFORCADA ESGOTO PREDIAL | C193: UN | D193: CR | E193: 4.69
A194: 300 | B194: ANEL BORRACHA, DN 150 MM, PARA TUBO SERIE REFORCADA ESGOTO PREDIAL | C194: UN | D194: CR | E194: 16.24
A195: 20085 | B195: ANEL BORRACHA, DN 50 MM, PARA TUBO SERIE REFORCADA ESGOTO PREDIAL | C195: UN | D195: CR | E195: 2.97
A196: 298 | B196: ANEL BORRACHA, DN 75 MM, PARA TUBO SERIE REFORCADA ESGOTO PREDIAL | C196: UN | D196: CR | E196: 3.61
A197: 311 | B197: ANEL BORRACHA, PARA TUBO PVC DEFOFO, DN 100 MM (NBR 7665) | C197: UN | D197: CR | E197: 13.39
A198: 318 | B198: ANEL BORRACHA, PARA TUBO PVC DEFOFO, DN 150 MM (NBR 7665) | C198: UN | D198: CR | E198: 26.97
A199: 319 | B199: ANEL BORRACHA, PARA TUBO PVC DEFOFO, DN 200 MM (NBR 7665) | C199: UN | D199: CR | E199: 42.28
A200: 303 | B200: ANEL BORRACHA, PARA TUBO PVC, REDE COLETOR ESGOTO, DN 100 MM (NBR 7362) | C200: UN | D200: CR | E200: 4.43
A201: 305 | B201: ANEL BORRACHA, PARA TUBO PVC, REDE COLETOR ESGOTO, DN 150 MM (NBR 7362) | C201: UN | D201: CR | E201: 13.94
... 4702 more rows

Sheet COMP Sint. Sinapi
A1: SINAPI - Sistema Nacional de Pesquisa de Custos e Índices da Construção Civil
A2: RELATÓRIO DE CUSTOS DE COMPOSIÇÕES - ENCARGOS SOCIAIS SEM DESONERAÇÃO
A3: Mês de Referência: | B3: 08/2025 | D3: Encargos sociais sobre a mão de obra:
A4: Data de emissão: | B4: 10/09/2025 | D4: (SEM DESONERAÇÃO) | E4: PE
D5: Localidade | E5: RECIFE
A6: Observação: | B6: %AS (porcentagem Atribuído São Paulo) corresponde a porcentagem do custo total da | D6: Horista | E6: 1.1384
B7: composição que foi obtida utilizando preços de insumos de São Paulo por indisponibilidade | D7: Mensalista | E7: 0.7011
B8: dos preços de insumos necessários à composição no estado em questão. Custo zerado (hífen)
B9: indica que pelo menos um dos itens da composição não tem custo/preço. | D9: PE
A10: Código da Composição | B10: Descrição | C10: Unidade | D10: Custo (R$) | E10: %AS
A11: 104658 | B11: PISO PODOTÁTIL DE ALERTA OU DIRECIONAL, DE CONCRETO, ASSENTADO SOBRE ARGAMASSA. AF_03/2024 | C11: M2 | D11: 152.52 | E11: 0
A12: 105002 | B12: RAMPA DE ACESSIBILIDADE EM CONCRETO MOLDADO IN LOCO, EM CALÇADA NOVA COM LARGURA MAIOR OU IGUAL À 3,00 M, FCK 25MPA, COM PISO PODOTÁTIL. AF_03/2024 | C12: UN | D12: 736.21 | E12: 0
A13: 105004 | B13: RAMPA DE ACESSIBILIDADE EM CONCRETO MOLDADO IN LOCO, EM CALÇADA NOVA COM LARGURA MENOR À 3,00 M, FCK 25MPA, COM PISO PODOTÁTIL. AF_03/2024 | C13: M2 | D13: 125.12 | E13: 0
A14: 105003 | B14: RAMPA DE ACESSIBILIDADE EM CONCRETO MOLDADO IN LOCO, EM CALÇADA PRÉ EXISTENTE COM LARGURA MAIOR OU IGUAL À 3,00 M, FCK 25MPA, COM PISO PODOTÁTIL. AF_03/2024 | C14: UN | D14: 1172.45 | E14: 0.0568
A15: 105005 | B15: RAMPA DE ACESSIBILIDADE EM CONCRETO MOLDADO IN LOCO, EM CALÇADA PRÉ EXISTENTE COM LARGURA MENOR À 3,00 M, FCK 25MPA, COM PISO PODOTÁTIL. AF_03/2024 | C15: M2 | D15: 205.9 | E15: 0.0598
A16: 105006 | B16: RAMPA DE ACESSIBILIDADE EM CONCRETO PRÉ MOLDADO, EM CALÇADA NOVA COM LARGURA MAIOR OU IGUAL À 3,00 M, FCK 25MPA, COM PISO PODOTÁTIL. AF_03/2024 | C16: UN | D16: 0
A17: 104999 | B17: RAMPA DE ACESSIBILIDADE EM CONCRETO PRÉ MOLDADO, EM CALÇADA PRÉ EXISTENTE COM LARGURA MAIOR OU IGUAL À 3,00 M, FCK 25MPA, COM PISO PODOTÁTIL. AF_03/2024 | C17: UN | D17: 0
A18: 105000 | B18: RAMPA DE ACESSIBILIDADE PARA ACESSO A EDIFICAÇÕES COM INCLINAÇÃO DE 8,33% EM CONCRETO MOLDADO IN LOCO, COM LARGURA DE 1,20M, FCK 25MPA, NÃO ARMADA, COM JUNTA A CADA 2M COM CORTE À SECO. AF_03/2024 | C18: M | D18: 1332.75 | E18: 0
A19: 105001 | B19: RAMPA DE ACESSIBILIDADE PARA ACESSO A EDIFICAÇÕES COM INCLINAÇÃO DE 8,33% EM CONCRETO MOLDADO IN LOCO, COM LARGURA DE 1,50M, FCK 25MPA, NÃO ARMADA, COM JUNTA A CADA 2M COM CORTE À SECO. AF_03/2024 | C19: M | D19: 1363.62 | E19: 0
A20: 89306 | B20: ALVENARIA ESTRUTURAL DE BLOCOS CERÂMICOS 14X19X29, (ESPESSURA DE 14 CM), UTILIZANDO COLHER DE PEDREIRO E ARGAMASSA DE ASSENTAMENTO COM PREPARO EM BETONEIRA. AF_03/2023 | C20: M2 | D20: 91.79 | E20: 0
A21: 89307 | B21: ALVENARIA ESTRUTURAL DE BLOCOS CERÂMICOS 14X19X29, (ESPESSURA DE 14 CM), UTILIZANDO COLHER DE PEDREIRO E ARGAMASSA DE ASSENTAMENTO COM PREPARO MANUAL. AF_03/2023 | C21: M2 | D21: 94.59 | E21: 0
A22: 89290 | B22: ALVENARIA ESTRUTURAL DE BLOCOS CERÂMICOS 14X19X29, (ESPESSURA DE 14 CM), UTILIZANDO PALHETA E ARGAMASSA DE ASSENTAMENTO COM PREPARO EM BETONEIRA. AF_03/2023 | C22: M2 | D22: 74.26 | E22: 0
A23: 89291 | B23: ALVENARIA ESTRUTURAL DE BLOCOS CERÂMICOS 14X19X29, (ESPESSURA DE 14 CM), UTILIZANDO PALHETA E ARGAMASSA DE ASSENTAMENTO COM PREPARO MANUAL. AF_03/2023 | C23: M2 | D23: 76.35 | E23: 0
A24: 89298 | B24: ALVENARIA ESTRUTURAL DE BLOCOS CERÂMICOS 14X19X39, (ESPESSURA DE 14 CM), UTILIZANDO COLHER DE PEDREIRO E ARGAMASSA DE ASSENTAMENTO COM PREPARO EM BETONEIRA. AF_03/2023 | C24: M2 | D24: 77.79 | E24: 0
A25: 89299 | B25: ALVENARIA ESTRUTURAL DE BLOCOS CERÂMICOS 14X19X39, (ESPESSURA DE 14 CM), UTILIZANDO COLHER DE PEDREIRO E ARGAMASSA DE ASSENTAMENTO COM PREPARO MANUAL. AF_03/2023 | C25: M2 | D25: 80.3 | E25: 0
A26: 89282 | B26: ALVENARIA ESTRUTURAL DE BLOCOS CERÂMICOS 14X19X39, (ESPESSURA DE 14 CM), UTILIZANDO PALHETA E ARGAMASSA DE ASSENTAMENTO COM PREPARO EM BETONEIRA. AF_03/2023 | C26: M2 | D26: 65.39 | E26: 0
A27: 89283 | B27: ALVENARIA ESTRUTURAL DE BLOCOS CERÂMICOS 14X19X39, (ESPESSURA DE 14 CM), UTILIZANDO PALHETA E ARGAMASSA DE ASSENTAMENTO COM PREPARO MANUAL. AF_03/2023 | C27: M2 | D27: 67.27 | E27: 0
A28: 89480 | B28: ALVENARIA DE BLOCOS DE CONCRETO ESTRUTURAL 14X19X29 CM (ESPESSURA 14 CM), FBK = 14 MPA, UTILIZANDO COLHER DE PEDREIRO. AF_10/2022 | C28: M2 | D28: 160.94 | E28: 0
A29: 89464 | B29: ALVENARIA DE BLOCOS DE CONCRETO ESTRUTURAL 14X19X29 CM (ESPESSURA 14 CM), FBK = 14,0 MPA, UTILIZANDO PALHETA. AF_10/2022 | C29: M2 | D29: 139.32 | E29: 0
A30: 89478 | B30: ALVENARIA DE BLOCOS DE CONCRETO ESTRUTURAL 14X19X29 CM (ESPESSURA 14 CM), FBK = 4,5 MPA, UTILIZANDO COLHER DE PEDREIRO. AF_10/2022 | C30: M2 | D30: 140.13 | E30: 0
A31: 89462 | B31: ALVENARIA DE BLOCOS DE CONCRETO ESTRUTURAL 14X19X29 CM (ESPESSURA 14 CM), FBK = 4,5 MPA, UTILIZANDO PALHETA. AF_10/2022 | C31: M2 | D31: 119.27 | E31: 0
A32: 104444 | B32: ALVENARIA DE BLOCOS DE CONCRETO ESTRUTURAL 14X19X29 CM (ESPESSURA 14 CM), FBK = 8 MPA, UTILIZANDO COLHER DE PEDREIRO. AF_10/2022 | C32: M2 | D32: 0
A33: 104442 | B33: ALVENARIA DE BLOCOS DE CONCRETO ESTRUTURAL 14X19X29 CM (ESPESSURA 14 CM), FBK = 8 MPA, UTILIZANDO PALHETA. AF_10/2022 | C33: M2 | D33: 0
A34: 89472 | B34: ALVENARIA DE BLOCOS DE CONCRETO ESTRUTURAL 14X19X39 CM (ESPESSURA 14 CM), FBK = 14 MPA, UTILIZANDO COLHER DE PEDREIRO. AF_10/2022 | C34: M2 | D34: 122.14 | E34: 0
A35: 89455 | B35: ALVENARIA DE BLOCOS DE CONCRETO ESTRUTURAL 14X19X39 CM (ESPESSURA 14 CM), FBK = 14 MPA, UTILIZANDO PALHETA. AF_10/2022 | C35: M2 | D35: 108.5 | E35: 0
A36: 89470 | B36: ALVENARIA DE BLOCOS DE CONCRETO ESTRUTURAL 14X19X39 CM (ESPESSURA 14 CM), FBK = 4,5 MPA, UTILIZANDO COLHER DE PEDREIRO. AF_10/2022 | C36: M2 | D36: 103.17 | E36: 0
A37: 89453 | B37: ALVENARIA DE BLOCOS DE CONCRETO ESTRUTURAL 14X19X39 CM (ESPESSURA 14 CM), FBK = 4,5 MPA, UTILIZANDO PALHETA. AF_10/2022 | C37: M2 | D37: 90.35 | E37: 0
A38: 104443 | B38: ALVENARIA DE BLOCOS DE CONCRETO ESTRUTURAL 14X19X39 CM (ESPESSURA 14 CM), FBK = 8 MPA, UTILIZANDO COLHER DE PEDREIRO. AF_10/2022 | C38: M2 | D38: 0
A39: 104441 | B39: ALVENARIA DE BLOCOS DE CONCRETO ESTRUTURAL 14X19X39 CM (ESPESSURA 14 CM), FBK = 8 MPA, UTILIZANDO PALHETA. AF_10/2022 | C39: M2 | D39: 0
A40: 103354 | B40: ALVENARIA DE VEDAÇÃO DE BLOCOS CERÂMICOS FURADOS NA HORIZONTAL DE 11,5X14X24 CM (ESPESSURA 11,5 CM) E ARGAMASSA DE ASSENTAMENTO COM PREPARO EM BETONEIRA. AF_12/2021 | C40: M2 | D40: 86.8 | E40: 0.0235
A41: 103355 | B41: ALVENARIA DE VEDAÇÃO DE BLOCOS CERÂMICOS FURADOS NA HORIZONTAL DE 11,5X14X24 CM (ESPESSURA 11,5 CM) E ARGAMASSA DE ASSENTAMENTO COM PREPARO MANUAL. AF_12/2021 | C41: M2 | D41: 88.38 | E41: 0.0231
A42: 103330 | B42: ALVENARIA DE VEDAÇÃO DE BLOCOS CERÂMICOS FURADOS NA HORIZONTAL DE 11,5X19X19 CM (ESPESSURA 11,5 CM) E ARGAMASSA DE ASSENTAMENTO COM PREPARO EM BETONEIRA. AF_12/2021 | C42: M2 | D42: 79.58 | E42: 0.0183
A43: 103331 | B43: ALVENARIA DE VEDAÇÃO DE BLOCOS CERÂMICOS FURADOS NA HORIZONTAL DE 11,5X19X19 CM (ESPESSURA 11,5 CM) E ARGAMASSA DE ASSENTAMENTO COM PREPARO MANUAL. AF_12/2021 | C43: M2 | D43: 81.07 | E43: 0.018
A44: 103358 | B44: ALVENARIA DE VEDAÇÃO DE BLOCOS CERÂMICOS FURADOS NA HORIZONTAL DE 11,5X19X29 CM (ESPESSURA 11,5 CM) E ARGAMASSA DE ASSENTAMENTO COM PREPARO EM BETONEIRA. AF_12/2021 | C44: M2 | D44: 66.76 | E44: 0.0219
A45: 103359 | B45: ALVENARIA DE VEDAÇÃO DE BLOCOS CERÂMICOS FURADOS NA HORIZONTAL DE 11,5X19X29 CM (ESPESSURA 11,5 CM) E ARGAMASSA DE ASSENTAMENTO COM PREPARO MANUAL. AF_12/2021 | C45: M2 | D45: 68.02 | E45: 0.0215
A46: 103366 | B46: ALVENARIA DE VEDAÇÃO DE BLOCOS CERÂMICOS FURADOS NA HORIZONTAL DE 11,5X19X39 CM (ESPESSURA 11,5 CM) E ARGAMASSA DE ASSENTAMENTO COM PREPARO EM BETONEIRA. AF_12/2021 | C46: M2 | D46: 57.39 | E46: 0.0254
A47: 103367 | B47: ALVENARIA DE VEDAÇÃO DE BLOCOS CERÂMICOS FURADOS NA HORIZONTAL DE 11,5X19X39 CM (ESPESSURA 11,5 CM) E ARGAMASSA DE ASSENTAMENTO COM PREPARO MANUAL. AF_12/2021 | C47: M2 | D47: 58.53 | E47: 0.0249
A48: 103360 | B48: ALVENARIA DE VEDAÇÃO DE BLOCOS CERÂMICOS FURADOS NA HORIZONTAL DE 14X19X29 CM (ESPESSURA 14 CM) E ARGAMASSA DE ASSENTAMENTO COM PREPARO EM BETONEIRA. AF_12/2021 | C48: M2 | D48: 78.33 | E48: 0.0218
A49: 103361 | B49: ALVENARIA DE VEDAÇÃO DE BLOCOS CERÂMICOS FURADOS NA HORIZONTAL DE 14X19X29 CM (ESPESSURA 14 CM) E ARGAMASSA DE ASSENTAMENTO COM PREPARO MANUAL. AF_12/2021 | C49: M2 | D49: 79.93 | E49: 0.0214
A50: 103368 | B50: ALVENARIA DE VEDAÇÃO DE BLOCOS CERÂMICOS FURADOS NA HORIZONTAL DE 14X19X39 CM (ESPESSURA 14 CM) E ARGAMASSA DE ASSENTAMENTO COM PREPARO EM BETONEIRA. AF_12/2021 | C50: M2 | D50: 65.52 | E50: 0.0261
A51: 103369 | B51: ALVENARIA DE VEDAÇÃO DE BLOCOS CERÂMICOS FURADOS NA HORIZONTAL DE 14X19X39 CM (ESPESSURA 14 CM) E ARGAMASSA DE ASSENTAMENTO COM PREPARO MANUAL. AF_12/2021 | C51: M2 | D51: 66.96 | E51: 0.0255
A52: 103334 | B52: ALVENARIA DE VEDAÇÃO DE BLOCOS CERÂMICOS FURADOS NA HORIZONTAL DE 14X9X19 CM (ESPESSURA 14 CM, BLOCO DEITADO) E ARGAMASSA DE ASSENTAMENTO COM PREPARO EM BETONEIRA. AF_12/2021 | C52: M2 | D52: 142.26 | E52: 0.0231
A53: 103335 | B53: ALVENARIA DE VEDAÇÃO DE BLOCOS CERÂMICOS FURADOS NA HORIZONTAL DE 14X9X19 CM (ESPESSURA 14 CM, BLOCO DEITADO) E ARGAMASSA DE ASSENTAMENTO COM PREPARO MANUAL. AF_12/2021 | C53: M2 | D53: 145.04 | E53: 0.0227
A54: 103362 | B54: ALVENARIA DE VEDAÇÃO DE BLOCOS CERÂMICOS FURADOS NA HORIZONTAL DE 19X19X29 CM (ESPESSURA 19 CM) E ARGAMASSA DE ASSENTAMENTO COM PREPARO EM BETONEIRA. AF_12/2021 | C54: M2 | D54: 93.95 | E54: 0.027
A55: 103363 | B55: ALVENARIA DE VEDAÇÃO DE BLOCOS CERÂMICOS FURADOS NA HORIZONTAL DE 19X19X29 CM (ESPESSURA 19 CM) E ARGAMASSA DE ASSENTAMENTO COM PREPARO MANUAL. AF_12/2021 | C55: M2 | D55: 95.74 | E55: 0.0265
A56: 103370 | B56: ALVENARIA DE VEDAÇÃO DE BLOCOS CERÂMICOS FURADOS NA HORIZONTAL DE 19X19X39 CM (ESPESSURA 19 CM) E ARGAMASSA DE ASSENTAMENTO COM PREPARO EM BETONEIRA. AF_12/2021 | C56: M2 | D56: 81.54 | E56: 0.0312
A57: 103371 | B57: ALVENARIA DE VEDAÇÃO DE BLOCOS CERÂMICOS FURADOS NA HORIZONTAL DE 19X19X39 CM (ESPESSURA 19 CM) E ARGAMASSA DE ASSENTAMENTO COM PREPARO MANUAL. AF_12/2021 | C57: M2 | D57: 83.17 | E57: 0.0305
A58: 103332 | B58: ALVENARIA DE VEDAÇÃO DE BLOCOS CERÂMICOS FURADOS NA HORIZONTAL DE 9X14X19 CM (ESPESSURA 9 CM) E ARGAMASSA DE ASSENTAMENTO COM PREPARO EM BETONEIRA. AF_12/2021 | C58: M2 | D58: 120.21 | E58: 0.0117
A59: 103333 | B59: ALVENARIA DE VEDAÇÃO DE BLOCOS CERÂMICOS FURADOS NA HORIZONTAL DE 9X14X19 CM (ESPESSURA 9 CM) E ARGAMASSA DE ASSENTAMENTO COM PREPARO MANUAL. AF_12/2021 | C59: M2 | D59: 121.81 | E59: 0.0116
A60: 103352 | B60: ALVENARIA DE VEDAÇÃO DE BLOCOS CERÂMICOS FURADOS NA HORIZONTAL DE 9X14X24 CM (ESPESSURA 9 CM) E ARGAMASSA DE ASSENTAMENTO COM PREPARO EM BETONEIRA. AF_12/2021 | C60: M2 | D60: 102.37 | E60: 0.0138
A61: 103353 | B61: ALVENARIA DE VEDAÇÃO DE BLOCOS CERÂMICOS FURADOS NA HORIZONTAL DE 9X14X24 CM (ESPESSURA 9 CM) E ARGAMASSA DE ASSENTAMENTO COM PREPARO MANUAL. AF_12/2021 | C61: M2 | D61: 103.84 | E61: 0.0136
A62: 103328 | B62: ALVENARIA DE VEDAÇÃO DE BLOCOS CERÂMICOS FURADOS NA HORIZONTAL DE 9X19X19 CM (ESPESSURA 9 CM) E ARGAMASSA DE ASSENTAMENTO COM PREPARO EM BETONEIRA. AF_12/2021 | C62: M2 | D62: 93.27 | E62: 0.0109
A63: 103329 | B63: ALVENARIA DE VEDAÇÃO DE BLOCOS CERÂMICOS FURADOS NA HORIZONTAL DE 9X19X19 CM (ESPESSURA 9 CM) E ARGAMASSA DE ASSENTAMENTO COM PREPARO MANUAL. AF_12/2021 | C63: M2 | D63: 94.66 | E63: 0.0108
A64: 103356 | B64: ALVENARIA DE VEDAÇÃO DE BLOCOS CERÂMICOS FURADOS NA HORIZONTAL DE 9X19X29 CM (ESPESSURA 9 CM) E ARGAMASSA DE ASSENTAMENTO COM PREPARO EM BETONEIRA. AF_12/2021 | C64: M2 | D64: 57.75 | E64: 0.0177
A65: 103357 | B65: ALVENARIA DE VEDAÇÃO DE BLOCOS CERÂMICOS FURADOS NA HORIZONTAL DE 9X19X29 CM (ESPESSURA 9 CM) E ARGAMASSA DE ASSENTAMENTO COM PREPARO MANUAL. AF_12/2021 | C65: M2 | D65: 58.92 | E65: 0.0173
A66: 103364 | B66: ALVENARIA DE VEDAÇÃO DE BLOCOS CERÂMICOS FURADOS NA HORIZONTAL DE 9X19X39 CM (ESPESSURA 9 CM) E ARGAMASSA DE ASSENTAMENTO COM PREPARO EM BETONEIRA. AF_12/2021 | C66: M2 | D66: 47.79 | E66: 0.0257
A67: 103365 | B67: ALVENARIA DE VEDAÇÃO DE BLOCOS CERÂMICOS FURADOS NA HORIZONTAL DE 9X19X39 CM (ESPESSURA 9 CM) E ARGAMASSA DE ASSENTAMENTO COM PREPARO MANUAL. AF_12/2021 | C67: M2 | D67: 48.63 | E67: 0.021
A68: 103350 | B68: ALVENARIA DE VEDAÇÃO DE BLOCOS CERÂMICOS FURADOS NA HORIZONTAL DE 9X9X19 CM (ESPESSURA 9 CM) E ARGAMASSA DE ASSENTAMENTO COM PREPARO EM BETONEIRA. AF_12/2021 | C68: M2 | D68: 172.32 | E68: 0.0114
A69: 103351 | B69: ALVENARIA DE VEDAÇÃO DE BLOCOS CERÂMICOS FURADOS NA HORIZONTAL DE 9X9X19 CM (ESPESSURA 9 CM) E ARGAMASSA DE ASSENTAMENTO COM PREPARO MANUAL. AF_12/2021 | C69: M2 | D69: 174.36 | E69: 0.0113
A70: 103344 | B70: ALVENARIA DE VEDAÇÃO DE BLOCOS CERÂMICOS FURADOS NA VERTICAL DE 11,5X19X29 CM (ESPESSURA 11,5 CM) E ARGAMASSA DE ASSENTAMENTO COM PREPARO EM BETONEIRA. AF_12/2021 | C70: M2 | D70: 77.66 | E70: 0.0188
A71: 103345 | B71: ALVENARIA DE VEDAÇÃO DE BLOCOS CERÂMICOS FURADOS NA VERTICAL DE 11,5X19X29 CM (ESPESSURA 11,5 CM) E ARGAMASSA DE ASSENTAMENTO COM PREPARO MANUAL. AF_12/2021 | C71: M2 | D71: 79.52 | E71: 0.0184
A72: 103348 | B72: ALVENARIA DE VEDAÇÃO DE BLOCOS CERÂMICOS FURADOS NA VERTICAL DE 11,5X19X39 CM (ESPESSURA 11,5 CM) E ARGAMASSA DE ASSENTAMENTO COM PREPARO EM BETONEIRA. AF_12/2021 | C72: M2 | D72: 64.89 | E72: 0.0225
A73: 103349 | B73: ALVENARIA DE VEDAÇÃO DE BLOCOS CERÂMICOS FURADOS NA VERTICAL DE 11,5X19X39 CM (ESPESSURA 11,5 CM) E ARGAMASSA DE ASSENTAMENTO COM PREPARO MANUAL. AF_12/2021 | C73: M2 | D73: 66.57 | E73: 0.0219
A74: 103346 | B74: ALVENARIA DE VEDAÇÃO DE BLOCOS CERÂMICOS FURADOS NA VERTICAL DE 14X19X29 CM (ESPESSURA 14 CM) E ARGAMASSA DE ASSENTAMENTO COM PREPARO EM BETONEIRA. AF_12/2021 | C74: M2 | D74: 86.69 | E74: 0.0197
A75: 103347 | B75: ALVENARIA DE VEDAÇÃO DE BLOCOS CERÂMICOS FURADOS NA VERTICAL DE 14X19X29 CM (ESPESSURA 14 CM) E ARGAMASSA DE ASSENTAMENTO COM PREPARO MANUAL. AF_12/2021 | C75: M2 | D75: 88.66 | E75: 0.0193
A76: 103324 | B76: ALVENARIA DE VEDAÇÃO DE BLOCOS CERÂMICOS FURADOS NA VERTICAL DE 14X19X39 CM (ESPESSURA 14 CM) E ARGAMASSA DE ASSENTAMENTO COM PREPARO EM BETONEIRA. AF_12/2021 | C76: M2 | D76: 73.66 | E76: 0.0232
A77: 103325 | B77: ALVENARIA DE VEDAÇÃO DE BLOCOS CERÂMICOS FURADOS NA VERTICAL DE 14X19X39 CM (ESPESSURA 14 CM) E ARGAMASSA DE ASSENTAMENTO COM PREPARO MANUAL. AF_12/2021 | C77: M2 | D77: 75.45 | E77: 0.0227
A78: 103326 | B78: ALVENARIA DE VEDAÇÃO DE BLOCOS CERÂMICOS FURADOS NA VERTICAL DE 19X19X39 CM (ESPESSURA 19 CM) E ARGAMASSA DE ASSENTAMENTO COM PREPARO EM BETONEIRA. AF_12/2021 | C78: M2 | D78: 86.51 | E78: 0.0294
A79: 103327 | B79: ALVENARIA DE VEDAÇÃO DE BLOCOS CERÂMICOS FURADOS NA VERTICAL DE 19X19X39 CM (ESPESSURA 19 CM) E ARGAMASSA DE ASSENTAMENTO COM PREPARO MANUAL. AF_12/2021 | C79: M2 | D79: 88.61 | E79: 0.0287
A80: 103322 | B80: ALVENARIA DE VEDAÇÃO DE BLOCOS CERÂMICOS FURADOS NA VERTICAL DE 9X19X39 CM (ESPESSURA 9 CM) E ARGAMASSA DE ASSENTAMENTO COM PREPARO EM BETONEIRA. AF_12/2021 | C80: M2 | D80: 54.83 | E80: 0.0186
A81: 103323 | B81: ALVENARIA DE VEDAÇÃO DE BLOCOS CERÂMICOS FURADOS NA VERTICAL DE 9X19X39 CM (ESPESSURA 9 CM) E ARGAMASSA DE ASSENTAMENTO COM PREPARO MANUAL. AF_12/2021 | C81: M2 | D81: 56.41 | E81: 0.0181
A82: 103338 | B82: ALVENARIA DE VEDAÇÃO DE BLOCOS VAZADOS DE CONCRETO APARENTE DE 14X19X39 CM (ESPESSURA 14 CM) E ARGAMASSA DE ASSENTAMENTO COM PREPARO EM BETONEIRA. AF_12/2021 | C82: M2 | D82: 117.21 | E82: 0.0146
A83: 103339 | B83: ALVENARIA DE VEDAÇÃO DE BLOCOS VAZADOS DE CONCRETO APARENTE DE 14X19X39 CM (ESPESSURA 14 CM) E ARGAMASSA DE ASSENTAMENTO COM PREPARO MANUAL. AF_12/2021 | C83: M2 | D83: 118.76 | E83: 0.0144
A84: 103340 | B84: ALVENARIA DE VEDAÇÃO DE BLOCOS VAZADOS DE CONCRETO APARENTE DE 19X19X39 CM (ESPESSURA 19 CM) E ARGAMASSA DE ASSENTAMENTO COM PREPARO EM BETONEIRA. AF_12/2021 | C84: M2 | D84: 141.54 | E84: 0.0179
A85: 103341 | B85: ALVENARIA DE VEDAÇÃO DE BLOCOS VAZADOS DE CONCRETO APARENTE DE 19X19X39 CM (ESPESSURA 19 CM) E ARGAMASSA DE ASSENTAMENTO COM PREPARO MANUAL. AF_12/2021 | C85: M2 | D85: 143.48 | E85: 0.0177
A86: 103336 | B86: ALVENARIA DE VEDAÇÃO DE BLOCOS VAZADOS DE CONCRETO APARENTE DE 9X19X39 CM (ESPESSURA 9 CM) E ARGAMASSA DE ASSENTAMENTO COM PREPARO EM BETONEIRA. AF_12/2021 | C86: M2 | D86: 89.23 | E86: 0.0114
A87: 103337 | B87: ALVENARIA DE VEDAÇÃO DE BLOCOS VAZADOS DE CONCRETO APARENTE DE 9X19X39 CM (ESPESSURA 9 CM) E ARGAMASSA DE ASSENTAMENTO COM PREPARO MANUAL. AF_12/2021 | C87: M2 | D87: 90.55 | E87: 0.0113
A88: 103342 | B88: ALVENARIA DE VEDAÇÃO DE BLOCOS VAZADOS DE CONCRETO DE 14X19X29 CM (ESPESSURA 14 CM) E ARGAMASSA DE ASSENTAMENTO COM PREPARO EM BETONEIRA. AF_12/2021 | C88: M2 | D88: 119.78 | E88: 0.0143
A89: 103343 | B89: ALVENARIA DE VEDAÇÃO DE BLOCOS VAZADOS DE CONCRETO DE 14X19X29 CM (ESPESSURA 14 CM) E ARGAMASSA DE ASSENTAMENTO COM PREPARO MANUAL. AF_12/2021 | C89: M2 | D89: 121.49 | E89: 0.0141
A90: 103318 | B90: ALVENARIA DE VEDAÇÃO DE BLOCOS VAZADOS DE CONCRETO DE 14X19X39 CM (ESPESSURA 14 CM) E ARGAMASSA DE ASSENTAMENTO COM PREPARO EM BETONEIRA. AF_12/2021 | C90: M2 | D90: 102.61 | E90: 0.0167
A91: 103319 | B91: ALVENARIA DE VEDAÇÃO DE BLOCOS VAZADOS DE CONCRETO DE 14X19X39 CM (ESPESSURA 14 CM) E ARGAMASSA DE ASSENTAMENTO COM PREPARO MANUAL. AF_12/2021 | C91: M2 | D91: 104.16 | E91: 0.0164
A92: 103320 | B92: ALVENARIA DE VEDAÇÃO DE BLOCOS VAZADOS DE CONCRETO DE 19X19X39 CM (ESPESSURA 19 CM) E ARGAMASSA DE ASSENTAMENTO COM PREPARO EM BETONEIRA. AF_12/2021 | C92: M2 | D92: 123.23 | E92: 0.0206
A93: 103321 | B93: ALVENARIA DE VEDAÇÃO DE BLOCOS VAZADOS DE CONCRETO DE 19X19X39 CM (ESPESSURA 19 CM) E ARGAMASSA DE ASSENTAMENTO COM PREPARO MANUAL. AF_12/2021 | C93: M2 | D93: 125.17 | E93: 0.0203
A94: 103316 | B94: ALVENARIA DE VEDAÇÃO DE BLOCOS VAZADOS DE CONCRETO DE 9X19X39 CM (ESPESSURA 9 CM) E ARGAMASSA DE ASSENTAMENTO COM PREPARO EM BETONEIRA. AF_12/2021 | C94: M2 | D94: 79.21 | E94: 0.0129
A95: 103317 | B95: ALVENARIA DE VEDAÇÃO DE BLOCOS VAZADOS DE CONCRETO DE 9X19X39 CM (ESPESSURA 9 CM) E ARGAMASSA DE ASSENTAMENTO COM PREPARO MANUAL. AF_12/2021 | C95: M2 | D95: 80.53 | E95: 0.0127
A96: 101166 | B96: ALVENARIA DE EMBASAMENTO COM BLOCO ESTRUTURAL DE CERÂMICA, DE 14X19X29CM E ARGAMASSA DE ASSENTAMENTO COM PREPARO EM BETONEIRA. AF_05/2020 | C96: M3 | D96: 636.97 | E96: 0
A97: 101165 | B97: ALVENARIA DE EMBASAMENTO COM BLOCO ESTRUTURAL DE CONCRETO, DE 14X19X29CM E ARGAMASSA DE ASSENTAMENTO COM PREPARO EM BETONEIRA. AF_05/2020 | C97: M3 | D97: 1026.71 | E97: 0
A98: 101163 | B98: ALVENARIA DE VEDAÇÃO COM BLOCO DE VIDRO VAZADO, TIPO VENEZIANA, DE 6X20X20CM E ARGAMASSA DE ASSENTAMENTO COM PREPARO EM BETONEIRA. AF_05/2020 | C98: M2 | D98: 690.44 | E98: 0.7294
A99: 101164 | B99: ALVENARIA DE VEDAÇÃO COM BLOCO DE VIDRO, TIPO CANELADO, DE 8X19X19CM E ARGAMASSA DE ASSENTAMENTO COM PREPARO EM BETONEIRA. AF_05/2020 | C99: M2 | D99: 701.54 | E99: 0.7266
A100: 101162 | B100: ALVENARIA DE VEDAÇÃO COM ELEMENTO VAZADO DE CERÂMICA (COBOGÓ) DE 7X20X20CM E ARGAMASSA DE ASSENTAMENTO COM PREPARO EM BETONEIRA. AF_05/2020 | C100: M2 | D100: 147.89 | E100: 0
A101: 101161 | B101: ALVENARIA DE VEDAÇÃO COM ELEMENTO VAZADO DE CONCRETO (COBOGÓ) DE 7X50X50CM E ARGAMASSA DE ASSENTAMENTO COM PREPARO EM BETONEIRA. AF_05/2020 | C101: M2 | D101: 233.11 | E101: 0
A102: 101160 | B102: ALVENARIA DE VEDAÇÃO DE BLOCO DE SOLO-CIMENTO (TIJOLO ECOLÓGICO) DE 7X15X30CM (ESPESSURA 15CM). AF_05/2020 | C102: M2 | D102: 0
A103: 101159 | B103: ALVENARIA DE VEDAÇÃO DE BLOCOS CERÂMICOS MACIÇOS DE 5X10X20CM (ESPESSURA 10CM) E ARGAMASSA DE ASSENTAMENTO COM PREPARO EM BETONEIRA. AF_05/2020 | C103: M2 | D103: 133.32 | E103: 0
A104: 101154 | B104: ALVENARIA DE VEDAÇÃO DE BLOCOS DE CONCRETO CELULAR DE 10X30X60CM (ESPESSURA 10CM) E ARGAMASSA DE ASSENTAMENTO COM PREPARO EM BETONEIRA. AF_05/2020 | C104: M2 | D104: 133.9 | E104: 0.6644
A105: 101155 | B105: ALVENARIA DE VEDAÇÃO DE BLOCOS DE CONCRETO CELULAR DE 15X30X60CM (ESPESSURA 15CM) E ARGAMASSA DE ASSENTAMENTO COM PREPARO EM BETONEIRA. AF_05/2020 | C105: M2 | D105: 187.1 | E105: 0.6989
A106: 101156 | B106: ALVENARIA DE VEDAÇÃO DE BLOCOS DE CONCRETO CELULAR DE 20X30X60CM (ESPESSURA 20CM) E ARGAMASSA DE ASSENTAMENTO COM PREPARO EM BETONEIRA. AF_05/2020 | C106: M2 | D106: 273.29 | E106: 0.7336
A107: 101158 | B107: ALVENARIA DE VEDAÇÃO DE BLOCOS DE GESSO DE 10X50X66CM (ESPESSURA 10CM). AF_05/2020 | C107: M2 | D107: 79.32 | E107: 0
A108: 101157 | B108: ALVENARIA DE VEDAÇÃO DE BLOCOS DE GESSO DE 7X50X66CM (ESPESSURA 7CM). AF_05/2020 | C108: M2 | D108: 61.02 | E108: 0
A109: 87382 | B109: ARGAMASSA INDUSTRIALIZADA MULTIUSO PARA REVESTIMENTOS E ASSENTAMENTO DA ALVENARIA, PREPARO COM MISTURADOR DE EIXO HORIZONTAL DE 160 KG. AF_08/2019 | C109: M3 | D109: 2113.24 | E109: 0
A110: 87383 | B110: ARGAMASSA INDUSTRIALIZADA MULTIUSO PARA REVESTIMENTOS E ASSENTAMENTO DA ALVENARIA, PREPARO COM MISTURADOR DE EIXO HORIZONTAL DE 300 KG. AF_08/2019 | C110: M3 | D110: 2111.64 | E110: 0
A111: 87384 | B111: ARGAMASSA INDUSTRIALIZADA MULTIUSO PARA REVESTIMENTOS E ASSENTAMENTO DA ALVENARIA, PREPARO COM MISTURADOR DE EIXO HORIZONTAL DE 600 KG. AF_08/2019 | C111: M3 | D111: 2106.14 | E111: 0
A112: 87398 | B112: ARGAMASSA INDUSTRIALIZADA MULTIUSO PARA REVESTIMENTOS E ASSENTAMENTO DA ALVENARIA, PREPARO MANUAL. AF_08/2019 | C112: M3 | D112: 2363.26 | E112: 0
A113: 87395 | B113: ARGAMASSA INDUSTRIALIZADA PARA CHAPISCO COLANTE, PREPARO COM MISTURADOR DE EIXO HORIZONTAL DE 160 KG. AF_08/2019 | C113: M3 | D113: 4129.12 | E113: 0
A114: 87396 | B114: ARGAMASSA INDUSTRIALIZADA PARA CHAPISCO COLANTE, PREPARO COM MISTURADOR DE EIXO HORIZONTAL DE 300 KG. AF_08/2019 | C114: M3 | D114: 4157.79 | E114: 0
A115: 87397 | B115: ARGAMASSA INDUSTRIALIZADA PARA CHAPISCO COLANTE, PREPARO COM MISTURADOR DE EIXO HORIZONTAL DE 600 KG. AF_08/2019 | C115: M3 | D115: 4188.91 | E115: 0
A116: 87402 | B116: ARGAMASSA INDUSTRIALIZADA PARA CHAPISCO COLANTE, PREPARO MANUAL. AF_08/2019 | C116: M3 | D116: 4449.78 | E116: 0
A117: 87391 | B117: ARGAMASSA INDUSTRIALIZADA PARA CHAPISCO ROLADO, PREPARO COM MISTURADOR DE EIXO HORIZONTAL DE 160 KG. AF_08/2019 | C117: M3 | D117: 6553.29 | E117: 0
A118: 87393 | B118: ARGAMASSA INDUSTRIALIZADA PARA CHAPISCO ROLADO, PREPARO COM MISTURADOR DE EIXO HORIZONTAL DE 300 KG. AF_08/2019 | C118: M3 | D118: 6614.52 | E118: 0
A119: 87394 | B119: ARGAMASSA INDUSTRIALIZADA PARA CHAPISCO ROLADO, PREPARO COM MISTURADOR DE EIXO HORIZONTAL DE 600 KG. AF_08/2019 | C119: M3 | D119: 6676.73 | E119: 0
A120: 87401 | B120: ARGAMASSA INDUSTRIALIZADA PARA CHAPISCO ROLADO, PREPARO MANUAL. AF_08/2019 | C120: M3 | D120: 6923.58 | E120: 0
A121: 87407 | B121: ARGAMASSA INDUSTRIALIZADA PARA REVESTIMENTOS, MISTURA E PROJEÇÃO DE 1,5 M³/H DE ARGAMASSA. AF_08/2019 | C121: M3 | D121: 2152.9 | E121: 0
A122: 87408 | B122: ARGAMASSA INDUSTRIALIZADA PARA REVESTIMENTOS, MISTURA E PROJEÇÃO DE 2 M³/H DE ARGAMASSA. AF_08/2019 | C122: M3 | D122: 2141.26 | E122: 0
A123: 87404 | B123: ARGAMASSA PARA REVESTIMENTO DECORATIVO MONOCAMADA (MONOCAPA), MISTURA E PROJEÇÃO DE 1,5 M3/H DE ARGAMASSA. AF_08/2019 | C123: M3 | D123: 6115.41 | E123: 0
A124: 87405 | B124: ARGAMASSA PARA REVESTIMENTO DECORATIVO MONOCAMADA (MONOCAPA), MISTURA E PROJEÇÃO DE 2 M3/H DE ARGAMASSA. AF_08/2019 | C124: M3 | D124: 6133.81 | E124: 0
A125: 87388 | B125: ARGAMASSA PARA REVESTIMENTO DECORATIVO MONOCAMADA (MONOCAPA), PREPARO COM MISTURADOR DE EIXO HORIZONTAL DE 160 KG. AF_08/2019 | C125: M3 | D125: 5894.43 | E125: 0
A126: 87389 | B126: ARGAMASSA PARA REVESTIMENTO DECORATIVO MONOCAMADA (MONOCAPA), PREPARO COM MISTURADOR DE EIXO HORIZONTAL DE 300 KG. AF_08/2019 | C126: M3 | D126: 5919.89 | E126: 0
A127: 87390 | B127: ARGAMASSA PARA REVESTIMENTO DECORATIVO MONOCAMADA (MONOCAPA), PREPARO COM MISTURADOR DE EIXO HORIZONTAL DE 600 KG. AF_08/2019 | C127: M3 | D127: 5953.38 | E127: 0
A128: 87385 | B128: ARGAMASSA PRONTA PARA CONTRAPISO, PREPARO COM MISTURADOR DE EIXO HORIZONTAL DE 160 KG. AF_08/2019 | C128: M3 | D128: 2449.65 | E128: 0
A129: 87386 | B129: ARGAMASSA PRONTA PARA CONTRAPISO, PREPARO COM MISTURADOR DE EIXO HORIZONTAL DE 300 KG. AF_08/2019 | C129: M3 | D129: 2443.17 | E129: 0
A130: 87387 | B130: ARGAMASSA PRONTA PARA CONTRAPISO, PREPARO COM MISTURADOR DE EIXO HORIZONTAL DE 600 KG. AF_08/2019 | C130: M3 | D130: 2440.61 | E130: 0
A131: 87399 | B131: ARGAMASSA PRONTA PARA CONTRAPISO, PREPARO MANUAL. AF_08/2019 | C131: M3 | D131: 2705.1 | E131: 0
A132: 88627 | B132: ARGAMASSA TRAÇO 1:0,5:4,5 (EM VOLUME DE CIMENTO, CAL E AREIA MÉDIA ÚMIDA) PARA ASSENTAMENTO DE ALVENARIA, PREPARO MANUAL. AF_08/2019 | C132: M3 | D132: 736.59 | E132: 0
A133: 100463 | B133: ARGAMASSA TRAÇO 1:0,5:4,5 (EM VOLUME DE CIMENTO, CAL E AREIA MÉDIA ÚMIDA), PREPARO MECÂNICO COM BETONEIRA 250 L. AF_08/2019 | C133: M3 | D133: 0
A134: 88626 | B134: ARGAMASSA TRAÇO 1:0,5:4,5 (EM VOLUME DE CIMENTO, CAL E AREIA MÉDIA ÚMIDA), PREPARO MECÂNICO COM BETONEIRA 400 L. AF_08/2019 | C134: M3 | D134: 615.75 | E134: 0
A135: 100488 | B135: ARGAMASSA TRAÇO 1:0,5:4,5 (EM VOLUME DE CIMENTO, CAL E AREIA MÉDIA ÚMIDA), PREPARO MECÂNICO COM BETONEIRA 600 L. AF_08/2019 | C135: M3 | D135: 608.82 | E135: 0
A136: 100464 | B136: ARGAMASSA TRAÇO 1:0,5:4,5 (EM VOLUME DE CIMENTO, CAL E AREIA MÉDIA ÚMIDA), PREPARO MECÂNICO COM MISTURADOR DE EIXO HORIZONTAL DE 160 KG. AF_08/2019 | C136: M3 | D136: 640.35 | E136: 0
A137: 100465 | B137: ARGAMASSA TRAÇO 1:0,5:4,5 (EM VOLUME DE CIMENTO, CAL E AREIA MÉDIA ÚMIDA), PREPARO MECÂNICO COM MISTURADOR DE EIXO HORIZONTAL DE 300 KG. AF_08/2019 | C137: M3 | D137: 601.75 | E137: 0
A138: 100466 | B138: ARGAMASSA TRAÇO 1:0,5:4,5 (EM VOLUME DE CIMENTO, CAL E AREIA MÉDIA ÚMIDA), PREPARO MECÂNICO COM MISTURADOR DE EIXO HORIZONTAL DE 600 KG. AF_08/2019 | C138: M3 | D138: 583.88 | E138: 0
A139: 87368 | B139: ARGAMASSA TRAÇO 1:1,5:7,5 (EM VOLUME DE CIMENTO, CAL E AREIA MÉDIA ÚMIDA) PARA EMBOÇO/MASSA ÚNICA/ASSENTAMENTO DE ALVENARIA DE VEDAÇÃO, PREPARO MANUAL. AF_08/2019 | C139: M3 | D139: 820.35 | E139: 0
A140: 100450 | B140: ARGAMASSA TRAÇO 1:1,5:7,5 (EM VOLUME DE CIMENTO, CAL E AREIA MÉDIA ÚMIDA) PARA EMBOÇO/MASSA ÚNICA/ASSENTAMENTO DE ALVENARIA DE VEDAÇÃO, PREPARO MECÂNICO COM BETONEIRA 250 L. AF_08/2019 | C140: M3 | D140: 0
A141: 87289 | B141: ARGAMASSA TRAÇO 1:1,5:7,5 (EM VOLUME DE CIMENTO, CAL E AREIA MÉDIA ÚMIDA) PARA EMBOÇO/MASSA ÚNICA/ASSENTAMENTO DE ALVENARIA DE VEDAÇÃO, PREPARO MECÂNICO COM BETONEIRA 400 L. AF_08/2019 | C141: M3 | D141: 670.94 | E141: 0
A142: 87290 | B142: ARGAMASSA TRAÇO 1:1,5:7,5 (EM VOLUME DE CIMENTO, CAL E AREIA MÉDIA ÚMIDA) PARA EMBOÇO/MASSA ÚNICA/ASSENTAMENTO DE ALVENARIA DE VEDAÇÃO, PREPARO MECÂNICO COM BETONEIRA 600 L. AF_08/2019 | C142: M3 | D142: 662.66 | E142: 0
A143: 87333 | B143: ARGAMASSA TRAÇO 1:1,5:7,5 (EM VOLUME DE CIMENTO, CAL E AREIA MÉDIA ÚMIDA) PARA EMBOÇO/MASSA ÚNICA/ASSENTAMENTO DE ALVENARIA DE VEDAÇÃO, PREPARO MECÂNICO COM MISTURADOR DE EIXO HORIZONTAL DE 300 KG. AF_08/2019 | C143: M3 | D143: 672.26 | E143: 0
A144: 87334 | B144: ARGAMASSA TRAÇO 1:1,5:7,5 (EM VOLUME DE CIMENTO, CAL E AREIA MÉDIA ÚMIDA) PARA EMBOÇO/MASSA ÚNICA/ASSENTAMENTO DE ALVENARIA DE VEDAÇÃO, PREPARO MECÂNICO COM MISTURADOR DE EIXO HORIZONTAL DE 600 KG. AF_08/2019 | C144: M3 | D144: 635.99 | E144: 0
A145: 105515 | B145: ARGAMASSA TRAÇO 1:1,93 (EM VOLUME DE CIMENTO E AREIA MÉDIA ÚMIDA), FCK 20MPA, PREPARO MECÂNICO COM MISTURADOR DUPLO HORIZONTAL DE ALTA TURBULÊNCIA. AF_03/2020 | C145: M3 | D145: 825.59 | E145: 0
A146: 87367 | B146: ARGAMASSA TRAÇO 1:1:6 (EM VOLUME DE CIMENTO, CAL E AREIA MÉDIA ÚMIDA) PARA EMBOÇO/MASSA ÚNICA/ASSENTAMENTO DE ALVENARIA DE VEDAÇÃO, PREPARO MANUAL. AF_08/2019 | C146: M3 | D146: 816.93 | E146: 0
A147: 100449 | B147: ARGAMASSA TRAÇO 1:1:6 (EM VOLUME DE CIMENTO, CAL E AREIA MÉDIA ÚMIDA) PARA EMBOÇO/MASSA ÚNICA/ASSENTAMENTO DE ALVENARIA DE VEDAÇÃO, PREPARO MECÂNICO COM BETONEIRA 250 L. AF_08/2019 | C147: M3 | D147: 0
A148: 87286 | B148: ARGAMASSA TRAÇO 1:1:6 (EM VOLUME DE CIMENTO, CAL E AREIA MÉDIA ÚMIDA) PARA EMBOÇO/MASSA ÚNICA/ASSENTAMENTO DE ALVENARIA DE VEDAÇÃO, PREPARO MECÂNICO COM BETONEIRA 400 L. AF_08/2019 | C148: M3 | D148: 671.09 | E148: 0
A149: 87287 | B149: ARGAMASSA TRAÇO 1:1:6 (EM VOLUME DE CIMENTO, CAL E AREIA MÉDIA ÚMIDA) PARA EMBOÇO/MASSA ÚNICA/ASSENTAMENTO DE ALVENARIA DE VEDAÇÃO, PREPARO MECÂNICO COM BETONEIRA 600 L. AF_08/2019 | C149: M3 | D149: 655.15 | E149: 0
A150: 87331 | B150: ARGAMASSA TRAÇO 1:1:6 (EM VOLUME DE CIMENTO, CAL E AREIA MÉDIA ÚMIDA) PARA EMBOÇO/MASSA ÚNICA/ASSENTAMENTO DE ALVENARIA DE VEDAÇÃO, PREPARO MECÂNICO COM MISTURADOR DE EIXO HORIZONTAL DE 300 KG. AF_08/2019 | C150: M3 | D150: 691.94 | E150: 0
A151: 87332 | B151: ARGAMASSA TRAÇO 1:1:6 (EM VOLUME DE CIMENTO, CAL E AREIA MÉDIA ÚMIDA) PARA EMBOÇO/MASSA ÚNICA/ASSENTAMENTO DE ALVENARIA DE VEDAÇÃO, PREPARO MECÂNICO COM MISTURADOR DE EIXO HORIZONTAL DE 600 KG. AF_08/2019 | C151: M3 | D151: 631.36 | E151: 0
A152: 87369 | B152: ARGAMASSA TRAÇO 1:2:8 (EM VOLUME DE CIMENTO, CAL E AREIA MÉDIA ÚMIDA) PARA EMBOÇO/MASSA ÚNICA/ASSENTAMENTO DE ALVENARIA DE VEDAÇÃO, PREPARO MANUAL. AF_08/2019 | C152: M3 | D152: 858.26 | E152: 0
A153: 100451 | B153: ARGAMASSA TRAÇO 1:2:8 (EM VOLUME DE CIMENTO, CAL E AREIA MÉDIA ÚMIDA) PARA EMBOÇO/MASSA ÚNICA/ASSENTAMENTO DE ALVENARIA DE VEDAÇÃO, PREPARO MECÂNICO COM BETONEIRA 250 L. AF_08/2019 | C153: M3 | D153: 0
A154: 87292 | B154: ARGAMASSA TRAÇO 1:2:8 (EM VOLUME DE CIMENTO, CAL E AREIA MÉDIA ÚMIDA) PARA EMBOÇO/MASSA ÚNICA/ASSENTAMENTO DE ALVENARIA DE VEDAÇÃO, PREPARO MECÂNICO COM BETONEIRA 400 L. AF_08/2019 | C154: M3 | D154: 706.34 | E154: 0
A155: 87335 | B155: ARGAMASSA TRAÇO 1:2:8 (EM VOLUME DE CIMENTO, CAL E AREIA MÉDIA ÚMIDA) PARA EMBOÇO/MASSA ÚNICA/ASSENTAMENTO DE ALVENARIA DE VEDAÇÃO, PREPARO MECÂNICO COM MISTURADOR DE EIXO HORIZONTAL DE 300 KG. AF_08/2019 | C155: M3 | D155: 665.43 | E155: 0
A156: 87336 | B156: ARGAMASSA TRAÇO 1:2:8 (EM VOLUME DE CIMENTO, CAL E AREIA MÉDIA ÚMIDA) PARA EMBOÇO/MASSA ÚNICA/ASSENTAMENTO DE ALVENARIA DE VEDAÇÃO, PREPARO MECÂNICO COM MISTURADOR DE EIXO HORIZONTAL DE 600 KG. AF_08/2019 | C156: M3 | D156: 675.67 | E156: 0
A157: 87370 | B157: ARGAMASSA TRAÇO 1:2:9 (EM VOLUME DE CIMENTO, CAL E AREIA MÉDIA ÚMIDA) PARA EMBOÇO/MASSA ÚNICA/ASSENTAMENTO DE ALVENARIA DE VEDAÇÃO, PREPARO MANUAL. AF_08/2019 | C157: M3 | D157: 825.32 | E157: 0
A158: 100452 | B158: ARGAMASSA TRAÇO 1:2:9 (EM VOLUME DE CIMENTO, CAL E AREIA MÉDIA ÚMIDA) PARA EMBOÇO/MASSA ÚNICA/ASSENTAMENTO DE ALVENARIA DE VEDAÇÃO, PREPARO MECÂNICO COM BETONEIRA 250 L. AF_08/2019 | C158: M3 | D158: 0
A159: 88715 | B159: ARGAMASSA TRAÇO 1:2:9 (EM VOLUME DE CIMENTO, CAL E AREIA MÉDIA ÚMIDA) PARA EMBOÇO/MASSA ÚNICA/ASSENTAMENTO DE ALVENARIA DE VEDAÇÃO, PREPARO MECÂNICO COM BETONEIRA 400 L. AF_08/2019 | C159: M3 | D159: 666.42 | E159: 0
A160: 87294 | B160: ARGAMASSA TRAÇO 1:2:9 (EM VOLUME DE CIMENTO, CAL E AREIA MÉDIA ÚMIDA) PARA EMBOÇO/MASSA ÚNICA/ASSENTAMENTO DE ALVENARIA DE VEDAÇÃO, PREPARO MECÂNICO COM BETONEIRA 600 L. AF_08/2019 | C160: M3 | D160: 672.48 | E160: 0
A161: 87337 | B161: ARGAMASSA TRAÇO 1:2:9 (EM VOLUME DE CIMENTO, CAL E AREIA MÉDIA ÚMIDA) PARA EMBOÇO/MASSA ÚNICA/ASSENTAMENTO DE ALVENARIA DE VEDAÇÃO, PREPARO MECÂNICO COM MISTURADOR DE EIXO HORIZONTAL DE 300 KG. AF_08/2019 | C161: M3 | D161: 671.46 | E161: 0
A162: 100487 | B162: ARGAMASSA TRAÇO 1:2:9 (EM VOLUME DE CIMENTO, CAL E AREIA MÉDIA ÚMIDA) PARA EMBOÇO/MASSA ÚNICA/ASSENTAMENTO DE ALVENARIA DE VEDAÇÃO, PREPARO MECÂNICO COM MISTURADOR DE EIXO HORIZONTAL DE 600 KG. AF_08/2019 | C162: M3 | D162: 638.81 | E162: 0
A163: 87380 | B163: ARGAMASSA TRAÇO 1:3 (EM VOLUME DE CIMENTO E AREIA GROSSA ÚMIDA) COM ADIÇÃO DE EMULSÃO POLIMÉRICA PARA CHAPISCO ROLADO, PREPARO MANUAL. AF_08/2019 | C163: M3 | D163: 3833.06 | E163: 0
A164: 100461 | B164: ARGAMASSA TRAÇO 1:3 (EM VOLUME DE CIMENTO E AREIA GROSSA ÚMIDA) COM ADIÇÃO DE EMULSÃO POLIMÉRICA PARA CHAPISCO ROLADO, PREPARO MECÂNICO COM BETONEIRA 250 L. AF_08/2019 | C164: M3 | D164: 0
A165: 87322 | B165: ARGAMASSA TRAÇO 1:3 (EM VOLUME DE CIMENTO E AREIA GROSSA ÚMIDA) COM ADIÇÃO DE EMULSÃO POLIMÉRICA PARA CHAPISCO ROLADO, PREPARO MECÂNICO COM BETONEIRA 400 L. AF_08/2019 | C165: M3 | D165: 3715.21 | E165: 0
A166: 87323 | B166: ARGAMASSA TRAÇO 1:3 (EM VOLUME DE CIMENTO E AREIA GROSSA ÚMIDA) COM ADIÇÃO DE EMULSÃO POLIMÉRICA PARA CHAPISCO ROLADO, PREPARO MECÂNICO COM BETONEIRA 600 L. AF_08/2019 | C166: M3 | D166: 3714.8 | E166: 0
A167: 87360 | B167: ARGAMASSA TRAÇO 1:3 (EM VOLUME DE CIMENTO E AREIA GROSSA ÚMIDA) COM ADIÇÃO DE EMULSÃO POLIMÉRICA PARA CHAPISCO ROLADO, PREPARO MECÂNICO COM MISTURADOR DE EIXO HORIZONTAL DE 160 KG. AF_08/2019 | C167: M3 | D167: 3671.61 | E167: 0
A168: 87361 | B168: ARGAMASSA TRAÇO 1:3 (EM VOLUME DE CIMENTO E AREIA GROSSA ÚMIDA) COM ADIÇÃO DE EMULSÃO POLIMÉRICA PARA CHAPISCO ROLADO, PREPARO MECÂNICO COM MISTURADOR DE EIXO HORIZONTAL DE 300 KG. AF_08/2019 | C168: M3 | D168: 3627.35 | E168: 0
A169: 87362 | B169: ARGAMASSA TRAÇO 1:3 (EM VOLUME DE CIMENTO E AREIA GROSSA ÚMIDA) COM ADIÇÃO DE EMULSÃO POLIMÉRICA PARA CHAPISCO ROLADO, PREPARO MECÂNICO COM MISTURADOR DE EIXO HORIZONTAL DE 600 KG. AF_08/2019 | C169: M3 | D169: 3627.36 | E169: 0
A170: 87377 | B170: ARGAMASSA TRAÇO 1:3 (EM VOLUME DE CIMENTO E AREIA GROSSA ÚMIDA) PARA CHAPISCO CONVENCIONAL, PREPARO MANUAL. AF_08/2019 | C170: M3 | D170: 692.13 | E170: 0
A171: 100458 | B171: ARGAMASSA TRAÇO 1:3 (EM VOLUME DE CIMENTO E AREIA GROSSA ÚMIDA) PARA CHAPISCO CONVENCIONAL, PREPARO MECÂNICO COM BETONEIRA 250 L. AF_08/2019 | C171: M3 | D171: 0
A172: 87313 | B172: ARGAMASSA TRAÇO 1:3 (EM VOLUME DE CIMENTO E AREIA GROSSA ÚMIDA) PARA CHAPISCO CONVENCIONAL, PREPARO MECÂNICO COM BETONEIRA 400 L. AF_08/2019 | C172: M3 | D172: 531.73 | E172: 0
A173: 87314 | B173: ARGAMASSA TRAÇO 1:3 (EM VOLUME DE CIMENTO E AREIA GROSSA ÚMIDA) PARA CHAPISCO CONVENCIONAL, PREPARO MECÂNICO COM BETONEIRA 600 L. AF_08/2019 | C173: M3 | D173: 524.27 | E173: 0
A174: 87352 | B174: ARGAMASSA TRAÇO 1:3 (EM VOLUME DE CIMENTO E AREIA GROSSA ÚMIDA) PARA CHAPISCO CONVENCIONAL, PREPARO MECÂNICO COM MISTURADOR DE EIXO HORIZONTAL DE 160 KG. AF_08/2019 | C174: M3 | D174: 614.75 | E174: 0
A175: 87353 | B175: ARGAMASSA TRAÇO 1:3 (EM VOLUME DE CIMENTO E AREIA GROSSA ÚMIDA) PARA CHAPISCO CONVENCIONAL, PREPARO MECÂNICO COM MISTURADOR DE EIXO HORIZONTAL DE 300 KG. AF_08/2019 | C175: M3 | D175: 536.2 | E175: 0
A176: 87354 | B176: ARGAMASSA TRAÇO 1:3 (EM VOLUME DE CIMENTO E AREIA GROSSA ÚMIDA) PARA CHAPISCO CONVENCIONAL, PREPARO MECÂNICO COM MISTURADOR DE EIXO HORIZONTAL DE 600 KG. AF_08/2019 | C176: M3 | D176: 502.03 | E176: 0
A177: 100480 | B177: ARGAMASSA TRAÇO 1:3 (EM VOLUME DE CIMENTO E AREIA MÉDIA ÚMIDA) COM ADIÇÃO DE IMPERMEABILIZANTE, PREPARO MANUAL. AF_08/2019 | C177: M3 | D177: 852.53 | E177: 0
A178: 100476 | B178: ARGAMASSA TRAÇO 1:3 (EM VOLUME DE CIMENTO E AREIA MÉDIA ÚMIDA) COM ADIÇÃO DE IMPERMEABILIZANTE, PREPARO MECÂNICO COM BETONEIRA 250 L. AF_08/2019 | C178: M3 | D178: 0
A179: 100475 | B179: ARGAMASSA TRAÇO 1:3 (EM VOLUME DE CIMENTO E AREIA MÉDIA ÚMIDA) COM ADIÇÃO DE IMPERMEABILIZANTE, PREPARO MECÂNICO COM BETONEIRA 400 L. AF_08/2019 | C179: M3 | D179: 727.11 | E179: 0
A180: 100491 | B180: ARGAMASSA TRAÇO 1:3 (EM VOLUME DE CIMENTO E AREIA MÉDIA ÚMIDA) COM ADIÇÃO DE IMPERMEABILIZANTE, PREPARO MECÂNICO COM BETONEIRA 600 L. AF_08/2019 | C180: M3 | D180: 728.06 | E180: 0
A181: 100477 | B181: ARGAMASSA TRAÇO 1:3 (EM VOLUME DE CIMENTO E AREIA MÉDIA ÚMIDA) COM ADIÇÃO DE IMPERMEABILIZANTE, PREPARO MECÂNICO COM MISTURADOR DE EIXO HORIZONTAL DE 160 KG. AF_08/2019 | C181: M3 | D181: 790.18 | E181: 0
A182: 100478 | B182: ARGAMASSA TRAÇO 1:3 (EM VOLUME DE CIMENTO E AREIA MÉDIA ÚMIDA) COM ADIÇÃO DE IMPERMEABILIZANTE, PREPARO MECÂNICO COM MISTURADOR DE EIXO HORIZONTAL DE 300 KG. AF_08/2019 | C182: M3 | D182: 713.54 | E182: 0
A183: 100479 | B183: ARGAMASSA TRAÇO 1:3 (EM VOLUME DE CIMENTO E AREIA MÉDIA ÚMIDA) COM ADIÇÃO DE IMPERMEABILIZANTE, PREPARO MECÂNICO COM MISTURADOR DE EIXO HORIZONTAL DE 600 KG. AF_08/2019 | C183: M3 | D183: 698.31 | E183: 0
A184: 87372 | B184: ARGAMASSA TRAÇO 1:3 (EM VOLUME DE CIMENTO E AREIA MÉDIA ÚMIDA) PARA CONTRAPISO, PREPARO MANUAL. AF_08/2019 | C184: M3 | D184: 846.91 | E184: 0
A185: 100453 | B185: ARGAMASSA TRAÇO 1:3 (EM VOLUME DE CIMENTO E AREIA MÉDIA ÚMIDA) PARA CONTRAPISO, PREPARO MECÂNICO COM BETONEIRA 250 L. AF_08/2019 | C185: M3 | D185: 0
A186: 87298 | B186: ARGAMASSA TRAÇO 1:3 (EM VOLUME DE CIMENTO E AREIA MÉDIA ÚMIDA) PARA CONTRAPISO, PREPARO MECÂNICO COM BETONEIRA 400 L. AF_08/2019 | C186: M3 | D186: 679.34 | E186: 0
A187: 87299 | B187: ARGAMASSA TRAÇO 1:3 (EM VOLUME DE CIMENTO E AREIA MÉDIA ÚMIDA) PARA CONTRAPISO, PREPARO MECÂNICO COM BETONEIRA 600 L. AF_08/2019 | C187: M3 | D187: 467.95 | E187: 0
A188: 87339 | B188: ARGAMASSA TRAÇO 1:3 (EM VOLUME DE CIMENTO E AREIA MÉDIA ÚMIDA) PARA CONTRAPISO, PREPARO MECÂNICO COM MISTURADOR DE EIXO HORIZONTAL DE 160 KG. AF_08/2019 | C188: M3 | D188: 804.25 | E188: 0
A189: 87340 | B189: ARGAMASSA TRAÇO 1:3 (EM VOLUME DE CIMENTO E AREIA MÉDIA ÚMIDA) PARA CONTRAPISO, PREPARO MECÂNICO COM MISTURADOR DE EIXO HORIZONTAL DE 300 KG. AF_08/2019 | C189: M3 | D189: 677.77 | E189: 0
A190: 87341 | B190: ARGAMASSA TRAÇO 1:3 (EM VOLUME DE CIMENTO E AREIA MÉDIA ÚMIDA) PARA CONTRAPISO, PREPARO MECÂNICO COM MISTURADOR DE EIXO HORIZONTAL DE 600 KG. AF_08/2019 | C190: M3 | D190: 646.7 | E190: 0
A191: 88629 | B191: ARGAMASSA TRAÇO 1:3 (EM VOLUME DE CIMENTO E AREIA MÉDIA ÚMIDA), PREPARO MANUAL. AF_08/2019 | C191: M3 | D191: 691.55 | E191: 0
A192: 100467 | B192: ARGAMASSA TRAÇO 1:3 (EM VOLUME DE CIMENTO E AREIA MÉDIA ÚMIDA), PREPARO MECÂNICO COM BETONEIRA 250 L. AF_08/2019 | C192: M3 | D192: 0
A193: 88628 | B193: ARGAMASSA TRAÇO 1:3 (EM VOLUME DE CIMENTO E AREIA MÉDIA ÚMIDA), PREPARO MECÂNICO COM BETONEIRA 400 L. AF_08/2019 | C193: M3 | D193: 565.57 | E193: 0
A194: 100489 | B194: ARGAMASSA TRAÇO 1:3 (EM VOLUME DE CIMENTO E AREIA MÉDIA ÚMIDA), PREPARO MECÂNICO COM BETONEIRA 600 L. AF_08/2019 | C194: M3 | D194: 565.08 | E194: 0
A195: 100468 | B195: ARGAMASSA TRAÇO 1:3 (EM VOLUME DE CIMENTO E AREIA MÉDIA ÚMIDA), PREPARO MECÂNICO COM MISTURADOR DE EIXO HORIZONTAL DE 160 KG. AF_08/2019 | C195: M3 | D195: 682.46 | E195: 0
A196: 100469 | B196: ARGAMASSA TRAÇO 1:3 (EM VOLUME DE CIMENTO E AREIA MÉDIA ÚMIDA), PREPARO MECÂNICO COM MISTURADOR DE EIXO HORIZONTAL DE 300 KG. AF_08/2019 | C196: M3 | D196: 555.75 | E196: 0
A197: 100470 | B197: ARGAMASSA TRAÇO 1:3 (EM VOLUME DE CIMENTO E AREIA MÉDIA ÚMIDA), PREPARO MECÂNICO COM MISTURADOR DE EIXO HORIZONTAL DE 600 KG. AF_08/2019 | C197: M3 | D197: 512.32 | E197: 0
A198: 87371 | B198: ARGAMASSA TRAÇO 1:3:12 (EM VOLUME DE CIMENTO, CAL E AREIA MÉDIA ÚMIDA) PARA EMBOÇO/MASSA ÚNICA/ASSENTAMENTO DE ALVENARIA DE VEDAÇÃO, PREPARO MANUAL. AF_08/2019 | C198: M3 | D198: 830.37 | E198: 0
A199: 87295 | B199: ARGAMASSA TRAÇO 1:3:12 (EM VOLUME DE CIMENTO, CAL E AREIA MÉDIA ÚMIDA) PARA EMBOÇO/MASSA ÚNICA/ASSENTAMENTO DE ALVENARIA DE VEDAÇÃO, PREPARO MECÂNICO COM BETONEIRA 400 L. AF_08/2019 | C199: M3 | D199: 702.91 | E199: 0
A200: 87296 | B200: ARGAMASSA TRAÇO 1:3:12 (EM VOLUME DE CIMENTO, CAL E AREIA MÉDIA ÚMIDA) PARA EMBOÇO/MASSA ÚNICA/ASSENTAMENTO DE ALVENARIA DE VEDAÇÃO, PREPARO MECÂNICO COM BETONEIRA 600 L. AF_08/2019 | C200: M3 | D200: 676.53 | E200: 0
... 9584 more rows

Sheet Tabela 1
B1: Código | C1: Categoria | D1: Unid. | E1: Salário | F1: Encargos Sociais | H1: Encargos Complementares | R1: Encargos Adicionais | X1: Encargos Totais | Z1: Valor Total
H2: Alimentação | J2: EPI | L2: Ferramenta | N2: Transporte | P2: Exame Ocupacional | R2: Cesta Básica | T2: Assistência Médica | V2: Seguro de Vida
E3: R$ | F3: % | G3: R$ | H3: % | I3: R$ | J3: % | K3: R$ | L3: % | M3: R$ | N3: % | O3: R$ | P3: % | Q3: R$ | R3: % | S3: R$ | T3: % | U3: R$ | V3: % | W3: R$ | X3: % | Y3: R$ | Z3: R$
B4: Profissionais mensalistas
B5: P8001 | C5: Advogado júnior | D5: mês | E5: 5064.07 | F5: 78.11 | G5: 3955.55 | H5: 15.33 | I5: 776.57 | J5: 0.52 | K5: 26.49 | L5: 0 | M5: 0 | N5: 0 | O5: 0 | P5: 0.06 | Q5: 3.1 | R5: 0 | S5: 0 | T5: 6.06 | U5: 306.84 | V5: 0.2 | W5: 9.98 | X5: 100.2855 | Y5: 5078.53 | Z5: 10142.6
B6: P8002 | C6: Advogado pleno | D6: mês | E6: 6752.09 | F6: 78.11 | G6: 5274.06 | H6: 11.5 | I6: 776.57 | J6: 0.39 | K6: 26.49 | L6: 0 | M6: 0 | N6: 0 | O6: 0 | P6: 0.05 | Q6: 3.1 | R6: 0 | S6: 0 | T6: 4.54 | U6: 306.84 | V6: 0.15 | W6: 9.98 | X6: 94.7416 | Y6: 6397.04 | Z6: 13149.14
B7: P8003 | C7: Advogado sênior | D7: mês | E7: 12224.44 | F7: 78.11 | G7: 9548.51 | H7: 6.35 | I7: 776.57 | J7: 0.22 | K7: 26.49 | L7: 0 | M7: 0 | N7: 0 | O7: 0 | P7: 0.03 | Q7: 3.1 | R7: 0 | S7: 0 | T7: 2.51 | U7: 306.84 | V7: 0.08 | W7: 9.98 | X7: 87.2964 | Y7: 10671.49 | Z7: 22895.93
B8: P8007 | C8: Analista de desenvolvimento de sistemas júnior | D8: mês | E8: 4278.79 | F8: 78.23 | G8: 3347.3 | H8: 18.15 | I8: 776.57 | J8: 0 | K8: 0 | L8: 0 | M8: 0 | N8: 0 | O8: 0 | P8: 0.07 | Q8: 3.03 | R8: 0 | S8: 0 | T8: 7.17 | U8: 306.84 | V8: 0.23 | W8: 9.98 | X8: 103.8545 | Y8: 4443.72 | Z8: 8722.5
B9: P8008 | C9: Analista de desenvolvimento de sistemas pleno | D9: mês | E9: 5705.05 | F9: 78.23 | G9: 4463.06 | H9: 13.61 | I9: 776.57 | J9: 0 | K9: 0 | L9: 0 | M9: 0 | N9: 0 | O9: 0 | P9: 0.05 | Q9: 3.03 | R9: 0 | S9: 0 | T9: 5.38 | U9: 306.84 | V9: 0.17 | W9: 9.98 | X9: 97.4484 | Y9: 5559.48 | Z9: 11264.53
B10: P8009 | C10: Analista de desenvolvimento de sistemas sênior | D10: mês | E10: 10184.53 | F10: 78.23 | G10: 7967.36 | H10: 7.62 | I10: 776.57 | J10: 0 | K10: 0 | L10: 0 | M10: 0 | N10: 0 | O10: 0 | P10: 0.03 | Q10: 3.03 | R10: 0 | S10: 0 | T10: 3.01 | U10: 306.84 | V10: 0.1 | W10: 9.98 | X10: 88.9955 | Y10: 9063.78 | Z10: 19248.31
B11: P8013 | C11: Arquiteto júnior | D11: mês | E11: 12443.57 | F11: 78.15 | G11: 9724.65 | H11: 6.24 | I11: 776.57 | J11: 0.21 | K11: 26.49 | L11: 0 | M11: 0 | N11: 0 | O11: 0 | P11: 0.02 | Q11: 2.74 | R11: 0 | S11: 0 | T11: 2.47 | U11: 306.84 | V11: 0.08 | W11: 9.98 | X11: 87.1717 | Y11: 10847.27 | Z11: 23290.84
B12: P8014 | C12: Arquiteto pleno | D12: mês | E12: 14617.04 | F12: 78.15 | G12: 11423.22 | H12: 5.31 | I12: 776.57 | J12: 0.18 | K12: 26.49 | L12: 0 | M12: 0 | N12: 0 | O12: 0 | P12: 0.02 | Q12: 2.74 | R12: 0 | S12: 0 | T12: 2.1 | U12: 306.84 | V12: 0.07 | W12: 9.98 | X12: 85.8302 | Y12: 12545.84 | Z12: 27162.88
B13: P8015 | C13: Arquiteto sênior | D13: mês | E13: 16790.52 | F13: 78.15 | G13: 13121.79 | H13: 4.63 | I13: 776.57 | J13: 0.16 | K13: 26.49 | L13: 0 | M13: 0 | N13: 0 | O13: 0 | P13: 0.02 | Q13: 2.74 | R13: 0 | S13: 0 | T13: 1.83 | U13: 306.84 | V13: 0.06 | W13: 9.98 | X13: 84.836 | Y13: 14244.41 | Z13: 31034.92
B14: P8019 | C14: Assistente social júnior | D14: mês | E14: 3324.84 | F14: 78.8 | G14: 2619.97 | H14: 23.36 | I14: 776.57 | J14: 0.8 | K14: 26.49 | L14: 0 | M14: 0 | N14: 1.49 | O14: 49.41 | P14: 0.13 | Q14: 4.32 | R14: 0 | S14: 0 | T14: 9.23 | U14: 306.84 | V14: 0.3 | W14: 9.98 | X14: 114.0982 | Y14: 3793.58 | Z14: 7118.43
B15: P8020 | C15: Assistente social pleno | D15: mês | E15: 4433.12 | F15: 78.8 | G15: 3493.3 | H15: 17.52 | I15: 776.57 | J15: 0.6 | K15: 26.49 | L15: 0 | M15: 0 | N15: 0 | O15: 0 | P15: 0.1 | Q15: 4.32 | R15: 0 | S15: 0 | T15: 6.92 | U15: 306.84 | V15: 0.23 | W15: 9.98 | X15: 104.1591 | Y15: 4617.5 | Z15: 9050.62
B16: P8021 | C16: Assistente social sênior | D16: mês | E16: 7555.65 | F16: 78.8 | G16: 5953.86 | H16: 10.28 | I16: 776.57 | J16: 0.35 | K16: 26.49 | L16: 0 | M16: 0 | N16: 0 | O16: 0 | P16: 0.06 | Q16: 4.32 | R16: 0 | S16: 0 | T16: 4.06 | U16: 306.84 | V16: 0.13 | W16: 9.98 | X16: 93.6789 | Y16: 7078.06 | Z16: 14633.71
B17: P8025 | C17: Auxiliar | D17: mês | E17: 1706.03 | F17: 80.07 | G17: 1366.02 | H17: 45.52 | I17: 776.57 | J17: 1.89 | K17: 32.25 | L17: 0.1 | M17: 1.65 | N17: 8.59 | O17: 146.54 | P17: 0.27 | Q17: 4.63 | R17: 0 | S17: 0 | T17: 17.99 | U17: 306.84 | V17: 0.58 | W17: 9.98 | X17: 155.0075 | Y17: 2644.47 | Z17: 4350.5
B18: P8026 | C18: Auxiliar administrativo | D18: mês | E18: 1977.58 | F18: 78.95 | G18: 1561.3 | H18: 39.27 | I18: 776.57 | J18: 0 | K18: 0 | L18: 0 | M18: 0 | N18: 6.59 | O18: 130.25 | P18: 0.21 | Q18: 4.16 | R18: 0 | S18: 0 | T18: 15.52 | U18: 306.84 | V18: 0.5 | W18: 9.98 | X18: 141.0359 | Y18: 2789.1 | Z18: 4766.67
B19: P8027 | C19: Auxiliar de laboratório | D19: mês | E19: 1886.7 | F19: 79.02 | G19: 1490.87 | H19: 41.16 | I19: 776.57 | J19: 1.71 | K19: 32.25 | L19: 0.18 | M19: 3.41 | N19: 7.19 | O19: 135.7 | P19: 0.23 | Q19: 4.42 | R19: 0 | S19: 0 | T19: 16.26 | U19: 306.84 | V19: 0.53 | W19: 9.98 | X19: 146.289 | Y19: 2760.03 | Z19: 4646.73
B20: P8028 | C20: Auxiliar de topografia | D20: mês | E20: 1706.03 | F20: 79.13 | G20: 1349.98 | H20: 45.52 | I20: 776.57 | J20: 1.89 | K20: 32.25 | L20: 0.08 | M20: 1.44 | N20: 8.59 | O20: 146.54 | P20: 0.26 | Q20: 4.41 | R20: 0 | S20: 0 | T20: 17.99 | U20: 306.84 | V20: 0.58 | W20: 9.98 | X20: 154.0425 | Y20: 2628.01 | Z20: 4334.04
B21: P8032 | C21: Biólogo júnior | D21: mês | E21: 3235.9 | F21: 78.44 | G21: 2538.24 | H21: 24 | I21: 776.57 | J21: 0.82 | K21: 26.49 | L21: 0 | M21: 0 | N21: 1.69 | O21: 54.75 | P21: 0.1 | Q21: 3.18 | R21: 0 | S21: 0 | T21: 9.48 | U21: 306.84 | V21: 0.31 | W21: 9.98 | X21: 114.8381 | Y21: 3716.04 | Z21: 6951.94
B22: P8033 | C22: Biólogo pleno | D22: mês | E22: 4314.53 | F22: 78.44 | G22: 3384.32 | H22: 18 | I22: 776.57 | J22: 0.61 | K22: 26.49 | L22: 0 | M22: 0 | N22: 0 | O22: 0 | P22: 0.07 | Q22: 3.18 | R22: 0 | S22: 0 | T22: 7.11 | U22: 306.84 | V22: 0.23 | W22: 9.98 | X22: 104.4697 | Y22: 4507.38 | Z22: 8821.9
B23: P8034 | C23: Biólogo sênior | D23: mês | E23: 7874.56 | F23: 78.44 | G23: 6176.8 | H23: 9.86 | I23: 776.57 | J23: 0.34 | K23: 26.49 | L23: 0 | M23: 0 | N23: 0 | O23: 0 | P23: 0.04 | Q23: 3.18 | R23: 0 | S23: 0 | T23: 3.9 | U23: 306.84 | V23: 0.13 | W23: 9.98 | X23: 92.7019 | Y23: 7299.86 | Z23: 15174.42
B24: P8038 | C24: Chefe de escritório | D24: mês | E24: 3743.41 | F24: 78.05 | G24: 2921.73 | H24: 20.74 | I24: 776.57 | J24: 0 | K24: 0 | L24: 0 | M24: 0 | N24: 0.65 | O24: 24.3 | P24: 0.06 | Q24: 2.19 | R24: 0 | S24: 0 | T24: 8.2 | U24: 306.84 | V24: 0.27 | W24: 9.98 | X24: 107.966 | Y24: 4041.6 | Z24: 7785.01
B25: P8040 | C25: Contador júnior | D25: mês | E25: 4450.31 | F25: 78.12 | G25: 3476.58 | H25: 17.45 | I25: 776.57 | J25: 0 | K25: 0 | L25: 0 | M25: 0 | N25: 0 | O25: 0 | P25: 0.06 | Q25: 2.48 | R25: 0 | S25: 0 | T25: 6.89 | U25: 306.84 | V25: 0.22 | W25: 9.98 | X25: 102.7446 | Y25: 4572.45 | Z25: 9022.76
B26: P8041 | C26: Contador pleno | D26: mês | E26: 5933.75 | F26: 78.12 | G26: 4635.44 | H26: 13.09 | I26: 776.57 | J26: 0 | K26: 0 | L26: 0 | M26: 0 | N26: 0 | O26: 0 | P26: 0.04 | Q26: 2.48 | R26: 0 | S26: 0 | T26: 5.17 | U26: 306.84 | V26: 0.17 | W26: 9.98 | X26: 96.5884 | Y26: 5731.31 | Z26: 11665.06
B27: P8042 | C27: Contador sênior | D27: mês | E27: 11336.95 | F27: 78.12 | G27: 8856.43 | H27: 6.85 | I27: 776.57 | J27: 0 | K27: 0 | L27: 0 | M27: 0 | N27: 0 | O27: 0 | P27: 0.02 | Q27: 2.48 | R27: 0 | S27: 0 | T27: 2.71 | U27: 306.84 | V27: 0.09 | W27: 9.98 | X27: 87.7864 | Y27: 9952.3 | Z27: 21289.25
B28: P8044 | C28: Coordenador ambiental | D28: mês | E28: 19218.44 | F28: 78.6 | G28: 15105.7 | H28: 4.04 | I28: 776.57 | J28: 0.13 | K28: 24.19 | L28: 0 | M28: 0 | N28: 0 | O28: 0 | P28: 0.02 | Q28: 3.79 | R28: 0 | S28: 0 | T28: 1.6 | U28: 306.84 | V28: 0.05 | W28: 9.98 | X28: 84.4349 | Y28: 16227.07 | Z28: 35445.51
B29: P8045 | C29: Economista júnior | D29: mês | E29: 4787.47 | F29: 77.45 | G29: 3707.9 | H29: 16.22 | I29: 776.57 | J29: 0 | K29: 0 | L29: 0 | M29: 0 | N29: 0 | O29: 0 | P29: 0.04 | Q29: 2.03 | R29: 0 | S29: 0 | T29: 6.41 | U29: 306.84 | V29: 0.21 | W29: 9.98 | X29: 100.3309 | Y29: 4803.31 | Z29: 9590.78
B30: P8046 | C30: Economista pleno | D30: mês | E30: 6383.29 | F30: 77.45 | G30: 4943.86 | H30: 12.17 | I30: 776.57 | J30: 0 | K30: 0 | L30: 0 | M30: 0 | N30: 0 | O30: 0 | P30: 0.03 | Q30: 2.03 | R30: 0 | S30: 0 | T30: 4.81 | U30: 306.84 | V30: 0.16 | W30: 9.98 | X30: 94.6107 | Y30: 6039.28 | Z30: 12422.57
B31: P8047 | C31: Economista sênior | D31: mês | E31: 9385.69 | F31: 77.45 | G31: 7269.22 | H31: 8.27 | I31: 776.57 | J31: 0 | K31: 0 | L31: 0 | M31: 0 | N31: 0 | O31: 0 | P31: 0.02 | Q31: 2.03 | R31: 0 | S31: 0 | T31: 3.27 | U31: 306.84 | V31: 0.11 | W31: 9.98 | X31: 89.1211 | Y31: 8364.64 | Z31: 17750.33
B32: P8054 | C32: Engenheiro agrônomo júnior | D32: mês | E32: 12443.57 | F32: 78.05 | G32: 9712.21 | H32: 6.24 | I32: 776.57 | J32: 0.21 | K32: 26.49 | L32: 0 | M32: 0 | N32: 0 | O32: 0 | P32: 0.03 | Q32: 3.15 | R32: 0 | S32: 0 | T32: 2.47 | U32: 306.84 | V32: 0.08 | W32: 9.98 | X32: 87.075 | Y32: 10835.24 | Z32: 23278.81
B33: P8055 | C33: Engenheiro agrônomo pleno | D33: mês | E33: 13405.28 | F33: 78.05 | G33: 10462.82 | H33: 5.79 | I33: 776.57 | J33: 0.2 | K33: 26.49 | L33: 0 | M33: 0 | N33: 0 | O33: 0 | P33: 0.02 | Q33: 3.15 | R33: 0 | S33: 0 | T33: 2.29 | U33: 306.84 | V33: 0.07 | W33: 9.98 | X33: 86.4275 | Y33: 11585.85 | Z33: 24991.14
B34: P8056 | C34: Engenheiro agrônomo sênior | D34: mês | E34: 14367 | F34: 78.05 | G34: 11213.44 | H34: 5.41 | I34: 776.57 | J34: 0.18 | K34: 26.49 | L34: 0 | M34: 0 | N34: 0 | O34: 0 | P34: 0.02 | Q34: 3.15 | R34: 0 | S34: 0 | T34: 2.14 | U34: 306.84 | V34: 0.07 | W34: 9.98 | X34: 85.8667 | Y34: 12336.47 | Z34: 26703.47
B35: P8057 | C35: Engenheiro ambiental júnior | D35: mês | E35: 12443.57 | F35: 78.76 | G35: 9800.56 | H35: 6.24 | I35: 776.57 | J35: 0.21 | K35: 26.49 | L35: 0 | M35: 0 | N35: 0 | O35: 0 | P35: 0.03 | Q35: 3.41 | R35: 0 | S35: 0 | T35: 2.47 | U35: 306.84 | V35: 0.08 | W35: 9.98 | X35: 87.787 | Y35: 10923.84 | Z35: 23367.41
B36: P8058 | C36: Engenheiro ambiental pleno | D36: mês | E36: 14289.04 | F36: 78.76 | G36: 11254.05 | H36: 5.43 | I36: 776.57 | J36: 0.19 | K36: 26.49 | L36: 0 | M36: 0 | N36: 0 | O36: 0 | P36: 0.02 | Q36: 3.41 | R36: 0 | S36: 0 | T36: 2.15 | U36: 306.84 | V36: 0.07 | W36: 9.98 | X36: 86.6212 | Y36: 12377.34 | Z36: 26666.38
B37: P8059 | C37: Engenheiro ambiental sênior | D37: mês | E37: 16134.52 | F37: 78.76 | G37: 12707.55 | H37: 4.81 | I37: 776.57 | J37: 0.16 | K37: 26.49 | L37: 0 | M37: 0 | N37: 0 | O37: 0 | P37: 0.02 | Q37: 3.41 | R37: 0 | S37: 0 | T37: 1.9 | U37: 306.84 | V37: 0.06 | W37: 9.98 | X37: 85.722 | Y37: 13830.83 | Z37: 29965.35
B38: P8060 | C38: Engenheiro consultor especial | D38: mês | E38: 23254.78 | F38: 78.41 | G38: 18234.08 | H38: 3.34 | I38: 776.57 | J38: 0.1 | K38: 24.19 | L38: 0 | M38: 0 | N38: 0 | O38: 0 | P38: 0.01 | Q38: 3.18 | R38: 0 | S38: 0 | T38: 1.32 | U38: 306.84 | V38: 0.04 | W38: 9.98 | X38: 83.2295 | Y38: 19354.84 | Z38: 42609.63
B39: P8061 | C39: Engenheiro coordenador | D39: mês | E39: 19378.99 | F39: 78.41 | G39: 15195.06 | H39: 4.01 | I39: 776.57 | J39: 0.12 | K39: 24.19 | L39: 0 | M39: 0 | N39: 0 | O39: 0 | P39: 0.02 | Q39: 3.18 | R39: 0 | S39: 0 | T39: 1.58 | U39: 306.84 | V39: 0.05 | W39: 9.98 | X39: 84.1934 | Y39: 16315.83 | Z39: 35694.82
B40: P8062 | C40: Engenheiro de pesca júnior | D40: mês | E40: 12443.57 | F40: 78.9 | G40: 9817.98 | H40: 6.24 | I40: 776.57 | J40: 0.21 | K40: 26.49 | L40: 0 | M40: 0 | N40: 0 | O40: 0 | P40: 0.04 | Q40: 4.59 | R40: 0 | S40: 0 | T40: 2.47 | U40: 306.84 | V40: 0.08 | W40: 9.98 | X40: 87.9365 | Y40: 10942.44 | Z40: 23386.01
B41: P8063 | C41: Engenheiro de pesca pleno | D41: mês | E41: 14160.98 | F41: 78.9 | G41: 11173.01 | H41: 5.48 | I41: 776.57 | J41: 0.19 | K41: 26.49 | L41: 0 | M41: 0 | N41: 0 | O41: 0 | P41: 0.03 | Q41: 4.59 | R41: 0 | S41: 0 | T41: 2.17 | U41: 306.84 | V41: 0.07 | W41: 9.98 | X41: 86.8406 | Y41: 12297.47 | Z41: 26458.45
B42: P8064 | C42: Engenheiro de pesca sênior | D42: mês | E42: 15878.38 | F42: 78.9 | G42: 12528.04 | H42: 4.89 | I42: 776.57 | J42: 0.17 | K42: 26.49 | L42: 0 | M42: 0 | N42: 0 | O42: 0 | P42: 0.03 | Q42: 4.59 | R42: 0 | S42: 0 | T42: 1.93 | U42: 306.84 | V42: 0.06 | W42: 9.98 | X42: 85.9817 | Y42: 13652.51 | Z42: 29530.89
B43: P8065 | C43: Engenheiro de projetos júnior | D43: mês | E43: 12443.57 | F43: 78.41 | G43: 9757 | H43: 6.24 | I43: 776.57 | J43: 0.21 | K43: 26.49 | L43: 0 | M43: 0 | N43: 0 | O43: 0 | P43: 0.03 | Q43: 3.18 | R43: 0 | S43: 0 | T43: 2.47 | U43: 306.84 | V43: 0.08 | W43: 9.98 | X43: 87.4352 | Y43: 10880.07 | Z43: 23323.64
B44: P8066 | C44: Engenheiro de projetos pleno | D44: mês | E44: 14698.04 | F44: 78.41 | G44: 11524.73 | H44: 5.28 | I44: 776.57 | J44: 0.18 | K44: 26.49 | L44: 0 | M44: 0 | N44: 0 | O44: 0 | P44: 0.02 | Q44: 3.18 | R44: 0 | S44: 0 | T44: 2.09 | U44: 306.84 | V44: 0.07 | W44: 9.98 | X44: 86.0509 | Y44: 12647.8 | Z44: 27345.84
B45: P8067 | C45: Engenheiro de projetos sênior | D45: mês | E45: 16952.51 | F45: 78.41 | G45: 13292.46 | H45: 4.58 | I45: 776.57 | J45: 0.16 | K45: 26.49 | L45: 0 | M45: 0 | N45: 0 | O45: 0 | P45: 0.02 | Q45: 3.18 | R45: 0 | S45: 0 | T45: 1.81 | U45: 306.84 | V45: 0.06 | W45: 9.98 | X45: 85.0348 | Y45: 14415.53 | Z45: 31368.04
B46: P8068 | C46: Engenheiro florestal júnior | D46: mês | E46: 12443.57 | F46: 78.9 | G46: 9817.98 | H46: 6.24 | I46: 776.57 | J46: 0.21 | K46: 26.49 | L46: 0 | M46: 0 | N46: 0 | O46: 0 | P46: 0.04 | Q46: 4.59 | R46: 0 | S46: 0 | T46: 2.47 | U46: 306.84 | V46: 0.08 | W46: 9.98 | X46: 87.9365 | Y46: 10942.44 | Z46: 23386.01
B47: P8069 | C47: Engenheiro florestal pleno | D47: mês | E47: 14160.98 | F47: 78.9 | G47: 11173.01 | H47: 5.48 | I47: 776.57 | J47: 0.19 | K47: 26.49 | L47: 0 | M47: 0 | N47: 0 | O47: 0 | P47: 0.03 | Q47: 4.59 | R47: 0 | S47: 0 | T47: 2.17 | U47: 306.84 | V47: 0.07 | W47: 9.98 | X47: 86.8406 | Y47: 12297.47 | Z47: 26458.45
B48: P8070 | C48: Engenheiro florestal sênior | D48: mês | E48: 15878.38 | F48: 78.9 | G48: 12528.04 | H48: 4.89 | I48: 776.57 | J48: 0.17 | K48: 26.49 | L48: 0 | M48: 0 | N48: 0 | O48: 0 | P48: 0.03 | Q48: 4.59 | R48: 0 | S48: 0 | T48: 1.93 | U48: 306.84 | V48: 0.06 | W48: 9.98 | X48: 85.9817 | Y48: 13652.51 | Z48: 29530.89
B49: P8080 | C49: Geólogo júnior | D49: mês | E49: 11984.56 | F49: 78.93 | G49: 9459.41 | H49: 6.48 | I49: 776.57 | J49: 0.22 | K49: 26.49 | L49: 0 | M49: 0 | N49: 0 | O49: 0 | P49: 0.04 | Q49: 4.54 | R49: 0 | S49: 0 | T49: 2.56 | U49: 306.84 | V49: 0.08 | W49: 9.98 | X49: 88.3122 | Y49: 10583.83 | Z49: 22568.39
B50: P8081 | C50: Geólogo pleno | D50: mês | E50: 13378.55 | F50: 78.93 | G50: 10559.69 | H50: 5.8 | I50: 776.57 | J50: 0.2 | K50: 26.49 | L50: 0 | M50: 0 | N50: 0 | O50: 0 | P50: 0.03 | Q50: 4.54 | R50: 0 | S50: 0 | T50: 2.29 | U50: 306.84 | V50: 0.07 | W50: 9.98 | X50: 87.3347 | Y50: 11684.11 | Z50: 25062.67
B51: P8082 | C51: Geólogo sênior | D51: mês | E51: 14772.55 | F51: 78.93 | G51: 11659.97 | H51: 5.26 | I51: 776.57 | J51: 0.18 | K51: 26.49 | L51: 0 | M51: 0 | N51: 0 | O51: 0 | P51: 0.03 | Q51: 4.54 | R51: 0 | S51: 0 | T51: 2.08 | U51: 306.84 | V51: 0.07 | W51: 9.98 | X51: 86.5416 | Y51: 12784.39 | Z51: 27556.94
B52: P8092 | C52: Jornalista júnior | D52: mês | E52: 3346.55 | F52: 78.25 | G52: 2618.68 | H52: 23.21 | I52: 776.57 | J52: 0.79 | K52: 26.49 | L52: 0 | M52: 0 | N52: 1.44 | O52: 48.11 | P52: 0.09 | Q52: 3.12 | R52: 0 | S52: 0 | T52: 9.17 | U52: 306.84 | V52: 0.3 | W52: 9.98 | X52: 113.2443 | Y52: 3789.78 | Z52: 7136.33
B53: P8093 | C53: Jornalista pleno | D53: mês | E53: 4462.07 | F53: 78.25 | G53: 3491.57 | H53: 17.4 | I53: 776.57 | J53: 0.59 | K53: 26.49 | L53: 0 | M53: 0 | N53: 0 | O53: 0 | P53: 0.07 | Q53: 3.12 | R53: 0 | S53: 0 | T53: 6.88 | U53: 306.84 | V53: 0.22 | W53: 9.98 | X53: 103.4176 | Y53: 4614.57 | Z53: 9076.64
B54: P8094 | C54: Jornalista sênior | D54: mês | E54: 8425.07 | F54: 78.25 | G54: 6592.62 | H54: 9.22 | I54: 776.57 | J54: 0.31 | K54: 26.49 | L54: 0 | M54: 0 | N54: 0 | O54: 0 | P54: 0.04 | Q54: 3.12 | R54: 0 | S54: 0 | T54: 3.64 | U54: 306.84 | V54: 0.12 | W54: 9.98 | X54: 91.5792 | Y54: 7715.62 | Z54: 16140.69
B55: P8098 | C55: Laboratorista | D55: mês | E55: 2515.6 | F55: 79.02 | G55: 1987.82 | H55: 30.87 | I55: 776.57 | J55: 1.18 | K55: 29.7 | L55: 0 | M55: 0 | N55: 3.89 | O55: 97.96 | P55: 0.18 | Q55: 4.42 | R55: 0 | S55: 0 | T55: 12.2 | U55: 306.84 | V55: 0.4 | W55: 9.98 | X55: 127.7349 | Y55: 3213.29 | Z55: 5728.89
B56: P8102 | C56: Médico veterinário | D56: mês | E56: 12443.57 | F56: 77.82 | G56: 9683.59 | H56: 6.24 | I56: 776.57 | J56: 0.21 | K56: 26.49 | L56: 0 | M56: 0 | N56: 0 | O56: 0 | P56: 0.02 | Q56: 2.32 | R56: 0 | S56: 0 | T56: 2.47 | U56: 306.84 | V56: 0.08 | W56: 9.98 | X56: 86.8383 | Y56: 10805.78 | Z56: 23249.35
B57: P8106 | C57: Meteorologista júnior | D57: mês | E57: 5498.81 | F57: 78.35 | G57: 4308.32 | H57: 14.12 | I57: 776.57 | J57: 0.48 | K57: 26.49 | L57: 0 | M57: 0 | N57: 0 | O57: 0 | P57: 0.06 | Q57: 3.04 | R57: 0 | S57: 0 | T57: 5.58 | U57: 306.84 | V57: 0.18 | W57: 9.98 | X57: 98.771 | Y57: 5431.24 | Z57: 10930.05
B58: P8107 | C58: Meteorologista pleno | D58: mês | E58: 7331.75 | F58: 78.35 | G58: 5744.43 | H58: 10.59 | I58: 776.57 | J58: 0.36 | K58: 26.49 | L58: 0 | M58: 0 | N58: 0 | O58: 0 | P58: 0.04 | Q58: 3.04 | R58: 0 | S58: 0 | T58: 4.19 | U58: 306.84 | V58: 0.14 | W58: 9.98 | X58: 93.6658 | Y58: 6867.34 | Z58: 14199.1
B59: P8108 | C59: Meteorologista sênior | D59: mês | E59: 11957.48 | F59: 78.35 | G59: 9368.69 | H59: 6.49 | I59: 776.57 | J59: 0.22 | K59: 26.49 | L59: 0 | M59: 0 | N59: 0 | O59: 0 | P59: 0.03 | Q59: 3.04 | R59: 0 | S59: 0 | T59: 2.57 | U59: 306.84 | V59: 0.08 | W59: 9.98 | X59: 87.7409 | Y59: 10491.6 | Z59: 22449.08
B60: P8112 | C60: Motorista de caminhão | D60: mês | E60: 2541.29 | F60: 79.03 | G60: 2008.38 | H60: 28.99 | I60: 736.74 | J60: 1.27 | K60: 32.25 | L60: 0 | M60: 0 | N60: 3.79 | O60: 96.42 | P60: 0.13 | Q60: 3.38 | R60: 0 | S60: 0 | T60: 12.07 | U60: 306.84 | V60: 0.39 | W60: 9.98 | X60: 125.6841 | Y60: 3193.99 | Z60: 5735.28
B61: P8113 | C61: Motorista de veículo leve | D61: mês | E61: 2208.96 | F61: 78.63 | G61: 1736.91 | H61: 33.35 | I61: 736.74 | J61: 1.46 | K61: 32.25 | L61: 0 | M61: 0 | N61: 5.27 | O61: 116.36 | P61: 0.17 | Q61: 3.81 | R61: 0 | S61: 0 | T61: 13.89 | U61: 306.84 | V61: 0.45 | W61: 9.98 | X61: 133.2251 | Y61: 2942.89 | Z61: 5151.86
B62: P8117 | C62: Oceanógrafo júnior | D62: mês | E62: 4832.53 | F62: 81.59 | G62: 3942.86 | H62: 16.07 | I62: 776.57 | J62: 0.55 | K62: 26.49 | L62: 0 | M62: 0 | N62: 0 | O62: 0 | P62: 0.14 | Q62: 6.8 | R62: 0 | S62: 0 | T62: 6.35 | U62: 306.84 | V62: 0.21 | W62: 9.98 | X62: 104.9045 | Y62: 5069.55 | Z62: 9902.08
B63: P8118 | C63: Oceanógrafo pleno | D63: mês | E63: 6443.38 | F63: 81.59 | G63: 5257.15 | H63: 12.05 | I63: 776.57 | J63: 0.41 | K63: 26.49 | L63: 0 | M63: 0 | N63: 0 | O63: 0 | P63: 0.11 | Q63: 6.8 | R63: 0 | S63: 0 | T63: 4.76 | U63: 306.84 | V63: 0.15 | W63: 9.98 | X63: 99.0759 | Y63: 6383.83 | Z63: 12827.21
B64: P8119 | C64: Oceanógrafo sênior | D64: mês | E64: 11766.56 | F64: 81.59 | G64: 9600.33 | H64: 6.6 | I64: 776.57 | J64: 0.23 | K64: 26.49 | L64: 0 | M64: 0 | N64: 0 | O64: 0 | P64: 0.06 | Q64: 6.8 | R64: 0 | S64: 0 | T64: 2.61 | U64: 306.84 | V64: 0.08 | W64: 9.98 | X64: 91.1653 | Y64: 10727.02 | Z64: 22493.57
B65: P8129 | C65: Pedagogo júnior | D65: mês | E65: 2451.1 | F65: 87.56 | G65: 2146.18 | H65: 31.68 | I65: 776.57 | J65: 1.08 | K65: 26.49 | L65: 0 | M65: 0 | N65: 4.15 | O65: 101.83 | P65: 0.17 | Q65: 4.14 | R65: 0 | S65: 0 | T65: 12.52 | U65: 306.84 | V65: 0.41 | W65: 9.98 | X65: 137.5724 | Y65: 3372.04 | Z65: 5823.13
B66: P8130 | C66: Pedagogo pleno | D66: mês | E66: 3268.13 | F66: 87.56 | G66: 2861.58 | H66: 23.76 | I66: 776.57 | J66: 0.81 | K66: 26.49 | L66: 0 | M66: 0 | N66: 1.62 | O66: 52.81 | P66: 0.13 | Q66: 4.14 | R66: 0 | S66: 0 | T66: 9.39 | U66: 306.84 | V66: 0.31 | W66: 9.98 | X66: 123.5693 | Y66: 4038.41 | Z66: 7306.54
B67: P8131 | C67: Pedagogo sênior | D67: mês | E67: 4342.48 | F67: 87.56 | G67: 3802.28 | H67: 17.88 | I67: 776.57 | J67: 0.61 | K67: 26.49 | L67: 0 | M67: 0 | N67: 0 | O67: 0 | P67: 0.1 | Q67: 4.14 | R67: 0 | S67: 0 | T67: 7.07 | U67: 306.84 | V67: 0.23 | W67: 9.98 | X67: 113.4442 | Y67: 4926.3 | Z67: 9268.78
B68: P8135 | C68: Secretária | D68: mês | E68: 2903.48 | F68: 79.12 | G68: 2297.23 | H68: 26.75 | I68: 776.57 | J68: 0 | K68: 0 | L68: 0 | M68: 0 | N68: 2.57 | O68: 74.69 | P68: 0.16 | Q68: 4.63 | R68: 0 | S68: 0 | T68: 10.57 | U68: 306.84 | V68: 0.34 | W68: 9.98 | X68: 119.5097 | Y68: 3469.94 | Z68: 6373.42
B69: P8139 | C69: Sondador | D69: mês | E69: 2219.18 | F69: 78.71 | G69: 1746.71 | H69: 34.99 | I69: 776.57 | J69: 1.34 | K69: 29.7 | L69: 0 | M69: 0 | N69: 5.22 | O69: 115.75 | P69: 0.18 | Q69: 4.01 | R69: 0 | S69: 0 | T69: 13.83 | U69: 306.84 | V69: 0.45 | W69: 9.98 | X69: 134.715 | Y69: 2989.56 | Z69: 5208.74
B70: P8143 | C70: Técnico ambiental | D70: mês | E70: 3033.2 | F70: 79.23 | G70: 2403.2 | H70: 25.6 | I70: 776.57 | J70: 0.98 | K70: 29.7 | L70: 0 | M70: 0 | N70: 2.21 | O70: 66.91 | P70: 0.14 | Q70: 4.12 | R70: 0 | S70: 0 | T70: 10.12 | U70: 306.84 | V70: 0.33 | W70: 9.98 | X70: 118.5983 | Y70: 3597.32 | Z70: 6630.52
B71: P8147 | C71: Técnico de obras | D71: mês | E71: 3323.33 | F71: 78.83 | G71: 2619.78 | H71: 23.37 | I71: 776.57 | J71: 0.89 | K71: 29.7 | L71: 0 | M71: 0 | N71: 1.49 | O71: 49.5 | P71: 0.1 | Q71: 3.34 | R71: 0 | S71: 0 | T71: 9.23 | U71: 306.84 | V71: 0.3 | W71: 9.98 | X71: 114.2139 | Y71: 3795.7 | Z71: 7119.03
B72: P8151 | C72: Técnico de segurança do trabalho | D72: mês | E72: 4601.83 | F72: 79.43 | G72: 3655.23 | H72: 16.01 | I72: 736.74 | J72: 0.65 | K72: 29.7 | L72: 0 | M72: 0 | N72: 0 | O72: 0 | P72: 0.08 | Q72: 3.9 | R72: 0 | S72: 0 | T72: 6.67 | U72: 306.84 | V72: 0.22 | W72: 9.98 | X72: 103.0545 | Y72: 4742.4 | Z72: 9344.23
B73: P8155 | C73: Técnico em geoprocessamento | D73: mês | E73: 2912.88 | F73: 78.24 | G73: 2279.04 | H73: 26.66 | I73: 776.57 | J73: 1.02 | K73: 29.7 | L73: 0 | M73: 0 | N73: 2.54 | O73: 74.13 | P73: 0.11 | Q73: 3.09 | R73: 0 | S73: 0 | T73: 10.53 | U73: 306.84 | V73: 0.34 | W73: 9.98 | X73: 119.4467 | Y73: 3479.34 | Z73: 6392.22
B74: P8163 | C74: Topógrafo | D74: mês | E74: 2627.36 | F74: 79.13 | G74: 2079.03 | H74: 29.56 | I74: 776.57 | J74: 1.13 | K74: 29.7 | L74: 0 | M74: 0 | N74: 3.47 | O74: 91.26 | P74: 0.17 | Q74: 4.41 | R74: 0 | S74: 0 | T74: 11.68 | U74: 306.84 | V74: 0.38 | W74: 9.98 | X74: 125.5172 | Y74: 3297.79 | Z74: 5925.15
B75: P8167 | C75: Arquivista júnior | D75: mês | E75: 2805.38 | F75: 78.78 | G75: 2210.08 | H75: 27.68 | I75: 776.57 | J75: 0 | K75: 0 | L75: 0 | M75: 0 | N75: 2.87 | O75: 80.58 | P75: 0.12 | Q75: 3.35 | R75: 0 | S75: 0 | T75: 10.94 | U75: 306.84 | V75: 0.36 | W75: 9.98 | X75: 120.7465 | Y75: 3387.4 | Z75: 6192.78
B76: P8168 | C76: Arquivista pleno | D76: mês | E76: 3740.51 | F76: 78.78 | G76: 2946.77 | H76: 20.76 | I76: 776.57 | J76: 0 | K76: 0 | L76: 0 | M76: 0 | N76: 0.65 | O76: 24.47 | P76: 0.09 | Q76: 3.35 | R76: 0 | S76: 0 | T76: 8.2 | U76: 306.84 | V76: 0.27 | W76: 9.98 | X76: 108.7549 | Y76: 4067.98 | Z76: 7808.49
B77: P8169 | C77: Arquivista sênior | D77: mês | E77: 6187.97 | F77: 78.78 | G77: 4874.88 | H77: 12.55 | I77: 776.57 | J77: 0 | K77: 0 | L77: 0 | M77: 0 | N77: 0 | O77: 0 | P77: 0.05 | Q77: 3.35 | R77: 0 | S77: 0 | T77: 4.96 | U77: 306.84 | V77: 0.16 | W77: 9.98 | X77: 96.5038 | Y77: 5971.62 | Z77: 12159.59
B78: P8173 | C78: Administrador júnior | D78: mês | E78: 3594.07 | F78: 78.38 | G78: 2817.03 | H78: 21.61 | I78: 776.57 | J78: 0 | K78: 0 | L78: 0 | M78: 0 | N78: 0.93 | O78: 33.26 | P78: 0.09 | Q78: 3.09 | R78: 0 | S78: 0 | T78: 8.54 | U78: 306.84 | V78: 0.28 | W78: 9.98 | X78: 109.8134 | Y78: 3946.77 | Z78: 7540.84
B79: P8174 | C79: Administrador pleno | D79: mês | E79: 4792.1 | F79: 78.38 | G79: 3756.05 | H79: 16.21 | I79: 776.57 | J79: 0 | K79: 0 | L79: 0 | M79: 0 | N79: 0 | O79: 0 | P79: 0.06 | Q79: 3.09 | R79: 0 | S79: 0 | T79: 6.4 | U79: 306.84 | V79: 0.21 | W79: 9.98 | X79: 101.2611 | Y79: 4852.53 | Z79: 9644.62
B80: P8175 | C80: Administrador sênior | D80: mês | E80: 8655.04 | F80: 78.38 | G80: 6783.82 | H80: 8.97 | I80: 776.57 | J80: 0 | K80: 0 | L80: 0 | M80: 0 | N80: 0 | O80: 0 | P80: 0.04 | Q80: 3.09 | R80: 0 | S80: 0 | T80: 3.55 | U80: 306.84 | V80: 0.12 | W80: 9.98 | X80: 91.0487 | Y80: 7880.3 | Z80: 16535.34
B81: P8180 | C81: Engenheiro agrimensor júnior | D81: mês | E81: 12443.57 | F81: 78.92 | G81: 9820.47 | H81: 6.24 | I81: 776.57 | J81: 0.21 | K81: 26.49 | L81: 0 | M81: 0 | N81: 0 | O81: 0 | P81: 0.04 | Q81: 4.83 | R81: 0 | S81: 0 | T81: 2.47 | U81: 306.84 | V81: 0.08 | W81: 9.98 | X81: 87.9585 | Y81: 10945.18 | Z81: 23388.75
B82: P8181 | C82: Engenheiro agrimensor pleno | D82: mês | E82: 13738.43 | F82: 78.92 | G82: 10842.37 | H82: 5.65 | I82: 776.57 | J82: 0.19 | K82: 26.49 | L82: 0 | M82: 0 | N82: 0 | O82: 0 | P82: 0.04 | Q82: 4.83 | R82: 0 | S82: 0 | T82: 2.23 | U82: 306.84 | V82: 0.07 | W82: 9.98 | X82: 87.1066 | Y82: 11967.08 | Z82: 25705.5
B83: P8182 | C83: Engenheiro agrimensor sênior | D83: mês | E83: 15033.28 | F83: 78.92 | G83: 11864.27 | H83: 5.17 | I83: 776.57 | J83: 0.18 | K83: 26.49 | L83: 0 | M83: 0 | N83: 0 | O83: 0 | P83: 0.03 | Q83: 4.83 | R83: 0 | S83: 0 | T83: 2.04 | U83: 306.84 | V83: 0.07 | W83: 9.98 | X83: 86.4015 | Y83: 12988.98 | Z83: 28022.26
B84: P8183 | C84: Geógrafo júnior | D84: mês | E84: 4160.02 | F84: 78.39 | G84: 3261.04 | H84: 18.67 | I84: 776.57 | J84: 0.64 | K84: 26.49 | L84: 0 | M84: 0 | N84: 0 | O84: 0 | P84: 0.07 | Q84: 2.96 | R84: 0 | S84: 0 | T84: 7.38 | U84: 306.84 | V84: 0.24 | W84: 9.98 | X84: 105.3812 | Y84: 4383.88 | Z84: 8543.9
B85: P8184 | C85: Geógrafo pleno | D85: mês | E85: 5546.69 | F85: 78.39 | G85: 4348.05 | H85: 14 | I85: 776.57 | J85: 0.48 | K85: 26.49 | L85: 0 | M85: 0 | N85: 0 | O85: 0 | P85: 0.05 | Q85: 2.96 | R85: 0 | S85: 0 | T85: 5.53 | U85: 306.84 | V85: 0.18 | W85: 9.98 | X85: 98.6334 | Y85: 5470.9 | Z85: 11017.59
B86: P8185 | C86: Geógrafo sênior | D86: mês | E86: 11068.85 | F86: 78.39 | G86: 8676.87 | H86: 7.02 | I86: 776.57 | J86: 0.24 | K86: 26.49 | L86: 0 | M86: 0 | N86: 0 | O86: 0 | P86: 0.03 | Q86: 2.96 | R86: 0 | S86: 0 | T86: 2.77 | U86: 306.84 | V86: 0.09 | W86: 9.98 | X86: 88.5342 | Y86: 9799.72 | Z86: 20868.57
B87: P8186 | C87: Antropólogo júnior | D87: mês | E87: 3557.77 | F87: 82.83 | G87: 2946.9 | H87: 21.83 | I87: 776.57 | J87: 0.74 | K87: 26.49 | L87: 0 | M87: 0 | N87: 1 | O87: 35.43 | P87: 0.13 | Q87: 4.67 | R87: 0 | S87: 0 | T87: 8.62 | U87: 306.84 | V87: 0.28 | W87: 9.98 | X87: 115.434 | Y87: 4106.88 | Z87: 7664.65
B88: P8187 | C88: Antropólogo pleno | D88: mês | E88: 4743.7 | F88: 82.83 | G88: 3929.2 | H88: 16.37 | I88: 776.57 | J88: 0.56 | K88: 26.49 | L88: 0 | M88: 0 | N88: 0 | O88: 0 | P88: 0.1 | Q88: 4.67 | R88: 0 | S88: 0 | T88: 6.47 | U88: 306.84 | V88: 0.21 | W88: 9.98 | X88: 106.5361 | Y88: 5053.75 | Z88: 9797.44
B89: P8188 | C89: Antropólogo sênior | D89: mês | E89: 7689.09 | F89: 82.83 | G89: 6368.87 | H89: 10.1 | I89: 776.57 | J89: 0.34 | K89: 26.49 | L89: 0 | M89: 0 | N89: 0 | O89: 0 | P89: 0.06 | Q89: 4.67 | R89: 0 | S89: 0 | T89: 3.99 | U89: 306.84 | V89: 0.13 | W89: 9.98 | X89: 97.4552 | Y89: 7493.42 | Z89: 15182.5
B90: P8189 | C90: Arqueólogo júnior | D90: mês | E90: 2959.7 | F90: 83.26 | G90: 2464.25 | H90: 26.24 | I90: 776.57 | J90: 0.9 | K90: 26.49 | L90: 0 | M90: 0 | N90: 2.41 | O90: 71.32 | P90: 0.27 | Q90: 7.88 | R90: 0 | S90: 0 | T90: 10.37 | U90: 306.84 | V90: 0.34 | W90: 9.98 | X90: 123.7735 | Y90: 3663.32 | Z90: 6623.02
B91: P8190 | C91: Arqueólogo pleno | D91: mês | E91: 3946.27 | F91: 83.26 | G91: 3285.66 | H91: 19.68 | I91: 776.57 | J91: 0.67 | K91: 26.49 | L91: 0 | M91: 0 | N91: 0.31 | O91: 12.12 | P91: 0.2 | Q91: 7.88 | R91: 0 | S91: 0 | T91: 7.78 | U91: 306.84 | V91: 0.25 | W91: 9.98 | X91: 112.1451 | Y91: 4425.54 | Z91: 8371.81
B92: P8191 | C92: Arqueólogo sênior | D92: mês | E92: 5796.23 | F92: 83.26 | G92: 4825.94 | H92: 13.4 | I92: 776.57 | J92: 0.46 | K92: 26.49 | L92: 0 | M92: 0 | N92: 0 | O92: 0 | P92: 0.14 | Q92: 7.88 | R92: 0 | S92: 0 | T92: 5.29 | U92: 306.84 | V92: 0.17 | W92: 9.98 | X92: 102.7168 | Y92: 5953.7 | Z92: 11749.93
B93: P8192 | C93: Historiador júnior | D93: mês | E93: 4184.91 | F93: 80.02 | G93: 3348.76 | H93: 18.56 | I93: 776.57 | J93: 0.63 | K93: 26.49 | L93: 0 | M93: 0 | N93: 0 | O93: 0 | P93: 0.09 | Q93: 3.59 | R93: 0 | S93: 0 | T93: 7.33 | U93: 306.84 | V93: 0.24 | W93: 9.98 | X93: 106.8658 | Y93: 4472.24 | Z93: 8657.15
B94: P8193 | C94: Historiador pleno | D94: mês | E94: 5579.88 | F94: 80.02 | G94: 4465.02 | H94: 13.92 | I94: 776.57 | J94: 0.47 | K94: 26.49 | L94: 0 | M94: 0 | N94: 0 | O94: 0 | P94: 0.06 | Q94: 3.59 | R94: 0 | S94: 0 | T94: 5.5 | U94: 306.84 | V94: 0.18 | W94: 9.98 | X94: 100.1543 | Y94: 5588.49 | Z94: 11168.37
B95: P8194 | C95: Historiador sênior | D95: mês | E95: 8835.48 | F95: 80.02 | G95: 7070.15 | H95: 8.79 | I95: 776.57 | J95: 0.3 | K95: 26.49 | L95: 0 | M95: 0 | N95: 0 | O95: 0 | P95: 0.04 | Q95: 3.59 | R95: 0 | S95: 0 | T95: 3.47 | U95: 306.84 | V95: 0.11 | W95: 9.98 | X95: 92.7355 | Y95: 8193.62 | Z95: 17029.1
